Workbook

Sheet Introduction
B3: Foundations
C5: What would you compute first
C7: Project IRR and Equity IRR and Debt IRR
C9: Make a Scenario
C11: Financial Model - Units/Sums/Inputs/Source
C13: Balancing of Interests
B15: Advanced
C17: Compute Default and Repayment of Default
C19: Compute Premium versus Risk Free Rate
C21: Compute LLCR and PLCR with Different Interest Rates
C23: Upside from Re-financing
C25: Treatment of Pre-COD Cash Flow as Equity

Sheet Case Write-up
M22: Fancy Meetings
M34: Skip
M76: Nationalisation of PDVSA, 1976
M103: PDVSA Tax Rate 34% or 67,7%
M104: Royalty Rate 16.67%
M111: $65 Billion for Funding Oil Expansion
M116: Allowed Joint Ventures
M124: PDVSA Minority Shareholder
M174: Low Cost Reserves for US Refinery
M202: SPV: Petrozuata
M208: Area | N208: =21.5*1000000000 -> 21500000000 | O208: BBL
M209: 35 Years | N209: =N208/35 -> 614285714.3 | O209: BBL-yr
M210: per Day | N210: =N209/365 -> 1682974.56 | O210: BBL-day
M211: Capacity | N211: 120000 | O211: BBL-day
M214: Surplus Capacity Upside
M222: Capacity of Upgrader | N222: 102000 | O222: BBL-day
M249: Cost Over-run from Equity
M266: Off-taker is the sponsor
M294: Cash Flow Waterfall in Model
M295: Owners do not have right to use cash flow however they want
M339: Political Risk Insurance - Increase in Interest Rate

Sheet Exhibit7
D1: Exhibit 7 Sources and Uses of Funds (U.S. dollars in thousands): 1996-2000
E4: 1996 | F4: 1997 | G4: 1998 | H4: 1999 | I4: 2000 | J4: Total
D6: USES
D7: Capital Expenditures
D8: Crude Oil Production | E8: 11995 | F8: 191849 | G8: 151141 | H8: 77092 | I8: 16702 | J8: 448780
D9: Crude Oil Pipeline | E9: 655 | F9: 170512 | G9: 45121 | H9: 0 | I9: 0 | J9: 216288
D10: Upgrader & Loading Facilitya | E10: 14345 | F10: 243305 | G10: 510987 | H10: 230306 | I10: 67912 | J10: 1066854
D11: Upstream Contingency | E11: 0 | F11: 0 | G11: 0 | H11: 0 | I11: 37925 | J11: 37925
D12: Total Capex | E12: 26994 | F12: 605666 | G12: 707249 | H12: 307399 | I12: 122539 | J12: 1769847
D13: Other Costs
D14: Deferred Development Costs and Operating Expenditures | E14: 52040 | F14: 23328 | G14: 71724 | H14: 0 | I14: 0 | J14: 147093
D15: Initial Cash Balance | E15: 0 | F15: 0 | G15: 10000 | H15: 0 | I15: 0 | J15: 10000
D16: Financing Costs | E16: 0 | F16: 61134 | G16: 86816 | H16: 94955 | I16: 111556 | J16: 354461
D17: Legal & Advisory Fees | E17: 0 | F17: 15000 | G17: 0 | H17: 0 | I17: 0 | J17: 15000
D18: Debt Service Reserve | E18: 0 | F18: 0 | G18: 0 | H18: 0 | I18: 80865 | J18: 80865
D19: Excess Cash Balance | E19: 0 | F19: 47213 | G19: 0 | H19: 0 | I19: 195 | J19: 47408
D20: Total Uses | E20: 79035 | F20: 752341 | G20: 875789 | H20: 402353 | I20: 315155 | J20: 2424673
D22: SOURCES
D23: Total Project Debt | E23: 0 | F23: 1000000 | G23: 24299 | H23: 242981 | I23: 182720 | J23: 1450000
D25: Shareholder Funds
D26: Initial Paid in Capital | E26: 79035 | F26: 0 | G26: 0 | H26: 0 | I26: 0 | J26: 79035
D27: Additional Paid-in Capital | E27: 0 | F27: 1986 | G27: 550148 | H27: -1576 | I27: -185047 | J27: 365511
D28: Operating Cash Flowb | E28: 0 | F28: 47213 | G28: 4484 | H28: 160948 | I28: 317481 | J28: 530126
D29: Total Shareholder Funds | E29: 79035 | F29: 49199 | G29: 554632 | H29: 159373 | I29: 132434 | J29: 974673
D31: Total Sources | E31: 79035 | F31: 1049199 | G31: 578931 | H31: 402353 | I31: 315155 | J31: 2424673
D33: Uses Less Operating Cash Flow | E33: =E20-E28 -> 79035 | F33: =F20-F28 -> 705128 | G33: 871305 | H33: 241405 | I33: -2326 | J33: 1894547
D34: Debt and Equity Funding | E34: =E26+E27+E23 -> 79035 | F34: =F26+F27+F23 -> 1001986 | G34: 574447 | H34: 241405 | I34: -2327 | J34: 1894546
D35: Difference | E35: =E33-E34 -> 0 | F35: =F33-F34 -> -296858 | G35: 296858 | H35: 0 | I35: 1 | J35: 1
D37: Sources Check | E37: =E29+E23 -> 79035 | F37: =F29+F23 -> 1049199 | G37: 578931 | H37: 402354 | I37: 315154 | J37: 2424673
D38: Sources Less Operating CF | E38: =E37-E28 -> 79035 | F38: =F37-F28 -> 1001986 | G38: 574447 | H38: 241406 | I38: -2327 | J38: 1894547
E41: =E20-E31 -> 0 | F41: =F20-F31 -> -296858 | G41: =G20-G31 -> 296858 | H41: 0 | I41: 0 | J41: 0
E42: =E35-E41 -> 0 | F42: =F35-F41 -> 0 | G42: =G35-G41 -> 0 | H42: 0 | I42: 1 | J42: 1
E44: =E26+E27 -> 79035 | F44: =F26+F27 -> 1986 | G44: =G26+G27 -> 550148 | H44: -1576 | I44: -185047 | J44: 444546
D45: Crude Oil Production | E45: =E23-E28 -> 0 | F45: =F23-F28 -> 952787 | G45: =G23-G28 -> 19815 | H45: =H23-H28 -> 82033 | I45: =I23-I28 -> -134761
D46: Crude Oil Pipeline
D47: Upgrader & Loading Facility
D48: Upstream Contingency
D53: Source: Petrozuata Planning Documents.
D55: aIncludes a $139 million contingency.
D56: bIncludes interest income.

Sheet Exhibit10
D1: Exhibit 10a Petrozuata Equity Cash Flow Projections (U.S. dollars in thousands)
K4: Cash | M4: Cash Used
E5: Forecast | K5: Available | M5: for Debt | AJ5: =Exhibit7!J20-Exhibit7!J19-Exhibit7!J18 -> 2296400
E6: Price of | J6: Implied | K6: for Debt | M6: Service | AH6: Other | AJ6: 35 | AY6: Debt | AZ6: Debt | BA6: Total | BB6: Opening | BC6: Debt | BD6: Debt | BE6: Closing | BF6: Interest | BG6: IDC | BH6: Total | BI6: Interest | BJ6: Debt | BK6: Repayment
E7: Maya | F7: Implied | G7: Total | H7: O&M Taxes | I7: EBITDA | J7: Cost | K7: Service | L7: Total Debt | M7: Reserve | N7: Equity Cash Flows | AD7: Total Expense | AF7: Revenues | AG7: Royalty | AH7: Cash | AI7: EBITDA | AJ7: Depreciation | AK7: EBIT | AL7: Interest | AM7: EBT | AN7: Taxes | AO7: Total | AP7: Target | AR7: Cash | AS7: Inflation | AT7: Real | AU7: Total Debt | AV7: Draw | AW7: Repayment | AX7: Repay | AY7: Service | AZ7: Draw | BA7: Cash Flow | BB7: Debt | BC7: Draw | BD7: Repayment | BE7: Debt | BH7: Interest | BI7: Rate | BJ7: Cash Flow | BK7: Percent
D8: Year | E8: Crude | F8: Production | G8: Revenue | H8: And Other | I8: Less Tax | J8: per BBL | K8: (CADS) | L8: Service | M8: Account | N8: Dividends | O8: Investment | P8: Total Debt | AG8: 0.01 | AH8: Expense | AN8: 0.34 | AO8: expense | AP8: Expense | AQ8: Difference | AR8: Expense | AS8: Index | AT8: Expense | AX8: Percent | BA8: IRR | BJ8: =IRR(BJ12:BJ37) -> 0.09203178998
E9: USD/BBL | F9: BBL 000's | G9: USD 000's | H9: USD 000's | I9: USD 000's | J9: USD/BBL | K9: USD 000's | L9: USD 000's | M9: USD 000's | N9: USD 000's | O9: USD 000's | P9: USD 000's | AS9: 0.03 | BA9: =IRR(BA12:BA36) -> 0.09101509803
D11: 1996 | E11: 12.25 | G11: 0 | K11: 0 | O11: -79035 | P11: 0 | AD11: =H11 -> 0 | AK11: =AI11 -> 0 | AL11: =BF11 -> 0 | AM11: =AK11-AL11 -> 0 | AN11: =$AN$8*AM11 -> 0 | BK11: =BD11/$BE$15 -> 0
D12: 1997 | E12: 12.56 | G12: 0 | K12: 47213 | O12: -1986 | P12: 1000000 | AD12: 0 | AG12: =G12*$AG$8 -> 0 | AK12: =AI12 -> 0 | AL12: =BF12 -> 0 | AM12: =AK12-AL12 -> 0 | AN12: =$AN$8*AM12 -> 0 | AO12: =AH12+AG12+AN12 -> 0 | AP12: =H12 -> 0 | AR12: =AH12 -> 0 | AS12: 1 | AT12: =AR12/AS12 -> 0 | AU12: =P12 -> 1000000 | AV12: =AU12-AV11 -> 1000000 | AY12: =L12 -> 0 | AZ12: =AU11-AU12 -> -1000000 | BA12: =AY12+AZ12+BG12 -> -938866 | BB12: =BE11 -> 0 | BC12: =-AZ12 -> 1000000 | BE12: =BB12+BC12-BD12 -> 1000000 | BG12: =TRANSPOSE(Exhibit7!F16:I16) -> 61134 | BH12: =BG12+BF12 -> 61134 | BI12: =BH12/AVERAGE(BE12,BB12) -> 0.122268 | BJ12: =AZ12+BF12+BG12+BD12 -> -938866 | BK12: =BD12/$BE$15 -> 0
D13: 1998 | E13: 12.87 | F13: 6101.320901 | G13: =E13*F13 -> 78524 | H13: 74040 | I13: =G13-H13 -> 4484 | J13: =H13/F13 -> 12.13507717 | K13: =G13-H13 -> 4484 | O13: -550148 | P13: 1024299 | AD13: 74040 | AF13: =G13 -> 78524 | AG13: =$AG$8*AF13 -> 785.24 | AH13: 70944.82061 | AI13: =AF13-AG13-AH13 -> 6793.939394 | AK13: 6793.939394 | AL13: 0 | AM13: 6793.939394 | AN13: 2309.939394 | AO13: =AH13+AG13+AN13 -> 74040 | AP13: 74040 | AQ13: =AO13-AP13 -> 0 | AR13: =AH13 -> 70944.82061 | AS13: =AS12*(1+$AS$9) -> 1.03 | AT13: =AR13/AS13 -> 68878.46661 | AU13: 1024299 | AV13: =AU13-AV12 -> 24299 | AY13: 0 | AZ13: =AU12-AU13 -> -24299 | BA13: 62517 | BB13: =BE12 -> 1000000 | BC13: =-AZ13 -> 24299 | BE13: =BB13+BC13-BD13 -> 1024299 | BG13: 86816 | BH13: =BG13+BF13 -> 86816 | BI13: =BH13/AVERAGE(BE13,BB13) -> 0.08577389012 | BJ13: =AZ13+BF13+BG13+BD13 -> 62517 | BK13: =BD13/$BE$15 -> 0
D14: 1999 | E14: 13.19 | F14: 32529.11296 | G14: =E14*F14 -> 429059 | H14: 268111 | I14: =G14-H14 -> 160948 | J14: 8.242186016 | K14: 160948 | N14: 1576 | P14: 1267280 | AD14: 268111 | AF14: 429059 | AG14: 4290.59 | AH14: 180907.8039 | AI14: =AF14-AG14-AH14 -> 243860.6061 | AK14: 243860.6061 | AL14: 0 | AM14: 243860.6061 | AN14: 82912.60606 | AO14: 268111 | AP14: 268111 | AQ14: =AO14-AP14 -> 0 | AR14: 180907.8039 | AS14: =AS13*(1+$AS$9) -> 1.0609 | AT14: 170522.9559 | AU14: 1267280 | AV14: 1242981 | AY14: 0 | AZ14: -242981 | BA14: -148026 | BB14: 1024299 | BC14: 242981 | BE14: 1267280 | BG14: 94955 | BH14: 94955 | BI14: 0.08287298845 | BJ14: -148026 | BK14: 0
D15: 2000 | E15: 13.52 | F15: 59475.44379 | G15: 804108 | H15: 486627 | I15: 317481 | J15: 8.181981823 | K15: 317481 | M15: -80865 | N15: 185047 | P15: 1450000 | AD15: 486627 | AF15: 804108 | AG15: 8041.08 | AH15: 315035.1018 | AI15: 481031.8182 | AJ15: =AJ5/$AJ$6 -> 65611.42857 | AK15: 481031.8182 | AL15: 0 | AM15: 481031.8182 | AN15: 163550.8182 | AO15: 486627 | AP15: 486627 | AQ15: 3.958120942e-09 | AR15: 315035.1018 | AS15: 1.092727 | AT15: 288301.7458 | AU15: 1450000 | AV15: 207019 | AY15: 0 | AZ15: -182720 | BA15: -71164 | BB15: 1267280 | BC15: 182720 | BE15: 1450000 | BG15: 111556 | BH15: 111556 | BI15: 0.08210857917 | BJ15: -71164 | BK15: 0
D16: 2001 | E16: 13.86 | F16: 41064.64646 | G16: 569156 | H16: 184391 | I16: 384765 | J16: 4.490261475 | K16: 384765 | L16: 160922 | M16: 1614 | N16: 225457 | P16: 1411111 | AD16: 184391 | AF16: 569156 | AG16: 5691.56 | AH16: 43352.65212 | AI16: 520111.7879 | AJ16: =AJ15 -> 65611.42857 | AK16: 520111.7879 | AL16: 122033 | AM16: 398078.7879 | AN16: 135346.7879 | AO16: 184391 | AP16: 184391 | AQ16: -4.656612873e-10 | AR16: 43352.65212 | AS16: 1.12550881 | AT16: 38518.2699 | AU16: 1411111 | AW16: =AU16-AU15 -> -38889 | AX16: =-AW16/$AU$15 -> 0.02682 | AY16: 160922 | BA16: 160922 | BB16: 1450000 | BD16: =-AW16 -> 38889 | BE16: 1411111 | BF16: =AY16-BD16 -> 122033 | BH16: 122033 | BI16: 0.08530462467 | BJ16: 160922 | BK16: 0.02682
D17: 2002 | E17: 14.21 | F17: 41069.45813 | G17: 583597 | H17: 194443 | I17: 389154 | J17: 4.73449149 | K17: 389154 | L17: 157694 | M17: 1614 | N17: 233074 | P17: 1372222 | AD17: 194443 | AF17: 583597 | AG17: 5835.97 | AH17: 49336.38237 | AI17: 528424.6476 | AJ17: =AJ16 -> 65611.42857 | AK17: 528424.6476 | AL17: 118805 | AM17: 409619.6476 | AN17: 139270.6802 | AO17: 194443.0326 | AP17: 194443 | AQ17: 0.03256197978 | AR17: 49336.38237 | AS17: 1.159274074 | AT17: 42557.99682 | AU17: 1372222 | AW17: =AU17-AU16 -> -38889 | AX17: =-AW17/$AU$15 -> 0.02682 | AY17: 157694 | BA17: 157694 | BB17: 1411111 | BD17: =-AW17 -> 38889 | BE17: 1372222 | BF17: =AY17-BD17 -> 118805 | BH17: 118805 | BI17: 0.0853688725 | BJ17: 157694 | BK17: 0.02682
D18: 2003 | E18: 14.56 | F18: 41098.76374 | G18: 598398 | H18: 231823 | I18: 366575 | J18: 5.640631954 | K18: 366575 | L18: 154466 | M18: -11509 | N18: 200600 | P18: 1333333 | AD18: 231823 | AF18: 598398 | AG18: 5983.98 | AH18: 96537.11654 | AI18: 495876.9035 | AJ18: 65611.42857 | AK18: 495876.9035 | AL18: 115577 | AM18: 380299.9035 | AN18: 129301.9672 | AO18: 231823.0637 | AP18: 231823 | AQ18: 0.0637144332 | AR18: 96537.11654 | AS18: 1.194052297 | AT18: 80848.31529 | AU18: 1333333 | AW18: -38889 | AX18: 0.02682 | AY18: 154466 | BA18: 154466 | BB18: 1372222 | BD18: 38889 | BE18: 1333333 | BF18: 115577 | BH18: 115577 | BI18: 0.08543681426 | BJ18: 154466 | BK18: 0.02682
D19: 2004 | E19: 14.93 | F19: 41096.31614 | G19: 613568 | H19: 212016 | I19: 401552 | J19: 5.159002556 | K19: 401552 | L19: 176949 | M19: -5700 | N19: 218903 | P19: 1268856 | AD19: 212016 | AF19: 613568 | AG19: 6135.68 | AH19: 56960.37696 | AI19: 550471.943 | AJ19: 65611.42857 | AK19: 550471.943 | AL19: 112472 | AM19: 437999.943 | AN19: 148919.9806 | AO19: 212016.0376 | AP19: 212016 | AQ19: 0.0375938112 | AR19: 56960.37696 | AS19: 1.229873865 | AT19: 46313.99899 | AU19: 1268856 | AW19: -64477 | AX19: 0.04446689655 | AY19: 176949 | BA19: 176949 | BB19: 1333333 | BD19: 64477 | BE19: 1268856 | BF19: 112472 | BH19: 112472 | BI19: 0.08644414376 | BJ19: 176949 | BK19: 0.04446689655
D20: 2005 | E20: 15.3 | F20: 41118.75817 | G20: 629117 | H20: 230906 | I20: 398211 | J20: 5.61558788 | K20: 398211 | L20: 188009 | M20: -6345 | N20: 203857 | P20: 1187614 | AD20: 230906 | AF20: 629117 | AG20: 6291.17 | AH20: 74477.0863 | AI20: 548348.7437 | AJ20: 65611.42857 | AK20: 548348.7437 | AL20: 106767 | AM20: 441581.7437 | AN20: 150137.7929 | AO20: 230906.0492 | AP20: 230906 | AQ20: 0.04915482778 | AR20: 74477.0863 | AS20: 1.266770081 | AT20: 58792.89967 | AU20: 1187614 | AW20: -81242 | AX20: 0.05602896552 | AY20: 188009 | BA20: 188009 | BB20: 1268856 | BD20: 81242 | BE20: 1187614 | BF20: 106767 | BH20: 106767 | BI20: 0.08692717599 | BJ20: 188009 | BK20: 0.05602896552
D21: 2006 | E21: 15.68 | F21: 41138.52041 | G21: 645052 | H21: 211575 | I21: 433477 | J21: 5.142990023 | K21: 433477 | L21: 200307 | M21: -550 | N21: 232620 | P21: 1086961 | AD21: 211575 | AF21: 645052 | AG21: 6450.52 | AH21: 33155.08891 | AI21: 605446.3911 | AJ21: 65611.42857 | AK21: 605446.3911 | AL21: 99654 | AM21: 505792.3911 | AN21: 171969.413 | AO21: 211575.0219 | AP21: 211575 | AQ21: 0.02188233679 | AR21: 33155.08891 | AS21: 1.304773184 | AT21: 25410.6149 | AU21: 1086961 | AW21: -100653 | AX21: 0.06941586207 | AY21: 200307 | BA21: 200307 | BB21: 1187614 | BD21: 100653 | BE21: 1086961 | BF21: 99654 | BH21: 99654 | BI21: 0.08762428146 | BJ21: 200307 | BK21: 0.06941586207
D22: 2007 | E22: 16.07 | F22: 41156.56503 | G22: 661386 | H22: 226119 | I22: 435267 | J22: 5.494117399 | K22: 435267 | L22: 201204 | M22: -4671 | N22: 229393 | P22: 977484 | AD22: 226119 | AF22: 661386 | AG22: 6613.86 | AH22: 42530.03101 | AI22: 612242.109 | AJ22: 65611.42857 | AK22: 612242.109 | AL22: 91727 | AM22: 520515.109 | AN22: 176975.1371 | AO22: 226119.0281 | AP22: 226119 | AQ22: 0.02806979237 | AR22: 42530.03101 | AS22: 1.343916379 | AT22: 31646.33728 | AU22: 977484 | AW22: -109477 | AX22: 0.07550137931 | AY22: 201204 | BA22: 201204 | BB22: 1086961 | BD22: 109477 | BE22: 977484 | BF22: 91727 | BH22: 91727 | BI22: 0.08886359288 | BJ22: 201204 | BK22: 0.07550137931
D23: 2008 | E23: 16.47 | F23: 41173.40619 | G23: 678126 | H23: 240008 | I23: 438118 | J23: 5.829199529 | K23: 438118 | L23: 210153 | M23: 10623 | N23: 238588 | P23: 849556 | AD23: 240008 | AF23: 678126 | AG23: 6781.26 | AH23: 49887.92182 | AI23: 621456.8182 | AJ23: 65611.42857 | AK23: 621456.8182 | AL23: 82225 | AM23: 539231.8182 | AN23: 183338.8182 | AO23: 240008 | AP23: 240008 | AQ23: 3.20142135e-10 | AR23: 49887.92182 | AS23: 1.384233871 | AT23: 36040.09617 | AU23: 849556 | AW23: -127928 | AX23: 0.0882262069 | AY23: 210153 | BA23: 210153 | BB23: 977484 | BD23: 127928 | BE23: 849556 | BF23: 82225 | BH23: 82225 | BI23: 0.09000897627 | BJ23: 210153 | BK23: 0.0882262069
D24: 2009 | E24: 16.89 | F24: 41165.36412 | G24: 695283 | H24: 322101 | I24: 373182 | J24: 7.824563365 | K24: 373182 | L24: 166148 | M24: 19595 | N24: 226629 | P24: 755137 | AD24: 322101 | AF24: 695283 | AG24: 6952.83 | AH24: 159854.2003 | AI24: 528475.9697 | AJ24: 65611.42857 | AK24: 528475.9697 | AL24: 71729 | AM24: 456746.9697 | AN24: 155293.9697 | AO24: 322101 | AP24: 322101 | AQ24: 9.895302355e-10 | AR24: 159854.2003 | AS24: 1.425760887 | AT24: 112118.5199 | AU24: 755137 | AW24: -94419 | AX24: 0.06511655172 | AY24: 166148 | BA24: 166148 | BB24: 849556 | BD24: 94419 | BE24: 755137 | BF24: 71729 | BH24: 71729 | BI24: 0.08939903147 | BJ24: 166148 | BK24: 0.06511655172
D25: 2010 | E25: 17.31 | F25: 41182.49567 | G25: 712869 | H25: 341400 | I25: 371469 | J25: 8.289929847 | K25: 371469 | L25: 150455 | M25: -4135 | N25: 216878 | P25: 669137 | AD25: 341400 | AF25: 712869 | AG25: 7128.69 | AH25: 176112.7588 | AI25: 529627.5512 | AJ25: 65611.42857 | AK25: 529627.5512 | AL25: 64455 | AM25: 465172.5512 | AN25: 158158.6674 | AO25: 341400.1162 | AP25: 341400 | AQ25: 0.1162343046 | AR25: 176112.7588 | AS25: 1.468533713 | AT25: 119924.2191 | AU25: 669137 | AW25: -86000 | AX25: 0.05931034483 | AY25: 150455 | BA25: 150455 | BB25: 755137 | BD25: 86000 | BE25: 669137 | BF25: 64455 | BH25: 64455 | BI25: 0.09050926999 | BJ25: 150455 | BK25: 0.05931034483
D26: 2011 | E26: 17.74 | F26: 41200.22548 | G26: 730892 | H26: 352421 | I26: 378471 | J26: 8.553860953 | K26: 378471 | L26: 158377 | M26: -3438 | N26: 216655 | P26: 567137 | AD26: 352421 | AF26: 730892 | AG26: 7308.92 | AH26: 179185.0471 | AI26: 544398.0329 | AJ26: 65611.42857 | AK26: 544398.0329 | AL26: 56377 | AM26: 488021.0329 | AN26: 165927.1512 | AO26: 352421.1183 | AP26: 352421 | AQ26: 0.1182620128 | AR26: 179185.0471 | AS26: 1.512589725 | AT26: 118462.4252 | AU26: 567137 | AW26: -102000 | AX26: 0.07034482759 | AY26: 158377 | BA26: 158377 | BB26: 669137 | BD26: 102000 | BE26: 567137 | BF26: 56377 | BH26: 56377 | BI26: 0.09120470058 | BJ26: 158377 | BK26: 0.07034482759
D27: 2012 | E27: 18.19 | F27: 41196.53656 | G27: 749365 | H27: 361937 | I27: 387428 | J27: 8.785617196 | K27: 387428 | L27: 164964 | M27: 40417 | N27: 262881 | P27: 449137 | AD27: 361937 | AF27: 749365 | AG27: 7493.65 | AH27: 179052.9836 | AI27: 562818.3664 | AJ27: 65611.42857 | AK27: 562818.3664 | AL27: 46964 | AM27: 515854.3664 | AN27: 175390.4846 | AO27: 361937.1182 | AP27: 361937 | AQ27: 0.1181748509 | AR27: 179052.9836 | AS27: 1.557967417 | AT27: 114927.2967 | AU27: 449137 | AW27: -118000 | AX27: 0.08137931034 | AY27: 164964 | BA27: 164964 | BB27: 567137 | BD27: 118000 | BE27: 449137 | BF27: 46964 | BH27: 46964 | BI27: 0.09242389356 | BJ27: 164964 | BK27: 0.08137931034
D28: 2013 | E28: 18.64 | F28: 41217.75751 | G28: 768299 | H28: 439321 | I28: 328978 | J28: 10.65853716 | K28: 328978 | L28: 85668 | M28: -933 | N28: 242378 | P28: 401689 | AD28: 439321 | AF28: 768299 | AG28: 7682.99 | AH28: 281853.5858 | AI28: 478762.4242 | AJ28: 65611.42857 | AK28: 478762.4242 | AL28: 38220 | AM28: 440542.4242 | AN28: 149784.4242 | AO28: 439321 | AP28: 439321 | AQ28: 0 | AR28: 281853.5858 | AS28: 1.604706439 | AT28: 175641.8363 | AU28: 401689 | AW28: -47448 | AX28: 0.03272275862 | AY28: 85668 | BA28: 85668 | BB28: 449137 | BD28: 47448 | BE28: 401689 | BF28: 38220 | BH28: 38220 | BI28: 0.08984210638 | BJ28: 85668 | BK28: 0.03272275862
D29: 2014 | E29: 18.64 | F29: 41244.5279 | G29: 768798 | H29: 410357 | I29: 358441 | J29: 9.949368339 | K29: 358441 | L29: 87403 | M29: -19051 | N29: 251988 | P29: 348241 | AD29: 410357 | AF29: 768798 | AG29: 7687.98 | AH29: 235509.5655 | AI29: 525600.4545 | AJ29: 65611.42857 | AK29: 525600.4545 | AL29: 33955 | AM29: 491645.4545 | AN29: 167159.4545 | AO29: 410357 | AP29: 410357 | AQ29: -1.862645149e-09 | AR29: 235509.5655 | AS29: 1.652847632 | AT29: 142487.1603 | AU29: 348241 | AW29: -53448 | AX29: 0.03686068966 | AY29: 87403 | BA29: 87403 | BB29: 401689 | BD29: 53448 | BE29: 348241 | BF29: 33955 | BH29: 33955 | BI29: 0.09055511848 | BJ29: 87403 | BK29: 0.03686068966
D30: 2015 | E30: 18.64 | F30: 41271.94206 | G30: 769309 | H30: 377764 | I30: 391545 | J30: 9.153046383 | K30: 391545 | L30: 124573 | M30: -6498 | N30: 260474 | P30: 252034 | AD30: 377764 | AF30: 769309 | AG30: 7693.09 | AH30: 182978.6979 | AI30: 578637.2121 | AJ30: 65611.42857 | AK30: 578637.2121 | AL30: 28366 | AM30: 550271.2121 | AN30: 187092.2121 | AO30: 377764 | AP30: 377764 | AQ30: -4.714820534e-09 | AR30: 182978.6979 | AS30: 1.702433061 | AT30: 107480.7004 | AU30: 252034 | AW30: -96207 | AX30: 0.06634965517 | AY30: 124573 | BA30: 124573 | BB30: 348241 | BD30: 96207 | BE30: 252034 | BF30: 28366 | BH30: 28366 | BI30: 0.09451001624 | BJ30: 124573 | BK30: 0.06634965517
D31: 2016 | E31: 18.64 | F31: 41299.94635 | G31: 769831 | H31: 386303 | I31: 383528 | J31: 9.353595685 | K31: 383528 | L31: 137103 | M31: 4468 | N31: 250893 | P31: 134448 | AD31: 386303 | AF31: 769831 | AG31: 7698.31 | AH31: 191083.8718 | AI31: 571048.8182 | AJ31: 65611.42857 | AK31: 571048.8182 | AL31: 19517 | AM31: 551531.8182 | AN31: 187520.8182 | AO31: 386303 | AP31: 386303 | AQ31: -3.376044333e-09 | AR31: 191083.8718 | AS31: 1.753506053 | AT31: 108972.462 | AU31: 134448 | AW31: -117586 | AX31: 0.0810937931 | AY31: 137103 | BA31: 137103 | BB31: 252034 | BD31: 117586 | BE31: 134448 | BF31: 19517 | BH31: 19517 | BI31: 0.1009982354 | BJ31: 137103 | BK31: 0.0810937931
D32: 2017 | E32: 18.64 | F32: 41328.59442 | G32: 770365 | H32: 387497 | I32: 382868 | J32: 9.376002388 | K32: 382868 | L32: 68691 | M32: 62038 | N32: 376215 | P32: 75000 | AD32: 387497 | AF32: 770365 | AG32: 7703.65 | AH32: 187319.8652 | AI32: 575341.4848 | AJ32: 65611.42857 | AK32: 575341.4848 | AL32: 9243 | AM32: 566098.4848 | AN32: 192473.4848 | AO32: 387497 | AP32: 387497 | AQ32: -3.143213689e-09 | AR32: 187319.8652 | AS32: 1.806111235 | AT32: 103714.4676 | AU32: 75000 | AW32: -59448 | AX32: 0.04099862069 | AY32: 68691 | BA32: 68691 | BB32: 134448 | BD32: 59448 | BE32: 75000 | BF32: 9243 | BH32: 9243 | BI32: 0.08826057064 | BJ32: 68691 | BK32: 0.04099862069
D33: 2018 | E33: 18.64 | F33: 41357.88627 | G33: 770911 | H33: 443380 | I33: 327531 | J33: 10.72056723 | K33: 327531 | L33: 6653 | M33: 0 | N33: 320878 | P33: 75000 | AD33: 443380 | AF33: 770911 | AG33: 7709.11 | AH33: 270370.3725 | AI33: 492831.5175 | AJ33: 65611.42857 | AK33: 492831.5175 | AL33: 6653 | AM33: 486178.5175 | AN33: 165300.696 | AO33: 443380.1784 | AP33: 443380 | AQ33: 0.1784442674 | AR33: 270370.3725 | AS33: 1.860294572 | AT33: 145337.398 | AU33: 75000 | AW33: 0 | AX33: 0 | AY33: 6653 | BA33: 6653 | BB33: 75000 | BD33: 0 | BE33: 75000 | BF33: 6653 | BH33: 6653 | BI33: 0.08870666667 | BJ33: 6653 | BK33: 0
D34: 2019 | E34: 18.64 | F34: 41387.76824 | G34: 771468 | H34: 463444 | I34: 308024 | J34: 11.19760789 | K34: 308024 | L34: 6653 | M34: 0 | N34: 301370 | P34: 75000 | AD34: 463444 | AF34: 771468 | AG34: 7714.68 | AH34: 300477.5927 | AI34: 463275.7273 | AJ34: 65611.42857 | AK34: 463275.7273 | AL34: 6653 | AM34: 456622.7273 | AN34: 155251.7273 | AO34: 463444 | AP34: 463444 | AQ34: 6.461050361e-09 | AR34: 300477.5927 | AS34: 1.916103409 | AT34: 156817.0023 | AU34: 75000 | AW34: 0 | AX34: 0 | AY34: 6653 | BA34: 6653 | BB34: 75000 | BD34: 0 | BE34: 75000 | BF34: 6653 | BH34: 6653 | BI34: 0.08870666667 | BJ34: 6653 | BK34: 0
D35: 2020 | E35: 18.64 | F35: 41945.22532 | G35: 781859 | H35: 498808 | I35: 283051 | J35: 11.89188987 | K35: 283051 | L35: 6653 | M35: 0 | N35: 276398 | P35: 75000 | AD35: 498808 | AF35: 781859 | AG35: 7818.59 | AH35: 348602.9101 | AI35: 425437.4999 | AJ35: 65611.42857 | AK35: 425437.4999 | AL35: 6653 | AM35: 418784.4999 | AN35: 142386.73 | AO35: 498808.2301 | AP35: 498808 | AQ35: 0.2300776906 | AR35: 348602.9101 | AS35: 1.973586511 | AT35: 176634.218 | AU35: 75000 | AW35: 0 | AX35: 0 | AY35: 6653 | BA35: 6653 | BB35: 75000 | BD35: 0 | BE35: 75000 | BF35: 6653 | BH35: 6653 | BI35: 0.08870666667 | BJ35: 6653 | BK35: 0
D36: 2021 | E36: 18.64 | F36: 41976.4485 | G36: 782441 | H36: 482977 | I36: 299464 | J36: 11.50590432 | K36: 299464 | L36: 6653 | M36: 0 | N36: 292810 | P36: 75000 | AD36: 482977 | AF36: 782441 | AG36: 7824.41 | AH36: 324310.5597 | AI36: 450306.0303 | AJ36: 65611.42857 | AK36: 450306.0303 | AL36: 6653 | AM36: 443653.0303 | AN36: 150842.0303 | AO36: 482977 | AP36: 482977 | AQ36: 5.820766091e-10 | AR36: 324310.5597 | AS36: 2.032794106 | AT36: 159539.3054 | AU36: 75000 | AW36: 0 | AX36: 0 | AY36: 6653 | BA36: 6653 | BB36: 75000 | BD36: 0 | BE36: 75000 | BF36: 6653 | BH36: 6653 | BI36: 0.08870666667 | BJ36: 6653 | BK36: 0
D37: 2022 | E37: 18.64 | F37: 42008.3691 | G37: 783036 | H37: 487482 | I37: 295554 | J37: 11.60440194 | K37: 295554 | L37: 81653 | M37: 3327 | N37: 217227 | P37: 0 | AD37: 487482 | AF37: 783036 | AG37: 7830.36 | AH37: 330823.8521 | AI37: 444381.7879 | AJ37: 65611.42857 | AK37: 444381.7879 | AL37: 6653 | AM37: 437728.7879 | AN37: 148827.7879 | AO37: 487482 | AP37: 487482 | AQ37: -5.76255843e-09 | AR37: 330823.8521 | AS37: 2.09377793 | AT37: 158003.3142 | AU37: 0 | AW37: -75000 | AX37: 0.05172413793 | AY37: 81653 | BA37: 81653 | BB37: =BE36 -> 75000 | BD37: =-AW37 -> 75000 | BE37: =BB37+BC37-BD37 -> 0 | BF37: 6653 | BH37: 6653 | BI37: 0.1774133333 | BJ37: 81653 | BK37: 0.05172413793
D38: 2023 | E38: 18.64 | F38: 42040.98712 | G38: 783644 | H38: 489066 | I38: 294578 | J38: 11.63307604 | K38: 294578 | L38: 0 | M38: 0 | N38: 294578 | AD38: 489066 | AF38: 783644 | AG38: 7836.44 | AH38: 329477.257 | AI38: 446330.303 | AJ38: 65611.42857 | AK38: 446330.303 | AL38: 0 | AM38: 446330.303 | AN38: 151752.303 | AO38: 489066 | AP38: 489066 | AQ38: 0 | AR38: 329477.257 | AS38: 2.156591268 | AT38: 152776.8669
D39: 2024 | E39: 18.64 | F39: 42074.35622 | G39: 784266 | H39: 494610 | I39: 289656 | J39: 11.75561659 | K39: 289656 | N39: 289656 | AD39: 494610 | AF39: 784266 | AG39: 7842.66 | AH39: 337550.6127 | AI39: 438872.7273 | AJ39: 65611.42857 | AK39: 438872.7273 | AL39: 0 | AM39: 438872.7273 | AN39: 149216.7273 | AO39: 494610 | AP39: 494610 | AQ39: 0 | AR39: 337550.6127 | AS39: 2.221289006 | AT39: 151961.5916
D40: 2025 | E40: 18.64 | F40: 42108.42275 | G40: 784901 | H40: 495196 | I40: 289705 | J40: 11.76002253 | K40: 289705 | N40: 289705 | AD40: 495196 | AF40: 784901 | AG40: 7849.01 | AH40: 338105.0203 | AI40: 438946.9697 | AJ40: 65611.42857 | AK40: 438946.9697 | AL40: 0 | AM40: 438946.9697 | AN40: 149241.9697 | AO40: 495196 | AP40: 495196 | AQ40: -3.783497959e-09 | AR40: 338105.0203 | AS40: 2.287927676 | AT40: 147777.8445
D41: 2026 | E41: 18.64 | F41: 42143.24034 | G41: 785550 | H41: 507476 | I41: 278074 | J41: 12.0416939 | K41: 278074 | N41: 278074 | AD41: 507476 | AF41: 785550 | AG41: 7855.5 | AH41: 356370.6139 | AI41: 421323.8861 | AJ41: 65611.42857 | AK41: 421323.8861 | AL41: 0 | AM41: 421323.8861 | AN41: 143250.1213 | AO41: 507476.2352 | AP41: 507476 | AQ41: 0.23520437 | AR41: 356370.6139 | AS41: 2.356565506 | AT41: 151224.5737
D42: 2027 | E42: 18.64 | F42: 42178.86266 | G42: 786214 | H42: 509408 | I42: 276806 | J42: 12.07732897 | K42: 276806 | N42: 276806 | AD42: 509408 | AF42: 786214 | AG42: 7862.14 | AH42: 358949.1886 | AI42: 419402.6714 | AJ42: 65611.42857 | AK42: 419402.6714 | AL42: 0 | AM42: 419402.6714 | AN42: 142596.9083 | AO42: 509408.2369 | AP42: 509408 | AQ42: 0.2369062276 | AR42: 358949.1886 | AS42: 2.427262471 | AT42: 147882.3131
D43: 2028 | E43: 18.64 | F43: 42215.1824 | G43: 786891 | H43: 512442 | I43: 274449 | J43: 12.13880814 | K43: 274449 | N43: 274449 | AD43: 512442 | AF43: 786891 | AG43: 7868.91 | AH43: 363190.635 | AI43: 415831.455 | AJ43: 65611.42857 | AK43: 415831.455 | AL43: 0 | AM43: 415831.455 | AN43: 141382.6947 | AO43: 512442.2397 | AP43: 512442 | AQ43: 0.2397055794 | AR43: 363190.635 | AS43: 2.500080345 | AT43: 145271.5852
D44: 2029 | E44: 18.64 | F44: 42252.36052 | G44: 787584 | H44: 523980 | I44: 263604 | J44: 12.40120063 | K44: 263604 | N44: 263604 | AD44: 523980 | AF44: 787584 | AG44: 7875.84 | AH44: 380308.16 | AI44: 399400 | AJ44: 65611.42857 | AK44: 399400 | AL44: 0 | AM44: 399400 | AN44: 135796 | AO44: 523980 | AP44: 523980 | AQ44: -1.0128133e-08 | AR44: 380308.16 | AS44: 2.575082756 | AT44: 147687.7429
D45: 2030 | E45: 18.64 | F45: 42290.2897 | G45: 788291 | H45: 540751 | I45: 247540 | J45: 12.78664686 | K45: 247540 | N45: 247540 | AD45: 540751 | AF45: 788291 | AG45: 7882.91 | AH45: 405347.4839 | AI45: 375060.6061 | AJ45: 65611.42857 | AK45: 375060.6061 | AL45: 0 | AM45: 375060.6061 | AN45: 127520.6061 | AO45: 540751 | AP45: 540751 | AQ45: 2.211891115e-09 | AR45: 405347.4839 | AS45: 2.652335238 | AT45: 152826.6405
D46: 2031 | E46: 18.64 | F46: 42329.07725 | G46: 789014 | H46: 538685 | I46: 250329 | J46: 12.72612197 | K46: 250329 | N46: 250329 | AD46: 538685 | AF46: 789014 | AG46: 7890.14 | AH46: 401837.4964 | AI46: 379286.3636 | AJ46: 65611.42857 | AK46: 379286.3636 | AL46: 0 | AM46: 379286.3636 | AN46: 128957.3636 | AO46: 538685 | AP46: 538685 | AQ46: 1.152511686e-08 | AR46: 401837.4964 | AS46: 2.731905296 | AT46: 147090.5661
D47: 2032 | E47: 18.64 | F47: 42368.72318 | G47: 789753 | H47: 546816 | I47: 242937 | J47: 12.90612412 | K47: 242937 | N47: 242937 | AD47: 546816 | AF47: 789753 | AG47: 7897.53 | AH47: 413769.5201 | AI47: 368085.9499 | AJ47: 65611.42857 | AK47: 368085.9499 | AL47: 0 | AM47: 368085.9499 | AN47: 125149.223 | AO47: 546816.2731 | AP47: 546816 | AQ47: 0.2730876101 | AR47: 413769.5201 | AS47: 2.813862454 | AT47: 147046.818
D48: 2033 | E48: 18.64 | F48: 42409.22747 | G48: 790508 | H48: 549864 | I48: 240644 | J48: 12.96566886 | K48: 240644 | N48: 240644 | AD48: 549864 | AF48: 790508 | AG48: 7905.08 | AH48: 417991.2168 | AI48: 364611.7032 | AJ48: 65611.42857 | AK48: 364611.7032 | AL48: 0 | AM48: 364611.7032 | AN48: 123967.9791 | AO48: 549864.2759 | AP48: 549864 | AQ48: 0.2758739272 | AR48: 417991.2168 | AS48: 2.898278328 | AT48: 144220.5232
D49: 2034 | E49: 18.64 | F49: 42450.59013 | G49: 791279 | H49: 565083 | I49: 226196 | J49: 13.3115464 | K49: 226196 | N49: 226196 | AD49: 565083 | AF49: 791279 | AG49: 7912.79 | AH49: 440645.4385 | AI49: 342720.7715 | AJ49: 65611.42857 | AK49: 342720.7715 | AL49: 0 | AM49: 342720.7715 | AN49: 116525.0623 | AO49: 565083.2908 | AP49: 565083 | AQ49: 0.2908256985 | AR49: 440645.4385 | AS49: 2.985226678 | AT49: 147608.7031
D52: Sources: Petrozuata Planning Documents, Federal Reserve Bulletin, S&P Bond Guide, and casewriter estimates.
G54: =SUM(G13:G49) -> 26362712 | H54: =SUM(H13:H49) -> 14588628 | AD54: =SUM(AD11:AD49) -> 14588628 | AF54: =SUM(AF11:AF49) -> 26362712 | AG54: =SUM(AG11:AG49) -> 263627.12 | AH54: =SUM(AH11:AH49) -> 8904202.889 | AI54: =SUM(AI11:AI49) -> 17194881.99

Sheet Financial Model -->

Sheet Summary
N2: Break-Even Oil Price | P2: =InputS!I12 -> 12.25
B3: Operations
N4: https://youtube.com/shorts/F-0hnzLNsVk?si=l6QMqN1mI8r_YM8o
C5: Total Capital Expenditures | E5: USD | F5: ='Financial Model'!I41 -> 1916939000
C6: Capital Expenditures with Financing | E6: USD | F6: ='Financial Model'!$I$102 -> 2377265000 | I6: Capital Expenditures
J7: Crude Oil Production | K7: ='Financial Model'!G21 -> 448780000
C8: Total Reserves | E8: BBL | F8: ='Financial Model'!G11 -> 1513666719 | J8: Crude Oil Pipeline | K8: ='Financial Model'!G22 -> 216288000
C9: Average Annual Production | E9: BBL | F9: =F8/35 -> 43247620.55 | J9: Upgrader & Loading Facility | K9: ='Financial Model'!G23 -> 1066854000
C10: Average Daily Production | E10: BBL | F10: =F9/365 -> 118486.6316 | J10: Upstream Contingency | K10: ='Financial Model'!G24 -> 37925000
J11: Deferred Development Costs | K11: ='Financial Model'!G25 -> 147093000
C12: Capital Expenditure/Reserve | E12: USD/BBL | F12: =F5/F8 -> 1.266420788
J13: ='Financial Model'!D98 -> Initial Cash Balance | K13: ='Financial Model'!I98 -> 10000000
C14: Average Real O&M Expense | F14: ='Financial Model'!I55/35 -> 149223594.7 | J14: ='Financial Model'!D99 -> Financing Costs | K14: ='Financial Model'!I99 -> 354461000
J15: ='Financial Model'!D100 -> Legal & Advisory Fees | K15: ='Financial Model'!I100 -> 15000000
C16: Average O&M per BBL | E16: USD/BBL | F16: =F14/F8*35 -> 3.450446356 | J16: ='Financial Model'!D101 -> Debt Service Reserve | K16: ='Financial Model'!I101 -> 80865000
J17: ='Financial Model'!D102 -> Total Funding Needs | K17: ='Financial Model'!I102 -> 2377265000
B18: IRR's
C19: Project Pre-tax | E19: % | F19: ='Financial Model'!G64 -> 0.2373262127 | I19: Funding Sources
C20: Project After-tax | E20: % | F20: ='Financial Model'!G87 -> 0.1681258416 | J20: Operating Cash Flow | K20: ='Financial Model'!I105 -> 482913000
C21: Debt IRR Pre-tax | E21: % | F21: ='Financial Model'!G308 -> FALSE | J21: Debt | K21: ='Financial Model'!I108 -> 1450000000 | L21: =K21/K23 -> 0.7654332458
C22: Debt IRR After-tax | E22: % | F22: ='Financial Model'!G318 -> FALSE | J22: Equity | K22: ='Financial Model'!I109 -> 444352000 | L22: =K22/K23 -> 0.2345667542
J23: Total Debt and Equity | K23: =K21+K22 -> 1894352000 | L23: =K23/K23 -> 1
C24: Equity IRR | E24: % | F24: ='Financial Model'!G302 -> FALSE | J24: Total Sources | K24: =K23+K20 -> 2377265000
C26: Min DSCR | E26: x | F26: ='Financial Model'!$G$323 -> 2.062776055
N52: Total | O52: 21.5 | P52: =21500000000 -> 21500000000
N53: Project | P53: =F8 -> 1513666719
N54: Percent | P54: =P53/P52 -> 0.07040310322
N56: Daily Capacity | P56: 120000

Sheet InputC
B2: Scenario | F2: 3
I3: 1 | J3: 2 | K3: 3 | L3: 4 | M3: 5 | N3: 6 | O3: 7 | P3: 8
B4: Timing | I4: Base | J4: Cost Over-Run | K4: Inflated Oil Price | L4: Actual Oil Price | M4: Break-even without Inflation | N4: Break-even with Inflation | O4: Higher Royalty | P4: Higher Income Tax
D5: Start Year | F5: Year | G5: =INDEX(I5:P5,$F$2) -> 1996 | I5: 1996 | J5: 1996 | K5: 1996 | L5: 1996 | M5: 1996 | N5: 1996 | O5: 1996 | P5: 1996
D6: Financial Close | F6: Year | G6: =INDEX(I6:P6,$F$2) -> 1997 | I6: 1997 | J6: 1997 | K6: 1997 | L6: 1997 | M6: 1997 | N6: 1997 | O6: 1997 | P6: 1997
D8: Operation | F8: Year | G8: =INDEX(I8:P8,$F$2) -> 2001 | I8: 2001 | J8: 2001 | K8: 2001 | L8: 2001 | M8: 2001 | N8: 2001 | O8: 2001 | P8: 2001
D9: Pre-COD | F9: Years | G9: =INDEX(I9:P9,$F$2) -> 5 | I9: =I8-I5 -> 5 | J9: 5 | K9: =K8-K5 -> 5 | L9: 5 | M9: =M8-M5 -> 5 | N9: =N8-N5 -> 5 | O9: 5 | P9: 5
D10: Project Life | F10: Years | G10: =INDEX(I10:P10,$F$2) -> 35 | I10: 35 | J10: 35 | K10: 35 | L10: 35 | M10: 35 | N10: 35 | O10: 35 | P10: 35
D11: End of Life | F11: Year | G11: =INDEX(I11:P11,$F$2) -> 2036 | I11: =I8+I10 -> 2036 | J11: =J8+J10 -> 2036 | K11: 2036 | L11: 2036 | M11: =M8+M10 -> 2036 | N11: =N8+N10 -> 2036 | O11: 2036 | P11: 2036
B13: Production and Reserves
D14: Total Reserves | F14: BBL | G14: =INDEX(I14:P14,$F$2) -> 1513666719 | I14: 1513666719 | J14: 1513666719 | K14: 1513666719 | L14: 1513666719 | M14: 1513666719 | N14: 1513666719 | O14: 1513666719 | P14: 1513666719
D16: Production | F16: Code | G16: =INDEX(I16:P16,$F$2) -> 1 | I16: 1 | J16: 1 | K16: 1 | L16: 1 | M16: 1 | N16: 1 | O16: 1 | P16: 1
D18: Capacity of Upgrader | F18: BBL p.d | G18: =INDEX(I18:P18,F2) -> 120000 | I18: 120000 | J18: 120000 | K18: 120000 | L18: 120000 | M18: 120000 | N18: 120000 | O18: 120000 | P18: 120000
B20: Operating Cash Flow without Financing
C21: Capital Expenditures
D22: Crude Oil Production | F22: USD | G22: =INDEX(I22:P22,$F$2) -> 448780000 | I22: 448780000 | J22: 448780000 | K22: 448780000 | L22: 448780000 | M22: 448780000 | N22: 448780000 | O22: 448780000 | P22: 448780000
D23: Crude Oil Pipeline | F23: USD | G23: =INDEX(I23:P23,$F$2) -> 216288000 | I23: 216288000 | J23: 216288000 | K23: 216288000 | L23: 216288000 | M23: 216288000 | N23: 216288000 | O23: 216288000 | P23: 216288000
D24: Upgrader & Loading Facility | F24: USD | G24: =INDEX(I24:P24,$F$2) -> 1066854000 | I24: 1066854000 | J24: =I24*1.2 -> 1280224800 | K24: 1066854000 | L24: 1066854000 | M24: 1066854000 | N24: 1066854000 | O24: 1066854000 | P24: 1066854000
D25: Upstream Contingency | F25: USD | G25: =INDEX(I25:P25,$F$2) -> 37925000 | I25: 37925000 | J25: 37925000 | K25: 37925000 | L25: 37925000 | M25: 37925000 | N25: 37925000 | O25: 37925000 | P25: 37925000
D26: Deferred Development Costs and Operating Expenditures | F26: USD | G26: =INDEX(I26:P26,$F$2) -> 147093000 | I26: 147093000 | J26: 147093000 | K26: 147093000 | L26: 147093000 | M26: 147093000 | N26: 147093000 | O26: 147093000 | P26: 147093000
D28: Crude Oil Production | F28: USD/BBL | G28: =G22/$G$14 -> 0.2964853454
D29: Crude Oil Pipeline | F29: USD/BBL | G29: =G23/$G$14 -> 0.1428901074
D30: Upgrader & Loading Facility | F30: USD/BBL | G30: 0.7048143336
D31: Upstream Contingency | F31: USD/BBL | G31: 0.02505505308
D32: Deferred Development Costs and Operating Expenditures | F32: USD/BBL | G32: 0.09717660971
D33: Total | F33: USD/BBL | G33: =SUM(G28:G32) -> 1.266421449
C35: Operating Costs
D36: General Inflation Rate | F36: % | G36: =INDEX(I36:P36,$F$2) -> 0.03 | I36: 0.03 | J36: 0.03 | K36: 0.03 | L36: 0.03 | M36: 0.03 | N36: 0.03 | O36: 0.03 | P36: 0.03
D38: Date of Change in Royalty and Tax | F38: Year | G38: 2001 | I38: 2006 | J38: 2006 | K38: 2006 | L38: 2006 | M38: 2006 | N38: 2006 | O38: 2001 | P38: 2001
D39: Base Royalty Rate | F39: % | G39: =INDEX(I39:P39,$F$2) -> 0.01 | I39: 0.01 | J39: 0.01 | K39: 0.01 | L39: 0.01 | M39: 0.01 | N39: 0.01 | O39: 0.01 | P39: 0.01
D40: Revised Royalty Rate | F40: % | G40: =INDEX(I40:P40,$F$2) -> 0.01 | I40: 0.01 | J40: 0.01 | K40: 0.01 | L40: 0.01 | M40: 0.01 | N40: 0.01 | O40: 0.5 | P40: 0.5
D42: Other Expenses per BBL - Real | F42: Code | G42: =INDEX(I42:P42,$F$2) -> 2 | I42: 1 | J42: 1 | K42: 2 | L42: 2 | M42: 2 | N42: 2 | O42: 2 | P42: 2
D43: Other Expenses per BBL - Real | F43: Description | G43: =INDEX(InputS!$D$41:$D$43,InputC!G42) -> 20% Increase After 2002
C45: Revenues
D46: Oil Price Code | F46: Code | G46: =INDEX(I46:P46,$F$2) -> 2 | I46: 1 | J46: 1 | K46: 2 | L46: 3 | M46: 4 | N46: 5 | O46: 3 | P46: 3
D47: Oil Price Description | F47: Description | G47: =INDEX(InputS!$D$9:$D$13,InputC!G46) -> Oil Price with Future Inflation
B49: Taxes and Depreciation
D50: Base Income Tax Rate | F50: % | G50: =INDEX(I50:P50,$F$2) -> 0.34 | I50: 0.34 | J50: 0.34 | K50: 0.34 | L50: 0.34 | M50: 0.34 | N50: 0.34 | O50: 0.34 | P50: 0.34
D51: Reviesed Income Tax Rate | F51: % | G51: =INDEX(I51:P51,$F$2) -> 0.34 | I51: 0.34 | J51: 0.34 | K51: 0.34 | L51: 0.34 | M51: 0.34 | N51: 0.34 | O51: 0.34 | P51: 0.5
D53: Depreciation Life | F53: Years | G53: =INDEX(I53:P53,$F$2) -> 35 | I53: 35 | J53: 35 | K53: 35 | L53: 35 | M53: 35 | N53: 35 | O53: 35 | P53: 35
B55: Financing
C56: Debt Size
D57: Total Debt | F57: USD | G57: =INDEX(I57:P57,$F$2) -> 1450000 | I57: 1450000 | J57: 1450000 | K57: 1450000 | L57: 1450000 | M57: 1450000 | N57: 1450000 | O57: 1450000 | P57: 1450000
D58: Draw Percent Code | F58: Code | G58: 1
C61: Risk Free Rate | G61: 0.0503
E66: =TRANSPOSE(I4:P4) -> Base
E67: Cost Over-Run
E68: Inflated Oil Price
E69: Actual Oil Price
E70: Break-even without Inflation
E71: Break-even with Inflation
E72: Higher Royalty
E73: Higher Income Tax

Sheet InputS
D3: Year
F4: Code from InputC | G4: Sum | I4: =TRANSPOSE(Exhibit10a!D12:D50) -> 1996 | J4: 1997 | K4: 1998 | L4: 1999 | M4: 2000 | N4: 2001 | O4: 2002 | P4: 2003 | Q4: 2004 | R4: 2005 | S4: 2006 | T4: 2007 | U4: 2008 | V4: 2009 | W4: 2010 | X4: 2011 | Y4: 2012 | Z4: 2013 | AA4: 2014 | AB4: 2015 | AC4: 2016 | AD4: 2017 | AE4: 2018 | AF4: 2019 | AG4: 2020 | AH4: 2021 | AI4: 2022 | AJ4: 2023 | AK4: 2024 | AL4: 2025 | AM4: 2026 | AN4: 2027 | AO4: 2028 | AP4: 2029 | AQ4: 2030 | AR4: 2031 | AS4: 2032 | AT4: 2033 | AU4: 2034
C6: Oil Prices
D7: Oil Price Code from InputC | F7: =InputC!G46 -> 2
I8: =I4 -> 1996 | J8: =J4 -> 1997 | K8: 1998 | L8: 1999 | M8: 2000 | N8: 2001 | O8: 2002 | P8: 2003 | Q8: 2004 | R8: 2005 | S8: 2006 | T8: 2007 | U8: 2008 | V8: 2009 | W8: 2010 | X8: 2011 | Y8: 2012 | Z8: 2013 | AA8: 2014 | AB8: 2015 | AC8: 2016 | AD8: 2017 | AE8: 2018 | AF8: 2019 | AG8: 2020 | AH8: 2021 | AI8: 2022 | AJ8: 2023 | AK8: 2024 | AL8: 2025 | AM8: 2026 | AN8: 2027 | AO8: 2028 | AP8: 2029 | AQ8: 2030 | AR8: 2031 | AS8: 2032 | AT8: 2033 | AU8: 2034
D9: Base Oil Price | E9: USD/BBL | I9: 12.25 | J9: 12.56 | K9: 12.87 | L9: 13.19 | M9: 13.52 | N9: 13.86 | O9: 14.21 | P9: 14.56 | Q9: 14.93 | R9: 15.3 | S9: 15.68 | T9: 16.07 | U9: 16.47 | V9: 16.89 | W9: 17.31 | X9: 17.74 | Y9: 18.19 | Z9: 18.64 | AA9: 18.64 | AB9: 18.64 | AC9: 18.64 | AD9: 18.64 | AE9: 18.64 | AF9: 18.64 | AG9: 18.64 | AH9: 18.64 | AI9: 18.64 | AJ9: 18.64 | AK9: 18.64 | AL9: 18.64 | AM9: 18.64 | AN9: 18.64 | AO9: 18.64 | AP9: 18.64 | AQ9: 18.64 | AR9: 18.64 | AS9: 18.64 | AT9: 18.64 | AU9: 18.64
D10: Oil Price with Future Inflation | E10: USD/BBL | I10: =I9 -> 12.25 | J10: =I10*(1+J19) -> 12.56 | K10: =J10*(1+K19) -> 12.87 | L10: 13.19 | M10: 13.52 | N10: 13.86 | O10: 14.21 | P10: 14.56 | Q10: 14.93 | R10: 15.3 | S10: 15.68 | T10: 16.07 | U10: 16.47 | V10: 16.89 | W10: 17.31 | X10: 17.74 | Y10: 18.19 | Z10: 18.64 | AA10: 19.1992 | AB10: 19.775176 | AC10: 20.36843128 | AD10: 20.97948422 | AE10: 21.60886874 | AF10: 22.25713481 | AG10: 22.92484885 | AH10: 23.61259432 | AI10: 24.32097215 | AJ10: 25.05060131 | AK10: 25.80211935 | AL10: 26.57618293 | AM10: 27.37346842 | AN10: 28.19467247 | AO10: 29.04051265 | AP10: 29.91172802 | AQ10: 30.80907987 | AR10: 31.73335226 | AS10: 32.68535283 | AT10: 33.66591341 | AU10: 34.67589082
D11: Actual Oil Price | E11: USD/BBL | I11: 19.863 | J11: 18.29325286 | K11: 12.91428 | L11: 17.31675 | M11: 27.2989125 | N11: 23.3271746 | O11: 23.48385075 | P11: 27.99646038 | Q11: 37.29925561 | R11: 50.80030602 | S11: 59.43832578 | T11: 65.05600734 | U11: 89.60196926 | V11: 55.488276 | W11: 71.4829775 | X11: 85.54889603 | Y11: 84.74299059 | Z11: 88.14848905 | AA11: 83.80125 | AB11: 43.83825 | AC11: 38.86875 | AD11: 45.816 | AE11: 58.33725 | AF11: 51.312 | AG11: 35.3775 | AH11: 61.167 | AI11: 84.98775 | AJ11: 69.90225 | AK11: 68.25975 | AL11: 58.97209091 | AM11: =AL11*(1+AM19) -> 60.74125364 | AN11: =AM11*(1+AN19) -> 62.56349125 | AO11: 64.44039598 | AP11: 66.37360786 | AQ11: 68.3648161 | AR11: 70.41576058 | AS11: 72.5282334 | AT11: 74.7040804 | AU11: 76.94520281
D12: Break-Even Oil Price - No Inflation | E12: USD/BBL | H12: 1225 | I12: =H12/100 -> 12.25 | J12: =I12 -> 12.25 | K12: =J12 -> 12.25 | L12: 12.25 | M12: 12.25 | N12: 12.25 | O12: 12.25 | P12: 12.25 | Q12: 12.25 | R12: 12.25 | S12: 12.25 | T12: 12.25 | U12: 12.25 | V12: 12.25 | W12: 12.25 | X12: 12.25 | Y12: 12.25 | Z12: 12.25 | AA12: 12.25 | AB12: 12.25 | AC12: 12.25 | AD12: 12.25 | AE12: 12.25 | AF12: 12.25 | AG12: 12.25 | AH12: 12.25 | AI12: 12.25 | AJ12: 12.25 | AK12: 12.25 | AL12: 12.25 | AM12: 12.25 | AN12: 12.25 | AO12: 12.25 | AP12: 12.25 | AQ12: 12.25 | AR12: 12.25 | AS12: 12.25 | AT12: 12.25 | AU12: 12.25
D13: Break-Even Oil Price - With Inflation | E13: USD/BBL | I13: =I12*(1+I19) -> 12.25 | J13: =I13*(1+J19) -> 12.56 | K13: =J13*(1+K19) -> 12.87 | L13: 13.19 | M13: 13.52 | N13: 13.86 | O13: 14.21 | P13: 14.56 | Q13: 14.93 | R13: 15.3 | S13: 15.68 | T13: 16.07 | U13: 16.47 | V13: 16.89 | W13: 17.31 | X13: 17.74 | Y13: 18.19 | Z13: 18.64 | AA13: 19.1992 | AB13: 19.775176 | AC13: 20.36843128 | AD13: 20.97948422 | AE13: 21.60886874 | AF13: 22.25713481 | AG13: 22.92484885 | AH13: 23.61259432 | AI13: 24.32097215 | AJ13: 25.05060131 | AK13: 25.80211935 | AL13: 26.57618293 | AM13: 27.37346842 | AN13: 28.19467247 | AO13: 29.04051265 | AP13: 29.91172802 | AQ13: 30.80907987 | AR13: 31.73335226 | AS13: 32.68535283 | AT13: 33.66591341 | AU13: 34.67589082
D15: =INDEX(D9:D13,$F$7) -> Oil Price with Future Inflation | E15: USD/BBL | I15: =INDEX(I9:I13,$F$7) -> 12.25 | J15: =INDEX(J9:J13,$F$7) -> 12.56 | K15: =INDEX(K9:K13,$F$7) -> 12.87 | L15: =INDEX(L9:L13,$F$7) -> 13.19 | M15: =INDEX(M9:M13,$F$7) -> 13.52 | N15: =INDEX(N9:N13,$F$7) -> 13.86 | O15: =INDEX(O9:O13,$F$7) -> 14.21 | P15: =INDEX(P9:P13,$F$7) -> 14.56 | Q15: =INDEX(Q9:Q13,$F$7) -> 14.93 | R15: =INDEX(R9:R13,$F$7) -> 15.3 | S15: =INDEX(S9:S13,$F$7) -> 15.68 | T15: =INDEX(T9:T13,$F$7) -> 16.07 | U15: =INDEX(U9:U13,$F$7) -> 16.47 | V15: =INDEX(V9:V13,$F$7) -> 16.89 | W15: =INDEX(W9:W13,$F$7) -> 17.31 | X15: =INDEX(X9:X13,$F$7) -> 17.74 | Y15: =INDEX(Y9:Y13,$F$7) -> 18.19 | Z15: =INDEX(Z9:Z13,$F$7) -> 18.64 | AA15: =INDEX(AA9:AA13,$F$7) -> 19.1992 | AB15: =INDEX(AB9:AB13,$F$7) -> 19.775176 | AC15: =INDEX(AC9:AC13,$F$7) -> 20.36843128 | AD15: =INDEX(AD9:AD13,$F$7) -> 20.97948422 | AE15: =INDEX(AE9:AE13,$F$7) -> 21.60886874 | AF15: =INDEX(AF9:AF13,$F$7) -> 22.25713481 | AG15: =INDEX(AG9:AG13,$F$7) -> 22.92484885 | AH15: =INDEX(AH9:AH13,$F$7) -> 23.61259432 | AI15: =INDEX(AI9:AI13,$F$7) -> 24.32097215 | AJ15: =INDEX(AJ9:AJ13,$F$7) -> 25.05060131 | AK15: =INDEX(AK9:AK13,$F$7) -> 25.80211935 | AL15: =INDEX(AL9:AL13,$F$7) -> 26.57618293 | AM15: =INDEX(AM9:AM13,$F$7) -> 27.37346842 | AN15: =INDEX(AN9:AN13,$F$7) -> 28.19467247 | AO15: =INDEX(AO9:AO13,$F$7) -> 29.04051265 | AP15: =INDEX(AP9:AP13,$F$7) -> 29.91172802 | AQ15: =INDEX(AQ9:AQ13,$F$7) -> 30.80907987 | AR15: =INDEX(AR9:AR13,$F$7) -> 31.73335226 | AS15: =INDEX(AS9:AS13,$F$7) -> 32.68535283 | AT15: =INDEX(AT9:AT13,$F$7) -> 33.66591341 | AU15: =INDEX(AU9:AU13,$F$7) -> 34.67589082
D18: Inflation in Oil Price - Base | J18: 0.02530612245 | K18: 0.02468152866 | L18: 0.02486402486 | M18: 0.02501895375 | N18: 0.02514792899 | O18: 0.02525252525 | P18: 0.02463054187 | Q18: 0.02541208791 | R18: 0.02478231748 | S18: 0.02483660131 | T18: 0.02487244898 | U18: 0.02489110143 | V18: 0.02550091075 | W18: 0.02486678508 | X18: 0.02484113229 | Y18: 0.02536640361 | Z18: 0.02473886751 | AA18: 0 | AB18: 0 | AC18: 0 | AD18: 0 | AE18: 0 | AF18: 0 | AG18: 0 | AH18: 0 | AI18: 0 | AJ18: 0 | AK18: 0 | AL18: 0 | AM18: 0 | AN18: 0 | AO18: 0 | AP18: 0 | AQ18: 0 | AR18: 0 | AS18: 0 | AT18: 0 | AU18: 0
D19: Inflation in Oil Price - Future | J19: 0.02530612245 | K19: 0.02468152866 | L19: 0.02486402486 | M19: 0.02501895375 | N19: 0.02514792899 | O19: 0.02525252525 | P19: 0.02463054187 | Q19: 0.02541208791 | R19: 0.02478231748 | S19: 0.02483660131 | T19: 0.02487244898 | U19: 0.02489110143 | V19: 0.02550091075 | W19: 0.02486678508 | X19: 0.02484113229 | Y19: 0.02536640361 | Z19: 0.02473886751 | AA19: 0.03 | AB19: 0.03 | AC19: 0.03 | AD19: 0.03 | AE19: 0.03 | AF19: 0.03 | AG19: 0.03 | AH19: 0.03 | AI19: 0.03 | AJ19: 0.03 | AK19: 0.03 | AL19: 0.03 | AM19: 0.03 | AN19: 0.03 | AO19: 0.03 | AP19: 0.03 | AQ19: 0.03 | AR19: 0.03 | AS19: 0.03 | AT19: 0.03 | AU19: 0.03
D24: Total Production | E24: BBL | G24: =SUM(_xlfn.ANCHORARRAY(I24)) -> 1513666719 | I24: =TRANSPOSE(Exhibit10!F11:F49)*1000 -> 0 | J24: 0 | K24: 6101320.901 | L24: 32529112.96 | M24: 59475443.79 | N24: 41064646.46 | O24: 41069458.13 | P24: 41098763.74 | Q24: 41096316.14 | R24: 41118758.17 | S24: 41138520.41 | T24: 41156565.03 | U24: 41173406.19 | V24: 41165364.12 | W24: 41182495.67 | X24: 41200225.48 | Y24: 41196536.56 | Z24: 41217757.51 | AA24: 41244527.9 | AB24: 41271942.06 | AC24: 41299946.35 | AD24: 41328594.42 | AE24: 41357886.27 | AF24: 41387768.24 | AG24: 41945225.32 | AH24: 41976448.5 | AI24: 42008369.1 | AJ24: 42040987.12 | AK24: 42074356.22 | AL24: 42108422.75 | AM24: 42143240.34 | AN24: 42178862.66 | AO24: 42215182.4 | AP24: 42252360.52 | AQ24: 42290289.7 | AR24: 42329077.25 | AS24: 42368723.18 | AT24: 42409227.47 | AU24: 42450590.13
D25: Production Percent | E25: % | I25: =I24/$G$24 -> 0 | J25: =J24/$G$24 -> 0 | K25: 0.004030821861 | L25: 0.02149027428 | M25: 0.03929229799 | N25: 0.02712925239 | O25: 0.02713243121 | P25: 0.02715179188 | Q25: 0.02715017488 | R25: 0.02716500115 | S25: 0.02717805702 | T25: 0.02718997816 | U25: 0.02720110423 | V25: 0.02719579125 | W25: 0.02720710916 | X25: 0.02721882232 | Y25: 0.02721638524 | Z25: 0.02723040481 | AA25: 0.0272480906 | AB25: 0.02726620169 | AC25: 0.02728470266 | AD25: 0.02730362893 | AE25: 0.02732298051 | AF25: 0.02734272196 | AG25: 0.02771100454 | AH25: 0.02773163205 | AI25: 0.02775272031 | AJ25: 0.02777426932 | AK25: 0.02779631453 | AL25: 0.02781882049 | AM25: 0.02784182265 | AN25: 0.02786535644 | AO25: 0.02788935098 | AP25: 0.02791391261 | AQ25: 0.02793897042 | AR25: 0.02796459532 | AS25: 0.0279907873 | AT25: 0.02801754635 | AU25: 0.02804487249
C28: S-Curve | I28: =_xlfn.SEQUENCE(,10) -> 1 | J28: 2 | K28: 3 | L28: 4 | M28: 5 | N28: 6 | O28: 7 | P28: 8 | Q28: 9 | R28: 10
D29: Crude Oil Production | E29: % | G29: =SUM(I29:XFD29) -> 0.9999977717 | I29: =Exhibit7!E8/Exhibit7!$J8 -> 0.02672801818 | J29: =Exhibit7!F8/Exhibit7!$J8 -> 0.4274900842 | K29: =Exhibit7!G8/Exhibit7!$J8 -> 0.3367819422 | L29: =Exhibit7!H8/Exhibit7!$J8 -> 0.1717812737 | M29: =Exhibit7!I8/Exhibit7!$J8 -> 0.0372164535
D30: Crude Oil Pipeline | E30: % | G30: =SUM(I30:XFD30) -> 1 | I30: =Exhibit7!E9/Exhibit7!$J9 -> 0.003028369581 | J30: =Exhibit7!F9/Exhibit7!$J9 -> 0.7883562657 | K30: =Exhibit7!G9/Exhibit7!$J9 -> 0.2086153647 | L30: =Exhibit7!H9/Exhibit7!$J9 -> 0 | M30: =Exhibit7!I9/Exhibit7!$J9 -> 0
D31: Upgrader & Loading Facility | E31: % | G31: =SUM(I31:XFD31) -> 1.000000937 | I31: =Exhibit7!E10/Exhibit7!$J10 -> 0.01344607603 | J31: =Exhibit7!F10/Exhibit7!$J10 -> 0.2280583847 | K31: =Exhibit7!G10/Exhibit7!$J10 -> 0.4789661941 | L31: =Exhibit7!H10/Exhibit7!$J10 -> 0.2158739621 | M31: =Exhibit7!I10/Exhibit7!$J10 -> 0.06365632036
D32: Upstream Contingency | E32: % | G32: =SUM(I32:XFD32) -> 1 | I32: =Exhibit7!E11/Exhibit7!$J11 -> 0 | J32: =Exhibit7!F11/Exhibit7!$J11 -> 0 | K32: =Exhibit7!G11/Exhibit7!$J11 -> 0 | L32: =Exhibit7!H11/Exhibit7!$J11 -> 0 | M32: =Exhibit7!I11/Exhibit7!$J11 -> 1
D33: Deferred Development Costs and Operating Expenditures | E33: % | G33: =SUM(I33:XFD33) -> 0.9999932016 | I33: =Exhibit7!E14/Exhibit7!$J14 -> 0.3537897793 | J33: =Exhibit7!F14/Exhibit7!$J14 -> 0.1585935429 | K33: =Exhibit7!G14/Exhibit7!$J14 -> 0.4876098795 | L33: =Exhibit7!H14/Exhibit7!$J14 -> 0 | M33: =Exhibit7!I14/Exhibit7!$J14 -> 0
C35: Year | I35: =_xlfn.SEQUENCE(,40,1996) -> 1996 | J35: 1997 | K35: 1998 | L35: 1999 | M35: 2000 | N35: 2001 | O35: 2002 | P35: 2003 | Q35: 2004 | R35: 2005 | S35: 2006 | T35: 2007 | U35: 2008 | V35: 2009 | W35: 2010 | X35: 2011 | Y35: 2012 | Z35: 2013 | AA35: 2014 | AB35: 2015 | AC35: 2016 | AD35: 2017 | AE35: 2018 | AF35: 2019 | AG35: 2020 | AH35: 2021 | AI35: 2022 | AJ35: 2023 | AK35: 2024 | AL35: 2025 | AM35: 2026 | AN35: 2027 | AO35: 2028 | AP35: 2029 | AQ35: 2030 | AR35: 2031 | AS35: 2032 | AT35: 2033 | AU35: 2034 | AV35: 2035
C36: Period
C38: Operating Expense
D39: Code from InputC | F39: =InputC!G42 -> 2
D41: Base Case Operating Expense | E41: kUSD | G41: =SUM(I41:XFD41) -> 8904202.889 | I41: =TRANSPOSE(Exhibit10!AH11:AH49) -> 0 | J41: 0 | K41: 70944.82061 | L41: 180907.8039 | M41: 315035.1018 | N41: 43352.65212 | O41: 49336.38237 | P41: 96537.11654 | Q41: 56960.37696 | R41: 74477.0863 | S41: 33155.08891 | T41: 42530.03101 | U41: 49887.92182 | V41: 159854.2003 | W41: 176112.7588 | X41: 179185.0471 | Y41: 179052.9836 | Z41: 281853.5858 | AA41: 235509.5655 | AB41: 182978.6979 | AC41: 191083.8718 | AD41: 187319.8652 | AE41: 270370.3725 | AF41: 300477.5927 | AG41: 348602.9101 | AH41: 324310.5597 | AI41: 330823.8521 | AJ41: 329477.257 | AK41: 337550.6127 | AL41: 338105.0203 | AM41: 356370.6139 | AN41: 358949.1886 | AO41: 363190.635 | AP41: 380308.16 | AQ41: 405347.4839 | AR41: 401837.4964 | AS41: 413769.5201 | AT41: 417991.2168 | AU41: 440645.4385
D42: 20% Increase After 2002 | E42: kUSD | G42: =SUM(I42:XFD42) -> 10553128.11 | I42: =I41 -> 0 | J42: =J41 -> 0 | K42: 70944.82061 | L42: 180907.8039 | M42: 315035.1018 | N42: 43352.65212 | O42: 49336.38237 | P42: =P41*1.2 -> 115844.5398 | Q42: =Q41*1.2 -> 68352.45235 | R42: 89372.50355 | S42: 39786.1067 | T42: 51036.03722 | U42: 59865.50618 | V42: 191825.0404 | W42: 211335.3106 | X42: 215022.0565 | Y42: 214863.5803 | Z42: 338224.3029 | AA42: 282611.4785 | AB42: 219574.4375 | AC42: 229300.6462 | AD42: 224783.8382 | AE42: 324444.447 | AF42: 360573.1113 | AG42: 418323.4921 | AH42: 389172.6716 | AI42: 396988.6225 | AJ42: 395372.7084 | AK42: 405060.7353 | AL42: 405726.0244 | AM42: 427644.7367 | AN42: 430739.0264 | AO42: 435828.762 | AP42: 456369.792 | AQ42: 486416.9807 | AR42: 482204.9956 | AS42: 496523.4242 | AT42: 501589.4601 | AU42: 528774.5262
D43: Flat Operating Expense | E43: kUSD | G43: 7144434.355 | I43: =I42 -> 0 | J43: 0 | K43: 70944.82061 | L43: 180907.8039 | M43: 315035.1018 | N43: 43352.65212 | O43: 49336.38237 | P43: =P42 -> 115844.5398 | Q43: 68352.45235 | R43: 89372.50355 | S43: 39786.1067 | T43: 51036.03722 | U43: 59865.50618 | V43: 191825.0404 | W43: =W42 -> 211335.3106 | X43: =X42 -> 215022.0565 | Y43: =Y42 -> 214863.5803 | Z43: =Z41 -> 281853.5858 | AA43: =AA41 -> 235509.5655 | AB43: =AA43 -> 235509.5655 | AC43: =AB43 -> 235509.5655 | AD43: 235509.5655 | AE43: 235509.5655 | AF43: 235509.5655 | AG43: 235509.5655 | AH43: 235509.5655 | AI43: 235509.5655 | AJ43: 235509.5655 | AK43: 235509.5655 | AL43: 235509.5655 | AM43: 235509.5655 | AN43: 235509.5655 | AO43: 235509.5655 | AP43: 235509.5655 | AQ43: 235509.5655 | AR43: 235509.5655 | AS43: 235509.5655 | AT43: 235509.5655 | AU43: 235509.5655
D45: =INDEX(D41:D43,$F$39) -> 20% Increase After 2002 | I45: =INDEX(I41:I43,$F$39) -> 0 | J45: =INDEX(J41:J43,$F$39) -> 0 | K45: =INDEX(K41:K43,$F$39) -> 70944.82061 | L45: =INDEX(L41:L43,$F$39) -> 180907.8039 | M45: =INDEX(M41:M43,$F$39) -> 315035.1018 | N45: =INDEX(N41:N43,$F$39) -> 43352.65212 | O45: =INDEX(O41:O43,$F$39) -> 49336.38237 | P45: =INDEX(P41:P43,$F$39) -> 115844.5398 | Q45: =INDEX(Q41:Q43,$F$39) -> 68352.45235 | R45: =INDEX(R41:R43,$F$39) -> 89372.50355 | S45: =INDEX(S41:S43,$F$39) -> 39786.1067 | T45: =INDEX(T41:T43,$F$39) -> 51036.03722 | U45: =INDEX(U41:U43,$F$39) -> 59865.50618 | V45: =INDEX(V41:V43,$F$39) -> 191825.0404 | W45: =INDEX(W41:W43,$F$39) -> 211335.3106 | X45: =INDEX(X41:X43,$F$39) -> 215022.0565 | Y45: =INDEX(Y41:Y43,$F$39) -> 214863.5803 | Z45: =INDEX(Z41:Z43,$F$39) -> 338224.3029 | AA45: =INDEX(AA41:AA43,$F$39) -> 282611.4785 | AB45: =INDEX(AB41:AB43,$F$39) -> 219574.4375 | AC45: =INDEX(AC41:AC43,$F$39) -> 229300.6462 | AD45: =INDEX(AD41:AD43,$F$39) -> 224783.8382 | AE45: =INDEX(AE41:AE43,$F$39) -> 324444.447 | AF45: =INDEX(AF41:AF43,$F$39) -> 360573.1113 | AG45: =INDEX(AG41:AG43,$F$39) -> 418323.4921 | AH45: =INDEX(AH41:AH43,$F$39) -> 389172.6716 | AI45: =INDEX(AI41:AI43,$F$39) -> 396988.6225 | AJ45: =INDEX(AJ41:AJ43,$F$39) -> 395372.7084 | AK45: =INDEX(AK41:AK43,$F$39) -> 405060.7353 | AL45: =INDEX(AL41:AL43,$F$39) -> 405726.0244 | AM45: =INDEX(AM41:AM43,$F$39) -> 427644.7367 | AN45: =INDEX(AN41:AN43,$F$39) -> 430739.0264 | AO45: =INDEX(AO41:AO43,$F$39) -> 435828.762 | AP45: =INDEX(AP41:AP43,$F$39) -> 456369.792 | AQ45: =INDEX(AQ41:AQ43,$F$39) -> 486416.9807 | AR45: =INDEX(AR41:AR43,$F$39) -> 482204.9956 | AS45: =INDEX(AS41:AS43,$F$39) -> 496523.4242 | AT45: =INDEX(AT41:AT43,$F$39) -> 501589.4601 | AU45: =INDEX(AU41:AU43,$F$39) -> 528774.5262
C47: Inflation Index | E47: Index | F47: 0.03 | H47: 1 | I47: =H47*(1+$F$47) -> 1.03 | J47: 1.0609 | K47: 1.092727 | L47: 1.12550881 | M47: 1.159274074 | N47: 1.194052297 | O47: 1.229873865 | P47: 1.266770081 | Q47: 1.304773184 | R47: 1.343916379 | S47: 1.384233871 | T47: 1.425760887 | U47: 1.468533713 | V47: 1.512589725 | W47: 1.557967417 | X47: 1.604706439 | Y47: 1.652847632 | Z47: 1.702433061 | AA47: 1.753506053 | AB47: 1.806111235 | AC47: 1.860294572 | AD47: 1.916103409 | AE47: 1.973586511 | AF47: 2.032794106 | AG47: 2.09377793 | AH47: 2.156591268 | AI47: 2.221289006 | AJ47: 2.287927676 | AK47: 2.356565506 | AL47: 2.427262471 | AM47: 2.500080345 | AN47: 2.575082756 | AO47: 2.652335238 | AP47: 2.731905296 | AQ47: 2.813862454 | AR47: 2.898278328 | AS47: 2.985226678 | AT47: 3.074783478 | AU47: 3.167026983
D48: =D45&" Real" -> 20% Increase After 2002 Real | E48: USD | G48: =SUM(I48:XFD48) -> 5055863383 | I48: =I45/I47*1000 -> 0 | J48: =J45/J47*1000 -> 0 | K48: 64924560.85 | L48: 160734240.7 | M48: 271752046.2 | N48: 36307163.64 | O48: 40114993.7 | P48: 91448749.5 | Q48: 52386463.18 | R48: 66501536.05 | S48: 28742329.99 | T48: 35795649.67 | U48: 40765496.65 | V48: 126818949.8 | W48: 135648094 | X48: 133994636.8 | Y48: 129995999.7 | Z48: 198671131.7 | AA48: 161169377.2 | AB48: 121573042.3 | AC48: 123260396.3 | AD48: 117312999.5 | AE48: 164393324.1 | AF48: 177378077.9 | AG48: 199793629.6 | AH48: 180457315.9 | AI48: 178719933.1 | AJ48: 172808219.7 | AK48: 171886049.5 | AL48: 167153750 | AM48: 171052397.4 | AN48: 167271916 | AO48: 164318882.4 | AP48: 167051834.8 | AQ48: 172864519.4 | AR48: 166376359 | AS48: 166326874.9 | AT48: 163130010.2 | AU48: 166962431.7
B51: Financing and Other
D52: Initial Cash Balance | E52: USD | I52: =Exhibit7!E15*1000 -> 0 | J52: =Exhibit7!F15*1000 -> 0 | K52: =Exhibit7!G15*1000 -> 10000000 | L52: =Exhibit7!H15*1000 -> 0 | M52: =Exhibit7!I15*1000 -> 0 | O52: =Exhibit7!K15*1000 -> 0 | P52: =Exhibit7!L15*1000 -> 0 | Q52: =Exhibit7!M15*1000 -> 0 | R52: =Exhibit7!N15*1000 -> 0 | S52: =Exhibit7!O15*1000 -> 0 | T52: =Exhibit7!P15*1000 -> 0 | U52: =Exhibit7!Q15*1000 -> 0 | V52: =Exhibit7!R15*1000 -> 0 | W52: =Exhibit7!S15*1000 -> 0 | X52: =Exhibit7!T15*1000 -> 0 | Y52: =Exhibit7!U15*1000 -> 0 | Z52: =Exhibit7!V15*1000 -> 0 | AA52: =Exhibit7!W15*1000 -> 0 | AB52: =Exhibit7!X15*1000 -> 0 | AC52: =Exhibit7!Y15*1000 -> 0 | AD52: =Exhibit7!Z15*1000 -> 0 | AE52: =Exhibit7!AA15*1000 -> 0 | AF52: =Exhibit7!AB15*1000 -> 0 | AG52: =Exhibit7!AC15*1000 -> 0 | AH52: =Exhibit7!AD15*1000 -> 0 | AI52: =Exhibit7!AE15*1000 -> 0 | AJ52: =Exhibit7!AF15*1000 -> 0 | AK52: =Exhibit7!AG15*1000 -> 0 | AL52: =Exhibit7!AH15*1000 -> 0 | AM52: =Exhibit7!AI15*1000 -> 0 | AN52: =Exhibit7!AJ15*1000 -> 0 | AO52: =Exhibit7!AK15*1000 -> 0 | AP52: =Exhibit7!AL15*1000 -> 0 | AQ52: =Exhibit7!AM15*1000 -> 0 | AR52: =Exhibit7!AN15*1000 -> 0 | AS52: =Exhibit7!AO15*1000 -> 0 | AT52: =Exhibit7!AP15*1000 -> 0 | AU52: =Exhibit7!AQ15*1000 -> 0
D53: Financing Costs | E53: USD | I53: =Exhibit7!E16*1000 -> 0 | J53: =Exhibit7!F16*1000 -> 61134000 | K53: =Exhibit7!G16*1000 -> 86816000 | L53: =Exhibit7!H16*1000 -> 94955000 | M53: =Exhibit7!I16*1000 -> 111556000 | O53: =Exhibit7!K16*1000 -> 0 | P53: =Exhibit7!L16*1000 -> 0 | Q53: =Exhibit7!M16*1000 -> 0 | R53: =Exhibit7!N16*1000 -> 0 | S53: =Exhibit7!O16*1000 -> 0 | T53: =Exhibit7!P16*1000 -> 0 | U53: =Exhibit7!Q16*1000 -> 0 | V53: =Exhibit7!R16*1000 -> 0 | W53: =Exhibit7!S16*1000 -> 0 | X53: =Exhibit7!T16*1000 -> 0 | Y53: =Exhibit7!U16*1000 -> 0 | Z53: =Exhibit7!V16*1000 -> 0 | AA53: =Exhibit7!W16*1000 -> 0 | AB53: =Exhibit7!X16*1000 -> 0 | AC53: =Exhibit7!Y16*1000 -> 0 | AD53: =Exhibit7!Z16*1000 -> 0 | AE53: =Exhibit7!AA16*1000 -> 0 | AF53: =Exhibit7!AB16*1000 -> 0 | AG53: =Exhibit7!AC16*1000 -> 0 | AH53: =Exhibit7!AD16*1000 -> 0 | AI53: =Exhibit7!AE16*1000 -> 0 | AJ53: =Exhibit7!AF16*1000 -> 0 | AK53: =Exhibit7!AG16*1000 -> 0 | AL53: =Exhibit7!AH16*1000 -> 0 | AM53: =Exhibit7!AI16*1000 -> 0 | AN53: =Exhibit7!AJ16*1000 -> 0 | AO53: =Exhibit7!AK16*1000 -> 0 | AP53: =Exhibit7!AL16*1000 -> 0 | AQ53: =Exhibit7!AM16*1000 -> 0 | AR53: =Exhibit7!AN16*1000 -> 0 | AS53: =Exhibit7!AO16*1000 -> 0 | AT53: =Exhibit7!AP16*1000 -> 0 | AU53: =Exhibit7!AQ16*1000 -> 0
D54: Legal & Advisory Fees | E54: USD | I54: =Exhibit7!E17*1000 -> 0 | J54: =Exhibit7!F17*1000 -> 15000000 | K54: =Exhibit7!G17*1000 -> 0 | L54: =Exhibit7!H17*1000 -> 0 | M54: =Exhibit7!I17*1000 -> 0 | O54: =Exhibit7!K17*1000 -> 0 | P54: =Exhibit7!L17*1000 -> 0 | Q54: =Exhibit7!M17*1000 -> 0 | R54: =Exhibit7!N17*1000 -> 0 | S54: =Exhibit7!O17*1000 -> 0 | T54: =Exhibit7!P17*1000 -> 0 | U54: =Exhibit7!Q17*1000 -> 0 | V54: =Exhibit7!R17*1000 -> 0 | W54: =Exhibit7!S17*1000 -> 0 | X54: =Exhibit7!T17*1000 -> 0 | Y54: =Exhibit7!U17*1000 -> 0 | Z54: =Exhibit7!V17*1000 -> 0 | AA54: =Exhibit7!W17*1000 -> 0 | AB54: =Exhibit7!X17*1000 -> 0 | AC54: =Exhibit7!Y17*1000 -> 0 | AD54: =Exhibit7!Z17*1000 -> 0 | AE54: =Exhibit7!AA17*1000 -> 0 | AF54: =Exhibit7!AB17*1000 -> 0 | AG54: =Exhibit7!AC17*1000 -> 0 | AH54: =Exhibit7!AD17*1000 -> 0 | AI54: =Exhibit7!AE17*1000 -> 0 | AJ54: =Exhibit7!AF17*1000 -> 0 | AK54: =Exhibit7!AG17*1000 -> 0 | AL54: =Exhibit7!AH17*1000 -> 0 | AM54: =Exhibit7!AI17*1000 -> 0 | AN54: =Exhibit7!AJ17*1000 -> 0 | AO54: =Exhibit7!AK17*1000 -> 0 | AP54: =Exhibit7!AL17*1000 -> 0 | AQ54: =Exhibit7!AM17*1000 -> 0 | AR54: =Exhibit7!AN17*1000 -> 0 | AS54: =Exhibit7!AO17*1000 -> 0 | AT54: =Exhibit7!AP17*1000 -> 0 | AU54: =Exhibit7!AQ17*1000 -> 0
D55: Debt Service Reserve | E55: USD | I55: =Exhibit7!E18*1000 -> 0 | J55: =Exhibit7!F18*1000 -> 0 | K55: =Exhibit7!G18*1000 -> 0 | L55: =Exhibit7!H18*1000 -> 0 | M55: =Exhibit7!I18*1000 -> 80865000 | O55: =Exhibit7!K18*1000 -> 0 | P55: =Exhibit7!L18*1000 -> 0 | Q55: =Exhibit7!M18*1000 -> 0 | R55: =Exhibit7!N18*1000 -> 0 | S55: =Exhibit7!O18*1000 -> 0 | T55: =Exhibit7!P18*1000 -> 0 | U55: =Exhibit7!Q18*1000 -> 0 | V55: =Exhibit7!R18*1000 -> 0 | W55: =Exhibit7!S18*1000 -> 0 | X55: =Exhibit7!T18*1000 -> 0 | Y55: =Exhibit7!U18*1000 -> 0 | Z55: =Exhibit7!V18*1000 -> 0 | AA55: =Exhibit7!W18*1000 -> 0 | AB55: =Exhibit7!X18*1000 -> 0 | AC55: =Exhibit7!Y18*1000 -> 0 | AD55: =Exhibit7!Z18*1000 -> 0 | AE55: =Exhibit7!AA18*1000 -> 0 | AF55: =Exhibit7!AB18*1000 -> 0 | AG55: =Exhibit7!AC18*1000 -> 0 | AH55: =Exhibit7!AD18*1000 -> 0 | AI55: =Exhibit7!AE18*1000 -> 0 | AJ55: =Exhibit7!AF18*1000 -> 0 | AK55: =Exhibit7!AG18*1000 -> 0 | AL55: =Exhibit7!AH18*1000 -> 0 | AM55: =Exhibit7!AI18*1000 -> 0 | AN55: =Exhibit7!AJ18*1000 -> 0 | AO55: =Exhibit7!AK18*1000 -> 0 | AP55: =Exhibit7!AL18*1000 -> 0 | AQ55: =Exhibit7!AM18*1000 -> 0 | AR55: =Exhibit7!AN18*1000 -> 0 | AS55: =Exhibit7!AO18*1000 -> 0 | AT55: =Exhibit7!AP18*1000 -> 0 | AU55: =Exhibit7!AQ18*1000 -> 0
D57: Initial Paid in Capital | E57: USD | G57: =SUM(I57:XFD57) -> 79035000 | I57: =Exhibit7!E26*1000 -> 79035000 | J57: =Exhibit7!F26*1000 -> 0 | K57: =Exhibit7!G26*1000 -> 0 | L57: =Exhibit7!H26*1000 -> 0 | M57: =Exhibit7!I26*1000 -> 0
D58: Additional Paid-in Capital | E58: USD | G58: =SUM(I58:XFD58) -> 365511000 | I58: =Exhibit7!E27*1000 -> 0 | J58: =Exhibit7!F27*1000 -> 1986000 | K58: =Exhibit7!G27*1000 -> 550148000 | L58: =Exhibit7!H27*1000 -> -1576000 | M58: =Exhibit7!I27*1000 -> -185047000
D60: Debt Funding | E60: USD | G60: =SUM(I60:XFD60) -> 1450000000 | I60: =Exhibit7!E23*1000 -> 0 | J60: =Exhibit7!F23*1000 -> 1000000000 | K60: =Exhibit7!G23*1000 -> 24299000 | L60: =Exhibit7!H23*1000 -> 242981000 | M60: =Exhibit7!I23*1000 -> 182720000
D62: Repayment Percent | E62: % | G62: =SUM(I62:XFD62) -> 1 | I62: =TRANSPOSE(Exhibit10!BK11:BK37) -> 0 | J62: 0 | K62: 0 | L62: 0 | M62: 0 | N62: 0.02682 | O62: 0.02682 | P62: 0.02682 | Q62: 0.04446689655 | R62: 0.05602896552 | S62: 0.06941586207 | T62: 0.07550137931 | U62: 0.0882262069 | V62: 0.06511655172 | W62: 0.05931034483 | X62: 0.07034482759 | Y62: 0.08137931034 | Z62: 0.03272275862 | AA62: 0.03686068966 | AB62: 0.06634965517 | AC62: 0.0810937931 | AD62: 0.04099862069 | AE62: 0 | AF62: 0 | AG62: 0 | AH62: 0 | AI62: 0.05172413793
D64: Interest Rate on Average Balance | E64: % p.a. | I64: =TRANSPOSE(Exhibit10!BI11:BI39) -> 0 | J64: 0.122268 | K64: 0.08577389012 | L64: 0.08287298845 | M64: 0.08210857917 | N64: 0.08530462467 | O64: 0.0853688725 | P64: 0.08543681426 | Q64: 0.08644414376 | R64: 0.08692717599 | S64: 0.08762428146 | T64: 0.08886359288 | U64: 0.09000897627 | V64: 0.08939903147 | W64: 0.09050926999 | X64: 0.09120470058 | Y64: 0.09242389356 | Z64: 0.08984210638 | AA64: 0.09055511848 | AB64: 0.09451001624 | AC64: 0.1009982354 | AD64: 0.08826057064 | AE64: 0.08870666667 | AF64: 0.08870666667 | AG64: 0.08870666667 | AH64: 0.08870666667 | AI64: 0.1774133333 | AJ64: 0 | AK64: 0
D66: DSRA Flows | E66: USD | I66: =TRANSPOSE(Exhibit10!M11:M49)*1000 -> 0 | J66: 0 | K66: 0 | L66: 0 | M66: -80865000 | N66: 1614000 | O66: 1614000 | P66: -11509000 | Q66: -5700000 | R66: -6345000 | S66: -550000 | T66: -4671000 | U66: 10623000 | V66: 19595000 | W66: -4135000 | X66: -3438000 | Y66: 40417000 | Z66: -933000 | AA66: -19051000 | AB66: -6498000 | AC66: 4468000 | AD66: 62038000 | AE66: 0 | AF66: 0 | AG66: 0 | AH66: 0 | AI66: 3327000 | AJ66: 0 | AK66: 0 | AL66: 0 | AM66: 0 | AN66: 0 | AO66: 0 | AP66: 0 | AQ66: 0 | AR66: 0 | AS66: 0 | AT66: 0 | AU66: 0

Sheet Simple Debt
C5: Debt | D5: 1000
C6: Tenure | D6: 10
C7: Interest Rate | D7: 0.1
C8: Debt service | D8: =PMT(D7,D6,-D5) -> 162.7453949
C10: Repayment Period | E10: =_xlfn.SEQUENCE(,15) -> 1 | F10: 2 | G10: 3 | H10: 4 | I10: 5 | J10: 6 | K10: 7 | L10: 8 | M10: 9 | N10: 10 | O10: 11 | P10: 12 | Q10: 13 | R10: 14 | S10: 15
C11: Flag | E11: =(E10<=$D$6) -> TRUE | F11: =(F10<=$D$6) -> TRUE | G11: TRUE | H11: TRUE | I11: TRUE | J11: TRUE | K11: TRUE | L11: TRUE | M11: TRUE | N11: TRUE | O11: FALSE | P11: FALSE | Q11: FALSE | R11: FALSE | S11: FALSE
C12: Debt service (Int + Repay) | E12: =$D$8*E11 -> 162.7453949 | F12: =$D$8*F11 -> 162.7453949 | G12: 162.7453949 | H12: 162.7453949 | I12: 162.7453949 | J12: 162.7453949 | K12: 162.7453949 | L12: 162.7453949 | M12: 162.7453949 | N12: 162.7453949 | O12: 0 | P12: 0 | Q12: 0 | R12: 0 | S12: 0
C14: Opening Balance | E14: =D16 -> 1000 | F14: =E16 -> 937.2546051 | G14: 868.2346707 | H14: 792.3127429 | I14: 708.7986224 | J14: 616.9330897 | K14: 515.8810038 | L14: 404.7237093 | M14: 282.4506853 | N14: 147.950359 | O14: 0 | P14: 0 | Q14: 0 | R14: 0 | S14: 0
C15: Less: repayment | E15: =E12-E18 -> 62.74539488 | F15: =F12-F18 -> 69.01993437 | G15: 75.92192781 | H15: 83.51412059 | I15: 91.86553265 | J15: 101.0520859 | K15: 111.1572945 | L15: 122.273024 | M15: 134.5003263 | N15: 147.950359 | O15: 0 | P15: 0 | Q15: 0 | R15: 0 | S15: 0
C16: Closing Balance | D16: =D5 -> 1000 | E16: =E14-E15 -> 937.2546051 | F16: =F14-F15 -> 868.2346707 | G16: 792.3127429 | H16: 708.7986224 | I16: 616.9330897 | J16: 515.8810038 | K16: 404.7237093 | L16: 282.4506853 | M16: 147.950359 | N16: 0 | O16: 0 | P16: 0 | Q16: 0 | R16: 0 | S16: 0
C18: Interest | E18: =E14*$D$7 -> 100 | F18: =F14*$D$7 -> 93.72546051 | G18: 86.82346707 | H18: 79.23127429 | I18: 70.87986224 | J18: 61.69330897 | K18: 51.58810038 | L18: 40.47237093 | M18: 28.24506853 | N18: 14.7950359 | O18: 0 | P18: 0 | Q18: 0 | R18: 0 | S18: 0
C20: PV of Debt Service | D20: =NPV(D7,E12:S12) -> 1000
C22: Interest Rate Factor | D22: 1 | E22: =D22*(1+$D$7) -> 1.1 | F22: =E22*(1+$D$7) -> 1.21 | G22: 1.331 | H22: 1.4641 | I22: 1.61051 | J22: 1.771561 | K22: 1.9487171 | L22: 2.14358881 | M22: 2.357947691 | N22: 2.59374246 | O22: 2.853116706 | P22: 3.138428377 | Q22: 3.452271214 | R22: 3.797498336 | S22: 4.177248169
C23: PV with Sumproduct | D23: =SUMPRODUCT(E12:S12/E22:S22) -> 1000

Sheet Financial Model
F2: Units | G2: Driver 1 | H2: Driver 2 | I2: Sum
B4: Time Line
D5: Period | F5: Number | G5: =InputC!G9 -> 5 | H5: =-G5+1 -> -4 | L5: =_xlfn.SEQUENCE(,50,-G5+1) -> -4 | M5: -3 | N5: -2 | O5: -1 | P5: 0 | Q5: 1 | R5: 2 | S5: 3 | T5: 4 | U5: 5 | V5: 6 | W5: 7 | X5: 8 | Y5: 9 | Z5: 10 | AA5: 11 | AB5: 12 | AC5: 13 | AD5: 14 | AE5: 15 | AF5: 16 | AG5: 17 | AH5: 18 | AI5: 19 | AJ5: 20 | AK5: 21 | AL5: 22 | AM5: 23 | AN5: 24 | AO5: 25 | AP5: 26 | AQ5: 27 | AR5: 28 | AS5: 29 | AT5: 30 | AU5: 31 | AV5: 32 | AW5: 33 | AX5: 34 | AY5: 35 | AZ5: 36 | BA5: 37 | BB5: 38 | BC5: 39 | BD5: 40 | BE5: 41 | BF5: 42 | BG5: 43 | BH5: 44 | BI5: 45
D6: Date | F6: Year | G6: =InputC!G5 -> 1996 | K6: =G6-1 -> 1995 | L6: =K6+1 -> 1996 | M6: =L6+1 -> 1997 | N6: 1998 | O6: 1999 | P6: 2000 | Q6: 2001 | R6: 2002 | S6: 2003 | T6: 2004 | U6: 2005 | V6: 2006 | W6: 2007 | X6: 2008 | Y6: 2009 | Z6: 2010 | AA6: 2011 | AB6: 2012 | AC6: 2013 | AD6: 2014 | AE6: 2015 | AF6: 2016 | AG6: 2017 | AH6: 2018 | AI6: 2019 | AJ6: 2020 | AK6: 2021 | AL6: 2022 | AM6: 2023 | AN6: 2024 | AO6: 2025 | AP6: 2026 | AQ6: 2027 | AR6: 2028 | AS6: 2029 | AT6: 2030 | AU6: 2031 | AV6: 2032 | AW6: 2033 | AX6: 2034 | AY6: 2035 | AZ6: 2036 | BA6: 2037 | BB6: 2038 | BC6: 2039 | BD6: 2040 | BE6: 2041 | BF6: 2042 | BG6: 2043 | BH6: 2044 | BI6: 2045
D7: Pre-COD Period | F7: Flag | G7: 0 | L7: =(L5<=$G$7)*1 -> 1 | M7: =(M5<=$G$7)*1 -> 1 | N7: 1 | O7: 1 | P7: 1 | Q7: 0 | R7: 0 | S7: 0 | T7: 0 | U7: 0 | V7: 0 | W7: 0 | X7: 0 | Y7: 0 | Z7: 0 | AA7: 0 | AB7: 0 | AC7: 0 | AD7: 0 | AE7: 0 | AF7: 0 | AG7: 0 | AH7: 0 | AI7: 0 | AJ7: 0 | AK7: 0 | AL7: 0 | AM7: 0 | AN7: 0 | AO7: 0 | AP7: 0 | AQ7: 0 | AR7: 0 | AS7: 0 | AT7: 0 | AU7: 0 | AV7: 0 | AW7: 0 | AX7: 0 | AY7: 0 | AZ7: 0 | BA7: 0 | BB7: 0 | BC7: 0 | BD7: 0 | BE7: 0 | BF7: 0 | BG7: 0 | BH7: 0 | BI7: 0
D8: Operating Period | F8: Flag | G8: =InputC!G8 -> 2001 | H8: =InputC!G11 -> 2036 | I8: =SUM(L8:XFD8) -> 35 | L8: =(AND(L6>=$G$8,L6<$H$8))*1 -> 0 | M8: =(AND(M6>=$G$8,M6<$H$8))*1 -> 0 | N8: 0 | O8: 0 | P8: 0 | Q8: 1 | R8: 1 | S8: 1 | T8: 1 | U8: 1 | V8: 1 | W8: 1 | X8: 1 | Y8: 1 | Z8: 1 | AA8: 1 | AB8: 1 | AC8: 1 | AD8: 1 | AE8: 1 | AF8: 1 | AG8: 1 | AH8: 1 | AI8: 1 | AJ8: 1 | AK8: 1 | AL8: 1 | AM8: 1 | AN8: 1 | AO8: 1 | AP8: 1 | AQ8: 1 | AR8: 1 | AS8: 1 | AT8: 1 | AU8: 1 | AV8: 1 | AW8: 1 | AX8: 1 | AY8: 1 | AZ8: 0 | BA8: 0 | BB8: 0 | BC8: 0 | BD8: 0 | BE8: 0 | BF8: 0 | BG8: 0 | BH8: 0 | BI8: 0
B10: Operations
D11: Total Reserves | F11: BBL | G11: =InputC!G14 -> 1513666719 | L11: =$G$11 -> 1513666719 | M11: =$G$11 -> 1513666719 | N11: 1513666719 | O11: 1513666719 | P11: 1513666719 | Q11: 1513666719 | R11: 1513666719 | S11: 1513666719 | T11: 1513666719 | U11: 1513666719 | V11: 1513666719 | W11: 1513666719 | X11: 1513666719 | Y11: 1513666719 | Z11: 1513666719 | AA11: 1513666719 | AB11: 1513666719 | AC11: 1513666719 | AD11: 1513666719 | AE11: 1513666719 | AF11: 1513666719 | AG11: 1513666719 | AH11: 1513666719 | AI11: 1513666719 | AJ11: 1513666719 | AK11: 1513666719 | AL11: 1513666719 | AM11: 1513666719 | AN11: 1513666719 | AO11: 1513666719 | AP11: 1513666719 | AQ11: 1513666719 | AR11: 1513666719 | AS11: 1513666719 | AT11: 1513666719 | AU11: 1513666719 | AV11: 1513666719 | AW11: 1513666719 | AX11: 1513666719 | AY11: 1513666719 | AZ11: 1513666719 | BA11: 1513666719 | BB11: 1513666719 | BC11: 1513666719 | BD11: 1513666719 | BE11: 1513666719 | BF11: 1513666719 | BG11: 1513666719 | BH11: 1513666719 | BI11: 1513666719
D12: Production Percent | F12: % | L12: =LOOKUP(L6,InputS!4:4,InputS!25:25)*OR(L7,L8) -> 0 | M12: =LOOKUP(M6,InputS!4:4,InputS!25:25)*OR(M7,M8) -> 0 | N12: =LOOKUP(N6,InputS!4:4,InputS!25:25)*OR(N7,N8) -> 0.004030821861 | O12: =LOOKUP(O6,InputS!4:4,InputS!25:25)*OR(O7,O8) -> 0.02149027428 | P12: =LOOKUP(P6,InputS!4:4,InputS!25:25)*OR(P7,P8) -> 0.03929229799 | Q12: =LOOKUP(Q6,InputS!4:4,InputS!25:25)*OR(Q7,Q8) -> 0.02712925239 | R12: =LOOKUP(R6,InputS!4:4,InputS!25:25)*OR(R7,R8) -> 0.02713243121 | S12: =LOOKUP(S6,InputS!4:4,InputS!25:25)*OR(S7,S8) -> 0.02715179188 | T12: =LOOKUP(T6,InputS!4:4,InputS!25:25)*OR(T7,T8) -> 0.02715017488 | U12: =LOOKUP(U6,InputS!4:4,InputS!25:25)*OR(U7,U8) -> 0.02716500115 | V12: =LOOKUP(V6,InputS!4:4,InputS!25:25)*OR(V7,V8) -> 0.02717805702 | W12: =LOOKUP(W6,InputS!4:4,InputS!25:25)*OR(W7,W8) -> 0.02718997816 | X12: =LOOKUP(X6,InputS!4:4,InputS!25:25)*OR(X7,X8) -> 0.02720110423 | Y12: =LOOKUP(Y6,InputS!4:4,InputS!25:25)*OR(Y7,Y8) -> 0.02719579125 | Z12: =LOOKUP(Z6,InputS!4:4,InputS!25:25)*OR(Z7,Z8) -> 0.02720710916 | AA12: =LOOKUP(AA6,InputS!4:4,InputS!25:25)*OR(AA7,AA8) -> 0.02721882232 | AB12: =LOOKUP(AB6,InputS!4:4,InputS!25:25)*OR(AB7,AB8) -> 0.02721638524 | AC12: =LOOKUP(AC6,InputS!4:4,InputS!25:25)*OR(AC7,AC8) -> 0.02723040481 | AD12: =LOOKUP(AD6,InputS!4:4,InputS!25:25)*OR(AD7,AD8) -> 0.0272480906 | AE12: =LOOKUP(AE6,InputS!4:4,InputS!25:25)*OR(AE7,AE8) -> 0.02726620169 | AF12: =LOOKUP(AF6,InputS!4:4,InputS!25:25)*OR(AF7,AF8) -> 0.02728470266 | AG12: =LOOKUP(AG6,InputS!4:4,InputS!25:25)*OR(AG7,AG8) -> 0.02730362893 | AH12: =LOOKUP(AH6,InputS!4:4,InputS!25:25)*OR(AH7,AH8) -> 0.02732298051 | AI12: =LOOKUP(AI6,InputS!4:4,InputS!25:25)*OR(AI7,AI8) -> 0.02734272196 | AJ12: =LOOKUP(AJ6,InputS!4:4,InputS!25:25)*OR(AJ7,AJ8) -> 0.02771100454 | AK12: =LOOKUP(AK6,InputS!4:4,InputS!25:25)*OR(AK7,AK8) -> 0.02773163205 | AL12: =LOOKUP(AL6,InputS!4:4,InputS!25:25)*OR(AL7,AL8) -> 0.02775272031 | AM12: =LOOKUP(AM6,InputS!4:4,InputS!25:25)*OR(AM7,AM8) -> 0.02777426932 | AN12: =LOOKUP(AN6,InputS!4:4,InputS!25:25)*OR(AN7,AN8) -> 0.02779631453 | AO12: =LOOKUP(AO6,InputS!4:4,InputS!25:25)*OR(AO7,AO8) -> 0.02781882049 | AP12: =LOOKUP(AP6,InputS!4:4,InputS!25:25)*OR(AP7,AP8) -> 0.02784182265 | AQ12: =LOOKUP(AQ6,InputS!4:4,InputS!25:25)*OR(AQ7,AQ8) -> 0.02786535644 | AR12: =LOOKUP(AR6,InputS!4:4,InputS!25:25)*OR(AR7,AR8) -> 0.02788935098 | AS12: =LOOKUP(AS6,InputS!4:4,InputS!25:25)*OR(AS7,AS8) -> 0.02791391261 | AT12: =LOOKUP(AT6,InputS!4:4,InputS!25:25)*OR(AT7,AT8) -> 0.02793897042 | AU12: =LOOKUP(AU6,InputS!4:4,InputS!25:25)*OR(AU7,AU8) -> 0.02796459532 | AV12: =LOOKUP(AV6,InputS!4:4,InputS!25:25)*OR(AV7,AV8) -> 0.0279907873 | AW12: =LOOKUP(AW6,InputS!4:4,InputS!25:25)*OR(AW7,AW8) -> 0.02801754635 | AX12: =LOOKUP(AX6,InputS!4:4,InputS!25:25)*OR(AX7,AX8) -> 0.02804487249 | AY12: =LOOKUP(AY6,InputS!4:4,InputS!25:25)*OR(AY7,AY8) -> 0.02804487249 | AZ12: =LOOKUP(AZ6,InputS!4:4,InputS!25:25)*OR(AZ7,AZ8) -> 0 | BA12: =LOOKUP(BA6,InputS!4:4,InputS!25:25)*OR(BA7,BA8) -> 0 | BB12: =LOOKUP(BB6,InputS!4:4,InputS!25:25)*OR(BB7,BB8) -> 0 | BC12: =LOOKUP(BC6,InputS!4:4,InputS!25:25)*OR(BC7,BC8) -> 0 | BD12: =LOOKUP(BD6,InputS!4:4,InputS!25:25)*OR(BD7,BD8) -> 0 | BE12: =LOOKUP(BE6,InputS!4:4,InputS!25:25)*OR(BE7,BE8) -> 0 | BF12: =LOOKUP(BF6,InputS!4:4,InputS!25:25)*OR(BF7,BF8) -> 0 | BG12: =LOOKUP(BG6,InputS!4:4,InputS!25:25)*OR(BG7,BG8) -> 0 | BH12: =LOOKUP(BH6,InputS!4:4,InputS!25:25)*OR(BH7,BH8) -> 0 | BI12: =LOOKUP(BI6,InputS!4:4,InputS!25:25)*OR(BI7,BI8) -> 0
D13: Oil Production | F13: BBL p.a. | L13: =L11*L12 -> 0 | M13: =M11*M12 -> 0 | N13: 6101320.901 | O13: 32529112.96 | P13: 59475443.79 | Q13: 41064646.46 | R13: 41069458.13 | S13: 41098763.74 | T13: 41096316.14 | U13: 41118758.17 | V13: 41138520.41 | W13: 41156565.03 | X13: 41173406.19 | Y13: 41165364.12 | Z13: 41182495.67 | AA13: 41200225.48 | AB13: 41196536.56 | AC13: 41217757.51 | AD13: 41244527.9 | AE13: 41271942.06 | AF13: 41299946.35 | AG13: 41328594.42 | AH13: 41357886.27 | AI13: 41387768.24 | AJ13: 41945225.32 | AK13: 41976448.5 | AL13: 42008369.1 | AM13: 42040987.12 | AN13: 42074356.22 | AO13: 42108422.75 | AP13: 42143240.34 | AQ13: 42178862.66 | AR13: 42215182.4 | AS13: 42252360.52 | AT13: 42290289.7 | AU13: 42329077.25 | AV13: 42368723.18 | AW13: 42409227.47 | AX13: 42450590.13 | AY13: 42450590.13 | AZ13: 0 | BA13: 0 | BB13: 0 | BC13: 0 | BD13: 0 | BE13: 0 | BF13: 0 | BG13: 0 | BH13: 0 | BI13: 0
D14: Average Production per Day | F14: BBL p.d | L14: =L13/365 -> 0 | M14: =M13/365 -> 0 | N14: 16715.94767 | O14: 89120.85744 | P14: 162946.4213 | Q14: 112505.8807 | R14: 112519.0634 | S14: 112599.3527 | T14: 112592.647 | U14: 112654.132 | V14: 112708.2751 | W14: 112757.7124 | X14: 112803.8526 | Y14: 112781.8195 | Z14: 112828.7553 | AA14: 112877.3301 | AB14: 112867.2234 | AC14: 112925.363 | AD14: 112998.7066 | AE14: 113073.8139 | AF14: 113150.538 | AG14: 113229.0258 | AH14: 113309.2774 | AI14: 113391.1459 | AJ14: 114918.4255 | AK14: 115003.9685 | AL14: 115091.4222 | AM14: 115180.7866 | AN14: 115272.2088 | AO14: 115365.5418 | AP14: 115460.9324 | AQ14: 115558.5278 | AR14: 115658.034 | AS14: 115759.8918 | AT14: 115863.8074 | AU14: 115970.0747 | AV14: 116078.6936 | AW14: 116189.6643 | AX14: 116302.9867 | AY14: 116302.9867 | AZ14: 0 | BA14: 0 | BB14: 0 | BC14: 0 | BD14: 0 | BE14: 0 | BF14: 0 | BG14: 0 | BH14: 0 | BI14: 0
D16: Capacity of Upgrader | F16: BBL p.d | G16: =InputC!G18 -> 120000 | L16: =$G16*L8 -> 0 | M16: =$G16*M8 -> 0 | N16: 0 | O16: 0 | P16: 0 | Q16: 120000 | R16: 120000 | S16: 120000 | T16: 120000 | U16: 120000 | V16: 120000 | W16: 120000 | X16: 120000 | Y16: 120000 | Z16: 120000 | AA16: 120000 | AB16: 120000 | AC16: 120000 | AD16: 120000 | AE16: 120000 | AF16: 120000 | AG16: 120000 | AH16: 120000 | AI16: 120000 | AJ16: 120000 | AK16: 120000 | AL16: 120000 | AM16: 120000 | AN16: 120000 | AO16: 120000 | AP16: 120000 | AQ16: 120000 | AR16: 120000 | AS16: 120000 | AT16: 120000 | AU16: 120000 | AV16: 120000 | AW16: 120000 | AX16: 120000 | AY16: 120000 | AZ16: 0 | BA16: 0 | BB16: 0 | BC16: 0 | BD16: 0 | BE16: 0 | BF16: 0 | BG16: 0 | BH16: 0 | BI16: 0
D17: Capacity Utilisation | F17: % | L17: =(IF(L16,L14/L16))*1 -> 0 | M17: =(IF(M16,M14/M16))*1 -> 0 | N17: 0 | O17: 0 | P17: 0 | Q17: 0.937549006 | R17: 0.9376588614 | S17: 0.9383279392 | T17: 0.938272058 | U17: 0.9387844331 | V17: 0.9392356258 | W17: 0.9396476034 | X17: 0.9400321049 | Y17: 0.9398484959 | Z17: 0.9402396271 | AA17: 0.9406444173 | AB17: 0.9405601954 | AC17: 0.941044692 | AD17: 0.9416558881 | AE17: 0.9422817822 | AF17: 0.9429211496 | AG17: 0.9435752151 | AH17: 0.9442439787 | AI17: 0.9449262155 | AJ17: 0.9576535462 | AK17: 0.9583664041 | AL17: 0.9590951849 | AM17: 0.9598398887 | AN17: 0.9606017403 | AO17: 0.9613795148 | AP17: 0.9621744371 | AQ17: 0.962987732 | AR17: 0.9638169499 | AS17: 0.9646657652 | AT17: 0.9655317283 | AU17: 0.9664172889 | AV17: 0.9673224469 | AW17: 0.9682472025 | AX17: 0.9691915555 | AY17: 0.9691915555 | AZ17: 0 | BA17: 0 | BB17: 0 | BC17: 0 | BD17: 0 | BE17: 0 | BF17: 0 | BG17: 0 | BH17: 0 | BI17: 0
B19: Free Cash Flow for Project IRR
C20: Total Cost | G20: Total | H20: Per BBL
D21: Crude Oil Production | F21: USD | G21: =InputC!G22 -> 448780000 | H21: =G21/$G$11 -> 0.2964853454 | L21: =$G21*L$7 -> 448780000 | M21: =$G21*M$7 -> 448780000 | N21: 448780000 | O21: 448780000 | P21: 448780000 | Q21: 0 | R21: 0 | S21: 0 | T21: 0 | U21: 0 | V21: 0 | W21: 0 | X21: 0 | Y21: 0 | Z21: 0 | AA21: 0 | AB21: 0 | AC21: 0 | AD21: 0 | AE21: 0 | AF21: 0 | AG21: 0 | AH21: 0 | AI21: 0 | AJ21: 0 | AK21: 0 | AL21: 0 | AM21: 0 | AN21: 0 | AO21: 0 | AP21: 0 | AQ21: 0 | AR21: 0 | AS21: 0 | AT21: 0 | AU21: 0 | AV21: 0 | AW21: 0 | AX21: 0 | AY21: 0 | AZ21: 0 | BA21: 0 | BB21: 0 | BC21: 0 | BD21: 0 | BE21: 0 | BF21: 0 | BG21: 0 | BH21: 0 | BI21: 0
D22: Crude Oil Pipeline | F22: USD | G22: =InputC!G23 -> 216288000 | H22: =G22/$G$11 -> 0.1428901074 | L22: =$G22*L$7 -> 216288000 | M22: 216288000 | N22: 216288000 | O22: 216288000 | P22: 216288000 | Q22: 0 | R22: 0 | S22: 0 | T22: 0 | U22: 0 | V22: 0 | W22: 0 | X22: 0 | Y22: 0 | Z22: 0 | AA22: 0 | AB22: 0 | AC22: 0 | AD22: 0 | AE22: 0 | AF22: 0 | AG22: 0 | AH22: 0 | AI22: 0 | AJ22: 0 | AK22: 0 | AL22: 0 | AM22: 0 | AN22: 0 | AO22: 0 | AP22: 0 | AQ22: 0 | AR22: 0 | AS22: 0 | AT22: 0 | AU22: 0 | AV22: 0 | AW22: 0 | AX22: 0 | AY22: 0 | AZ22: 0 | BA22: 0 | BB22: 0 | BC22: 0 | BD22: 0 | BE22: 0 | BF22: 0 | BG22: 0 | BH22: 0 | BI22: 0
D23: Upgrader & Loading Facility | F23: USD | G23: =InputC!G24 -> 1066854000 | H23: 0.7048143336 | L23: 1066854000 | M23: 1066854000 | N23: 1066854000 | O23: 1066854000 | P23: 1066854000 | Q23: 0 | R23: 0 | S23: 0 | T23: 0 | U23: 0 | V23: 0 | W23: 0 | X23: 0 | Y23: 0 | Z23: 0 | AA23: 0 | AB23: 0 | AC23: 0 | AD23: 0 | AE23: 0 | AF23: 0 | AG23: 0 | AH23: 0 | AI23: 0 | AJ23: 0 | AK23: 0 | AL23: 0 | AM23: 0 | AN23: 0 | AO23: 0 | AP23: 0 | AQ23: 0 | AR23: 0 | AS23: 0 | AT23: 0 | AU23: 0 | AV23: 0 | AW23: 0 | AX23: 0 | AY23: 0 | AZ23: 0 | BA23: 0 | BB23: 0 | BC23: 0 | BD23: 0 | BE23: 0 | BF23: 0 | BG23: 0 | BH23: 0 | BI23: 0
D24: Upstream Contingency | F24: USD | G24: =InputC!G25 -> 37925000 | H24: 0.02505505308 | L24: 37925000 | M24: 37925000 | N24: 37925000 | O24: 37925000 | P24: 37925000 | Q24: 0 | R24: 0 | S24: 0 | T24: 0 | U24: 0 | V24: 0 | W24: 0 | X24: 0 | Y24: 0 | Z24: 0 | AA24: 0 | AB24: 0 | AC24: 0 | AD24: 0 | AE24: 0 | AF24: 0 | AG24: 0 | AH24: 0 | AI24: 0 | AJ24: 0 | AK24: 0 | AL24: 0 | AM24: 0 | AN24: 0 | AO24: 0 | AP24: 0 | AQ24: 0 | AR24: 0 | AS24: 0 | AT24: 0 | AU24: 0 | AV24: 0 | AW24: 0 | AX24: 0 | AY24: 0 | AZ24: 0 | BA24: 0 | BB24: 0 | BC24: 0 | BD24: 0 | BE24: 0 | BF24: 0 | BG24: 0 | BH24: 0 | BI24: 0
D25: Deferred Dev Costs, Op Exp | F25: USD | G25: =InputC!G26 -> 147093000 | H25: 0.09717660971 | L25: 147093000 | M25: 147093000 | N25: 147093000 | O25: 147093000 | P25: 147093000 | Q25: 0 | R25: 0 | S25: 0 | T25: 0 | U25: 0 | V25: 0 | W25: 0 | X25: 0 | Y25: 0 | Z25: 0 | AA25: 0 | AB25: 0 | AC25: 0 | AD25: 0 | AE25: 0 | AF25: 0 | AG25: 0 | AH25: 0 | AI25: 0 | AJ25: 0 | AK25: 0 | AL25: 0 | AM25: 0 | AN25: 0 | AO25: 0 | AP25: 0 | AQ25: 0 | AR25: 0 | AS25: 0 | AT25: 0 | AU25: 0 | AV25: 0 | AW25: 0 | AX25: 0 | AY25: 0 | AZ25: 0 | BA25: 0 | BB25: 0 | BC25: 0 | BD25: 0 | BE25: 0 | BF25: 0 | BG25: 0 | BH25: 0 | BI25: 0
E26: Total | F26: USD | G26: =SUM(G21:G25) -> 1916940000 | H26: =SUM(H21:H25) -> 1.266421449
C28: S-Curve
D29: Crude Oil Production | F29: % | I29: =SUM(L29:XFD29) -> 0.9999977717 | L29: =LOOKUP(L$6,InputS!$4:$4,InputS!29:29) -> 0.02672801818 | M29: =LOOKUP(M$6,InputS!$4:$4,InputS!29:29) -> 0.4274900842 | N29: =LOOKUP(N$6,InputS!$4:$4,InputS!29:29) -> 0.3367819422 | O29: =LOOKUP(O$6,InputS!$4:$4,InputS!29:29) -> 0.1717812737 | P29: =LOOKUP(P$6,InputS!$4:$4,InputS!29:29) -> 0.0372164535 | Q29: =LOOKUP(Q$6,InputS!$4:$4,InputS!29:29) -> 0 | R29: =LOOKUP(R$6,InputS!$4:$4,InputS!29:29) -> 0 | S29: =LOOKUP(S$6,InputS!$4:$4,InputS!29:29) -> 0 | T29: =LOOKUP(T$6,InputS!$4:$4,InputS!29:29) -> 0 | U29: =LOOKUP(U$6,InputS!$4:$4,InputS!29:29) -> 0 | V29: =LOOKUP(V$6,InputS!$4:$4,InputS!29:29) -> 0 | W29: =LOOKUP(W$6,InputS!$4:$4,InputS!29:29) -> 0 | X29: =LOOKUP(X$6,InputS!$4:$4,InputS!29:29) -> 0 | Y29: =LOOKUP(Y$6,InputS!$4:$4,InputS!29:29) -> 0 | Z29: =LOOKUP(Z$6,InputS!$4:$4,InputS!29:29) -> 0 | AA29: =LOOKUP(AA$6,InputS!$4:$4,InputS!29:29) -> 0 | AB29: =LOOKUP(AB$6,InputS!$4:$4,InputS!29:29) -> 0 | AC29: =LOOKUP(AC$6,InputS!$4:$4,InputS!29:29) -> 0 | AD29: =LOOKUP(AD$6,InputS!$4:$4,InputS!29:29) -> 0 | AE29: =LOOKUP(AE$6,InputS!$4:$4,InputS!29:29) -> 0 | AF29: =LOOKUP(AF$6,InputS!$4:$4,InputS!29:29) -> 0 | AG29: =LOOKUP(AG$6,InputS!$4:$4,InputS!29:29) -> 0 | AH29: =LOOKUP(AH$6,InputS!$4:$4,InputS!29:29) -> 0 | AI29: =LOOKUP(AI$6,InputS!$4:$4,InputS!29:29) -> 0 | AJ29: =LOOKUP(AJ$6,InputS!$4:$4,InputS!29:29) -> 0 | AK29: =LOOKUP(AK$6,InputS!$4:$4,InputS!29:29) -> 0 | AL29: =LOOKUP(AL$6,InputS!$4:$4,InputS!29:29) -> 0 | AM29: =LOOKUP(AM$6,InputS!$4:$4,InputS!29:29) -> 0 | AN29: =LOOKUP(AN$6,InputS!$4:$4,InputS!29:29) -> 0 | AO29: =LOOKUP(AO$6,InputS!$4:$4,InputS!29:29) -> 0 | AP29: =LOOKUP(AP$6,InputS!$4:$4,InputS!29:29) -> 0 | AQ29: =LOOKUP(AQ$6,InputS!$4:$4,InputS!29:29) -> 0 | AR29: =LOOKUP(AR$6,InputS!$4:$4,InputS!29:29) -> 0 | AS29: =LOOKUP(AS$6,InputS!$4:$4,InputS!29:29) -> 0 | AT29: =LOOKUP(AT$6,InputS!$4:$4,InputS!29:29) -> 0 | AU29: =LOOKUP(AU$6,InputS!$4:$4,InputS!29:29) -> 0 | AV29: =LOOKUP(AV$6,InputS!$4:$4,InputS!29:29) -> 0 | AW29: =LOOKUP(AW$6,InputS!$4:$4,InputS!29:29) -> 0 | AX29: =LOOKUP(AX$6,InputS!$4:$4,InputS!29:29) -> 0 | AY29: =LOOKUP(AY$6,InputS!$4:$4,InputS!29:29) -> 0 | AZ29: =LOOKUP(AZ$6,InputS!$4:$4,InputS!29:29) -> 0 | BA29: =LOOKUP(BA$6,InputS!$4:$4,InputS!29:29) -> 0 | BB29: =LOOKUP(BB$6,InputS!$4:$4,InputS!29:29) -> 0 | BC29: =LOOKUP(BC$6,InputS!$4:$4,InputS!29:29) -> 0 | BD29: =LOOKUP(BD$6,InputS!$4:$4,InputS!29:29) -> 0 | BE29: =LOOKUP(BE$6,InputS!$4:$4,InputS!29:29) -> 0 | BF29: =LOOKUP(BF$6,InputS!$4:$4,InputS!29:29) -> 0 | BG29: =LOOKUP(BG$6,InputS!$4:$4,InputS!29:29) -> 0 | BH29: =LOOKUP(BH$6,InputS!$4:$4,InputS!29:29) -> 0 | BI29: =LOOKUP(BI$6,InputS!$4:$4,InputS!29:29) -> 0
D30: Crude Oil Pipeline | F30: % | I30: =SUM(L30:XFD30) -> 1 | L30: =LOOKUP(L$6,InputS!$4:$4,InputS!30:30) -> 0.003028369581 | M30: =LOOKUP(M$6,InputS!$4:$4,InputS!30:30) -> 0.7883562657 | N30: =LOOKUP(N$6,InputS!$4:$4,InputS!30:30) -> 0.2086153647 | O30: =LOOKUP(O$6,InputS!$4:$4,InputS!30:30) -> 0 | P30: =LOOKUP(P$6,InputS!$4:$4,InputS!30:30) -> 0 | Q30: =LOOKUP(Q$6,InputS!$4:$4,InputS!30:30) -> 0 | R30: =LOOKUP(R$6,InputS!$4:$4,InputS!30:30) -> 0 | S30: =LOOKUP(S$6,InputS!$4:$4,InputS!30:30) -> 0 | T30: =LOOKUP(T$6,InputS!$4:$4,InputS!30:30) -> 0 | U30: =LOOKUP(U$6,InputS!$4:$4,InputS!30:30) -> 0 | V30: =LOOKUP(V$6,InputS!$4:$4,InputS!30:30) -> 0 | W30: =LOOKUP(W$6,InputS!$4:$4,InputS!30:30) -> 0 | X30: =LOOKUP(X$6,InputS!$4:$4,InputS!30:30) -> 0 | Y30: =LOOKUP(Y$6,InputS!$4:$4,InputS!30:30) -> 0 | Z30: =LOOKUP(Z$6,InputS!$4:$4,InputS!30:30) -> 0 | AA30: =LOOKUP(AA$6,InputS!$4:$4,InputS!30:30) -> 0 | AB30: =LOOKUP(AB$6,InputS!$4:$4,InputS!30:30) -> 0 | AC30: =LOOKUP(AC$6,InputS!$4:$4,InputS!30:30) -> 0 | AD30: =LOOKUP(AD$6,InputS!$4:$4,InputS!30:30) -> 0 | AE30: =LOOKUP(AE$6,InputS!$4:$4,InputS!30:30) -> 0 | AF30: =LOOKUP(AF$6,InputS!$4:$4,InputS!30:30) -> 0 | AG30: =LOOKUP(AG$6,InputS!$4:$4,InputS!30:30) -> 0 | AH30: =LOOKUP(AH$6,InputS!$4:$4,InputS!30:30) -> 0 | AI30: =LOOKUP(AI$6,InputS!$4:$4,InputS!30:30) -> 0 | AJ30: =LOOKUP(AJ$6,InputS!$4:$4,InputS!30:30) -> 0 | AK30: =LOOKUP(AK$6,InputS!$4:$4,InputS!30:30) -> 0 | AL30: =LOOKUP(AL$6,InputS!$4:$4,InputS!30:30) -> 0 | AM30: =LOOKUP(AM$6,InputS!$4:$4,InputS!30:30) -> 0 | AN30: =LOOKUP(AN$6,InputS!$4:$4,InputS!30:30) -> 0 | AO30: =LOOKUP(AO$6,InputS!$4:$4,InputS!30:30) -> 0 | AP30: =LOOKUP(AP$6,InputS!$4:$4,InputS!30:30) -> 0 | AQ30: =LOOKUP(AQ$6,InputS!$4:$4,InputS!30:30) -> 0 | AR30: =LOOKUP(AR$6,InputS!$4:$4,InputS!30:30) -> 0 | AS30: =LOOKUP(AS$6,InputS!$4:$4,InputS!30:30) -> 0 | AT30: =LOOKUP(AT$6,InputS!$4:$4,InputS!30:30) -> 0 | AU30: =LOOKUP(AU$6,InputS!$4:$4,InputS!30:30) -> 0 | AV30: =LOOKUP(AV$6,InputS!$4:$4,InputS!30:30) -> 0 | AW30: =LOOKUP(AW$6,InputS!$4:$4,InputS!30:30) -> 0 | AX30: =LOOKUP(AX$6,InputS!$4:$4,InputS!30:30) -> 0 | AY30: =LOOKUP(AY$6,InputS!$4:$4,InputS!30:30) -> 0 | AZ30: =LOOKUP(AZ$6,InputS!$4:$4,InputS!30:30) -> 0 | BA30: =LOOKUP(BA$6,InputS!$4:$4,InputS!30:30) -> 0 | BB30: =LOOKUP(BB$6,InputS!$4:$4,InputS!30:30) -> 0 | BC30: =LOOKUP(BC$6,InputS!$4:$4,InputS!30:30) -> 0 | BD30: =LOOKUP(BD$6,InputS!$4:$4,InputS!30:30) -> 0 | BE30: =LOOKUP(BE$6,InputS!$4:$4,InputS!30:30) -> 0 | BF30: =LOOKUP(BF$6,InputS!$4:$4,InputS!30:30) -> 0 | BG30: =LOOKUP(BG$6,InputS!$4:$4,InputS!30:30) -> 0 | BH30: =LOOKUP(BH$6,InputS!$4:$4,InputS!30:30) -> 0 | BI30: =LOOKUP(BI$6,InputS!$4:$4,InputS!30:30) -> 0
D31: Upgrader & Loading Facility | F31: % | I31: 1.000000937 | L31: =LOOKUP(L$6,InputS!$4:$4,InputS!31:31) -> 0.01344607603 | M31: =LOOKUP(M$6,InputS!$4:$4,InputS!31:31) -> 0.2280583847 | N31: =LOOKUP(N$6,InputS!$4:$4,InputS!31:31) -> 0.4789661941 | O31: =LOOKUP(O$6,InputS!$4:$4,InputS!31:31) -> 0.2158739621 | P31: =LOOKUP(P$6,InputS!$4:$4,InputS!31:31) -> 0.06365632036 | Q31: =LOOKUP(Q$6,InputS!$4:$4,InputS!31:31) -> 0 | R31: =LOOKUP(R$6,InputS!$4:$4,InputS!31:31) -> 0 | S31: =LOOKUP(S$6,InputS!$4:$4,InputS!31:31) -> 0 | T31: =LOOKUP(T$6,InputS!$4:$4,InputS!31:31) -> 0 | U31: =LOOKUP(U$6,InputS!$4:$4,InputS!31:31) -> 0 | V31: =LOOKUP(V$6,InputS!$4:$4,InputS!31:31) -> 0 | W31: =LOOKUP(W$6,InputS!$4:$4,InputS!31:31) -> 0 | X31: =LOOKUP(X$6,InputS!$4:$4,InputS!31:31) -> 0 | Y31: =LOOKUP(Y$6,InputS!$4:$4,InputS!31:31) -> 0 | Z31: =LOOKUP(Z$6,InputS!$4:$4,InputS!31:31) -> 0 | AA31: =LOOKUP(AA$6,InputS!$4:$4,InputS!31:31) -> 0 | AB31: =LOOKUP(AB$6,InputS!$4:$4,InputS!31:31) -> 0 | AC31: =LOOKUP(AC$6,InputS!$4:$4,InputS!31:31) -> 0 | AD31: =LOOKUP(AD$6,InputS!$4:$4,InputS!31:31) -> 0 | AE31: =LOOKUP(AE$6,InputS!$4:$4,InputS!31:31) -> 0 | AF31: =LOOKUP(AF$6,InputS!$4:$4,InputS!31:31) -> 0 | AG31: =LOOKUP(AG$6,InputS!$4:$4,InputS!31:31) -> 0 | AH31: =LOOKUP(AH$6,InputS!$4:$4,InputS!31:31) -> 0 | AI31: =LOOKUP(AI$6,InputS!$4:$4,InputS!31:31) -> 0 | AJ31: =LOOKUP(AJ$6,InputS!$4:$4,InputS!31:31) -> 0 | AK31: =LOOKUP(AK$6,InputS!$4:$4,InputS!31:31) -> 0 | AL31: =LOOKUP(AL$6,InputS!$4:$4,InputS!31:31) -> 0 | AM31: =LOOKUP(AM$6,InputS!$4:$4,InputS!31:31) -> 0 | AN31: =LOOKUP(AN$6,InputS!$4:$4,InputS!31:31) -> 0 | AO31: =LOOKUP(AO$6,InputS!$4:$4,InputS!31:31) -> 0 | AP31: =LOOKUP(AP$6,InputS!$4:$4,InputS!31:31) -> 0 | AQ31: =LOOKUP(AQ$6,InputS!$4:$4,InputS!31:31) -> 0 | AR31: =LOOKUP(AR$6,InputS!$4:$4,InputS!31:31) -> 0 | AS31: =LOOKUP(AS$6,InputS!$4:$4,InputS!31:31) -> 0 | AT31: =LOOKUP(AT$6,InputS!$4:$4,InputS!31:31) -> 0 | AU31: =LOOKUP(AU$6,InputS!$4:$4,InputS!31:31) -> 0 | AV31: =LOOKUP(AV$6,InputS!$4:$4,InputS!31:31) -> 0 | AW31: =LOOKUP(AW$6,InputS!$4:$4,InputS!31:31) -> 0 | AX31: =LOOKUP(AX$6,InputS!$4:$4,InputS!31:31) -> 0 | AY31: =LOOKUP(AY$6,InputS!$4:$4,InputS!31:31) -> 0 | AZ31: =LOOKUP(AZ$6,InputS!$4:$4,InputS!31:31) -> 0 | BA31: =LOOKUP(BA$6,InputS!$4:$4,InputS!31:31) -> 0 | BB31: =LOOKUP(BB$6,InputS!$4:$4,InputS!31:31) -> 0 | BC31: =LOOKUP(BC$6,InputS!$4:$4,InputS!31:31) -> 0 | BD31: =LOOKUP(BD$6,InputS!$4:$4,InputS!31:31) -> 0 | BE31: =LOOKUP(BE$6,InputS!$4:$4,InputS!31:31) -> 0 | BF31: =LOOKUP(BF$6,InputS!$4:$4,InputS!31:31) -> 0 | BG31: =LOOKUP(BG$6,InputS!$4:$4,InputS!31:31) -> 0 | BH31: =LOOKUP(BH$6,InputS!$4:$4,InputS!31:31) -> 0 | BI31: =LOOKUP(BI$6,InputS!$4:$4,InputS!31:31) -> 0
D32: Upstream Contingency | F32: % | I32: 1 | L32: =LOOKUP(L$6,InputS!$4:$4,InputS!32:32) -> 0 | M32: =LOOKUP(M$6,InputS!$4:$4,InputS!32:32) -> 0 | N32: =LOOKUP(N$6,InputS!$4:$4,InputS!32:32) -> 0 | O32: =LOOKUP(O$6,InputS!$4:$4,InputS!32:32) -> 0 | P32: =LOOKUP(P$6,InputS!$4:$4,InputS!32:32) -> 1 | Q32: =LOOKUP(Q$6,InputS!$4:$4,InputS!32:32) -> 0 | R32: =LOOKUP(R$6,InputS!$4:$4,InputS!32:32) -> 0 | S32: =LOOKUP(S$6,InputS!$4:$4,InputS!32:32) -> 0 | T32: =LOOKUP(T$6,InputS!$4:$4,InputS!32:32) -> 0 | U32: =LOOKUP(U$6,InputS!$4:$4,InputS!32:32) -> 0 | V32: =LOOKUP(V$6,InputS!$4:$4,InputS!32:32) -> 0 | W32: =LOOKUP(W$6,InputS!$4:$4,InputS!32:32) -> 0 | X32: =LOOKUP(X$6,InputS!$4:$4,InputS!32:32) -> 0 | Y32: =LOOKUP(Y$6,InputS!$4:$4,InputS!32:32) -> 0 | Z32: =LOOKUP(Z$6,InputS!$4:$4,InputS!32:32) -> 0 | AA32: =LOOKUP(AA$6,InputS!$4:$4,InputS!32:32) -> 0 | AB32: =LOOKUP(AB$6,InputS!$4:$4,InputS!32:32) -> 0 | AC32: =LOOKUP(AC$6,InputS!$4:$4,InputS!32:32) -> 0 | AD32: =LOOKUP(AD$6,InputS!$4:$4,InputS!32:32) -> 0 | AE32: =LOOKUP(AE$6,InputS!$4:$4,InputS!32:32) -> 0 | AF32: =LOOKUP(AF$6,InputS!$4:$4,InputS!32:32) -> 0 | AG32: =LOOKUP(AG$6,InputS!$4:$4,InputS!32:32) -> 0 | AH32: =LOOKUP(AH$6,InputS!$4:$4,InputS!32:32) -> 0 | AI32: =LOOKUP(AI$6,InputS!$4:$4,InputS!32:32) -> 0 | AJ32: =LOOKUP(AJ$6,InputS!$4:$4,InputS!32:32) -> 0 | AK32: =LOOKUP(AK$6,InputS!$4:$4,InputS!32:32) -> 0 | AL32: =LOOKUP(AL$6,InputS!$4:$4,InputS!32:32) -> 0 | AM32: =LOOKUP(AM$6,InputS!$4:$4,InputS!32:32) -> 0 | AN32: =LOOKUP(AN$6,InputS!$4:$4,InputS!32:32) -> 0 | AO32: =LOOKUP(AO$6,InputS!$4:$4,InputS!32:32) -> 0 | AP32: =LOOKUP(AP$6,InputS!$4:$4,InputS!32:32) -> 0 | AQ32: =LOOKUP(AQ$6,InputS!$4:$4,InputS!32:32) -> 0 | AR32: =LOOKUP(AR$6,InputS!$4:$4,InputS!32:32) -> 0 | AS32: =LOOKUP(AS$6,InputS!$4:$4,InputS!32:32) -> 0 | AT32: =LOOKUP(AT$6,InputS!$4:$4,InputS!32:32) -> 0 | AU32: =LOOKUP(AU$6,InputS!$4:$4,InputS!32:32) -> 0 | AV32: =LOOKUP(AV$6,InputS!$4:$4,InputS!32:32) -> 0 | AW32: =LOOKUP(AW$6,InputS!$4:$4,InputS!32:32) -> 0 | AX32: =LOOKUP(AX$6,InputS!$4:$4,InputS!32:32) -> 0 | AY32: =LOOKUP(AY$6,InputS!$4:$4,InputS!32:32) -> 0 | AZ32: =LOOKUP(AZ$6,InputS!$4:$4,InputS!32:32) -> 0 | BA32: =LOOKUP(BA$6,InputS!$4:$4,InputS!32:32) -> 0 | BB32: =LOOKUP(BB$6,InputS!$4:$4,InputS!32:32) -> 0 | BC32: =LOOKUP(BC$6,InputS!$4:$4,InputS!32:32) -> 0 | BD32: =LOOKUP(BD$6,InputS!$4:$4,InputS!32:32) -> 0 | BE32: =LOOKUP(BE$6,InputS!$4:$4,InputS!32:32) -> 0 | BF32: =LOOKUP(BF$6,InputS!$4:$4,InputS!32:32) -> 0 | BG32: =LOOKUP(BG$6,InputS!$4:$4,InputS!32:32) -> 0 | BH32: =LOOKUP(BH$6,InputS!$4:$4,InputS!32:32) -> 0 | BI32: =LOOKUP(BI$6,InputS!$4:$4,InputS!32:32) -> 0
D33: Deferred Dev Costs, Op Exp | F33: % | I33: 0.9999932016 | L33: =LOOKUP(L$6,InputS!$4:$4,InputS!33:33) -> 0.3537897793 | M33: =LOOKUP(M$6,InputS!$4:$4,InputS!33:33) -> 0.1585935429 | N33: =LOOKUP(N$6,InputS!$4:$4,InputS!33:33) -> 0.4876098795 | O33: =LOOKUP(O$6,InputS!$4:$4,InputS!33:33) -> 0 | P33: =LOOKUP(P$6,InputS!$4:$4,InputS!33:33) -> 0 | Q33: =LOOKUP(Q$6,InputS!$4:$4,InputS!33:33) -> 0 | R33: =LOOKUP(R$6,InputS!$4:$4,InputS!33:33) -> 0 | S33: =LOOKUP(S$6,InputS!$4:$4,InputS!33:33) -> 0 | T33: =LOOKUP(T$6,InputS!$4:$4,InputS!33:33) -> 0 | U33: =LOOKUP(U$6,InputS!$4:$4,InputS!33:33) -> 0 | V33: =LOOKUP(V$6,InputS!$4:$4,InputS!33:33) -> 0 | W33: =LOOKUP(W$6,InputS!$4:$4,InputS!33:33) -> 0 | X33: =LOOKUP(X$6,InputS!$4:$4,InputS!33:33) -> 0 | Y33: =LOOKUP(Y$6,InputS!$4:$4,InputS!33:33) -> 0 | Z33: =LOOKUP(Z$6,InputS!$4:$4,InputS!33:33) -> 0 | AA33: =LOOKUP(AA$6,InputS!$4:$4,InputS!33:33) -> 0 | AB33: =LOOKUP(AB$6,InputS!$4:$4,InputS!33:33) -> 0 | AC33: =LOOKUP(AC$6,InputS!$4:$4,InputS!33:33) -> 0 | AD33: =LOOKUP(AD$6,InputS!$4:$4,InputS!33:33) -> 0 | AE33: =LOOKUP(AE$6,InputS!$4:$4,InputS!33:33) -> 0 | AF33: =LOOKUP(AF$6,InputS!$4:$4,InputS!33:33) -> 0 | AG33: =LOOKUP(AG$6,InputS!$4:$4,InputS!33:33) -> 0 | AH33: =LOOKUP(AH$6,InputS!$4:$4,InputS!33:33) -> 0 | AI33: =LOOKUP(AI$6,InputS!$4:$4,InputS!33:33) -> 0 | AJ33: =LOOKUP(AJ$6,InputS!$4:$4,InputS!33:33) -> 0 | AK33: =LOOKUP(AK$6,InputS!$4:$4,InputS!33:33) -> 0 | AL33: =LOOKUP(AL$6,InputS!$4:$4,InputS!33:33) -> 0 | AM33: =LOOKUP(AM$6,InputS!$4:$4,InputS!33:33) -> 0 | AN33: =LOOKUP(AN$6,InputS!$4:$4,InputS!33:33) -> 0 | AO33: =LOOKUP(AO$6,InputS!$4:$4,InputS!33:33) -> 0 | AP33: =LOOKUP(AP$6,InputS!$4:$4,InputS!33:33) -> 0 | AQ33: =LOOKUP(AQ$6,InputS!$4:$4,InputS!33:33) -> 0 | AR33: =LOOKUP(AR$6,InputS!$4:$4,InputS!33:33) -> 0 | AS33: =LOOKUP(AS$6,InputS!$4:$4,InputS!33:33) -> 0 | AT33: =LOOKUP(AT$6,InputS!$4:$4,InputS!33:33) -> 0 | AU33: =LOOKUP(AU$6,InputS!$4:$4,InputS!33:33) -> 0 | AV33: =LOOKUP(AV$6,InputS!$4:$4,InputS!33:33) -> 0 | AW33: =LOOKUP(AW$6,InputS!$4:$4,InputS!33:33) -> 0 | AX33: =LOOKUP(AX$6,InputS!$4:$4,InputS!33:33) -> 0 | AY33: =LOOKUP(AY$6,InputS!$4:$4,InputS!33:33) -> 0 | AZ33: =LOOKUP(AZ$6,InputS!$4:$4,InputS!33:33) -> 0 | BA33: =LOOKUP(BA$6,InputS!$4:$4,InputS!33:33) -> 0 | BB33: =LOOKUP(BB$6,InputS!$4:$4,InputS!33:33) -> 0 | BC33: =LOOKUP(BC$6,InputS!$4:$4,InputS!33:33) -> 0 | BD33: =LOOKUP(BD$6,InputS!$4:$4,InputS!33:33) -> 0 | BE33: =LOOKUP(BE$6,InputS!$4:$4,InputS!33:33) -> 0 | BF33: =LOOKUP(BF$6,InputS!$4:$4,InputS!33:33) -> 0 | BG33: =LOOKUP(BG$6,InputS!$4:$4,InputS!33:33) -> 0 | BH33: =LOOKUP(BH$6,InputS!$4:$4,InputS!33:33) -> 0 | BI33: =LOOKUP(BI$6,InputS!$4:$4,InputS!33:33) -> 0
C35: Total Capital Expenditures
D36: Crude Oil Production | F36: USD | I36: =SUM(L36:XFD36) -> 448779000 | L36: =L21*L29 -> 11995000 | M36: 191849000 | N36: 151141000 | O36: 77092000 | P36: 16702000 | Q36: 0 | R36: 0 | S36: 0 | T36: 0 | U36: 0 | V36: 0 | W36: 0 | X36: 0 | Y36: 0 | Z36: 0 | AA36: 0 | AB36: 0 | AC36: 0 | AD36: 0 | AE36: 0 | AF36: 0 | AG36: 0 | AH36: 0 | AI36: 0 | AJ36: 0 | AK36: 0 | AL36: 0 | AM36: 0 | AN36: 0 | AO36: 0 | AP36: 0 | AQ36: 0 | AR36: =AR21*AR29 -> 0 | AS36: 0 | AT36: 0 | AU36: 0 | AV36: 0 | AW36: 0 | AX36: 0 | AY36: 0 | AZ36: 0 | BA36: 0 | BB36: 0 | BC36: 0 | BD36: 0 | BE36: 0 | BF36: 0 | BG36: 0 | BH36: 0 | BI36: 0
D37: Crude Oil Pipeline | F37: USD | I37: =SUM(L37:XFD37) -> 216288000 | L37: =L22*L30 -> 655000 | M37: 170512000 | N37: 45121000 | O37: 0 | P37: 0 | Q37: 0 | R37: 0 | S37: 0 | T37: 0 | U37: 0 | V37: 0 | W37: 0 | X37: 0 | Y37: 0 | Z37: 0 | AA37: 0 | AB37: 0 | AC37: 0 | AD37: 0 | AE37: 0 | AF37: 0 | AG37: 0 | AH37: 0 | AI37: 0 | AJ37: 0 | AK37: 0 | AL37: 0 | AM37: 0 | AN37: 0 | AO37: 0 | AP37: 0 | AQ37: 0 | AR37: =AR22*AR30 -> 0 | AS37: 0 | AT37: 0 | AU37: 0 | AV37: 0 | AW37: 0 | AX37: 0 | AY37: 0 | AZ37: 0 | BA37: 0 | BB37: 0 | BC37: 0 | BD37: 0 | BE37: 0 | BF37: 0 | BG37: 0 | BH37: 0 | BI37: 0
D38: Upgrader & Loading Facility | F38: USD | I38: 1066855000 | L38: =L23*L31 -> 14345000 | M38: 243305000 | N38: 510987000 | O38: 230306000 | P38: 67912000 | Q38: 0 | R38: 0 | S38: 0 | T38: 0 | U38: 0 | V38: 0 | W38: 0 | X38: 0 | Y38: 0 | Z38: 0 | AA38: 0 | AB38: 0 | AC38: 0 | AD38: 0 | AE38: 0 | AF38: 0 | AG38: 0 | AH38: 0 | AI38: 0 | AJ38: 0 | AK38: 0 | AL38: 0 | AM38: 0 | AN38: 0 | AO38: 0 | AP38: 0 | AQ38: 0 | AR38: =AR23*AR31 -> 0 | AS38: 0 | AT38: 0 | AU38: 0 | AV38: 0 | AW38: 0 | AX38: 0 | AY38: 0 | AZ38: 0 | BA38: 0 | BB38: 0 | BC38: 0 | BD38: 0 | BE38: 0 | BF38: 0 | BG38: 0 | BH38: 0 | BI38: 0
D39: Upstream Contingency | F39: USD | I39: 37925000 | L39: =L24*L32 -> 0 | M39: 0 | N39: 0 | O39: 0 | P39: 37925000 | Q39: 0 | R39: 0 | S39: 0 | T39: 0 | U39: 0 | V39: 0 | W39: 0 | X39: 0 | Y39: 0 | Z39: 0 | AA39: 0 | AB39: 0 | AC39: 0 | AD39: 0 | AE39: 0 | AF39: 0 | AG39: 0 | AH39: 0 | AI39: 0 | AJ39: 0 | AK39: 0 | AL39: 0 | AM39: 0 | AN39: 0 | AO39: 0 | AP39: 0 | AQ39: 0 | AR39: =AR24*AR32 -> 0 | AS39: 0 | AT39: 0 | AU39: 0 | AV39: 0 | AW39: 0 | AX39: 0 | AY39: 0 | AZ39: 0 | BA39: 0 | BB39: 0 | BC39: 0 | BD39: 0 | BE39: 0 | BF39: 0 | BG39: 0 | BH39: 0 | BI39: 0
D40: Deferred Dev Costs, Op Exp | F40: USD | I40: 147092000 | L40: =L25*L33 -> 52040000 | M40: 23328000 | N40: 71724000 | O40: 0 | P40: 0 | Q40: 0 | R40: 0 | S40: 0 | T40: 0 | U40: 0 | V40: 0 | W40: 0 | X40: 0 | Y40: 0 | Z40: 0 | AA40: 0 | AB40: 0 | AC40: 0 | AD40: 0 | AE40: 0 | AF40: 0 | AG40: 0 | AH40: 0 | AI40: 0 | AJ40: 0 | AK40: 0 | AL40: 0 | AM40: 0 | AN40: 0 | AO40: 0 | AP40: 0 | AQ40: 0 | AR40: =AR25*AR33 -> 0 | AS40: 0 | AT40: 0 | AU40: 0 | AV40: 0 | AW40: 0 | AX40: 0 | AY40: 0 | AZ40: 0 | BA40: 0 | BB40: 0 | BC40: 0 | BD40: 0 | BE40: 0 | BF40: 0 | BG40: 0 | BH40: 0 | BI40: 0
E41: Total Capital Expenditures | F41: USD | I41: =SUM(L41:XFD41) -> 1916939000 | L41: =SUM(L36:L40) -> 79035000 | M41: =SUM(M36:M40) -> 628994000 | N41: 778973000 | O41: 307398000 | P41: 122539000 | Q41: 0 | R41: 0 | S41: 0 | T41: 0 | U41: 0 | V41: 0 | W41: 0 | X41: 0 | Y41: 0 | Z41: 0 | AA41: 0 | AB41: 0 | AC41: 0 | AD41: 0 | AE41: 0 | AF41: 0 | AG41: 0 | AH41: 0 | AI41: 0 | AJ41: 0 | AK41: 0 | AL41: 0 | AM41: 0 | AN41: 0 | AO41: 0 | AP41: 0 | AQ41: 0 | AR41: 0 | AS41: 0 | AT41: 0 | AU41: 0 | AV41: 0 | AW41: 0 | AX41: 0 | AY41: 0 | AZ41: 0 | BA41: 0 | BB41: 0 | BC41: 0 | BD41: 0 | BE41: 0 | BF41: 0 | BG41: 0 | BH41: 0 | BI41: 0
C43: Revenues
D44: Oil Price | F44: USD/BBL | G44: =I44/100 -> 1 | I44: 100 | L44: =LOOKUP(L6,InputS!4:4,InputS!15:15)*$G$44 -> 12.25 | M44: =LOOKUP(M6,InputS!4:4,InputS!15:15)*$G$44 -> 12.56 | N44: =LOOKUP(N6,InputS!4:4,InputS!15:15)*$G$44 -> 12.87 | O44: =LOOKUP(O6,InputS!4:4,InputS!15:15)*$G$44 -> 13.19 | P44: =LOOKUP(P6,InputS!4:4,InputS!15:15)*$G$44 -> 13.52 | Q44: =LOOKUP(Q6,InputS!4:4,InputS!15:15)*$G$44 -> 13.86 | R44: =LOOKUP(R6,InputS!4:4,InputS!15:15)*$G$44 -> 14.21 | S44: =LOOKUP(S6,InputS!4:4,InputS!15:15)*$G$44 -> 14.56 | T44: =LOOKUP(T6,InputS!4:4,InputS!15:15)*$G$44 -> 14.93 | U44: =LOOKUP(U6,InputS!4:4,InputS!15:15)*$G$44 -> 15.3 | V44: =LOOKUP(V6,InputS!4:4,InputS!15:15)*$G$44 -> 15.68 | W44: =LOOKUP(W6,InputS!4:4,InputS!15:15)*$G$44 -> 16.07 | X44: =LOOKUP(X6,InputS!4:4,InputS!15:15)*$G$44 -> 16.47 | Y44: =LOOKUP(Y6,InputS!4:4,InputS!15:15)*$G$44 -> 16.89 | Z44: =LOOKUP(Z6,InputS!4:4,InputS!15:15)*$G$44 -> 17.31 | AA44: =LOOKUP(AA6,InputS!4:4,InputS!15:15)*$G$44 -> 17.74 | AB44: =LOOKUP(AB6,InputS!4:4,InputS!15:15)*$G$44 -> 18.19 | AC44: =LOOKUP(AC6,InputS!4:4,InputS!15:15)*$G$44 -> 18.64 | AD44: =LOOKUP(AD6,InputS!4:4,InputS!15:15)*$G$44 -> 19.1992 | AE44: =LOOKUP(AE6,InputS!4:4,InputS!15:15)*$G$44 -> 19.775176 | AF44: =LOOKUP(AF6,InputS!4:4,InputS!15:15)*$G$44 -> 20.36843128 | AG44: =LOOKUP(AG6,InputS!4:4,InputS!15:15)*$G$44 -> 20.97948422 | AH44: =LOOKUP(AH6,InputS!4:4,InputS!15:15)*$G$44 -> 21.60886874 | AI44: =LOOKUP(AI6,InputS!4:4,InputS!15:15)*$G$44 -> 22.25713481 | AJ44: =LOOKUP(AJ6,InputS!4:4,InputS!15:15)*$G$44 -> 22.92484885 | AK44: =LOOKUP(AK6,InputS!4:4,InputS!15:15)*$G$44 -> 23.61259432 | AL44: =LOOKUP(AL6,InputS!4:4,InputS!15:15)*$G$44 -> 24.32097215 | AM44: =LOOKUP(AM6,InputS!4:4,InputS!15:15)*$G$44 -> 25.05060131 | AN44: =LOOKUP(AN6,InputS!4:4,InputS!15:15)*$G$44 -> 25.80211935 | AO44: =LOOKUP(AO6,InputS!4:4,InputS!15:15)*$G$44 -> 26.57618293 | AP44: =LOOKUP(AP6,InputS!4:4,InputS!15:15)*$G$44 -> 27.37346842 | AQ44: =LOOKUP(AQ6,InputS!4:4,InputS!15:15)*$G$44 -> 28.19467247 | AR44: =LOOKUP(AR6,InputS!4:4,InputS!15:15)*$G$44 -> 29.04051265 | AS44: =LOOKUP(AS6,InputS!4:4,InputS!15:15)*$G$44 -> 29.91172802 | AT44: =LOOKUP(AT6,InputS!4:4,InputS!15:15)*$G$44 -> 30.80907987 | AU44: =LOOKUP(AU6,InputS!4:4,InputS!15:15)*$G$44 -> 31.73335226 | AV44: =LOOKUP(AV6,InputS!4:4,InputS!15:15)*$G$44 -> 32.68535283 | AW44: =LOOKUP(AW6,InputS!4:4,InputS!15:15)*$G$44 -> 33.66591341 | AX44: =LOOKUP(AX6,InputS!4:4,InputS!15:15)*$G$44 -> 34.67589082 | AY44: =LOOKUP(AY6,InputS!4:4,InputS!15:15)*$G$44 -> 34.67589082 | AZ44: =LOOKUP(AZ6,InputS!4:4,InputS!15:15)*$G$44 -> 34.67589082 | BA44: =LOOKUP(BA6,InputS!4:4,InputS!15:15)*$G$44 -> 34.67589082 | BB44: =LOOKUP(BB6,InputS!4:4,InputS!15:15)*$G$44 -> 34.67589082 | BC44: =LOOKUP(BC6,InputS!4:4,InputS!15:15)*$G$44 -> 34.67589082 | BD44: =LOOKUP(BD6,InputS!4:4,InputS!15:15)*$G$44 -> 34.67589082 | BE44: =LOOKUP(BE6,InputS!4:4,InputS!15:15)*$G$44 -> 34.67589082 | BF44: =LOOKUP(BF6,InputS!4:4,InputS!15:15)*$G$44 -> 34.67589082 | BG44: =LOOKUP(BG6,InputS!4:4,InputS!15:15)*$G$44 -> 34.67589082 | BH44: =LOOKUP(BH6,InputS!4:4,InputS!15:15)*$G$44 -> 34.67589082 | BI44: =LOOKUP(BI6,InputS!4:4,InputS!15:15)*$G$44 -> 34.67589082
D45: Oil Production | F45: BBL | I45: =SUM(L45:XFD45) -> 1556117309 | L45: =L13 -> 0 | M45: =M13 -> 0 | N45: 6101320.901 | O45: 32529112.96 | P45: 59475443.79 | Q45: 41064646.46 | R45: 41069458.13 | S45: 41098763.74 | T45: 41096316.14 | U45: 41118758.17 | V45: 41138520.41 | W45: 41156565.03 | X45: 41173406.19 | Y45: 41165364.12 | Z45: 41182495.67 | AA45: 41200225.48 | AB45: 41196536.56 | AC45: 41217757.51 | AD45: 41244527.9 | AE45: 41271942.06 | AF45: 41299946.35 | AG45: 41328594.42 | AH45: 41357886.27 | AI45: 41387768.24 | AJ45: 41945225.32 | AK45: 41976448.5 | AL45: 42008369.1 | AM45: 42040987.12 | AN45: 42074356.22 | AO45: 42108422.75 | AP45: 42143240.34 | AQ45: 42178862.66 | AR45: 42215182.4 | AS45: 42252360.52 | AT45: 42290289.7 | AU45: 42329077.25 | AV45: 42368723.18 | AW45: 42409227.47 | AX45: 42450590.13 | AY45: 42450590.13 | AZ45: 0 | BA45: 0 | BB45: 0 | BC45: 0 | BD45: 0 | BE45: 0 | BF45: 0 | BG45: 0 | BH45: 0 | BI45: 0
E46: Revenues | F46: USD | I46: =SUM(L46:XFD46) -> 3.45456368e+10 | L46: =L44*L45 -> 0 | M46: =M44*M45 -> 0 | N46: 78524000 | O46: 429059000 | P46: 804108000 | Q46: 569156000 | R46: 583597000 | S46: 598398000 | T46: 613568000 | U46: 629117000 | V46: 645052000 | W46: 661386000 | X46: 678126000 | Y46: 695283000 | Z46: 712869000 | AA46: 730892000 | AB46: 749365000 | AC46: 768299000 | AD46: 791861940 | AE46: 816159918.1 | AF46: 841215119.1 | AG46: 867052594.4 | AH46: 893697135.9 | AI46: 921173137.1 | AJ46: 961587950.5 | AK46: 991172849.3 | AL46: 1021684375 | AM46: 1053152007 | AN46: 1085607561 | AO46: 1119081146 | AP46: 1153606659 | AQ46: 1189219218 | AR46: 1225950538 | AS46: 1263841116 | AT46: 1302924913 | AU46: 1343243519 | AV46: 1384836666 | AW46: 1427745380 | AX46: 1472012028 | AY46: 1472012028 | AZ46: 0 | BA46: 0 | BB46: 0 | BC46: 0 | BD46: 0 | BE46: 0 | BF46: 0 | BG46: 0 | BH46: 0 | BI46: 0
C48: Expenses
D49: Base Royalty Period (TRUE) | F49: Flag | G49: =InputC!G38 -> 2001 | L49: =L6<=$G$49 -> TRUE | M49: =M6<=$G$49 -> TRUE | N49: TRUE | O49: TRUE | P49: TRUE | Q49: TRUE | R49: FALSE | S49: FALSE | T49: FALSE | U49: FALSE | V49: FALSE | W49: FALSE | X49: FALSE | Y49: FALSE | Z49: FALSE | AA49: FALSE | AB49: FALSE | AC49: FALSE | AD49: FALSE | AE49: FALSE | AF49: FALSE | AG49: FALSE | AH49: FALSE | AI49: FALSE | AJ49: FALSE | AK49: FALSE | AL49: FALSE | AM49: FALSE | AN49: FALSE | AO49: FALSE | AP49: FALSE | AQ49: FALSE | AR49: FALSE | AS49: FALSE | AT49: FALSE | AU49: FALSE | AV49: FALSE | AW49: FALSE | AX49: FALSE | AY49: FALSE | AZ49: FALSE | BA49: FALSE | BB49: FALSE | BC49: FALSE | BD49: FALSE | BE49: FALSE | BF49: FALSE | BG49: FALSE | BH49: FALSE | BI49: FALSE
D50: Royalty | F50: % | G50: =InputC!G39 -> 0.01 | H50: =InputC!G40 -> 0.01 | L50: =IF(L49,$G$50,$H$50) -> 0.01 | M50: =IF(M49,$G$50,$H$50) -> 0.01 | N50: 0.01 | O50: 0.01 | P50: 0.01 | Q50: 0.01 | R50: 0.01 | S50: 0.01 | T50: 0.01 | U50: 0.01 | V50: 0.01 | W50: 0.01 | X50: 0.01 | Y50: 0.01 | Z50: 0.01 | AA50: 0.01 | AB50: 0.01 | AC50: 0.01 | AD50: 0.01 | AE50: 0.01 | AF50: 0.01 | AG50: 0.01 | AH50: 0.01 | AI50: 0.01 | AJ50: 0.01 | AK50: 0.01 | AL50: 0.01 | AM50: 0.01 | AN50: 0.01 | AO50: 0.01 | AP50: 0.01 | AQ50: 0.01 | AR50: 0.01 | AS50: 0.01 | AT50: 0.01 | AU50: 0.01 | AV50: 0.01 | AW50: 0.01 | AX50: 0.01 | AY50: 0.01 | AZ50: 0.01 | BA50: 0.01 | BB50: 0.01 | BC50: 0.01 | BD50: 0.01 | BE50: 0.01 | BF50: 0.01 | BG50: 0.01 | BH50: 0.01 | BI50: 0.01
D51: Royalty Amount | F51: USD | L51: =L50*L46 -> 0 | M51: =M50*M46 -> 0 | N51: 785240 | O51: 4290590 | P51: 8041080 | Q51: 5691560 | R51: 5835970 | S51: 5983980 | T51: 6135680 | U51: 6291170 | V51: 6450520 | W51: 6613860 | X51: 6781260 | Y51: 6952830 | Z51: 7128690 | AA51: 7308920 | AB51: 7493650 | AC51: 7682990 | AD51: 7918619.4 | AE51: 8161599.181 | AF51: 8412151.191 | AG51: 8670525.944 | AH51: 8936971.359 | AI51: 9211731.371 | AJ51: 9615879.505 | AK51: 9911728.493 | AL51: 10216843.75 | AM51: 10531520.07 | AN51: 10856075.61 | AO51: 11190811.46 | AP51: 11536066.59 | AQ51: 11892192.18 | AR51: 12259505.38 | AS51: 12638411.16 | AT51: 13029249.13 | AU51: 13432435.19 | AV51: 13848366.66 | AW51: 14277453.8 | AX51: 14720120.28 | AY51: 14720120.28 | AZ51: 0 | BA51: 0 | BB51: 0 | BC51: 0 | BD51: 0 | BE51: 0 | BF51: 0 | BG51: 0 | BH51: 0 | BI51: 0
D53: Inflation Rate | F53: % | G53: =InputC!G36 -> 0.03 | K53: 1 | L53: 1 | M53: =L53*(1+$G$53) -> 1.03 | N53: 1.0609 | O53: 1.092727 | P53: 1.12550881 | Q53: 1.159274074 | R53: 1.194052297 | S53: 1.229873865 | T53: 1.266770081 | U53: 1.304773184 | V53: 1.343916379 | W53: 1.384233871 | X53: 1.425760887 | Y53: 1.468533713 | Z53: 1.512589725 | AA53: 1.557967417 | AB53: 1.604706439 | AC53: 1.652847632 | AD53: 1.702433061 | AE53: 1.753506053 | AF53: 1.806111235 | AG53: 1.860294572 | AH53: 1.916103409 | AI53: 1.973586511 | AJ53: 2.032794106 | AK53: 2.09377793 | AL53: 2.156591268 | AM53: 2.221289006 | AN53: 2.287927676 | AO53: 2.356565506 | AP53: 2.427262471 | AQ53: 2.500080345 | AR53: 2.575082756 | AS53: 2.652335238 | AT53: 2.731905296 | AU53: 2.813862454 | AV53: 2.898278328 | AW53: 2.985226678 | AX53: 3.074783478 | AY53: 3.167026983 | AZ53: 3.262037792 | BA53: 3.359898926 | BB53: 3.460695894 | BC53: 3.56451677 | BD53: 3.671452273 | BE53: 3.781595842 | BF53: 3.895043717 | BG53: 4.011895028 | BH53: 4.132251879 | BI53: 4.256219436
D55: Real Expenses | F55: USD | I55: =SUM(L55:XFD55) -> 5222825815 | L55: =LOOKUP(L6,InputS!4:4,InputS!48:48)*OR(L7,L8) -> 0 | M55: =LOOKUP(M6,InputS!4:4,InputS!48:48)*OR(M7,M8) -> 0 | N55: =LOOKUP(N6,InputS!4:4,InputS!48:48)*OR(N7,N8) -> 64924560.85 | O55: =LOOKUP(O6,InputS!4:4,InputS!48:48)*OR(O7,O8) -> 160734240.7 | P55: =LOOKUP(P6,InputS!4:4,InputS!48:48)*OR(P7,P8) -> 271752046.2 | Q55: =LOOKUP(Q6,InputS!4:4,InputS!48:48)*OR(Q7,Q8) -> 36307163.64 | R55: =LOOKUP(R6,InputS!4:4,InputS!48:48)*OR(R7,R8) -> 40114993.7 | S55: =LOOKUP(S6,InputS!4:4,InputS!48:48)*OR(S7,S8) -> 91448749.5 | T55: =LOOKUP(T6,InputS!4:4,InputS!48:48)*OR(T7,T8) -> 52386463.18 | U55: =LOOKUP(U6,InputS!4:4,InputS!48:48)*OR(U7,U8) -> 66501536.05 | V55: =LOOKUP(V6,InputS!4:4,InputS!48:48)*OR(V7,V8) -> 28742329.99 | W55: =LOOKUP(W6,InputS!4:4,InputS!48:48)*OR(W7,W8) -> 35795649.67 | X55: =LOOKUP(X6,InputS!4:4,InputS!48:48)*OR(X7,X8) -> 40765496.65 | Y55: =LOOKUP(Y6,InputS!4:4,InputS!48:48)*OR(Y7,Y8) -> 126818949.8 | Z55: =LOOKUP(Z6,InputS!4:4,InputS!48:48)*OR(Z7,Z8) -> 135648094 | AA55: =LOOKUP(AA6,InputS!4:4,InputS!48:48)*OR(AA7,AA8) -> 133994636.8 | AB55: =LOOKUP(AB6,InputS!4:4,InputS!48:48)*OR(AB7,AB8) -> 129995999.7 | AC55: =LOOKUP(AC6,InputS!4:4,InputS!48:48)*OR(AC7,AC8) -> 198671131.7 | AD55: =LOOKUP(AD6,InputS!4:4,InputS!48:48)*OR(AD7,AD8) -> 161169377.2 | AE55: =LOOKUP(AE6,InputS!4:4,InputS!48:48)*OR(AE7,AE8) -> 121573042.3 | AF55: =LOOKUP(AF6,InputS!4:4,InputS!48:48)*OR(AF7,AF8) -> 123260396.3 | AG55: =LOOKUP(AG6,InputS!4:4,InputS!48:48)*OR(AG7,AG8) -> 117312999.5 | AH55: =LOOKUP(AH6,InputS!4:4,InputS!48:48)*OR(AH7,AH8) -> 164393324.1 | AI55: =LOOKUP(AI6,InputS!4:4,InputS!48:48)*OR(AI7,AI8) -> 177378077.9 | AJ55: =LOOKUP(AJ6,InputS!4:4,InputS!48:48)*OR(AJ7,AJ8) -> 199793629.6 | AK55: =LOOKUP(AK6,InputS!4:4,InputS!48:48)*OR(AK7,AK8) -> 180457315.9 | AL55: =LOOKUP(AL6,InputS!4:4,InputS!48:48)*OR(AL7,AL8) -> 178719933.1 | AM55: =LOOKUP(AM6,InputS!4:4,InputS!48:48)*OR(AM7,AM8) -> 172808219.7 | AN55: =LOOKUP(AN6,InputS!4:4,InputS!48:48)*OR(AN7,AN8) -> 171886049.5 | AO55: =LOOKUP(AO6,InputS!4:4,InputS!48:48)*OR(AO7,AO8) -> 167153750 | AP55: =LOOKUP(AP6,InputS!4:4,InputS!48:48)*OR(AP7,AP8) -> 171052397.4 | AQ55: =LOOKUP(AQ6,InputS!4:4,InputS!48:48)*OR(AQ7,AQ8) -> 167271916 | AR55: =LOOKUP(AR6,InputS!4:4,InputS!48:48)*OR(AR7,AR8) -> 164318882.4 | AS55: =LOOKUP(AS6,InputS!4:4,InputS!48:48)*OR(AS7,AS8) -> 167051834.8 | AT55: =LOOKUP(AT6,InputS!4:4,InputS!48:48)*OR(AT7,AT8) -> 172864519.4 | AU55: =LOOKUP(AU6,InputS!4:4,InputS!48:48)*OR(AU7,AU8) -> 166376359 | AV55: =LOOKUP(AV6,InputS!4:4,InputS!48:48)*OR(AV7,AV8) -> 166326874.9 | AW55: =LOOKUP(AW6,InputS!4:4,InputS!48:48)*OR(AW7,AW8) -> 163130010.2 | AX55: =LOOKUP(AX6,InputS!4:4,InputS!48:48)*OR(AX7,AX8) -> 166962431.7 | AY55: =LOOKUP(AY6,InputS!4:4,InputS!48:48)*OR(AY7,AY8) -> 166962431.7 | AZ55: =LOOKUP(AZ6,InputS!4:4,InputS!48:48)*OR(AZ7,AZ8) -> 0 | BA55: =LOOKUP(BA6,InputS!4:4,InputS!48:48)*OR(BA7,BA8) -> 0 | BB55: =LOOKUP(BB6,InputS!4:4,InputS!48:48)*OR(BB7,BB8) -> 0 | BC55: =LOOKUP(BC6,InputS!4:4,InputS!48:48)*OR(BC7,BC8) -> 0 | BD55: =LOOKUP(BD6,InputS!4:4,InputS!48:48)*OR(BD7,BD8) -> 0 | BE55: =LOOKUP(BE6,InputS!4:4,InputS!48:48)*OR(BE7,BE8) -> 0 | BF55: =LOOKUP(BF6,InputS!4:4,InputS!48:48)*OR(BF7,BF8) -> 0 | BG55: =LOOKUP(BG6,InputS!4:4,InputS!48:48)*OR(BG7,BG8) -> 0 | BH55: =LOOKUP(BH6,InputS!4:4,InputS!48:48)*OR(BH7,BH8) -> 0 | BI55: =LOOKUP(BI6,InputS!4:4,InputS!48:48)*OR(BI7,BI8) -> 0
D56: Nominal Expenses | F56: USD | I56: =SUM(L56:XFD56) -> 1.077452998e+10 | L56: =L55*L53 -> 0 | M56: =M55*M53 -> 0 | N56: 68878466.61 | O56: 175638644.6 | P56: 305859322.2 | Q56: 42089953.52 | R56: 47899400.36 | S56: 112470427 | T56: 66361604.23 | U56: 86769420.93 | V56: 38627288.05 | W56: 49549550.7 | X56: 58121850.66 | Y56: 186237903.3 | Z56: 205179913.2 | AA56: 208759278.1 | AB56: 208605417.8 | AC56: 328373109.6 | AD56: 274380076.3 | AE56: 213179065.5 | AF56: 222621986.6 | AG56: 218236736.1 | AH56: 314994608.7 | AI56: 350070981.8 | AJ56: 406139312.8 | AK56: 377837545.3 | AL56: 385425847.1 | AM56: 383856998.4 | AN56: 393262849.8 | AO56: 393908761.5 | AP56: 415189064.8 | AQ56: 418193229.5 | AR56: 423134720.4 | AS56: 443077468 | AT56: 472249495.9 | AU56: 468160189.9 | AV56: 482061576.9 | AW56: 486980058.4 | AX56: 513373326.4 | AY56: 528774526.2 | AZ56: 0 | BA56: 0 | BB56: 0 | BC56: 0 | BD56: 0 | BE56: 0 | BF56: 0 | BG56: 0 | BH56: 0 | BI56: 0
E57: Total Expenses | F57: USD | I57: =SUM(L57:XFD57) -> 1.111998635e+10 | L57: =L56+L51 -> 0 | M57: =M56+M51 -> 0 | N57: =N56+N51 -> 69663706.61 | O57: =O56+O51 -> 179929234.6 | P57: =P56+P51 -> 313900402.2 | Q57: =Q56+Q51 -> 47781513.52 | R57: =R56+R51 -> 53735370.36 | S57: =S56+S51 -> 118454407 | T57: =T56+T51 -> 72497284.23 | U57: =U56+U51 -> 93060590.93 | V57: =V56+V51 -> 45077808.05 | W57: =W56+W51 -> 56163410.7 | X57: =X56+X51 -> 64903110.66 | Y57: =Y56+Y51 -> 193190733.3 | Z57: =Z56+Z51 -> 212308603.2 | AA57: =AA56+AA51 -> 216068198.1 | AB57: =AB56+AB51 -> 216099067.8 | AC57: =AC56+AC51 -> 336056099.6 | AD57: =AD56+AD51 -> 282298695.7 | AE57: =AE56+AE51 -> 221340664.7 | AF57: =AF56+AF51 -> 231034137.8 | AG57: =AG56+AG51 -> 226907262 | AH57: =AH56+AH51 -> 323931580.1 | AI57: =AI56+AI51 -> 359282713.2 | AJ57: =AJ56+AJ51 -> 415755192.3 | AK57: =AK56+AK51 -> 387749273.8 | AL57: =AL56+AL51 -> 395642690.9 | AM57: =AM56+AM51 -> 394388518.5 | AN57: =AN56+AN51 -> 404118925.4 | AO57: =AO56+AO51 -> 405099573 | AP57: =AP56+AP51 -> 426725131.4 | AQ57: =AQ56+AQ51 -> 430085421.7 | AR57: =AR56+AR51 -> 435394225.8 | AS57: =AS56+AS51 -> 455715879.1 | AT57: =AT56+AT51 -> 485278745 | AU57: =AU56+AU51 -> 481592625.1 | AV57: =AV56+AV51 -> 495909943.5 | AW57: =AW56+AW51 -> 501257512.2 | AX57: =AX56+AX51 -> 528093446.7 | AY57: =AY56+AY51 -> 543494646.5 | AZ57: =AZ56+AZ51 -> 0 | BA57: =BA56+BA51 -> 0 | BB57: =BB56+BB51 -> 0 | BC57: =BC56+BC51 -> 0 | BD57: =BD56+BD51 -> 0 | BE57: =BE56+BE51 -> 0 | BF57: =BF56+BF51 -> 0 | BG57: =BG56+BG51 -> 0 | BH57: =BH56+BH51 -> 0 | BI57: =BI56+BI51 -> 0
D59: Free Cash Flow and Project IRR
E60: EBITDA | F60: USD | I60: =SUM(L60:XFD60) -> 2.342565045e+10 | L60: =L46-L57 -> 0 | M60: =M46-M57 -> 0 | N60: 8860293.392 | O60: 249129765.4 | P60: 490207597.8 | Q60: 521374486.5 | R60: 529861629.6 | S60: 479943593 | T60: 541070715.8 | U60: 536056409.1 | V60: 599974191.9 | W60: 605222589.3 | X60: 613222889.3 | Y60: 502092266.7 | Z60: 500560396.8 | AA60: 514823801.9 | AB60: 533265932.2 | AC60: 432242900.4 | AD60: 509563244.3 | AE60: 594819253.4 | AF60: 610180981.4 | AG60: 640145332.4 | AH60: 569765555.8 | AI60: 561890423.9 | AJ60: 545832758.3 | AK60: 603423575.5 | AL60: 626041683.9 | AM60: 658763488.7 | AN60: 681488635.5 | AO60: 713981572.9 | AP60: 726881527.2 | AQ60: 759133796.3 | AR60: 790556312.6 | AS60: 808125237 | AT60: 817646167.9 | AU60: 861650894.2 | AV60: 888926722.4 | AW60: 926487867.7 | AX60: 943918581.7 | AY60: 928517381.9 | AZ60: 0 | BA60: 0 | BB60: 0 | BC60: 0 | BD60: 0 | BE60: 0 | BF60: 0 | BG60: 0 | BH60: 0 | BI60: 0
E61: Less: Capital Expenditues | F61: USD | I61: =SUM(L61:XFD61) -> 1916939000 | L61: =L41 -> 79035000 | M61: =M41 -> 628994000 | N61: 778973000 | O61: 307398000 | P61: 122539000 | Q61: 0 | R61: 0 | S61: 0 | T61: 0 | U61: 0 | V61: 0 | W61: 0 | X61: 0 | Y61: 0 | Z61: 0 | AA61: 0 | AB61: 0 | AC61: 0 | AD61: 0 | AE61: 0 | AF61: 0 | AG61: 0 | AH61: 0 | AI61: 0 | AJ61: 0 | AK61: 0 | AL61: 0 | AM61: 0 | AN61: 0 | AO61: 0 | AP61: 0 | AQ61: 0 | AR61: 0 | AS61: 0 | AT61: 0 | AU61: 0 | AV61: 0 | AW61: 0 | AX61: 0 | AY61: 0 | AZ61: 0 | BA61: 0 | BB61: 0 | BC61: 0 | BD61: 0 | BE61: 0 | BF61: 0 | BG61: 0 | BH61: 0 | BI61: 0
E62: Free Cash Flow | F62: USD | I62: =SUM(L62:XFD62) -> 2.150871145e+10 | L62: =L60-L61 -> -79035000 | M62: =M60-M61 -> -628994000 | N62: -770112706.6 | O62: -58268234.6 | P62: 367668597.8 | Q62: 521374486.5 | R62: 529861629.6 | S62: 479943593 | T62: 541070715.8 | U62: 536056409.1 | V62: 599974191.9 | W62: 605222589.3 | X62: 613222889.3 | Y62: 502092266.7 | Z62: 500560396.8 | AA62: 514823801.9 | AB62: 533265932.2 | AC62: 432242900.4 | AD62: 509563244.3 | AE62: 594819253.4 | AF62: 610180981.4 | AG62: 640145332.4 | AH62: 569765555.8 | AI62: 561890423.9 | AJ62: 545832758.3 | AK62: 603423575.5 | AL62: 626041683.9 | AM62: 658763488.7 | AN62: 681488635.5 | AO62: 713981572.9 | AP62: 726881527.2 | AQ62: 759133796.3 | AR62: 790556312.6 | AS62: 808125237 | AT62: 817646167.9 | AU62: 861650894.2 | AV62: 888926722.4 | AW62: 926487867.7 | AX62: 943918581.7 | AY62: 928517381.9 | AZ62: 0 | BA62: 0 | BB62: 0 | BC62: 0 | BD62: 0 | BE62: 0 | BF62: 0 | BG62: 0 | BH62: 0 | BI62: 0
D64: Project IRR | F64: % p.a. | G64: =IFERROR(IRR(L62:BI62),FALSE) -> 0.2373262127
B66: Depreciation and Taxes Before Financing
C67: Depreciation
D68: Depreciation Period | I68: =SUM(L68:XFD68) -> 35 | L68: =L8 -> 0 | M68: 0 | N68: 0 | O68: 0 | P68: 0 | Q68: 1 | R68: 1 | S68: 1 | T68: 1 | U68: 1 | V68: 1 | W68: 1 | X68: 1 | Y68: 1 | Z68: 1 | AA68: 1 | AB68: 1 | AC68: 1 | AD68: 1 | AE68: 1 | AF68: 1 | AG68: 1 | AH68: 1 | AI68: 1 | AJ68: 1 | AK68: 1 | AL68: 1 | AM68: 1 | AN68: 1 | AO68: 1 | AP68: 1 | AQ68: 1 | AR68: =AR8 -> 1 | AS68: 1 | AT68: 1 | AU68: 1 | AV68: 1 | AW68: 1 | AX68: 1 | AY68: 1 | AZ68: 0 | BA68: 0 | BB68: 0 | BC68: 0 | BD68: 0 | BE68: 0 | BF68: 0 | BG68: 0 | BH68: 0 | BI68: 0
D69: Depreciation Rate | G69: =I68 -> 35 | I69: =SUM(L69:XFD69) -> 1 | L69: =L68/$G$69 -> 0 | M69: =M68/$G$69 -> 0 | N69: 0 | O69: 0 | P69: 0 | Q69: 0.02857142857 | R69: 0.02857142857 | S69: 0.02857142857 | T69: 0.02857142857 | U69: 0.02857142857 | V69: 0.02857142857 | W69: 0.02857142857 | X69: 0.02857142857 | Y69: 0.02857142857 | Z69: 0.02857142857 | AA69: 0.02857142857 | AB69: 0.02857142857 | AC69: 0.02857142857 | AD69: 0.02857142857 | AE69: 0.02857142857 | AF69: 0.02857142857 | AG69: 0.02857142857 | AH69: 0.02857142857 | AI69: 0.02857142857 | AJ69: 0.02857142857 | AK69: 0.02857142857 | AL69: 0.02857142857 | AM69: 0.02857142857 | AN69: 0.02857142857 | AO69: 0.02857142857 | AP69: 0.02857142857 | AQ69: 0.02857142857 | AR69: 0.02857142857 | AS69: 0.02857142857 | AT69: 0.02857142857 | AU69: 0.02857142857 | AV69: 0.02857142857 | AW69: 0.02857142857 | AX69: 0.02857142857 | AY69: 0.02857142857 | AZ69: 0 | BA69: 0 | BB69: 0 | BC69: 0 | BD69: 0 | BE69: 0 | BF69: 0 | BG69: 0 | BH69: 0 | BI69: 0
D71: Accumulated Direct Capital Expenditures | F71: USD | L71: =K71+L25 -> 147093000 | M71: 294186000 | N71: 441279000 | O71: 588372000 | P71: 735465000 | Q71: 735465000 | R71: 735465000 | S71: 735465000 | T71: 735465000 | U71: 735465000 | V71: 735465000 | W71: 735465000 | X71: 735465000 | Y71: 735465000 | Z71: 735465000 | AA71: 735465000 | AB71: 735465000 | AC71: 735465000 | AD71: 735465000 | AE71: 735465000 | AF71: 735465000 | AG71: 735465000 | AH71: 735465000 | AI71: 735465000 | AJ71: 735465000 | AK71: 735465000 | AL71: 735465000 | AM71: 735465000 | AN71: 735465000 | AO71: 735465000 | AP71: 735465000 | AQ71: 735465000 | AR71: =AQ71+AR25 -> 735465000 | AS71: 735465000 | AT71: 735465000 | AU71: 735465000 | AV71: 735465000 | AW71: 735465000 | AX71: 735465000 | AY71: 735465000 | AZ71: 735465000 | BA71: 735465000 | BB71: 735465000 | BC71: 735465000 | BD71: 735465000 | BE71: 735465000 | BF71: 735465000 | BG71: 735465000 | BH71: 735465000 | BI71: 735465000
D72: Total Depreciation Base | F72: USD | L72: =L71 -> 147093000 | M72: =M71 -> 294186000 | N72: 441279000 | O72: 588372000 | P72: 735465000 | Q72: 735465000 | R72: 735465000 | S72: 735465000 | T72: 735465000 | U72: 735465000 | V72: 735465000 | W72: 735465000 | X72: 735465000 | Y72: 735465000 | Z72: 735465000 | AA72: 735465000 | AB72: 735465000 | AC72: 735465000 | AD72: 735465000 | AE72: 735465000 | AF72: 735465000 | AG72: 735465000 | AH72: 735465000 | AI72: 735465000 | AJ72: 735465000 | AK72: 735465000 | AL72: 735465000 | AM72: 735465000 | AN72: 735465000 | AO72: 735465000 | AP72: 735465000 | AQ72: 735465000 | AR72: 735465000 | AS72: 735465000 | AT72: 735465000 | AU72: 735465000 | AV72: 735465000 | AW72: 735465000 | AX72: 735465000 | AY72: 735465000 | AZ72: 735465000 | BA72: 735465000 | BB72: 735465000 | BC72: 735465000 | BD72: 735465000 | BE72: 735465000 | BF72: 735465000 | BG72: 735465000 | BH72: 735465000 | BI72: 735465000
D74: Depreciation Expense | F74: USD | I74: =SUM(L74:XFD74) -> 735465000 | L74: =L72*L69 -> 0 | M74: =M72*M69 -> 0 | N74: 0 | O74: 0 | P74: 0 | Q74: 21013285.71 | R74: 21013285.71 | S74: 21013285.71 | T74: 21013285.71 | U74: 21013285.71 | V74: 21013285.71 | W74: 21013285.71 | X74: 21013285.71 | Y74: 21013285.71 | Z74: 21013285.71 | AA74: 21013285.71 | AB74: 21013285.71 | AC74: 21013285.71 | AD74: 21013285.71 | AE74: 21013285.71 | AF74: 21013285.71 | AG74: 21013285.71 | AH74: 21013285.71 | AI74: 21013285.71 | AJ74: 21013285.71 | AK74: 21013285.71 | AL74: 21013285.71 | AM74: 21013285.71 | AN74: 21013285.71 | AO74: 21013285.71 | AP74: 21013285.71 | AQ74: 21013285.71 | AR74: 21013285.71 | AS74: 21013285.71 | AT74: 21013285.71 | AU74: 21013285.71 | AV74: 21013285.71 | AW74: 21013285.71 | AX74: 21013285.71 | AY74: 21013285.71 | AZ74: 0 | BA74: 0 | BB74: 0 | BC74: 0 | BD74: 0 | BE74: 0 | BF74: 0 | BG74: 0 | BH74: 0 | BI74: 0
D76: EBITDA | F76: USD | I76: =SUM(L76:XFD76) -> 2.342565045e+10 | L76: =L60 -> 0 | M76: =M60 -> 0 | N76: 8860293.392 | O76: 249129765.4 | P76: 490207597.8 | Q76: 521374486.5 | R76: 529861629.6 | S76: 479943593 | T76: 541070715.8 | U76: 536056409.1 | V76: 599974191.9 | W76: 605222589.3 | X76: 613222889.3 | Y76: 502092266.7 | Z76: 500560396.8 | AA76: 514823801.9 | AB76: 533265932.2 | AC76: 432242900.4 | AD76: 509563244.3 | AE76: 594819253.4 | AF76: 610180981.4 | AG76: 640145332.4 | AH76: 569765555.8 | AI76: 561890423.9 | AJ76: 545832758.3 | AK76: 603423575.5 | AL76: 626041683.9 | AM76: 658763488.7 | AN76: 681488635.5 | AO76: 713981572.9 | AP76: 726881527.2 | AQ76: 759133796.3 | AR76: 790556312.6 | AS76: 808125237 | AT76: 817646167.9 | AU76: 861650894.2 | AV76: 888926722.4 | AW76: 926487867.7 | AX76: 943918581.7 | AY76: 928517381.9 | AZ76: 0 | BA76: 0 | BB76: 0 | BC76: 0 | BD76: 0 | BE76: 0 | BF76: 0 | BG76: 0 | BH76: 0 | BI76: 0
D77: Less: Depreciation | F77: USD | I77: =SUM(L77:XFD77) -> 735465000 | L77: =L74 -> 0 | M77: =M74 -> 0 | N77: 0 | O77: 0 | P77: 0 | Q77: 21013285.71 | R77: 21013285.71 | S77: 21013285.71 | T77: 21013285.71 | U77: 21013285.71 | V77: 21013285.71 | W77: 21013285.71 | X77: 21013285.71 | Y77: 21013285.71 | Z77: 21013285.71 | AA77: 21013285.71 | AB77: 21013285.71 | AC77: 21013285.71 | AD77: 21013285.71 | AE77: 21013285.71 | AF77: 21013285.71 | AG77: 21013285.71 | AH77: 21013285.71 | AI77: 21013285.71 | AJ77: 21013285.71 | AK77: 21013285.71 | AL77: 21013285.71 | AM77: 21013285.71 | AN77: 21013285.71 | AO77: 21013285.71 | AP77: 21013285.71 | AQ77: 21013285.71 | AR77: 21013285.71 | AS77: 21013285.71 | AT77: 21013285.71 | AU77: 21013285.71 | AV77: 21013285.71 | AW77: 21013285.71 | AX77: 21013285.71 | AY77: 21013285.71 | AZ77: 0 | BA77: 0 | BB77: 0 | BC77: 0 | BD77: 0 | BE77: 0 | BF77: 0 | BG77: 0 | BH77: 0 | BI77: 0
D78: EBIT | F78: USD | I78: =SUM(L78:XFD78) -> 2.269018545e+10 | L78: =L76-L77 -> 0 | M78: =M76-M77 -> 0 | N78: 8860293.392 | O78: 249129765.4 | P78: 490207597.8 | Q78: 500361200.8 | R78: 508848343.9 | S78: 458930307.3 | T78: 520057430.1 | U78: 515043123.4 | V78: 578960906.2 | W78: 584209303.6 | X78: 592209603.6 | Y78: 481078981 | Z78: 479547111.1 | AA78: 493810516.2 | AB78: 512252646.5 | AC78: 411229614.7 | AD78: 488549958.6 | AE78: 573805967.7 | AF78: 589167695.6 | AG78: 619132046.7 | AH78: 548752270.1 | AI78: 540877138.2 | AJ78: 524819472.6 | AK78: 582410289.8 | AL78: 605028398.2 | AM78: 637750203 | AN78: 660475349.8 | AO78: 692968287.2 | AP78: 705868241.5 | AQ78: 738120510.6 | AR78: 769543026.9 | AS78: 787111951.3 | AT78: 796632882.2 | AU78: 840637608.5 | AV78: 867913436.7 | AW78: 905474582 | AX78: 922905296 | AY78: 907504096.2 | AZ78: 0 | BA78: 0 | BB78: 0 | BC78: 0 | BD78: 0 | BE78: 0 | BF78: 0 | BG78: 0 | BH78: 0 | BI78: 0
D80: Tax Rate | F80: % | G80: =InputC!$G$50 -> 0.34 | H80: =InputC!G51 -> 0.34 | L80: =IF(L49,$G$80,$H$80) -> 0.34 | M80: 0.34 | N80: 0.34 | O80: 0.34 | P80: 0.34 | Q80: 0.34 | R80: 0.34 | S80: 0.34 | T80: 0.34 | U80: 0.34 | V80: 0.34 | W80: 0.34 | X80: 0.34 | Y80: 0.34 | Z80: 0.34 | AA80: 0.34 | AB80: 0.34 | AC80: 0.34 | AD80: 0.34 | AE80: 0.34 | AF80: 0.34 | AG80: 0.34 | AH80: 0.34 | AI80: 0.34 | AJ80: 0.34 | AK80: 0.34 | AL80: 0.34 | AM80: 0.34 | AN80: 0.34 | AO80: 0.34 | AP80: 0.34 | AQ80: 0.34 | AR80: =IF(AR49,$G$80,$H$80) -> 0.34 | AS80: 0.34 | AT80: 0.34 | AU80: 0.34 | AV80: 0.34 | AW80: 0.34 | AX80: 0.34 | AY80: 0.34 | AZ80: 0.34 | BA80: 0.34 | BB80: 0.34 | BC80: 0.34 | BD80: 0.34 | BE80: 0.34 | BF80: 0.34 | BG80: 0.34 | BH80: 0.34 | BI80: 0.34
D81: Taxes on EBIT | F81: USD | I81: =SUM(L81:XFD81) -> 7714663054 | L81: =L78*L80 -> 0 | M81: =M78*M80 -> 0 | N81: 3012499.753 | O81: 84704120.24 | P81: 166670583.3 | Q81: 170122808.3 | R81: 173008436.9 | S81: 156036304.5 | T81: 176819526.2 | U81: 175114661.9 | V81: 196846708.1 | W81: 198631163.2 | X81: 201351265.2 | Y81: 163566853.5 | Z81: 163046017.8 | AA81: 167895575.5 | AB81: 174165899.8 | AC81: 139818069 | AD81: 166106985.9 | AE81: 195094029 | AF81: 200317016.5 | AG81: 210504895.9 | AH81: 186575771.8 | AI81: 183898227 | AJ81: 178438620.7 | AK81: 198019498.5 | AL81: 205709655.4 | AM81: 216835069 | AN81: 224561618.9 | AO81: 235609217.6 | AP81: 239995202.1 | AQ81: 250960973.6 | AR81: 261644629.2 | AS81: 267618063.4 | AT81: 270855179.9 | AU81: 285816786.9 | AV81: 295090568.5 | AW81: 307861357.9 | AX81: 313787800.6 | AY81: 308551392.7 | AZ81: 0 | BA81: 0 | BB81: 0 | BC81: 0 | BD81: 0 | BE81: 0 | BF81: 0 | BG81: 0 | BH81: 0 | BI81: 0
D83: Free Cash Flow Before Tax | F83: USD | I83: =SUM(L83:XFD83) -> 2.150871145e+10 | L83: =L62 -> -79035000 | M83: =M62 -> -628994000 | N83: -770112706.6 | O83: -58268234.6 | P83: 367668597.8 | Q83: 521374486.5 | R83: 529861629.6 | S83: 479943593 | T83: 541070715.8 | U83: 536056409.1 | V83: 599974191.9 | W83: 605222589.3 | X83: 613222889.3 | Y83: 502092266.7 | Z83: 500560396.8 | AA83: 514823801.9 | AB83: 533265932.2 | AC83: 432242900.4 | AD83: 509563244.3 | AE83: 594819253.4 | AF83: 610180981.4 | AG83: 640145332.4 | AH83: 569765555.8 | AI83: 561890423.9 | AJ83: 545832758.3 | AK83: 603423575.5 | AL83: 626041683.9 | AM83: 658763488.7 | AN83: 681488635.5 | AO83: 713981572.9 | AP83: 726881527.2 | AQ83: 759133796.3 | AR83: 790556312.6 | AS83: 808125237 | AT83: 817646167.9 | AU83: 861650894.2 | AV83: 888926722.4 | AW83: 926487867.7 | AX83: 943918581.7 | AY83: 928517381.9 | AZ83: 0 | BA83: 0 | BB83: 0 | BC83: 0 | BD83: 0 | BE83: 0 | BF83: 0 | BG83: 0 | BH83: 0 | BI83: 0
D84: Less: Operating Taxes | F84: USD | I84: =SUM(L84:XFD84) -> 7714663054 | L84: =L81 -> 0 | M84: =M81 -> 0 | N84: 3012499.753 | O84: 84704120.24 | P84: 166670583.3 | Q84: 170122808.3 | R84: 173008436.9 | S84: 156036304.5 | T84: 176819526.2 | U84: 175114661.9 | V84: 196846708.1 | W84: 198631163.2 | X84: 201351265.2 | Y84: 163566853.5 | Z84: 163046017.8 | AA84: 167895575.5 | AB84: 174165899.8 | AC84: 139818069 | AD84: 166106985.9 | AE84: 195094029 | AF84: 200317016.5 | AG84: 210504895.9 | AH84: 186575771.8 | AI84: 183898227 | AJ84: 178438620.7 | AK84: 198019498.5 | AL84: 205709655.4 | AM84: 216835069 | AN84: 224561618.9 | AO84: 235609217.6 | AP84: 239995202.1 | AQ84: 250960973.6 | AR84: 261644629.2 | AS84: 267618063.4 | AT84: 270855179.9 | AU84: 285816786.9 | AV84: 295090568.5 | AW84: 307861357.9 | AX84: 313787800.6 | AY84: 308551392.7 | AZ84: 0 | BA84: 0 | BB84: 0 | BC84: 0 | BD84: 0 | BE84: 0 | BF84: 0 | BG84: 0 | BH84: 0 | BI84: 0
D85: Free Cash Flow After Tax | F85: USD | I85: =SUM(L85:XFD85) -> 1.37940484e+10 | L85: =L83-L84 -> -79035000 | M85: =M83-M84 -> -628994000 | N85: -773125206.4 | O85: -142972354.8 | P85: 200998014.6 | Q85: 351251678.2 | R85: 356853192.7 | S85: 323907288.5 | T85: 364251189.6 | U85: 360941747.1 | V85: 403127483.8 | W85: 406591426.1 | X85: 411871624.1 | Y85: 338525413.2 | Z85: 337514379 | AA85: 346928226.4 | AB85: 359100032.4 | AC85: 292424831.4 | AD85: 343456258.4 | AE85: 399725224.4 | AF85: 409863964.8 | AG85: 429640436.5 | AH85: 383189784 | AI85: 377992196.9 | AJ85: 367394137.6 | AK85: 405404077 | AL85: 420332028.5 | AM85: 441928419.7 | AN85: 456927016.6 | AO85: 478372355.2 | AP85: 486886325.1 | AQ85: 508172822.7 | AR85: 528911683.5 | AS85: 540507173.6 | AT85: 546790988 | AU85: 575834107.3 | AV85: 593836153.9 | AW85: 618626509.8 | AX85: 630130781.1 | AY85: 619965989.2 | AZ85: 0 | BA85: 0 | BB85: 0 | BC85: 0 | BD85: 0 | BE85: 0 | BF85: 0 | BG85: 0 | BH85: 0 | BI85: 0
D87: Project IRR After Tax | F87: % | G87: =IFERROR(IRR(L85:BI85),FALSE) -> 0.1681258416
B89: Cash Flow Statement Pre-COD
C90: Operating Cash Flow Pre-COD
D91: Revenues | F91: USD | I91: =SUM(L91:XFD91) -> 1311691000 | L91: =L46*L7 -> 0 | M91: 0 | N91: 78524000 | O91: 429059000 | P91: 804108000 | Q91: 0 | R91: 0 | S91: 0 | T91: 0 | U91: 0 | V91: 0 | W91: 0 | X91: 0 | Y91: 0 | Z91: 0 | AA91: 0 | AB91: 0 | AC91: 0 | AD91: 0 | AE91: 0 | AF91: 0 | AG91: 0 | AH91: 0 | AI91: 0 | AJ91: 0 | AK91: 0 | AL91: 0 | AM91: 0 | AN91: 0 | AO91: 0 | AP91: 0 | AQ91: 0 | AR91: =AR46*AR7 -> 0 | AS91: 0 | AT91: 0 | AU91: 0 | AV91: 0 | AW91: 0 | AX91: 0 | AY91: 0 | AZ91: 0 | BA91: 0 | BB91: 0 | BC91: 0 | BD91: 0 | BE91: 0 | BF91: 0 | BG91: 0 | BH91: 0 | BI91: 0
D92: Operating Expenses | F92: USD | I92: =SUM(L92:XFD92) -> 563493343.4 | L92: =L57*L7 -> 0 | M92: 0 | N92: 69663706.61 | O92: 179929234.6 | P92: 313900402.2 | Q92: 0 | R92: 0 | S92: 0 | T92: 0 | U92: 0 | V92: 0 | W92: 0 | X92: 0 | Y92: 0 | Z92: 0 | AA92: 0 | AB92: 0 | AC92: 0 | AD92: 0 | AE92: 0 | AF92: 0 | AG92: 0 | AH92: 0 | AI92: 0 | AJ92: 0 | AK92: 0 | AL92: 0 | AM92: 0 | AN92: 0 | AO92: 0 | AP92: 0 | AQ92: 0 | AR92: =AR57*AR7 -> 0 | AS92: 0 | AT92: 0 | AU92: 0 | AV92: 0 | AW92: 0 | AX92: 0 | AY92: 0 | AZ92: 0 | BA92: 0 | BB92: 0 | BC92: 0 | BD92: 0 | BE92: 0 | BF92: 0 | BG92: 0 | BH92: 0 | BI92: 0
D93: EBITDA | F93: USD | I93: 748197656.6 | L93: =L91-L92 -> 0 | M93: =M91-M92 -> 0 | N93: 8860293.392 | O93: 249129765.4 | P93: 490207597.8 | Q93: 0 | R93: 0 | S93: 0 | T93: 0 | U93: 0 | V93: 0 | W93: 0 | X93: 0 | Y93: 0 | Z93: 0 | AA93: 0 | AB93: 0 | AC93: 0 | AD93: 0 | AE93: 0 | AF93: 0 | AG93: 0 | AH93: 0 | AI93: 0 | AJ93: 0 | AK93: 0 | AL93: 0 | AM93: 0 | AN93: 0 | AO93: 0 | AP93: 0 | AQ93: 0 | AR93: 0 | AS93: 0 | AT93: 0 | AU93: 0 | AV93: 0 | AW93: 0 | AX93: 0 | AY93: 0 | AZ93: 0 | BA93: 0 | BB93: 0 | BC93: 0 | BD93: 0 | BE93: 0 | BF93: 0 | BG93: 0 | BH93: 0 | BI93: 0
D94: Input Cash Flow | F94: USD | I94: 482913000 | L94: =Exhibit7!E28*1000 -> 0 | M94: 0 | N94: =Exhibit7!G28*1000 -> 4484000 | O94: =Exhibit7!H28*1000 -> 160948000 | P94: =Exhibit7!I28*1000 -> 317481000
C96: Financing Requirements and Financing Sources
D97: Direct Capital Expenditures | F97: USD | I97: =SUM(L97:XFD97) -> 1916939000 | L97: =L41 -> 79035000 | M97: 628994000 | N97: 778973000 | O97: 307398000 | P97: 122539000 | Q97: 0 | R97: 0 | S97: 0 | T97: 0 | U97: 0 | V97: 0 | W97: 0 | X97: 0 | Y97: 0 | Z97: 0 | AA97: 0 | AB97: 0 | AC97: 0 | AD97: 0 | AE97: 0 | AF97: 0 | AG97: 0 | AH97: 0 | AI97: 0 | AJ97: 0 | AK97: 0 | AL97: 0 | AM97: 0 | AN97: 0 | AO97: 0 | AP97: 0 | AQ97: 0 | AR97: =AR41 -> 0 | AS97: 0 | AT97: 0 | AU97: 0 | AV97: 0 | AW97: 0 | AX97: 0 | AY97: 0 | AZ97: 0 | BA97: 0 | BB97: 0 | BC97: 0 | BD97: 0 | BE97: 0 | BF97: 0 | BG97: 0 | BH97: 0 | BI97: 0
D98: Initial Cash Balance | F98: USD | I98: =SUM(L98:XFD98) -> 10000000 | L98: =InputS!I52 -> 0 | M98: =InputS!J52 -> 0 | N98: =InputS!K52 -> 10000000 | O98: =InputS!L52 -> 0 | P98: =InputS!M52 -> 0 | Q98: =InputS!N52 -> 0 | R98: =InputS!O52 -> 0 | S98: =InputS!P52 -> 0 | T98: =InputS!Q52 -> 0 | U98: =InputS!R52 -> 0 | V98: =InputS!S52 -> 0 | W98: =InputS!T52 -> 0 | X98: =InputS!U52 -> 0 | Y98: =InputS!V52 -> 0 | Z98: =InputS!W52 -> 0 | AA98: =InputS!X52 -> 0 | AB98: =InputS!Y52 -> 0 | AC98: =InputS!Z52 -> 0 | AD98: =InputS!AA52 -> 0 | AE98: =InputS!AB52 -> 0 | AF98: =InputS!AC52 -> 0 | AG98: =InputS!AD52 -> 0 | AH98: =InputS!AE52 -> 0 | AI98: =InputS!AF52 -> 0 | AJ98: =InputS!AG52 -> 0 | AK98: =InputS!AH52 -> 0 | AL98: =InputS!AI52 -> 0 | AM98: =InputS!AJ52 -> 0 | AN98: =InputS!AK52 -> 0 | AO98: =InputS!AL52 -> 0 | AP98: =InputS!AM52 -> 0 | AQ98: =InputS!AN52 -> 0 | AR98: =InputS!AO52 -> 0 | AS98: =InputS!AP52 -> 0 | AT98: =InputS!AQ52 -> 0 | AU98: =InputS!AR52 -> 0 | AV98: =InputS!AS52 -> 0 | AW98: =InputS!AT52 -> 0 | AX98: =InputS!AU52 -> 0 | AY98: =InputS!AV52 -> 0 | AZ98: =InputS!AW52 -> 0 | BA98: =InputS!AX52 -> 0 | BB98: =InputS!AY52 -> 0 | BC98: =InputS!AZ52 -> 0 | BD98: =InputS!BA52 -> 0 | BE98: =InputS!BB52 -> 0 | BF98: =InputS!BC52 -> 0 | BG98: =InputS!BD52 -> 0 | BH98: =InputS!BE52 -> 0 | BI98: =InputS!BF52 -> 0
D99: Financing Costs | F99: USD | I99: 354461000 | L99: =InputS!I53 -> 0 | M99: =InputS!J53 -> 61134000 | N99: =InputS!K53 -> 86816000 | O99: =InputS!L53 -> 94955000 | P99: =InputS!M53 -> 111556000 | Q99: =InputS!N53 -> 0 | R99: =InputS!O53 -> 0 | S99: =InputS!P53 -> 0 | T99: =InputS!Q53 -> 0 | U99: =InputS!R53 -> 0 | V99: =InputS!S53 -> 0 | W99: =InputS!T53 -> 0 | X99: =InputS!U53 -> 0 | Y99: =InputS!V53 -> 0 | Z99: =InputS!W53 -> 0 | AA99: =InputS!X53 -> 0 | AB99: =InputS!Y53 -> 0 | AC99: =InputS!Z53 -> 0 | AD99: =InputS!AA53 -> 0 | AE99: =InputS!AB53 -> 0 | AF99: =InputS!AC53 -> 0 | AG99: =InputS!AD53 -> 0 | AH99: =InputS!AE53 -> 0 | AI99: =InputS!AF53 -> 0 | AJ99: =InputS!AG53 -> 0 | AK99: =InputS!AH53 -> 0 | AL99: =InputS!AI53 -> 0 | AM99: =InputS!AJ53 -> 0 | AN99: =InputS!AK53 -> 0 | AO99: =InputS!AL53 -> 0 | AP99: =InputS!AM53 -> 0 | AQ99: =InputS!AN53 -> 0 | AR99: =InputS!AO53 -> 0 | AS99: =InputS!AP53 -> 0 | AT99: =InputS!AQ53 -> 0 | AU99: =InputS!AR53 -> 0 | AV99: =InputS!AS53 -> 0 | AW99: =InputS!AT53 -> 0 | AX99: =InputS!AU53 -> 0 | AY99: =InputS!AV53 -> 0 | AZ99: =InputS!AW53 -> 0 | BA99: =InputS!AX53 -> 0 | BB99: =InputS!AY53 -> 0 | BC99: =InputS!AZ53 -> 0 | BD99: =InputS!BA53 -> 0 | BE99: =InputS!BB53 -> 0 | BF99: =InputS!BC53 -> 0 | BG99: =InputS!BD53 -> 0 | BH99: =InputS!BE53 -> 0 | BI99: =InputS!BF53 -> 0
D100: Legal & Advisory Fees | F100: USD | I100: 15000000 | L100: =InputS!I54 -> 0 | M100: =InputS!J54 -> 15000000 | N100: =InputS!K54 -> 0 | O100: =InputS!L54 -> 0 | P100: =InputS!M54 -> 0 | Q100: =InputS!N54 -> 0 | R100: =InputS!O54 -> 0 | S100: =InputS!P54 -> 0 | T100: =InputS!Q54 -> 0 | U100: =InputS!R54 -> 0 | V100: =InputS!S54 -> 0 | W100: =InputS!T54 -> 0 | X100: =InputS!U54 -> 0 | Y100: =InputS!V54 -> 0 | Z100: =InputS!W54 -> 0 | AA100: =InputS!X54 -> 0 | AB100: =InputS!Y54 -> 0 | AC100: =InputS!Z54 -> 0 | AD100: =InputS!AA54 -> 0 | AE100: =InputS!AB54 -> 0 | AF100: =InputS!AC54 -> 0 | AG100: =InputS!AD54 -> 0 | AH100: =InputS!AE54 -> 0 | AI100: =InputS!AF54 -> 0 | AJ100: =InputS!AG54 -> 0 | AK100: =InputS!AH54 -> 0 | AL100: =InputS!AI54 -> 0 | AM100: =InputS!AJ54 -> 0 | AN100: =InputS!AK54 -> 0 | AO100: =InputS!AL54 -> 0 | AP100: =InputS!AM54 -> 0 | AQ100: =InputS!AN54 -> 0 | AR100: =InputS!AO54 -> 0 | AS100: =InputS!AP54 -> 0 | AT100: =InputS!AQ54 -> 0 | AU100: =InputS!AR54 -> 0 | AV100: =InputS!AS54 -> 0 | AW100: =InputS!AT54 -> 0 | AX100: =InputS!AU54 -> 0 | AY100: =InputS!AV54 -> 0 | AZ100: =InputS!AW54 -> 0 | BA100: =InputS!AX54 -> 0 | BB100: =InputS!AY54 -> 0 | BC100: =InputS!AZ54 -> 0 | BD100: =InputS!BA54 -> 0 | BE100: =InputS!BB54 -> 0 | BF100: =InputS!BC54 -> 0 | BG100: =InputS!BD54 -> 0 | BH100: =InputS!BE54 -> 0 | BI100: =InputS!BF54 -> 0
D101: Debt Service Reserve | F101: USD | I101: 80865000 | L101: =InputS!I55 -> 0 | M101: =InputS!J55 -> 0 | N101: =InputS!K55 -> 0 | O101: =InputS!L55 -> 0 | P101: =InputS!M55 -> 80865000 | Q101: =InputS!N55 -> 0 | R101: =InputS!O55 -> 0 | S101: =InputS!P55 -> 0 | T101: =InputS!Q55 -> 0 | U101: =InputS!R55 -> 0 | V101: =InputS!S55 -> 0 | W101: =InputS!T55 -> 0 | X101: =InputS!U55 -> 0 | Y101: =InputS!V55 -> 0 | Z101: =InputS!W55 -> 0 | AA101: =InputS!X55 -> 0 | AB101: =InputS!Y55 -> 0 | AC101: =InputS!Z55 -> 0 | AD101: =InputS!AA55 -> 0 | AE101: =InputS!AB55 -> 0 | AF101: =InputS!AC55 -> 0 | AG101: =InputS!AD55 -> 0 | AH101: =InputS!AE55 -> 0 | AI101: =InputS!AF55 -> 0 | AJ101: =InputS!AG55 -> 0 | AK101: =InputS!AH55 -> 0 | AL101: =InputS!AI55 -> 0 | AM101: =InputS!AJ55 -> 0 | AN101: =InputS!AK55 -> 0 | AO101: =InputS!AL55 -> 0 | AP101: =InputS!AM55 -> 0 | AQ101: =InputS!AN55 -> 0 | AR101: =InputS!AO55 -> 0 | AS101: =InputS!AP55 -> 0 | AT101: =InputS!AQ55 -> 0 | AU101: =InputS!AR55 -> 0 | AV101: =InputS!AS55 -> 0 | AW101: =InputS!AT55 -> 0 | AX101: =InputS!AU55 -> 0 | AY101: =InputS!AV55 -> 0 | AZ101: =InputS!AW55 -> 0 | BA101: =InputS!AX55 -> 0 | BB101: =InputS!AY55 -> 0 | BC101: =InputS!AZ55 -> 0 | BD101: =InputS!BA55 -> 0 | BE101: =InputS!BB55 -> 0 | BF101: =InputS!BC55 -> 0 | BG101: =InputS!BD55 -> 0 | BH101: =InputS!BE55 -> 0 | BI101: =InputS!BF55 -> 0
D102: Total Funding Needs | F102: USD | I102: =SUM(I97:I101) -> 2377265000 | L102: =SUM(L97:L101) -> 79035000 | M102: =SUM(M97:M101) -> 705128000 | N102: 875789000 | O102: 402353000 | P102: 314960000 | Q102: 0 | R102: 0 | S102: 0 | T102: 0 | U102: 0 | V102: 0 | W102: 0 | X102: 0 | Y102: 0 | Z102: 0 | AA102: 0 | AB102: 0 | AC102: 0 | AD102: 0 | AE102: 0 | AF102: 0 | AG102: 0 | AH102: 0 | AI102: 0 | AJ102: 0 | AK102: 0 | AL102: 0 | AM102: 0 | AN102: 0 | AO102: 0 | AP102: 0 | AQ102: 0 | AR102: 0 | AS102: 0 | AT102: 0 | AU102: 0 | AV102: 0 | AW102: 0 | AX102: 0 | AY102: 0 | AZ102: 0 | BA102: 0 | BB102: 0 | BC102: 0 | BD102: 0 | BE102: 0 | BF102: 0 | BG102: 0 | BH102: 0 | BI102: 0
C104: Funding Sources
D105: Operating Cash Flow | F105: USD | I105: =SUM(L105:XFD105) -> 482913000 | L105: =L94 -> 0 | M105: =M94 -> 0 | N105: 4484000 | O105: 160948000 | P105: 317481000 | Q105: =Q93 -> 0 | R105: 0 | S105: 0 | T105: 0 | U105: 0 | V105: 0 | W105: 0 | X105: 0 | Y105: 0 | Z105: 0 | AA105: 0 | AB105: 0 | AC105: 0 | AD105: 0 | AE105: 0 | AF105: 0 | AG105: 0 | AH105: 0 | AI105: 0 | AJ105: 0 | AK105: 0 | AL105: 0 | AM105: 0 | AN105: 0 | AO105: 0 | AP105: 0 | AQ105: 0 | AR105: 0 | AS105: 0 | AT105: 0 | AU105: 0 | AV105: 0 | AW105: 0 | AX105: 0 | AY105: 0 | AZ105: 0 | BA105: 0 | BB105: 0 | BC105: 0 | BD105: 0 | BE105: 0 | BF105: 0 | BG105: 0 | BH105: 0 | BI105: 0
D106: Required External Financing | F106: USD | I106: =SUM(L106:XFD106) -> 1894352000 | L106: =L102-L105 -> 79035000 | M106: =M102-M105 -> 705128000 | N106: 871305000 | O106: 241405000 | P106: -2521000 | Q106: 0 | R106: 0 | S106: 0 | T106: 0 | U106: 0 | V106: 0 | W106: 0 | X106: 0 | Y106: 0 | Z106: 0 | AA106: 0 | AB106: 0 | AC106: 0 | AD106: 0 | AE106: 0 | AF106: 0 | AG106: 0 | AH106: 0 | AI106: 0 | AJ106: 0 | AK106: 0 | AL106: 0 | AM106: 0 | AN106: 0 | AO106: 0 | AP106: 0 | AQ106: 0 | AR106: 0 | AS106: 0 | AT106: 0 | AU106: 0 | AV106: 0 | AW106: 0 | AX106: 0 | AY106: 0 | AZ106: 0 | BA106: 0 | BB106: 0 | BC106: 0 | BD106: 0 | BE106: 0 | BF106: 0 | BG106: 0 | BH106: 0 | BI106: 0
D108: Debt Funding | F108: USD | I108: =SUM(L108:XFD108) -> 1450000000 | L108: =InputS!I60 -> 0 | M108: =InputS!J60 -> 1000000000 | N108: =InputS!K60 -> 24299000 | O108: =InputS!L60 -> 242981000 | P108: =InputS!M60 -> 182720000 | Q108: =InputS!N60 -> 0 | R108: =InputS!O60 -> 0 | S108: =InputS!P60 -> 0 | T108: =InputS!Q60 -> 0 | U108: =InputS!R60 -> 0 | V108: =InputS!S60 -> 0 | W108: =InputS!T60 -> 0 | X108: =InputS!U60 -> 0 | Y108: =InputS!V60 -> 0 | Z108: =InputS!W60 -> 0 | AA108: =InputS!X60 -> 0 | AB108: =InputS!Y60 -> 0 | AC108: =InputS!Z60 -> 0 | AD108: =InputS!AA60 -> 0 | AE108: =InputS!AB60 -> 0 | AF108: =InputS!AC60 -> 0 | AG108: =InputS!AD60 -> 0 | AH108: =InputS!AE60 -> 0 | AI108: =InputS!AF60 -> 0 | AJ108: =InputS!AG60 -> 0 | AK108: =InputS!AH60 -> 0 | AL108: =InputS!AI60 -> 0 | AM108: =InputS!AJ60 -> 0 | AN108: =InputS!AK60 -> 0 | AO108: =InputS!AL60 -> 0 | AP108: =InputS!AM60 -> 0 | AQ108: =InputS!AN60 -> 0 | AR108: =InputS!AO60 -> 0 | AS108: =InputS!AP60 -> 0 | AT108: =InputS!AQ60 -> 0 | AU108: =InputS!AR60 -> 0 | AV108: =InputS!AS60 -> 0 | AW108: =InputS!AT60 -> 0 | AX108: =InputS!AU60 -> 0 | AY108: =InputS!AV60 -> 0 | AZ108: =InputS!AW60 -> 0 | BA108: =InputS!AX60 -> 0 | BB108: =InputS!AY60 -> 0 | BC108: =InputS!AZ60 -> 0 | BD108: =InputS!BA60 -> 0 | BE108: =InputS!BB60 -> 0 | BF108: =InputS!BC60 -> 0 | BG108: =InputS!BD60 -> 0 | BH108: =InputS!BE60 -> 0 | BI108: =InputS!BF60 -> 0
D109: Equity Funded | F109: USD | I109: =SUM(L109:XFD109) -> 444352000 | L109: =InputS!I57+InputS!I58 -> 79035000 | M109: =InputS!J57+InputS!J58 -> 1986000 | N109: =InputS!K57+InputS!K58 -> 550148000 | O109: =O106-O108-N113 -> -1576000 | P109: =P106-P108-O113 -> -185241000
D110: Total Debt and Equity | F110: USD | I110: =SUM(L110:XFD110) -> 1894352000 | L110: =L108+L109 -> 79035000 | M110: =M108+M109 -> 1001986000 | N110: 574447000 | O110: 241405000 | P110: -2521000
D112: Difference - Cash Flow | F112: USD | I112: =SUM(L112:XFD112) -> 0 | L112: =L110-L106 -> 0 | M112: =M110-M106 -> 296858000 | N112: -296858000 | O112: 0 | P112: 0
D113: Accumulated Cash Flow Pre-COD | F113: USD | I113: =SUM(L113:XFD113) -> 296858000 | L113: =K113+L112 -> 0 | M113: =L113+M112 -> 296858000 | N113: 0 | O113: 0 | P113: 0
B115: Debt Schedule
C117: Debt Balance | F117: USD | L117: =K117+L108 -> 0 | M117: =L117+M108 -> 1000000000 | N117: 1024299000 | O117: 1267280000 | P117: 1450000000 | Q117: 1450000000 | R117: 1450000000 | S117: 1450000000 | T117: 1450000000 | U117: 1450000000 | V117: 1450000000 | W117: 1450000000 | X117: 1450000000 | Y117: 1450000000 | Z117: 1450000000 | AA117: 1450000000 | AB117: 1450000000 | AC117: 1450000000 | AD117: 1450000000 | AE117: 1450000000 | AF117: 1450000000 | AG117: 1450000000 | AH117: 1450000000 | AI117: 1450000000 | AJ117: 1450000000 | AK117: 1450000000 | AL117: 1450000000 | AM117: 1450000000 | AN117: 1450000000 | AO117: 1450000000 | AP117: 1450000000 | AQ117: 1450000000 | AR117: 1450000000 | AS117: 1450000000 | AT117: 1450000000 | AU117: 1450000000 | AV117: 1450000000 | AW117: 1450000000 | AX117: 1450000000 | AY117: 1450000000 | AZ117: 1450000000 | BA117: 1450000000 | BB117: 1450000000 | BC117: 1450000000 | BD117: 1450000000 | BE117: 1450000000 | BF117: 1450000000 | BG117: 1450000000 | BH117: 1450000000 | BI117: 1450000000
C118: Debt Repayment Percent | F118: % | I118: =SUM(L118:XFD118) -> 1 | L118: =InputS!I62 -> 0 | M118: =InputS!J62 -> 0 | N118: =InputS!K62 -> 0 | O118: =InputS!L62 -> 0 | P118: =InputS!M62 -> 0 | Q118: =InputS!N62 -> 0.02682 | R118: =InputS!O62 -> 0.02682 | S118: =InputS!P62 -> 0.02682 | T118: =InputS!Q62 -> 0.04446689655 | U118: =InputS!R62 -> 0.05602896552 | V118: =InputS!S62 -> 0.06941586207 | W118: =InputS!T62 -> 0.07550137931 | X118: =InputS!U62 -> 0.0882262069 | Y118: =InputS!V62 -> 0.06511655172 | Z118: =InputS!W62 -> 0.05931034483 | AA118: =InputS!X62 -> 0.07034482759 | AB118: =InputS!Y62 -> 0.08137931034 | AC118: =InputS!Z62 -> 0.03272275862 | AD118: =InputS!AA62 -> 0.03686068966 | AE118: =InputS!AB62 -> 0.06634965517 | AF118: =InputS!AC62 -> 0.0810937931 | AG118: =InputS!AD62 -> 0.04099862069 | AH118: =InputS!AE62 -> 0 | AI118: =InputS!AF62 -> 0 | AJ118: =InputS!AG62 -> 0 | AK118: =InputS!AH62 -> 0 | AL118: =InputS!AI62 -> 0.05172413793 | AM118: =InputS!AJ62 -> 0 | AN118: =InputS!AK62 -> 0 | AO118: =InputS!AL62 -> 0 | AP118: =InputS!AM62 -> 0 | AQ118: =InputS!AN62 -> 0 | AR118: =InputS!AO62 -> 0 | AS118: =InputS!AP62 -> 0 | AT118: =InputS!AQ62 -> 0 | AU118: =InputS!AR62 -> 0 | AV118: =InputS!AS62 -> 0 | AW118: =InputS!AT62 -> 0 | AX118: =InputS!AU62 -> 0 | AY118: =InputS!AV62 -> 0 | AZ118: =InputS!AW62 -> 0 | BA118: =InputS!AX62 -> 0 | BB118: =InputS!AY62 -> 0 | BC118: =InputS!AZ62 -> 0 | BD118: =InputS!BA62 -> 0 | BE118: =InputS!BB62 -> 0 | BF118: =InputS!BC62 -> 0 | BG118: =InputS!BD62 -> 0 | BH118: =InputS!BE62 -> 0 | BI118: =InputS!BF62 -> 0
C119: Debt Repayment | F119: USD | I119: =SUM(L119:XFD119) -> 1450000000 | L119: =L117*L118 -> 0 | M119: =M117*M118 -> 0 | N119: 0 | O119: 0 | P119: 0 | Q119: 38889000 | R119: 38889000 | S119: 38889000 | T119: 64477000 | U119: 81242000 | V119: 100653000 | W119: 109477000 | X119: 127928000 | Y119: 94419000 | Z119: 86000000 | AA119: 102000000 | AB119: 118000000 | AC119: 47448000 | AD119: 53448000 | AE119: 96207000 | AF119: 117586000 | AG119: 59448000 | AH119: 0 | AI119: 0 | AJ119: 0 | AK119: 0 | AL119: 75000000 | AM119: 0 | AN119: 0 | AO119: 0 | AP119: 0 | AQ119: 0 | AR119: 0 | AS119: 0 | AT119: 0 | AU119: 0 | AV119: 0 | AW119: 0 | AX119: 0 | AY119: 0 | AZ119: 0 | BA119: 0 | BB119: 0 | BC119: 0 | BD119: 0 | BE119: 0 | BF119: 0 | BG119: 0 | BH119: 0 | BI119: 0
C121: Debt Balance and Interest
D122: Opening Balance | F122: USD | L122: =K125 -> 0 | M122: =L125 -> 0 | N122: 1000000000 | O122: 1024299000 | P122: 1267280000 | Q122: 1450000000 | R122: 1411111000 | S122: 1372222000 | T122: 1333333000 | U122: 1268856000 | V122: 1187614000 | W122: 1086961000 | X122: 977484000 | Y122: 849556000 | Z122: 755137000 | AA122: 669137000 | AB122: 567137000 | AC122: 449137000 | AD122: 401689000 | AE122: 348241000 | AF122: 252034000 | AG122: 134448000 | AH122: 75000000 | AI122: 75000000 | AJ122: 75000000 | AK122: 75000000 | AL122: 75000000 | AM122: 0 | AN122: 0 | AO122: 0 | AP122: 0 | AQ122: 0 | AR122: 0 | AS122: 0 | AT122: 0 | AU122: 0 | AV122: 0 | AW122: 0 | AX122: 0 | AY122: 0 | AZ122: 0 | BA122: 0 | BB122: 0 | BC122: 0 | BD122: 0 | BE122: 0 | BF122: 0 | BG122: 0 | BH122: 0 | BI122: 0
D123: Add: Debt Draw | F123: USD | I123: =SUM(L123:XFD123) -> 1450000000 | L123: =L108 -> 0 | M123: =M108 -> 1000000000 | N123: 24299000 | O123: 242981000 | P123: 182720000 | Q123: 0 | R123: 0 | S123: 0 | T123: 0 | U123: 0 | V123: 0 | W123: 0 | X123: 0 | Y123: 0 | Z123: 0 | AA123: 0 | AB123: 0 | AC123: 0 | AD123: 0 | AE123: 0 | AF123: 0 | AG123: 0 | AH123: 0 | AI123: 0 | AJ123: 0 | AK123: 0 | AL123: 0 | AM123: 0 | AN123: 0 | AO123: 0 | AP123: 0 | AQ123: 0 | AR123: 0 | AS123: 0 | AT123: 0 | AU123: 0 | AV123: 0 | AW123: 0 | AX123: 0 | AY123: 0 | AZ123: 0 | BA123: 0 | BB123: 0 | BC123: 0 | BD123: 0 | BE123: 0 | BF123: 0 | BG123: 0 | BH123: 0 | BI123: 0
D124: Less: Debt Repayment | F124: USD | I124: =SUM(L124:XFD124) -> 1450000000 | L124: =L119 -> 0 | M124: =M119 -> 0 | N124: 0 | O124: 0 | P124: 0 | Q124: 38889000 | R124: 38889000 | S124: 38889000 | T124: 64477000 | U124: 81242000 | V124: 100653000 | W124: 109477000 | X124: 127928000 | Y124: 94419000 | Z124: 86000000 | AA124: 102000000 | AB124: 118000000 | AC124: 47448000 | AD124: 53448000 | AE124: 96207000 | AF124: 117586000 | AG124: 59448000 | AH124: 0 | AI124: 0 | AJ124: 0 | AK124: 0 | AL124: 75000000 | AM124: 0 | AN124: 0 | AO124: 0 | AP124: 0 | AQ124: 0 | AR124: 0 | AS124: 0 | AT124: 0 | AU124: 0 | AV124: 0 | AW124: 0 | AX124: 0 | AY124: 0 | AZ124: 0 | BA124: 0 | BB124: 0 | BC124: 0 | BD124: 0 | BE124: 0 | BF124: 0 | BG124: 0 | BH124: 0 | BI124: 0
D125: Closing Balance | F125: USD | L125: =L122+L123-L124 -> 0 | M125: =M122+M123-M124 -> 1000000000 | N125: 1024299000 | O125: 1267280000 | P125: 1450000000 | Q125: 1411111000 | R125: 1372222000 | S125: 1333333000 | T125: 1268856000 | U125: 1187614000 | V125: 1086961000 | W125: 977484000 | X125: 849556000 | Y125: 755137000 | Z125: 669137000 | AA125: 567137000 | AB125: 449137000 | AC125: 401689000 | AD125: 348241000 | AE125: 252034000 | AF125: 134448000 | AG125: 75000000 | AH125: 75000000 | AI125: 75000000 | AJ125: 75000000 | AK125: 75000000 | AL125: 0 | AM125: 0 | AN125: 0 | AO125: 0 | AP125: 0 | AQ125: 0 | AR125: 0 | AS125: 0 | AT125: 0 | AU125: 0 | AV125: 0 | AW125: 0 | AX125: 0 | AY125: 0 | AZ125: 0 | BA125: 0 | BB125: 0 | BC125: 0 | BD125: 0 | BE125: 0 | BF125: 0 | BG125: 0 | BH125: 0 | BI125: 0
D127: Interest Rate | F127: % | L127: =InputS!I64 -> 0 | M127: =InputS!J64 -> 0.122268 | N127: =InputS!K64 -> 0.08577389012 | O127: =InputS!L64 -> 0.08287298845 | P127: =InputS!M64 -> 0.08210857917 | Q127: =InputS!N64 -> 0.08530462467 | R127: =InputS!O64 -> 0.0853688725 | S127: =InputS!P64 -> 0.08543681426 | T127: =InputS!Q64 -> 0.08644414376 | U127: =InputS!R64 -> 0.08692717599 | V127: =InputS!S64 -> 0.08762428146 | W127: =InputS!T64 -> 0.08886359288 | X127: =InputS!U64 -> 0.09000897627 | Y127: =InputS!V64 -> 0.08939903147 | Z127: =InputS!W64 -> 0.09050926999 | AA127: =InputS!X64 -> 0.09120470058 | AB127: =InputS!Y64 -> 0.09242389356 | AC127: =InputS!Z64 -> 0.08984210638 | AD127: =InputS!AA64 -> 0.09055511848 | AE127: =InputS!AB64 -> 0.09451001624 | AF127: =InputS!AC64 -> 0.1009982354 | AG127: =InputS!AD64 -> 0.08826057064 | AH127: =InputS!AE64 -> 0.08870666667 | AI127: =InputS!AF64 -> 0.08870666667 | AJ127: =InputS!AG64 -> 0.08870666667 | AK127: =InputS!AH64 -> 0.08870666667 | AL127: =InputS!AI64 -> 0.1774133333 | AM127: =InputS!AJ64 -> 0 | AN127: =InputS!AK64 -> 0 | AO127: =InputS!AL64 -> 0 | AP127: =InputS!AM64 -> 0 | AQ127: =InputS!AN64 -> 0 | AR127: =InputS!AO64 -> 0 | AS127: =InputS!AP64 -> 0 | AT127: =InputS!AQ64 -> 0 | AU127: =InputS!AR64 -> 0 | AV127: =InputS!AS64 -> 0 | AW127: =InputS!AT64 -> 0 | AX127: =InputS!AU64 -> 0 | AY127: =InputS!AV64 -> 0 | AZ127: =InputS!AW64 -> 0 | BA127: =InputS!AX64 -> 0 | BB127: =InputS!AY64 -> 0 | BC127: =InputS!AZ64 -> 0 | BD127: =InputS!BA64 -> 0 | BE127: =InputS!BB64 -> 0 | BF127: =InputS!BC64 -> 0 | BG127: =InputS!BD64 -> 0 | BH127: =InputS!BE64 -> 0 | BI127: =InputS!BF64 -> 0
D128: Interest Expense | F128: USD | L128: =L127*L122 -> 0 | M128: =M127*M122 -> 0 | N128: 85773890.12 | O128: 84886719.2 | P128: 104054560.2 | Q128: 123691705.8 | R128: 120464955 | S128: 117238276.1 | T128: 115258829.5 | U128: 110298068.8 | V128: 104063823.4 | W128: 96591259.78 | X128: 87982334.16 | Y128: 75949483.58 | Z128: 68346898.61 | AA128: 61028439.73 | AB128: 52417009.72 | AC128: 40351414.13 | AD128: 36374994.99 | AE128: 32912262.57 | AF128: 25454989.25 | AG128: 11866457.2 | AH128: 6653000 | AI128: 6653000 | AJ128: 6653000 | AK128: 6653000 | AL128: 13306000 | AM128: 0 | AN128: 0 | AO128: 0 | AP128: 0 | AQ128: 0 | AR128: 0 | AS128: 0 | AT128: 0 | AU128: 0 | AV128: 0 | AW128: 0 | AX128: 0 | AY128: 0 | AZ128: 0 | BA128: 0 | BB128: 0 | BC128: 0 | BD128: 0 | BE128: 0 | BF128: 0 | BG128: 0 | BH128: 0 | BI128: 0
D129: Interest During Construction | F129: USD | L129: =L128*L7 -> 0 | M129: 0 | N129: 85773890.12 | O129: 84886719.2 | P129: 104054560.2 | Q129: 0 | R129: 0 | S129: 0 | T129: 0 | U129: 0 | V129: 0 | W129: 0 | X129: 0 | Y129: 0 | Z129: 0 | AA129: 0 | AB129: 0 | AC129: 0 | AD129: 0 | AE129: 0 | AF129: 0 | AG129: 0 | AH129: 0 | AI129: 0 | AJ129: 0 | AK129: 0 | AL129: 0 | AM129: 0 | AN129: 0 | AO129: 0 | AP129: 0 | AQ129: 0 | AR129: =AR128*AR7 -> 0 | AS129: 0 | AT129: 0 | AU129: 0 | AV129: 0 | AW129: 0 | AX129: 0 | AY129: 0 | AZ129: 0 | BA129: 0 | BB129: 0 | BC129: 0 | BD129: 0 | BE129: 0 | BF129: 0 | BG129: 0 | BH129: 0 | BI129: 0
D130: Interest During Operation | F130: USD | L130: =L128*L8 -> 0 | M130: 0 | N130: 0 | O130: 0 | P130: 0 | Q130: 123691705.8 | R130: 120464955 | S130: 117238276.1 | T130: 115258829.5 | U130: 110298068.8 | V130: 104063823.4 | W130: 96591259.78 | X130: 87982334.16 | Y130: 75949483.58 | Z130: 68346898.61 | AA130: 61028439.73 | AB130: 52417009.72 | AC130: 40351414.13 | AD130: 36374994.99 | AE130: 32912262.57 | AF130: 25454989.25 | AG130: 11866457.2 | AH130: 6653000 | AI130: 6653000 | AJ130: 6653000 | AK130: 6653000 | AL130: 13306000 | AM130: 0 | AN130: 0 | AO130: 0 | AP130: 0 | AQ130: 0 | AR130: =AR128*AR8 -> 0 | AS130: 0 | AT130: 0 | AU130: 0 | AV130: 0 | AW130: 0 | AX130: 0 | AY130: 0 | AZ130: 0 | BA130: 0 | BB130: 0 | BC130: 0 | BD130: 0 | BE130: 0 | BF130: 0 | BG130: 0 | BH130: 0 | BI130: 0
C132: DSRA Balance | F132: USD
D133: Opening Balance | F133: USD | L133: =K136 -> 0 | M133: =L136 -> 0 | N133: 0 | O133: 0 | P133: 0 | Q133: 80865000 | R133: 79251000 | S133: 77637000 | T133: 89146000 | U133: 94846000 | V133: 101191000 | W133: 101741000 | X133: 106412000 | Y133: 95789000 | Z133: 76194000 | AA133: 80329000 | AB133: 83767000 | AC133: 43350000 | AD133: 44283000 | AE133: 63334000 | AF133: 69832000 | AG133: 65364000 | AH133: 3326000 | AI133: 3326000 | AJ133: 3326000 | AK133: 3326000 | AL133: 3326000 | AM133: 0 | AN133: 0 | AO133: 0 | AP133: 0 | AQ133: 0 | AR133: 0 | AS133: 0 | AT133: 0 | AU133: 0 | AV133: 0 | AW133: 0 | AX133: 0 | AY133: 0 | AZ133: 0 | BA133: 0 | BB133: 0 | BC133: 0 | BD133: 0 | BE133: 0 | BF133: 0 | BG133: 0 | BH133: 0 | BI133: 0
D134: Add: Deposits to Reserve | F134: USD | I134: =SUM(L134:XFD134) -> 80865000 | L134: =InputS!I66*'Financial Model'!L7*-1 -> 0 | M134: =InputS!J66*'Financial Model'!M7*-1 -> 0 | N134: =InputS!K66*'Financial Model'!N7*-1 -> 0 | O134: =InputS!L66*'Financial Model'!O7*-1 -> 0 | P134: =InputS!M66*'Financial Model'!P7*-1 -> 80865000 | Q134: =InputS!N66*'Financial Model'!Q7*-1 -> 0 | R134: =InputS!O66*'Financial Model'!R7*-1 -> 0 | S134: =InputS!P66*'Financial Model'!S7*-1 -> 0 | T134: =InputS!Q66*'Financial Model'!T7*-1 -> 0 | U134: =InputS!R66*'Financial Model'!U7*-1 -> 0 | V134: =InputS!S66*'Financial Model'!V7*-1 -> 0 | W134: =InputS!T66*'Financial Model'!W7*-1 -> 0 | X134: =InputS!U66*'Financial Model'!X7*-1 -> 0 | Y134: =InputS!V66*'Financial Model'!Y7*-1 -> 0 | Z134: =InputS!W66*'Financial Model'!Z7*-1 -> 0 | AA134: =InputS!X66*'Financial Model'!AA7*-1 -> 0 | AB134: =InputS!Y66*'Financial Model'!AB7*-1 -> 0 | AC134: =InputS!Z66*'Financial Model'!AC7*-1 -> 0 | AD134: =InputS!AA66*'Financial Model'!AD7*-1 -> 0 | AE134: =InputS!AB66*'Financial Model'!AE7*-1 -> 0 | AF134: =InputS!AC66*'Financial Model'!AF7*-1 -> 0 | AG134: =InputS!AD66*'Financial Model'!AG7*-1 -> 0 | AH134: =InputS!AE66*'Financial Model'!AH7*-1 -> 0 | AI134: =InputS!AF66*'Financial Model'!AI7*-1 -> 0 | AJ134: =InputS!AG66*'Financial Model'!AJ7*-1 -> 0 | AK134: =InputS!AH66*'Financial Model'!AK7*-1 -> 0 | AL134: =InputS!AI66*'Financial Model'!AL7*-1 -> 0 | AM134: =InputS!AJ66*'Financial Model'!AM7*-1 -> 0 | AN134: =InputS!AK66*'Financial Model'!AN7*-1 -> 0 | AO134: =InputS!AL66*'Financial Model'!AO7*-1 -> 0 | AP134: =InputS!AM66*'Financial Model'!AP7*-1 -> 0 | AQ134: =InputS!AN66*'Financial Model'!AQ7*-1 -> 0 | AR134: =InputS!AO66*'Financial Model'!AR7*-1 -> 0 | AS134: =InputS!AP66*'Financial Model'!AS7*-1 -> 0 | AT134: =InputS!AQ66*'Financial Model'!AT7*-1 -> 0 | AU134: =InputS!AR66*'Financial Model'!AU7*-1 -> 0 | AV134: =InputS!AS66*'Financial Model'!AV7*-1 -> 0 | AW134: =InputS!AT66*'Financial Model'!AW7*-1 -> 0 | AX134: =InputS!AU66*'Financial Model'!AX7*-1 -> 0 | AY134: =InputS!AV66*'Financial Model'!AY7*-1 -> 0 | AZ134: =InputS!AW66*'Financial Model'!AZ7*-1 -> 0 | BA134: =InputS!AX66*'Financial Model'!BA7*-1 -> 0 | BB134: =InputS!AY66*'Financial Model'!BB7*-1 -> 0 | BC134: =InputS!AZ66*'Financial Model'!BC7*-1 -> 0 | BD134: =InputS!BA66*'Financial Model'!BD7*-1 -> 0 | BE134: =InputS!BB66*'Financial Model'!BE7*-1 -> 0 | BF134: =InputS!BC66*'Financial Model'!BF7*-1 -> 0 | BG134: =InputS!BD66*'Financial Model'!BG7*-1 -> 0 | BH134: =InputS!BE66*'Financial Model'!BH7*-1 -> 0 | BI134: =InputS!BF66*'Financial Model'!BI7*-1 -> 0
D135: Less: Changes post COD | F135: USD | I135: =SUM(L135:XFD135) -> 80865000 | L135: =MIN(InputS!I66*'Financial Model'!L8,L133) -> 0 | M135: =MIN(InputS!J66*'Financial Model'!M8,M133) -> 0 | N135: =MIN(InputS!K66*'Financial Model'!N8,N133) -> 0 | O135: =MIN(InputS!L66*'Financial Model'!O8,O133) -> 0 | P135: =MIN(InputS!M66*'Financial Model'!P8,P133) -> 0 | Q135: =MIN(InputS!N66*'Financial Model'!Q8,Q133) -> 1614000 | R135: =MIN(InputS!O66*'Financial Model'!R8,R133) -> 1614000 | S135: =MIN(InputS!P66*'Financial Model'!S8,S133) -> -11509000 | T135: =MIN(InputS!Q66*'Financial Model'!T8,T133) -> -5700000 | U135: =MIN(InputS!R66*'Financial Model'!U8,U133) -> -6345000 | V135: =MIN(InputS!S66*'Financial Model'!V8,V133) -> -550000 | W135: =MIN(InputS!T66*'Financial Model'!W8,W133) -> -4671000 | X135: =MIN(InputS!U66*'Financial Model'!X8,X133) -> 10623000 | Y135: =MIN(InputS!V66*'Financial Model'!Y8,Y133) -> 19595000 | Z135: =MIN(InputS!W66*'Financial Model'!Z8,Z133) -> -4135000 | AA135: =MIN(InputS!X66*'Financial Model'!AA8,AA133) -> -3438000 | AB135: =MIN(InputS!Y66*'Financial Model'!AB8,AB133) -> 40417000 | AC135: =MIN(InputS!Z66*'Financial Model'!AC8,AC133) -> -933000 | AD135: =MIN(InputS!AA66*'Financial Model'!AD8,AD133) -> -19051000 | AE135: =MIN(InputS!AB66*'Financial Model'!AE8,AE133) -> -6498000 | AF135: =MIN(InputS!AC66*'Financial Model'!AF8,AF133) -> 4468000 | AG135: =MIN(InputS!AD66*'Financial Model'!AG8,AG133) -> 62038000 | AH135: =MIN(InputS!AE66*'Financial Model'!AH8,AH133) -> 0 | AI135: =MIN(InputS!AF66*'Financial Model'!AI8,AI133) -> 0 | AJ135: =MIN(InputS!AG66*'Financial Model'!AJ8,AJ133) -> 0 | AK135: =MIN(InputS!AH66*'Financial Model'!AK8,AK133) -> 0 | AL135: =MIN(InputS!AI66*'Financial Model'!AL8,AL133) -> 3326000 | AM135: =MIN(InputS!AJ66*'Financial Model'!AM8,AM133) -> 0 | AN135: =MIN(InputS!AK66*'Financial Model'!AN8,AN133) -> 0 | AO135: =MIN(InputS!AL66*'Financial Model'!AO8,AO133) -> 0 | AP135: =MIN(InputS!AM66*'Financial Model'!AP8,AP133) -> 0 | AQ135: =MIN(InputS!AN66*'Financial Model'!AQ8,AQ133) -> 0 | AR135: =MIN(InputS!AO66*'Financial Model'!AR8,AR133) -> 0 | AS135: =MIN(InputS!AP66*'Financial Model'!AS8,AS133) -> 0 | AT135: =MIN(InputS!AQ66*'Financial Model'!AT8,AT133) -> 0 | AU135: =MIN(InputS!AR66*'Financial Model'!AU8,AU133) -> 0 | AV135: =MIN(InputS!AS66*'Financial Model'!AV8,AV133) -> 0 | AW135: =MIN(InputS!AT66*'Financial Model'!AW8,AW133) -> 0 | AX135: =MIN(InputS!AU66*'Financial Model'!AX8,AX133) -> 0 | AY135: =MIN(InputS!AV66*'Financial Model'!AY8,AY133) -> 0 | AZ135: =MIN(InputS!AW66*'Financial Model'!AZ8,AZ133) -> 0 | BA135: =MIN(InputS!AX66*'Financial Model'!BA8,BA133) -> 0 | BB135: =MIN(InputS!AY66*'Financial Model'!BB8,BB133) -> 0 | BC135: =MIN(InputS!AZ66*'Financial Model'!BC8,BC133) -> 0 | BD135: =MIN(InputS!BA66*'Financial Model'!BD8,BD133) -> 0 | BE135: =MIN(InputS!BB66*'Financial Model'!BE8,BE133) -> 0 | BF135: =MIN(InputS!BC66*'Financial Model'!BF8,BF133) -> 0 | BG135: =MIN(InputS!BD66*'Financial Model'!BG8,BG133) -> 0 | BH135: =MIN(InputS!BE66*'Financial Model'!BH8,BH133) -> 0 | BI135: =MIN(InputS!BF66*'Financial Model'!BI8,BI133) -> 0
D136: Closing Balance | L136: =L133+L134-L135 -> 0 | M136: =M133+M134-M135 -> 0 | N136: 0 | O136: 0 | P136: 80865000 | Q136: 79251000 | R136: 77637000 | S136: 89146000 | T136: 94846000 | U136: 101191000 | V136: 101741000 | W136: 106412000 | X136: 95789000 | Y136: 76194000 | Z136: 80329000 | AA136: 83767000 | AB136: 43350000 | AC136: 44283000 | AD136: 63334000 | AE136: 69832000 | AF136: 65364000 | AG136: 3326000 | AH136: 3326000 | AI136: 3326000 | AJ136: 3326000 | AK136: 3326000 | AL136: 0 | AM136: 0 | AN136: 0 | AO136: 0 | AP136: 0 | AQ136: 0 | AR136: 0 | AS136: 0 | AT136: 0 | AU136: 0 | AV136: 0 | AW136: 0 | AX136: 0 | AY136: 0 | AZ136: 0 | BA136: 0 | BB136: 0 | BC136: 0 | BD136: 0 | BE136: 0 | BF136: 0 | BG136: 0 | BH136: 0 | BI136: 0
B138: Debt Sizing, Break-Even and LLCR
E140: Break Even Oil Price Factor | H140: =G44 -> 1
L141: =L6 -> 1996 | M141: =M6 -> 1997 | N141: 1998 | O141: 1999 | P141: 2000 | Q141: 2001 | R141: 2002 | S141: 2003 | T141: 2004 | U141: 2005 | V141: 2006 | W141: 2007 | X141: 2008 | Y141: 2009 | Z141: 2010 | AA141: 2011 | AB141: 2012 | AC141: 2013 | AD141: 2014 | AE141: 2015 | AF141: 2016 | AG141: 2017 | AH141: 2018 | AI141: 2019 | AJ141: 2020 | AK141: 2021 | AL141: 2022 | AM141: 2023 | AN141: 2024 | AO141: 2025 | AP141: 2026 | AQ141: 2027 | AR141: 2028 | AS141: 2029 | AT141: 2030 | AU141: 2031 | AV141: 2032 | AW141: 2033 | AX141: 2034 | AY141: 2035 | AZ141: 2036 | BA141: 2037 | BB141: 2038 | BC141: 2039 | BD141: 2040 | BE141: 2041 | BF141: 2042 | BG141: 2043 | BH141: 2044 | BI141: 2045
L142: 1996-01-01 | M142: =EDATE(L142,12) -> 1997-01-01 | N142: =EDATE(M142,12) -> 1998-01-01 | O142: 1999-01-01 | P142: 2000-01-01 | Q142: 2001-01-01 | R142: 2002-01-01 | S142: 2003-01-01 | T142: 2004-01-01 | U142: 2005-01-01 | V142: 2006-01-01 | W142: 2007-01-01 | X142: 2008-01-01 | Y142: 2009-01-01 | Z142: 2010-01-01 | AA142: 2011-01-01 | AB142: 2012-01-01 | AC142: 2013-01-01 | AD142: 2014-01-01 | AE142: 2015-01-01 | AF142: 2016-01-01 | AG142: 2017-01-01 | AH142: 2018-01-01 | AI142: 2019-01-01 | AJ142: 2020-01-01 | AK142: 2021-01-01 | AL142: 2022-01-01 | AM142: 2023-01-01 | AN142: 2024-01-01 | AO142: 2025-01-01 | AP142: 2026-01-01 | AQ142: 2027-01-01 | AR142: 2028-01-01 | AS142: 2029-01-01 | AT142: 2030-01-01 | AU142: 2031-01-01 | AV142: 2032-01-01 | AW142: 2033-01-01 | AX142: 2034-01-01 | AY142: 2035-01-01 | AZ142: 2036-01-01 | BA142: 2037-01-01 | BB142: 2038-01-01 | BC142: 2039-01-01 | BD142: 2040-01-01 | BE142: 2041-01-01 | BF142: 2042-01-01 | BG142: 2043-01-01 | BH142: 2044-01-01 | BI142: 2045-01-01
Q143: =Q6 -> 2001 | R143: =R6 -> 2002 | S143: =S6 -> 2003 | T143: =T6 -> 2004 | U143: =U6 -> 2005 | V143: =V6 -> 2006 | W143: =W6 -> 2007 | X143: =X6 -> 2008 | Y143: =Y6 -> 2009 | Z143: =Z6 -> 2010 | AA143: =AA6 -> 2011 | AB143: =AB6 -> 2012 | AC143: =AC6 -> 2013 | AD143: =AD6 -> 2014 | AE143: =AE6 -> 2015 | AF143: =AF6 -> 2016 | AG143: =AG6 -> 2017 | AH143: =AH6 -> 2018 | AI143: =AI6 -> 2019 | AJ143: =AJ6 -> 2020 | AK143: =AK6 -> 2021 | AL143: =AL6 -> 2022
E144: EBITDA - CFADS | L144: =MAX(L76,0)*L8 -> 0 | M144: =MAX(M76,0)*M8 -> 0 | N144: 0 | O144: 0 | P144: 0 | Q144: 521374486.5 | R144: =MAX(R76,0) -> 529861629.6 | S144: =MAX(S76,0) -> 479943593 | T144: =MAX(T76,0) -> 541070715.8 | U144: =MAX(U76,0) -> 536056409.1 | V144: =MAX(V76,0) -> 599974191.9 | W144: =MAX(W76,0) -> 605222589.3 | X144: =MAX(X76,0) -> 613222889.3 | Y144: =MAX(Y76,0) -> 502092266.7 | Z144: =MAX(Z76,0) -> 500560396.8 | AA144: =MAX(AA76,0) -> 514823801.9 | AB144: =MAX(AB76,0) -> 533265932.2 | AC144: =MAX(AC76,0) -> 432242900.4 | AD144: =MAX(AD76,0) -> 509563244.3 | AE144: =MAX(AE76,0) -> 594819253.4 | AF144: =MAX(AF76,0) -> 610180981.4 | AG144: =MAX(AG76,0) -> 640145332.4 | AH144: =MAX(AH76,0) -> 569765555.8 | AI144: =MAX(AI76,0) -> 561890423.9 | AJ144: =MAX(AJ76,0) -> 545832758.3 | AK144: =MAX(AK76,0) -> 603423575.5 | AL144: =MAX(AL76,0) -> 626041683.9 | AM144: =MAX(AM76,0) -> 658763488.7 | AN144: =MAX(AN76,0) -> 681488635.5 | AO144: =MAX(AO76,0) -> 713981572.9 | AP144: =MAX(AP76,0) -> 726881527.2 | AQ144: =MAX(AQ76,0) -> 759133796.3 | AR144: =MAX(AR76,0) -> 790556312.6 | AS144: =MAX(AS76,0) -> 808125237 | AT144: =MAX(AT76,0) -> 817646167.9 | AU144: =MAX(AU76,0) -> 861650894.2 | AV144: =MAX(AV76,0) -> 888926722.4 | AW144: =MAX(AW76,0) -> 926487867.7 | AX144: =MAX(AX76,0) -> 943918581.7 | AY144: =MAX(AY76,0) -> 928517381.9 | AZ144: =MAX(AZ76,0) -> 0 | BA144: =MAX(BA76,0) -> 0 | BB144: =MAX(BB76,0) -> 0 | BC144: =MAX(BC76,0) -> 0 | BD144: =MAX(BD76,0) -> 0 | BE144: =MAX(BE76,0) -> 0 | BF144: =MAX(BF76,0) -> 0 | BG144: =MAX(BG76,0) -> 0 | BH144: =MAX(BH76,0) -> 0 | BI144: =MAX(BI76,0) -> 0
E145: Original Debt Service | L145: =L130+L124 -> 0 | M145: =M130+M124 -> 0 | N145: =N130+N124 -> 0 | O145: =O130+O124 -> 0 | P145: =P130+P124 -> 0 | Q145: =Q130+Q124 -> 162580705.8 | R145: =R130+R124 -> 159353955 | S145: =S130+S124 -> 156127276.1 | T145: =T130+T124 -> 179735829.5 | U145: =U130+U124 -> 191540068.8 | V145: =V130+V124 -> 204716823.4 | W145: =W130+W124 -> 206068259.8 | X145: =X130+X124 -> 215910334.2 | Y145: =Y130+Y124 -> 170368483.6 | Z145: =Z130+Z124 -> 154346898.6 | AA145: =AA130+AA124 -> 163028439.7 | AB145: =AB130+AB124 -> 170417009.7 | AC145: =AC130+AC124 -> 87799414.13 | AD145: =AD130+AD124 -> 89822994.99 | AE145: =AE130+AE124 -> 129119262.6 | AF145: =AF130+AF124 -> 143040989.3 | AG145: =AG130+AG124 -> 71314457.2 | AH145: =AH130+AH124 -> 6653000 | AI145: =AI130+AI124 -> 6653000 | AJ145: =AJ130+AJ124 -> 6653000 | AK145: =AK130+AK124 -> 6653000 | AL145: =AL130+AL124 -> 88306000 | AM145: =AM130+AM124 -> 0 | AN145: =AN130+AN124 -> 0 | AO145: =AO130+AO124 -> 0 | AP145: =AP130+AP124 -> 0 | AQ145: =AQ130+AQ124 -> 0 | AR145: =AR130+AR124 -> 0 | AS145: =AS130+AS124 -> 0 | AT145: =AT130+AT124 -> 0 | AU145: =AU130+AU124 -> 0 | AV145: =AV130+AV124 -> 0 | AW145: =AW130+AW124 -> 0 | AX145: =AX130+AX124 -> 0 | AY145: =AY130+AY124 -> 0 | AZ145: =AZ130+AZ124 -> 0 | BA145: =BA130+BA124 -> 0 | BB145: =BB130+BB124 -> 0 | BC145: =BC130+BC124 -> 0 | BD145: =BD130+BD124 -> 0 | BE145: =BE130+BE124 -> 0 | BF145: =BF130+BF124 -> 0 | BG145: =BG130+BG124 -> 0 | BH145: =BH130+BH124 -> 0 | BI145: =BI130+BI124 -> 0
J146: Price
E147: DSCR | F147: Minimum | G147: =MIN(L147:BI147) -> 2.798664595 | I147: First | J147: =L44 -> 12.25 | L147: =IF(L145>0.01,L144/L145) -> FALSE | M147: =IF(M145>0.01,M144/M145) -> FALSE | N147: =IF(N145>0.01,N144/N145) -> FALSE | O147: =IF(O145>0.01,O144/O145) -> FALSE | P147: =IF(P145>0.01,P144/P145) -> FALSE | Q147: =IF(Q145>0.01,Q144/Q145) -> 3.206865686 | R147: =IF(R145>0.01,R144/R145) -> 3.325061054 | S147: =IF(S145>0.01,S144/S145) -> 3.074053457 | T147: =IF(T145>0.01,T144/T145) -> 3.010366476 | U147: =IF(U145>0.01,U144/U145) -> 2.798664595 | V147: =IF(V145>0.01,V144/V145) -> 2.930751767 | W147: =IF(W145>0.01,W144/W145) -> 2.937000535 | X147: =IF(X145>0.01,X144/X145) -> 2.84017387 | Y147: =IF(Y145>0.01,Y144/Y145) -> 2.947095943 | Z147: =IF(Z145>0.01,Z144/Z145) -> 3.243086847 | AA147: =IF(AA145>0.01,AA144/AA145) -> 3.157877256 | AB147: =IF(AB145>0.01,AB144/AB145) -> 3.129182545 | AC147: =IF(AC145>0.01,AC144/AC145) -> 4.923072718 | AD147: =IF(AD145>0.01,AD144/AD145) -> 5.672970985 | AE147: =IF(AE145>0.01,AE144/AE145) -> 4.606742957 | AF147: =IF(AF145>0.01,AF144/AF145) -> 4.265777135 | AG147: =IF(AG145>0.01,AG144/AG145) -> 8.976375303 | AH147: =IF(AH145>0.01,AH144/AH145) -> 85.64039618 | AI147: =IF(AI145>0.01,AI144/AI145) -> 84.45669982 | AJ147: =IF(AJ145>0.01,AJ144/AJ145) -> 82.0431021 | AK147: =IF(AK145>0.01,AK144/AK145) -> 90.69947024 | AL147: =IF(AL145>0.01,AL144/AL145) -> 7.089458065 | AM147: =IF(AM145>0.01,AM144/AM145) -> FALSE | AN147: =IF(AN145>0.01,AN144/AN145) -> FALSE | AO147: =IF(AO145>0.01,AO144/AO145) -> FALSE | AP147: =IF(AP145>0.01,AP144/AP145) -> FALSE | AQ147: =IF(AQ145>0.01,AQ144/AQ145) -> FALSE | AR147: =IF(AR145>0.01,AR144/AR145) -> FALSE | AS147: =IF(AS145>0.01,AS144/AS145) -> FALSE | AT147: =IF(AT145>0.01,AT144/AT145) -> FALSE | AU147: =IF(AU145>0.01,AU144/AU145) -> FALSE | AV147: =IF(AV145>0.01,AV144/AV145) -> FALSE | AW147: =IF(AW145>0.01,AW144/AW145) -> FALSE | AX147: =IF(AX145>0.01,AX144/AX145) -> FALSE | AY147: =IF(AY145>0.01,AY144/AY145) -> FALSE | AZ147: =IF(AZ145>0.01,AZ144/AZ145) -> FALSE | BA147: =IF(BA145>0.01,BA144/BA145) -> FALSE | BB147: =IF(BB145>0.01,BB144/BB145) -> FALSE | BC147: =IF(BC145>0.01,BC144/BC145) -> FALSE | BD147: =IF(BD145>0.01,BD144/BD145) -> FALSE | BE147: =IF(BE145>0.01,BE144/BE145) -> FALSE | BF147: =IF(BF145>0.01,BF144/BF145) -> FALSE | BG147: =IF(BG145>0.01,BG144/BG145) -> FALSE | BH147: =IF(BH145>0.01,BH144/BH145) -> FALSE | BI147: =IF(BI145>0.01,BI144/BI145) -> FALSE
I148: Average | J148: =AVERAGE(L44:AY44) -> 21.48703689
E150: Interest Rate | L150: =L127 -> 0 | M150: =M127 -> 0.122268 | N150: =N127 -> 0.08577389012 | O150: =O127 -> 0.08287298845 | P150: =P127 -> 0.08210857917 | Q150: =Q127 -> 0.08530462467 | R150: =R127 -> 0.0853688725 | S150: =S127 -> 0.08543681426 | T150: =T127 -> 0.08644414376 | U150: =U127 -> 0.08692717599 | V150: =V127 -> 0.08762428146 | W150: =W127 -> 0.08886359288 | X150: =X127 -> 0.09000897627 | Y150: =Y127 -> 0.08939903147 | Z150: =Z127 -> 0.09050926999 | AA150: =AA127 -> 0.09120470058 | AB150: =AB127 -> 0.09242389356 | AC150: =AC127 -> 0.08984210638 | AD150: =AD127 -> 0.09055511848 | AE150: =AE127 -> 0.09451001624 | AF150: =AF127 -> 0.1009982354 | AG150: =AG127 -> 0.08826057064 | AH150: =AH127 -> 0.08870666667 | AI150: =AI127 -> 0.08870666667 | AJ150: =AJ127 -> 0.08870666667 | AK150: =AK127 -> 0.08870666667 | AL150: =AL127 -> 0.1774133333 | AM150: =$AK$150 -> 0.08870666667 | AN150: =$AK$150 -> 0.08870666667 | AO150: 0.08870666667 | AP150: 0.08870666667 | AQ150: 0.08870666667 | AR150: 0.08870666667 | AS150: 0.08870666667 | AT150: 0.08870666667 | AU150: 0.08870666667 | AV150: 0.08870666667 | AW150: 0.08870666667 | AX150: 0.08870666667 | AY150: 0.08870666667 | AZ150: 0.08870666667 | BA150: 0.08870666667 | BB150: 0.08870666667 | BC150: 0.08870666667 | BD150: 0.08870666667 | BE150: 0.08870666667 | BF150: 0.08870666667 | BG150: 0.08870666667 | BH150: 0.08870666667 | BI150: 0.08870666667
E151: Interest Rate Factor | K151: 1 | L151: =K151*(1+L150*L8) -> 1 | M151: =L151*(1+M150*M8) -> 1 | N151: =M151*(1+N150*N8) -> 1 | O151: =N151*(1+O150*O8) -> 1 | P151: =O151*(1+P150*P8) -> 1 | Q151: =P151*(1+Q150*Q8) -> 1.085304625 | R151: =Q151*(1+R150*R8) -> 1.177955857 | S151: =R151*(1+S150*S8) -> 1.278596653 | T151: =S151*(1+T150*T8) -> 1.389123845 | U151: =T151*(1+U150*U8) -> 1.509876458 | V151: =U151*(1+V150*V8) -> 1.642178298 | W151: =V151*(1+W150*W8) -> 1.788108162 | X151: =W151*(1+X150*X8) -> 1.949053947 | Y151: =X151*(1+Y150*Y8) -> 2.123297482 | Z151: =Y151*(1+Z150*Z8) -> 2.315475587 | AA151: =Z151*(1+AA150*AA8) -> 2.526657845 | AB151: =AA151*(1+AB150*AB8) -> 2.7601814 | AC151: =AB151*(1+AC150*AC8) -> 3.008161911 | AD151: =AC151*(1+AD150*AD8) -> 3.28056637 | AE151: =AD151*(1+AE150*AE8) -> 3.590612751 | AF151: =AE151*(1+AF150*AF8) -> 3.953258302 | AG151: =AF151*(1+AG150*AG8) -> 4.302175136 | AH151: =AG151*(1+AH150*AH8) -> 4.683806752 | AI151: =AH151*(1+AI150*AI8) -> 5.099291636 | AJ151: =AI151*(1+AJ150*AJ8) -> 5.551632799 | AK151: =AJ151*(1+AK150*AK8) -> 6.04409964 | AL151: =AK151*(1+AL150*AL8) -> 7.116403504 | AM151: =AL151*(1+AM150*AM8) -> 7.747675937 | AN151: =AM151*(1+AN150*AN8) -> 8.434946444 | AO151: =AN151*(1+AO150*AO8) -> 9.183182426 | AP151: =AO151*(1+AP150*AP8) -> 9.997791929 | AQ151: =AP151*(1+AQ150*AQ8) -> 10.88466272 | AR151: =AQ151*(1+AR150*AR8) -> 11.85020487 | AS151: =AR151*(1+AS150*AS8) -> 12.90139705 | AT151: =AS151*(1+AT150*AT8) -> 14.04583697 | AU151: =AT151*(1+AU150*AU8) -> 15.29179635 | AV151: =AU151*(1+AV150*AV8) -> 16.64828063 | AW151: =AV151*(1+AW150*AW8) -> 18.12509411 | AX151: =AW151*(1+AX150*AX8) -> 19.7329108 | AY151: =AX151*(1+AY150*AY8) -> 21.48335154 | AZ151: =AY151*(1+AZ150*AZ8) -> 21.48335154 | BA151: =AZ151*(1+BA150*BA8) -> 21.48335154 | BB151: =BA151*(1+BB150*BB8) -> 21.48335154 | BC151: =BB151*(1+BC150*BC8) -> 21.48335154 | BD151: =BC151*(1+BD150*BD8) -> 21.48335154 | BE151: =BD151*(1+BE150*BE8) -> 21.48335154 | BF151: =BE151*(1+BF150*BF8) -> 21.48335154 | BG151: =BF151*(1+BG150*BG8) -> 21.48335154 | BH151: =BG151*(1+BH150*BH8) -> 21.48335154 | BI151: =BH151*(1+BI150*BI8) -> 21.48335154
E153: PV of Debt Sevice | G153: =SUMPRODUCT(Q145:AL145/Q151:AL151) -> 1450000000
E154: PV of CFADS | G154: =SUMPRODUCT(Q144:AL144/Q151:AL151) -> 5203954859
E155: LLCR | G155: =G154/G153 -> 3.588934386
E157: PV of CFADS over Project Life | G157: =SUMPRODUCT(Q144:AY144/Q151:AY151) -> 6029448918
E158: PLCR | G158: =G157/G153 -> 4.158240633
E160: DSCR | G160: =G147 -> 2.798664595 | H160: LLCR | I160: =G155 -> 3.588934386 | J160: PLCR | K160: =G158 -> 4.158240633 | L160: Average Oil Price | M160: =J148 -> 21.48703689
B162: Re-structure Debt with New Scenario
C163: Debt Structure with Sculpting
D164: Structing Example
E165: Operating Period | F165: Counter | L165: =K166+L8 -> 0 | M165: =L165+M8 -> 0 | N165: =M165+N8 -> 0 | O165: =N165+O8 -> 0 | P165: =O165+P8 -> 0 | Q165: =P165+Q8 -> 1 | R165: =Q165+R8 -> 2 | S165: =R165+S8 -> 3 | T165: =S165+T8 -> 4 | U165: =T165+U8 -> 5 | V165: =U165+V8 -> 6 | W165: =V165+W8 -> 7 | X165: =W165+X8 -> 8 | Y165: =X165+Y8 -> 9 | Z165: =Y165+Z8 -> 10 | AA165: =Z165+AA8 -> 11 | AB165: =AA165+AB8 -> 12 | AC165: =AB165+AC8 -> 13 | AD165: =AC165+AD8 -> 14 | AE165: =AD165+AE8 -> 15 | AF165: =AE165+AF8 -> 16 | AG165: =AF165+AG8 -> 17 | AH165: =AG165+AH8 -> 18 | AI165: =AH165+AI8 -> 19 | AJ165: =AI165+AJ8 -> 20 | AK165: =AJ165+AK8 -> 21 | AL165: =AK165+AL8 -> 22 | AM165: =AL165+AM8 -> 23 | AN165: =AM165+AN8 -> 24 | AO165: =AN165+AO8 -> 25 | AP165: =AO165+AP8 -> 26 | AQ165: =AP165+AQ8 -> 27 | AR165: =AQ165+AR8 -> 28 | AS165: =AR165+AS8 -> 29 | AT165: =AS165+AT8 -> 30 | AU165: =AT165+AU8 -> 31 | AV165: =AU165+AV8 -> 32 | AW165: =AV165+AW8 -> 33 | AX165: =AW165+AX8 -> 34 | AY165: =AX165+AY8 -> 35 | AZ165: =AY165+AZ8 -> 35 | BA165: =AZ165+BA8 -> 35 | BB165: =BA165+BB8 -> 35 | BC165: =BB165+BC8 -> 35 | BD165: =BC165+BD8 -> 35 | BE165: =BD165+BE8 -> 35 | BF165: =BE165+BF8 -> 35 | BG165: =BF165+BG8 -> 35 | BH165: =BG165+BH8 -> 35 | BI165: =BH165+BI8 -> 35
E166: Debt Tenor | F166: Flag | G166: 22 | L166: =AND(L8,L165<=$G$166) -> FALSE | M166: =AND(M8,M165<=$G$166) -> FALSE | N166: =AND(N8,N165<=$G$166) -> FALSE | O166: =AND(O8,O165<=$G$166) -> FALSE | P166: =AND(P8,P165<=$G$166) -> FALSE | Q166: =AND(Q8,Q165<=$G$166) -> TRUE | R166: =AND(R8,R165<=$G$166) -> TRUE | S166: =AND(S8,S165<=$G$166) -> TRUE | T166: =AND(T8,T165<=$G$166) -> TRUE | U166: =AND(U8,U165<=$G$166) -> TRUE | V166: =AND(V8,V165<=$G$166) -> TRUE | W166: =AND(W8,W165<=$G$166) -> TRUE | X166: =AND(X8,X165<=$G$166) -> TRUE | Y166: =AND(Y8,Y165<=$G$166) -> TRUE | Z166: =AND(Z8,Z165<=$G$166) -> TRUE | AA166: =AND(AA8,AA165<=$G$166) -> TRUE | AB166: =AND(AB8,AB165<=$G$166) -> TRUE | AC166: =AND(AC8,AC165<=$G$166) -> TRUE | AD166: =AND(AD8,AD165<=$G$166) -> TRUE | AE166: =AND(AE8,AE165<=$G$166) -> TRUE | AF166: =AND(AF8,AF165<=$G$166) -> TRUE | AG166: =AND(AG8,AG165<=$G$166) -> TRUE | AH166: =AND(AH8,AH165<=$G$166) -> TRUE | AI166: =AND(AI8,AI165<=$G$166) -> TRUE | AJ166: =AND(AJ8,AJ165<=$G$166) -> TRUE | AK166: =AND(AK8,AK165<=$G$166) -> TRUE | AL166: =AND(AL8,AL165<=$G$166) -> TRUE | AM166: =AND(AM8,AM165<=$G$166) -> FALSE | AN166: =AND(AN8,AN165<=$G$166) -> FALSE | AO166: =AND(AO8,AO165<=$G$166) -> FALSE | AP166: =AND(AP8,AP165<=$G$166) -> FALSE | AQ166: =AND(AQ8,AQ165<=$G$166) -> FALSE | AR166: =AND(AR8,AR165<=$G$166) -> FALSE | AS166: =AND(AS8,AS165<=$G$166) -> FALSE | AT166: =AND(AT8,AT165<=$G$166) -> FALSE | AU166: =AND(AU8,AU165<=$G$166) -> FALSE | AV166: =AND(AV8,AV165<=$G$166) -> FALSE | AW166: =AND(AW8,AW165<=$G$166) -> FALSE | AX166: =AND(AX8,AX165<=$G$166) -> FALSE | AY166: =AND(AY8,AY165<=$G$166) -> FALSE | AZ166: =AND(AZ8,AZ165<=$G$166) -> FALSE | BA166: =AND(BA8,BA165<=$G$166) -> FALSE | BB166: =AND(BB8,BB165<=$G$166) -> FALSE | BC166: =AND(BC8,BC165<=$G$166) -> FALSE | BD166: =AND(BD8,BD165<=$G$166) -> FALSE | BE166: =AND(BE8,BE165<=$G$166) -> FALSE | BF166: =AND(BF8,BF165<=$G$166) -> FALSE | BG166: =AND(BG8,BG165<=$G$166) -> FALSE | BH166: =AND(BH8,BH165<=$G$166) -> FALSE | BI166: =AND(BI8,BI165<=$G$166) -> FALSE
E168: CFADS from Sponsor | F168: Oil Price Percent | H168: =G44 -> 1 | L168: =L144 -> 0 | M168: =M144 -> 0 | N168: =N144 -> 0 | O168: =O144 -> 0 | P168: =P144 -> 0 | Q168: =Q144 -> 521374486.5 | R168: =R144 -> 529861629.6 | S168: =S144 -> 479943593 | T168: =T144 -> 541070715.8 | U168: =U144 -> 536056409.1 | V168: =V144 -> 599974191.9 | W168: =W144 -> 605222589.3 | X168: =X144 -> 613222889.3 | Y168: =Y144 -> 502092266.7 | Z168: =Z144 -> 500560396.8 | AA168: =AA144 -> 514823801.9 | AB168: =AB144 -> 533265932.2 | AC168: =AC144 -> 432242900.4 | AD168: =AD144 -> 509563244.3 | AE168: =AE144 -> 594819253.4 | AF168: =AF144 -> 610180981.4 | AG168: =AG144 -> 640145332.4 | AH168: =AH144 -> 569765555.8 | AI168: =AI144 -> 561890423.9 | AJ168: =AJ144 -> 545832758.3 | AK168: =AK144 -> 603423575.5 | AL168: =AL144 -> 626041683.9 | AM168: =AM144 -> 658763488.7 | AN168: =AN144 -> 681488635.5 | AO168: =AO144 -> 713981572.9 | AP168: =AP144 -> 726881527.2 | AQ168: =AQ144 -> 759133796.3 | AR168: =AR144 -> 790556312.6 | AS168: =AS144 -> 808125237 | AT168: =AT144 -> 817646167.9 | AU168: =AU144 -> 861650894.2 | AV168: =AV144 -> 888926722.4 | AW168: =AW144 -> 926487867.7 | AX168: =AX144 -> 943918581.7 | AY168: =AY144 -> 928517381.9 | AZ168: =AZ144 -> 0 | BA168: =BA144 -> 0 | BB168: =BB144 -> 0 | BC168: =BC144 -> 0 | BD168: =BD144 -> 0 | BE168: =BE144 -> 0 | BF168: =BF144 -> 0 | BG168: =BG144 -> 0 | BH168: =BH144 -> 0 | BI168: =BI144 -> 0
E169: CFADS over Debt Tenure | L169: =L168*L166 -> 0 | M169: =M168*M166 -> 0 | N169: 0 | O169: 0 | P169: 0 | Q169: 521374486.5 | R169: 529861629.6 | S169: 479943593 | T169: 541070715.8 | U169: 536056409.1 | V169: 599974191.9 | W169: 605222589.3 | X169: 613222889.3 | Y169: 502092266.7 | Z169: 500560396.8 | AA169: 514823801.9 | AB169: 533265932.2 | AC169: 432242900.4 | AD169: 509563244.3 | AE169: 594819253.4 | AF169: 610180981.4 | AG169: 640145332.4 | AH169: 569765555.8 | AI169: 561890423.9 | AJ169: 545832758.3 | AK169: 603423575.5 | AL169: 626041683.9 | AM169: 0 | AN169: 0 | AO169: 0 | AP169: 0 | AQ169: 0 | AR169: 0 | AS169: 0 | AT169: 0 | AU169: 0 | AV169: 0 | AW169: 0 | AX169: 0 | AY169: 0 | AZ169: 0 | BA169: 0 | BB169: 0 | BC169: 0 | BD169: 0 | BE169: 0 | BF169: 0 | BG169: 0 | BH169: 0 | BI169: 0
E170: Target DSCR | F170: x | G170: 3.59
E171: Target Debt Service =CFADS/DSCR (over tenure) | G171: =G170 -> 3.59 | L171: =L169/$G$171 -> 0 | M171: =M169/$G$171 -> 0 | N171: 0 | O171: 0 | P171: 0 | Q171: 145229662 | R171: 147593768.7 | S171: 133689023.1 | T171: 150716076.8 | U171: 149319334 | V171: 167123730.3 | W171: 168585679.5 | X171: 170814175.3 | Y171: 139858570.1 | Z171: 139431865.4 | AA171: 143404958.7 | AB171: 148542042.4 | AC171: 120401922.1 | AD171: 141939622.4 | AE171: 165687814.3 | AF171: 169966847.2 | AG171: 178313463.1 | AH171: 158709068.5 | AI171: 156515438.4 | AJ171: 152042551.1 | AK171: 168084561.4 | AL171: 174384870.2 | AM171: 0 | AN171: 0 | AO171: 0 | AP171: 0 | AQ171: 0 | AR171: 0 | AS171: 0 | AT171: 0 | AU171: 0 | AV171: 0 | AW171: 0 | AX171: 0 | AY171: 0 | AZ171: 0 | BA171: 0 | BB171: 0 | BC171: 0 | BD171: 0 | BE171: 0 | BF171: 0 | BG171: 0 | BH171: 0 | BI171: 0
E172: Compound Interest Factor | L172: =L151 -> 1 | M172: =M151 -> 1 | N172: =N151 -> 1 | O172: =O151 -> 1 | P172: =P151 -> 1 | Q172: =Q151 -> 1.085304625 | R172: =R151 -> 1.177955857 | S172: =S151 -> 1.278596653 | T172: =T151 -> 1.389123845 | U172: =U151 -> 1.509876458 | V172: =V151 -> 1.642178298 | W172: =W151 -> 1.788108162 | X172: =X151 -> 1.949053947 | Y172: =Y151 -> 2.123297482 | Z172: =Z151 -> 2.315475587 | AA172: =AA151 -> 2.526657845 | AB172: =AB151 -> 2.7601814 | AC172: =AC151 -> 3.008161911 | AD172: =AD151 -> 3.28056637 | AE172: =AE151 -> 3.590612751 | AF172: =AF151 -> 3.953258302 | AG172: =AG151 -> 4.302175136 | AH172: =AH151 -> 4.683806752 | AI172: =AI151 -> 5.099291636 | AJ172: =AJ151 -> 5.551632799 | AK172: =AK151 -> 6.04409964 | AL172: =AL151 -> 7.116403504 | AM172: =AM151 -> 7.747675937 | AN172: =AN151 -> 8.434946444 | AO172: =AO151 -> 9.183182426 | AP172: =AP151 -> 9.997791929 | AQ172: =AQ151 -> 10.88466272 | AR172: =AR151 -> 11.85020487 | AS172: =AS151 -> 12.90139705 | AT172: =AT151 -> 14.04583697 | AU172: =AU151 -> 15.29179635 | AV172: =AV151 -> 16.64828063 | AW172: =AW151 -> 18.12509411 | AX172: =AX151 -> 19.7329108 | AY172: =AY151 -> 21.48335154 | AZ172: =AZ151 -> 21.48335154 | BA172: =BA151 -> 21.48335154 | BB172: =BB151 -> 21.48335154 | BC172: =BC151 -> 21.48335154 | BD172: =BD151 -> 21.48335154 | BE172: =BE151 -> 21.48335154 | BF172: =BF151 -> 21.48335154 | BG172: =BG151 -> 21.48335154 | BH172: =BH151 -> 21.48335154 | BI172: =BI151 -> 21.48335154
E174: NPV of Debt Service (Sumproduct with Factor and DS) | G174: =SUMPRODUCT(L171:BI171/L172:BI172) -> 1449569599 | H174: DSCR | I174: =G170 -> 3.59
D176: Graph | L176: =L142 -> 1996-01-01 | M176: =M142 -> 1997-01-01 | N176: =N142 -> 1998-01-01 | O176: =O142 -> 1999-01-01 | P176: =P142 -> 2000-01-01 | Q176: =Q142 -> 2001-01-01 | R176: =R142 -> 2002-01-01 | S176: =S142 -> 2003-01-01 | T176: =T142 -> 2004-01-01 | U176: =U142 -> 2005-01-01 | V176: =V142 -> 2006-01-01 | W176: =W142 -> 2007-01-01 | X176: =X142 -> 2008-01-01 | Y176: =Y142 -> 2009-01-01 | Z176: =Z142 -> 2010-01-01 | AA176: =AA142 -> 2011-01-01 | AB176: =AB142 -> 2012-01-01 | AC176: =AC142 -> 2013-01-01 | AD176: =AD142 -> 2014-01-01 | AE176: =AE142 -> 2015-01-01 | AF176: =AF142 -> 2016-01-01 | AG176: =AG142 -> 2017-01-01 | AH176: =AH142 -> 2018-01-01 | AI176: =AI142 -> 2019-01-01 | AJ176: =AJ142 -> 2020-01-01 | AK176: =AK142 -> 2021-01-01 | AL176: =AL142 -> 2022-01-01 | AM176: =AM142 -> 2023-01-01 | AN176: =AN142 -> 2024-01-01 | AO176: =AO142 -> 2025-01-01 | AP176: =AP142 -> 2026-01-01 | AQ176: =AQ142 -> 2027-01-01 | AR176: =AR142 -> 2028-01-01 | AS176: =AS142 -> 2029-01-01 | AT176: =AT142 -> 2030-01-01 | AU176: =AU142 -> 2031-01-01 | AV176: =AV142 -> 2032-01-01 | AW176: =AW142 -> 2033-01-01 | AX176: =AX142 -> 2034-01-01 | AY176: =AY142 -> 2035-01-01 | AZ176: =AZ142 -> 2036-01-01 | BA176: =BA142 -> 2037-01-01 | BB176: =BB142 -> 2038-01-01 | BC176: =BC142 -> 2039-01-01 | BD176: =BD142 -> 2040-01-01 | BE176: =BE142 -> 2041-01-01 | BF176: =BF142 -> 2042-01-01 | BG176: =BG142 -> 2043-01-01 | BH176: =BH142 -> 2044-01-01 | BI176: =BI142 -> 2045-01-01
E178: CFADS
E179: Debt Service
D181: Debt Balance
E182: Opening Balance | L182: =K185 -> 0 | M182: =L185 -> 1449569599 | N182: 1449569599 | O182: 1449569599 | P182: 1449569599 | Q182: 1449569599 | R182: 1427994927 | S182: 1402307475 | T182: 1388427136 | U182: 1357732454 | V182: 1326436968 | W182: 1275541323 | X182: 1220304829 | Y182: 1159329042 | Z182: 1123113365 | AA182: 1085333671 | AB182: 1040916244 | AC182: 988579734.3 | AD182: 956993897.8 | AE182: 901714971.2 | AF182: 821248253.5 | AG182: 734226030.7 | AH182: 620715776.1 | AI182: 517068335 | AJ182: 406420305.1 | AK182: 290429944.5 | AL182: 148108455.4 | AM182: 8.642673492e-07 | AN182: 8.642673492e-07 | AO182: 8.642673492e-07 | AP182: 8.642673492e-07 | AQ182: 8.642673492e-07 | AR182: 8.642673492e-07 | AS182: 8.642673492e-07 | AT182: 8.642673492e-07 | AU182: 8.642673492e-07 | AV182: 8.642673492e-07 | AW182: 8.642673492e-07 | AX182: 8.642673492e-07 | AY182: 8.642673492e-07
E183: Debt Issue (NPV of Debt Service) | L183: =G174 -> 1449569599
E184: Debt Repayment DS =Int + Repay; Repay =DS- Int | L184: =L171-L190 -> 0 | M184: =M171-M190 -> 0 | N184: 0 | O184: 0 | P184: =P171-P190 -> 0 | Q184: =Q171-Q190 -> 21574671.42 | R184: =R171-R190 -> 25687451.83 | S184: =S171-S190 -> 13880339.8 | T184: =T171-T190 -> 30694681.91 | U184: =U171-U190 -> 31295486.06 | V184: =V171-V190 -> 50895644.16 | W184: =W171-W190 -> 55236494.6 | X184: =X171-X190 -> 60975786.92 | Y184: =Y171-Y190 -> 36215676.62 | Z184: =Z171-Z190 -> 37779694.59 | AA184: =AA171-AA190 -> 44417426.27 | AB184: =AB171-AB190 -> 52336510.22 | AC184: =AC171-AC190 -> 31585836.46 | AD184: =AD171-AD190 -> 55278926.58 | AE184: =AE171-AE190 -> 80466717.75 | AF184: =AF171-AF190 -> 87022222.78 | AG184: =AG171-AG190 -> 113510254.6 | AH184: =AH171-AH190 -> 103647441 | AI184: =AI171-AI190 -> 110648030 | AJ184: =AJ171-AJ190 -> 115990360.5 | AK184: =AK171-AK190 -> 142321489.1 | AL184: =AL171-AL190 -> 148108455.4 | AM184: =AM171-AM190 -> 0 | AN184: =AN171-AN190 -> 0 | AO184: =AO171-AO190 -> 0 | AP184: =AP171-AP190 -> 0 | AQ184: =AQ171-AQ190 -> 0 | AR184: =AR171-AR190 -> 0 | AS184: =AS171-AS190 -> 0 | AT184: =AT171-AT190 -> 0 | AU184: =AU171-AU190 -> 0 | AV184: =AV171-AV190 -> 0 | AW184: =AW171-AW190 -> 0 | AX184: =AX171-AX190 -> 0 | AY184: =AY171-AY190 -> 0
E185: Closing Balance | L185: =L182+L183-L184 -> 1449569599 | M185: =M182+M183-M184 -> 1449569599 | N185: 1449569599 | O185: 1449569599 | P185: 1449569599 | Q185: 1427994927 | R185: 1402307475 | S185: 1388427136 | T185: 1357732454 | U185: 1326436968 | V185: 1275541323 | W185: 1220304829 | X185: 1159329042 | Y185: 1123113365 | Z185: 1085333671 | AA185: 1040916244 | AB185: 988579734.3 | AC185: 956993897.8 | AD185: 901714971.2 | AE185: 821248253.5 | AF185: 734226030.7 | AG185: 620715776.1 | AH185: 517068335 | AI185: 406420305.1 | AJ185: 290429944.5 | AK185: 148108455.4 | AL185: 8.642673492e-07 | AM185: 8.642673492e-07 | AN185: 8.642673492e-07 | AO185: 8.642673492e-07 | AP185: 8.642673492e-07 | AQ185: 8.642673492e-07 | AR185: 8.642673492e-07 | AS185: 8.642673492e-07 | AT185: 8.642673492e-07 | AU185: 8.642673492e-07 | AV185: 8.642673492e-07 | AW185: 8.642673492e-07 | AX185: 8.642673492e-07 | AY185: 8.642673492e-07
E187: Test of Closing Balance - Lookup | G187: =LOOKUP(G166,165:165,185:185) -> 8.642673492e-07 | H187: =ROUND(G187,0)=0 -> TRUE
E189: Interest Rate from Sponsor | L189: =L150 -> 0 | M189: =M150 -> 0.122268 | N189: =N150 -> 0.08577389012 | O189: =O150 -> 0.08287298845 | P189: =P150 -> 0.08210857917 | Q189: =Q150 -> 0.08530462467 | R189: =R150 -> 0.0853688725 | S189: =S150 -> 0.08543681426 | T189: =T150 -> 0.08644414376 | U189: =U150 -> 0.08692717599 | V189: =V150 -> 0.08762428146 | W189: =W150 -> 0.08886359288 | X189: =X150 -> 0.09000897627 | Y189: =Y150 -> 0.08939903147 | Z189: =Z150 -> 0.09050926999 | AA189: =AA150 -> 0.09120470058 | AB189: =AB150 -> 0.09242389356 | AC189: =AC150 -> 0.08984210638 | AD189: =AD150 -> 0.09055511848 | AE189: =AE150 -> 0.09451001624 | AF189: =AF150 -> 0.1009982354 | AG189: =AG150 -> 0.08826057064 | AH189: =AH150 -> 0.08870666667 | AI189: =AI150 -> 0.08870666667 | AJ189: =AJ150 -> 0.08870666667 | AK189: =AK150 -> 0.08870666667 | AL189: =AL150 -> 0.1774133333 | AM189: =AM150 -> 0.08870666667 | AN189: =AN150 -> 0.08870666667 | AO189: =AO150 -> 0.08870666667 | AP189: =AP150 -> 0.08870666667 | AQ189: =AQ150 -> 0.08870666667 | AR189: =AR150 -> 0.08870666667 | AS189: =AS150 -> 0.08870666667 | AT189: =AT150 -> 0.08870666667 | AU189: =AU150 -> 0.08870666667 | AV189: =AV150 -> 0.08870666667 | AW189: =AW150 -> 0.08870666667 | AX189: =AX150 -> 0.08870666667 | AY189: =AY150 -> 0.08870666667
E190: Interest During Operating Period | L190: =L182*L127*L8 -> 0 | M190: =M182*M127*M8 -> 0 | N190: =N182*N127*N8 -> 0 | O190: =O182*O127*O8 -> 0 | P190: =P182*P127*P8 -> 0 | Q190: =Q182*Q127*Q8 -> 123654990.5 | R190: =R182*R127*R8 -> 121906316.9 | S190: =S182*S127*S8 -> 119808683.3 | T190: =T182*T127*T8 -> 120021394.9 | U190: =U182*U127*U8 -> 118023847.9 | V190: =V182*V127*V8 -> 116228086.2 | W190: =W182*W127*W8 -> 113349184.9 | X190: =X182*X127*X8 -> 109838388.4 | Y190: =Y182*Y127*Y8 -> 103642893.5 | Z190: =Z182*Z127*Z8 -> 101652170.8 | AA190: =AA182*AA127*AA8 -> 98987532.47 | AB190: =AB182*AB127*AB8 -> 96205532.18 | AC190: =AC182*AC127*AC8 -> 88816085.65 | AD190: =AD182*AD127*AD8 -> 86660695.8 | AE190: =AE182*AE127*AE8 -> 85221096.57 | AF190: =AF182*AF127*AF8 -> 82944624.39 | AG190: =AG182*AG127*AG8 -> 64803208.45 | AH190: =AH182*AH127*AH8 -> 55061627.44 | AI190: =AI182*AI127*AI8 -> 45867408.44 | AJ190: =AJ182*AJ127*AJ8 -> 36052190.53 | AK190: =AK182*AK127*AK8 -> 25763072.28 | AL190: =AL182*AL127*AL8 -> 26276414.77 | AM190: =AM182*AM127*AM8 -> 0 | AN190: =AN182*AN127*AN8 -> 0 | AO190: =AO182*AO127*AO8 -> 0 | AP190: =AP182*AP127*AP8 -> 0 | AQ190: =AQ182*AQ127*AQ8 -> 0 | AR190: =AR182*AR127*AR8 -> 0 | AS190: =AS182*AS127*AS8 -> 0 | AT190: =AT182*AT127*AT8 -> 0 | AU190: =AU182*AU127*AU8 -> 0 | AV190: =AV182*AV127*AV8 -> 0 | AW190: =AW182*AW127*AW8 -> 0 | AX190: =AX182*AX127*AX8 -> 0 | AY190: =AY182*AY127*AY8 -> 0
E192: LLCR =NPV of CFADS/DS =NPV of CFADS/NPV DS
E193: Compound Factor for PV | K193: 1 | L193: =K193*(1+L127*L8) -> 1 | M193: =L193*(1+M127*M8) -> 1 | N193: =M193*(1+N127*N8) -> 1 | O193: =N193*(1+O127*O8) -> 1 | P193: =O193*(1+P127*P8) -> 1 | Q193: =P193*(1+Q127*Q8) -> 1.085304625 | R193: =Q193*(1+R127*R8) -> 1.177955857 | S193: =R193*(1+S127*S8) -> 1.278596653 | T193: =S193*(1+T127*T8) -> 1.389123845 | U193: =T193*(1+U127*U8) -> 1.509876458 | V193: =U193*(1+V127*V8) -> 1.642178298 | W193: =V193*(1+W127*W8) -> 1.788108162 | X193: =W193*(1+X127*X8) -> 1.949053947 | Y193: =X193*(1+Y127*Y8) -> 2.123297482 | Z193: =Y193*(1+Z127*Z8) -> 2.315475587 | AA193: =Z193*(1+AA127*AA8) -> 2.526657845 | AB193: =AA193*(1+AB127*AB8) -> 2.7601814 | AC193: =AB193*(1+AC127*AC8) -> 3.008161911 | AD193: =AC193*(1+AD127*AD8) -> 3.28056637 | AE193: =AD193*(1+AE127*AE8) -> 3.590612751 | AF193: =AE193*(1+AF127*AF8) -> 3.953258302 | AG193: =AF193*(1+AG127*AG8) -> 4.302175136 | AH193: =AG193*(1+AH127*AH8) -> 4.683806752 | AI193: =AH193*(1+AI127*AI8) -> 5.099291636 | AJ193: =AI193*(1+AJ127*AJ8) -> 5.551632799 | AK193: =AJ193*(1+AK127*AK8) -> 6.04409964 | AL193: =AK193*(1+AL127*AL8) -> 7.116403504 | AM193: =AL193*(1+AM127*AM8) -> 7.116403504 | AN193: =AM193*(1+AN127*AN8) -> 7.116403504 | AO193: =AN193*(1+AO127*AO8) -> 7.116403504 | AP193: =AO193*(1+AP127*AP8) -> 7.116403504 | AQ193: =AP193*(1+AQ127*AQ8) -> 7.116403504 | AR193: =AQ193*(1+AR127*AR8) -> 7.116403504 | AS193: =AR193*(1+AS127*AS8) -> 7.116403504 | AT193: =AS193*(1+AT127*AT8) -> 7.116403504 | AU193: =AT193*(1+AU127*AU8) -> 7.116403504 | AV193: =AU193*(1+AV127*AV8) -> 7.116403504 | AW193: =AV193*(1+AW127*AW8) -> 7.116403504 | AX193: =AW193*(1+AX127*AX8) -> 7.116403504 | AY193: =AX193*(1+AY127*AY8) -> 7.116403504 | AZ193: =AY193*(1+AZ127*AZ8) -> 7.116403504 | BA193: =AZ193*(1+BA127*BA8) -> 7.116403504 | BB193: =BA193*(1+BB127*BB8) -> 7.116403504 | BC193: =BB193*(1+BC127*BC8) -> 7.116403504 | BD193: =BC193*(1+BD127*BD8) -> 7.116403504 | BE193: =BD193*(1+BE127*BE8) -> 7.116403504 | BF193: =BE193*(1+BF127*BF8) -> 7.116403504 | BG193: =BF193*(1+BG127*BG8) -> 7.116403504 | BH193: =BG193*(1+BH127*BH8) -> 7.116403504 | BI193: =BH193*(1+BI127*BI8) -> 7.116403504
E194: NPV of CFADS over Loan Life | G194: =SUMPRODUCT(L169:BI169/L193:BI193) -> 5203954859
E195: NPV of DS | G195: =G174 -> 1449569599
E196: LLCR (Should =DSCR) | G196: =G194/G195 -> 3.59
E197: Break-even Cash Flow | G197: =(G196-1)/G196 -> 0.721448468
E199: PV CFADS over Debt Life - Sumproduct | G199: =SUMPRODUCT(L168:BI168/L193:BI193) -> 6680273365
E200: PV of CFADS - Life | G200: =G195 -> 1449569599
E201: PLCR | G201: =G199/G200 -> 4.608452999
E202: Break-Even Cash Flow | G202: =(G201-1)/G201 -> 0.783007443
B204: Risk Analysis with Given Structure
C206: Cash Flow Sensitivity
D207: Base Cash Flow | L207: =L168 -> 0 | M207: =M168 -> 0 | N207: 0 | O207: 0 | P207: 0 | Q207: 521374486.5 | R207: 529861629.6 | S207: 479943593 | T207: 541070715.8 | U207: 536056409.1 | V207: 599974191.9 | W207: 605222589.3 | X207: 613222889.3 | Y207: 502092266.7 | Z207: 500560396.8 | AA207: 514823801.9 | AB207: 533265932.2 | AC207: 432242900.4 | AD207: 509563244.3 | AE207: 594819253.4 | AF207: 610180981.4 | AG207: 640145332.4 | AH207: 569765555.8 | AI207: 561890423.9 | AJ207: 545832758.3 | AK207: 603423575.5 | AL207: 626041683.9 | AM207: 658763488.7 | AN207: 681488635.5 | AO207: 713981572.9 | AP207: 726881527.2 | AQ207: 759133796.3 | AR207: 790556312.6 | AS207: 808125237 | AT207: 817646167.9 | AU207: 861650894.2 | AV207: 888926722.4 | AW207: 926487867.7 | AX207: 943918581.7 | AY207: 928517381.9 | AZ207: 0 | BA207: 0 | BB207: 0 | BC207: 0 | BD207: 0 | BE207: 0 | BF207: 0 | BG207: 0 | BH207: 0 | BI207: 0
D208: Sensitivity Factor | G208: =H208/100 -> 1 | H208: 100 | K208: =$G$208 -> 1 | L208: =$G$208 -> 1 | M208: 1 | N208: 1 | O208: 1 | P208: 1 | Q208: 1 | R208: 1 | S208: 1 | T208: 1 | U208: 1 | V208: 1 | W208: 1 | X208: 1 | Y208: 1 | Z208: 1 | AA208: 1 | AB208: 1 | AC208: 1 | AD208: 1 | AE208: 1 | AF208: 1 | AG208: 1 | AH208: 1 | AI208: 1 | AJ208: 1 | AK208: 1 | AL208: 1 | AM208: 1 | AN208: 1 | AO208: 1 | AP208: 1 | AQ208: 1 | AR208: 1 | AS208: 1 | AT208: 1 | AU208: 1 | AV208: 1 | AW208: 1 | AX208: 1 | AY208: 1 | AZ208: 1 | BA208: 1 | BB208: 1 | BC208: 1 | BD208: 1 | BE208: 1 | BF208: 1 | BG208: 1 | BH208: 1 | BI208: 1
D209: Volatility Factor | G209: 0 | K209: 1 | L209: 1 | M209: 1 | N209: 1 | O209: 1 | P209: 1 | Q209: 1 | R209: 1 | S209: 1 | T209: 1 | U209: 1 | V209: 1 | W209: 1 | X209: 1 | Y209: 1 | Z209: 1 | AA209: 1 | AB209: 1 | AC209: 1 | AD209: 1 | AE209: 1 | AF209: 1 | AG209: 1 | AH209: 1 | AI209: 1 | AJ209: 1 | AK209: 1 | AL209: 1 | AM209: 1 | AN209: 1 | AO209: 1 | AP209: 1 | AQ209: 1 | AR209: 1 | AS209: 1 | AT209: 1 | AU209: 1 | AV209: 1 | AW209: 1 | AX209: 1 | AY209: 1 | AZ209: 1 | BA209: 1 | BB209: 1 | BC209: 1 | BD209: 1 | BE209: 1 | BF209: 1 | BG209: 1 | BH209: 1 | BI209: 1
D210: Mean Reversion Factor | G210: 0 | K210: 1 | L210: 1 | M210: 1 | N210: 1 | O210: 1 | P210: 1 | Q210: 1 | R210: 1 | S210: 1 | T210: 1 | U210: 1 | V210: 1 | W210: 1 | X210: 1 | Y210: 1 | Z210: 1 | AA210: 1 | AB210: 1 | AC210: 1 | AD210: 1 | AE210: 1 | AF210: 1 | AG210: 1 | AH210: 1 | AI210: 1 | AJ210: 1 | AK210: 1 | AL210: 1 | AM210: 1 | AN210: 1 | AO210: 1 | AP210: 1 | AQ210: 1 | AR210: 1 | AS210: 1 | AT210: 1 | AU210: 1 | AV210: 1 | AW210: 1 | AX210: 1 | AY210: 1 | AZ210: 1 | BA210: 1 | BB210: 1 | BC210: 1 | BD210: 1 | BE210: 1 | BF210: 1 | BG210: 1 | BH210: 1 | BI210: 1
D211: Combined Factor | K211: =K208*K209*K210 -> 1 | L211: =L208*L209*L210 -> 1 | M211: 1 | N211: 1 | O211: 1 | P211: 1 | Q211: 1 | R211: 1 | S211: 1 | T211: 1 | U211: 1 | V211: 1 | W211: 1 | X211: 1 | Y211: 1 | Z211: 1 | AA211: 1 | AB211: 1 | AC211: 1 | AD211: 1 | AE211: 1 | AF211: 1 | AG211: 1 | AH211: 1 | AI211: 1 | AJ211: 1 | AK211: 1 | AL211: 1 | AM211: 1 | AN211: 1 | AO211: 1 | AP211: 1 | AQ211: 1 | AR211: 1 | AS211: 1 | AT211: 1 | AU211: 1 | AV211: 1 | AW211: 1 | AX211: 1 | AY211: 1 | AZ211: 1 | BA211: 1 | BB211: 1 | BC211: 1 | BD211: 1 | BE211: 1 | BF211: 1 | BG211: 1 | BH211: 1 | BI211: 1
D213: Downside Case Cash Flow | L213: =L207*L211*L8 -> 0 | M213: =M207*M211*M8 -> 0 | N213: =N207*N211*N8 -> 0 | O213: =O207*O211*O8 -> 0 | P213: =P207*P211*P8 -> 0 | Q213: =Q207*Q211*Q8 -> 521374486.5 | R213: =R207*R211*R8 -> 529861629.6 | S213: =S207*S211*S8 -> 479943593 | T213: =T207*T211*T8 -> 541070715.8 | U213: =U207*U211*U8 -> 536056409.1 | V213: =V207*V211*V8 -> 599974191.9 | W213: =W207*W211*W8 -> 605222589.3 | X213: =X207*X211*X8 -> 613222889.3 | Y213: =Y207*Y211*Y8 -> 502092266.7 | Z213: =Z207*Z211*Z8 -> 500560396.8 | AA213: =AA207*AA211*AA8 -> 514823801.9 | AB213: =AB207*AB211*AB8 -> 533265932.2 | AC213: =AC207*AC211*AC8 -> 432242900.4 | AD213: =AD207*AD211*AD8 -> 509563244.3 | AE213: =AE207*AE211*AE8 -> 594819253.4 | AF213: =AF207*AF211*AF8 -> 610180981.4 | AG213: =AG207*AG211*AG8 -> 640145332.4 | AH213: =AH207*AH211*AH8 -> 569765555.8 | AI213: =AI207*AI211*AI8 -> 561890423.9 | AJ213: =AJ207*AJ211*AJ8 -> 545832758.3 | AK213: =AK207*AK211*AK8 -> 603423575.5 | AL213: =AL207*AL211*AL8 -> 626041683.9 | AM213: =AM207*AM211*AM8 -> 658763488.7 | AN213: =AN207*AN211*AN8 -> 681488635.5 | AO213: =AO207*AO211*AO8 -> 713981572.9 | AP213: =AP207*AP211*AP8 -> 726881527.2 | AQ213: =AQ207*AQ211*AQ8 -> 759133796.3 | AR213: =AR207*AR211*AR8 -> 790556312.6 | AS213: =AS207*AS211*AS8 -> 808125237 | AT213: =AT207*AT211*AT8 -> 817646167.9 | AU213: =AU207*AU211*AU8 -> 861650894.2 | AV213: =AV207*AV211*AV8 -> 888926722.4 | AW213: =AW207*AW211*AW8 -> 926487867.7 | AX213: =AX207*AX211*AX8 -> 943918581.7 | AY213: =AY207*AY211*AY8 -> 928517381.9 | AZ213: =AZ207*AZ211*AZ8 -> 0 | BA213: =BA207*BA211*BA8 -> 0 | BB213: =BB207*BB211*BB8 -> 0 | BC213: =BC207*BC211*BC8 -> 0 | BD213: =BD207*BD211*BD8 -> 0 | BE213: =BE207*BE211*BE8 -> 0 | BF213: =BF207*BF211*BF8 -> 0 | BG213: =BG207*BG211*BG8 -> 0 | BH213: =BH207*BH211*BH8 -> 0 | BI213: =BI207*BI211*BI8 -> 0
C215: Cash Flow Waterfall
D216: Debt Schedule from Structuring
E217: Opening Balance | K217: =J221 -> 0 | L217: =K221 -> 0 | M217: 1449569599 | N217: 1449569599 | O217: 1449569599 | P217: 1449569599 | Q217: 1449569599 | R217: 1427994927 | S217: 1402307475 | T217: 1388427136 | U217: 1357732454 | V217: 1326436968 | W217: 1275541323 | X217: 1220304829 | Y217: 1159329042 | Z217: 1123113365 | AA217: 1085333671 | AB217: 1040916244 | AC217: 988579734.3 | AD217: 956993897.8 | AE217: 901714971.2 | AF217: 821248253.5 | AG217: 734226030.7 | AH217: 620715776.1 | AI217: 517068335 | AJ217: 406420305.1 | AK217: 290429944.5 | AL217: 148108455.4 | AM217: 8.642673492e-07 | AN217: 8.642673492e-07 | AO217: 8.642673492e-07 | AP217: 8.642673492e-07 | AQ217: 8.642673492e-07 | AR217: 8.642673492e-07 | AS217: 8.642673492e-07 | AT217: 8.642673492e-07 | AU217: 8.642673492e-07 | AV217: 8.642673492e-07 | AW217: 8.642673492e-07 | AX217: 8.642673492e-07 | AY217: 8.642673492e-07 | AZ217: 8.642673492e-07 | BA217: 8.642673492e-07 | BB217: 8.642673492e-07 | BC217: 8.642673492e-07 | BD217: 8.642673492e-07 | BE217: 8.642673492e-07 | BF217: 8.642673492e-07 | BG217: 8.642673492e-07 | BH217: 8.642673492e-07 | BI217: 8.642673492e-07
E218: Add: Debt Issue | K218: =K183 -> 0 | L218: =L183 -> 1449569599 | M218: 0 | N218: 0 | O218: 0 | P218: 0 | Q218: 0 | R218: 0 | S218: 0 | T218: 0 | U218: 0 | V218: 0 | W218: 0 | X218: 0 | Y218: 0 | Z218: 0 | AA218: 0 | AB218: 0 | AC218: 0 | AD218: 0 | AE218: 0 | AF218: 0 | AG218: 0 | AH218: 0 | AI218: 0 | AJ218: 0 | AK218: 0 | AL218: 0 | AM218: 0 | AN218: 0 | AO218: 0 | AP218: 0 | AQ218: 0 | AR218: 0 | AS218: 0 | AT218: 0 | AU218: 0 | AV218: 0 | AW218: 0 | AX218: 0 | AY218: 0 | AZ218: 0 | BA218: 0 | BB218: 0 | BC218: 0 | BD218: 0 | BE218: 0 | BF218: 0 | BG218: 0 | BH218: 0 | BI218: 0
E219: Less: Repayment | K219: =K184 -> 0 | L219: =L184 -> 0 | M219: 0 | N219: 0 | O219: 0 | P219: 0 | Q219: 21574671.42 | R219: 25687451.83 | S219: 13880339.8 | T219: 30694681.91 | U219: 31295486.06 | V219: 50895644.16 | W219: 55236494.6 | X219: 60975786.92 | Y219: 36215676.62 | Z219: 37779694.59 | AA219: 44417426.27 | AB219: 52336510.22 | AC219: 31585836.46 | AD219: 55278926.58 | AE219: 80466717.75 | AF219: 87022222.78 | AG219: 113510254.6 | AH219: 103647441 | AI219: 110648030 | AJ219: 115990360.5 | AK219: 142321489.1 | AL219: 148108455.4 | AM219: 0 | AN219: 0 | AO219: 0 | AP219: 0 | AQ219: 0 | AR219: 0 | AS219: 0 | AT219: 0 | AU219: 0 | AV219: 0 | AW219: 0 | AX219: 0 | AY219: 0 | AZ219: 0 | BA219: 0 | BB219: 0 | BC219: 0 | BD219: 0 | BE219: 0 | BF219: 0 | BG219: 0 | BH219: 0 | BI219: 0
E220: Less: Cash Sweep
E221: Closing Balance | K221: =K217+K218-K219-K220 -> 0 | L221: =L217+L218-L219-L220 -> 1449569599 | M221: 1449569599 | N221: 1449569599 | O221: 1449569599 | P221: 1449569599 | Q221: 1427994927 | R221: 1402307475 | S221: 1388427136 | T221: 1357732454 | U221: 1326436968 | V221: 1275541323 | W221: 1220304829 | X221: 1159329042 | Y221: 1123113365 | Z221: 1085333671 | AA221: 1040916244 | AB221: 988579734.3 | AC221: 956993897.8 | AD221: 901714971.2 | AE221: 821248253.5 | AF221: 734226030.7 | AG221: 620715776.1 | AH221: 517068335 | AI221: 406420305.1 | AJ221: 290429944.5 | AK221: 148108455.4 | AL221: 8.642673492e-07 | AM221: 8.642673492e-07 | AN221: 8.642673492e-07 | AO221: 8.642673492e-07 | AP221: 8.642673492e-07 | AQ221: 8.642673492e-07 | AR221: 8.642673492e-07 | AS221: 8.642673492e-07 | AT221: 8.642673492e-07 | AU221: 8.642673492e-07 | AV221: 8.642673492e-07 | AW221: 8.642673492e-07 | AX221: 8.642673492e-07 | AY221: 8.642673492e-07 | AZ221: 8.642673492e-07 | BA221: 8.642673492e-07 | BB221: 8.642673492e-07 | BC221: 8.642673492e-07 | BD221: 8.642673492e-07 | BE221: 8.642673492e-07 | BF221: 8.642673492e-07 | BG221: 8.642673492e-07 | BH221: 8.642673492e-07 | BI221: 8.642673492e-07
E222: Interest Rate | K222: =K189*K8 -> 0 | L222: =L189*L8 -> 0 | M222: =M189*M8 -> 0 | N222: =N189*N8 -> 0 | O222: =O189*O8 -> 0 | P222: =P189*P8 -> 0 | Q222: =Q189*Q8 -> 0.08530462467 | R222: =R189*R8 -> 0.0853688725 | S222: =S189*S8 -> 0.08543681426 | T222: =T189*T8 -> 0.08644414376 | U222: =U189*U8 -> 0.08692717599 | V222: =V189*V8 -> 0.08762428146 | W222: =W189*W8 -> 0.08886359288 | X222: =X189*X8 -> 0.09000897627 | Y222: =Y189*Y8 -> 0.08939903147 | Z222: =Z189*Z8 -> 0.09050926999 | AA222: =AA189*AA8 -> 0.09120470058 | AB222: =AB189*AB8 -> 0.09242389356 | AC222: =AC189*AC8 -> 0.08984210638 | AD222: =AD189*AD8 -> 0.09055511848 | AE222: =AE189*AE8 -> 0.09451001624 | AF222: =AF189*AF8 -> 0.1009982354 | AG222: =AG189*AG8 -> 0.08826057064 | AH222: =AH189*AH8 -> 0.08870666667 | AI222: =AI189*AI8 -> 0.08870666667 | AJ222: =AJ189*AJ8 -> 0.08870666667 | AK222: =AK189*AK8 -> 0.08870666667 | AL222: =AL189*AL8 -> 0.1774133333 | AM222: =AM189*AM8 -> 0.08870666667 | AN222: =AN189*AN8 -> 0.08870666667 | AO222: =AO189*AO8 -> 0.08870666667 | AP222: =AP189*AP8 -> 0.08870666667 | AQ222: =AQ189*AQ8 -> 0.08870666667 | AR222: =AR189*AR8 -> 0.08870666667 | AS222: =AS189*AS8 -> 0.08870666667 | AT222: =AT189*AT8 -> 0.08870666667 | AU222: =AU189*AU8 -> 0.08870666667 | AV222: =AV189*AV8 -> 0.08870666667 | AW222: =AW189*AW8 -> 0.08870666667 | AX222: =AX189*AX8 -> 0.08870666667 | AY222: =AY189*AY8 -> 0.08870666667 | AZ222: =AZ189*AZ8 -> 0 | BA222: =BA189*BA8 -> 0 | BB222: =BB189*BB8 -> 0 | BC222: =BC189*BC8 -> 0 | BD222: =BD189*BD8 -> 0 | BE222: =BE189*BE8 -> 0 | BF222: =BF189*BF8 -> 0 | BG222: =BG189*BG8 -> 0 | BH222: =BH189*BH8 -> 0 | BI222: =BI189*BI8 -> 0
E223: Interest | K223: =K222*K217 -> 0 | L223: =L222*L217 -> 0 | M223: 0 | N223: 0 | O223: 0 | P223: 0 | Q223: 123654990.5 | R223: 121906316.9 | S223: 119808683.3 | T223: 120021394.9 | U223: 118023847.9 | V223: 116228086.2 | W223: 113349184.9 | X223: 109838388.4 | Y223: 103642893.5 | Z223: 101652170.8 | AA223: 98987532.47 | AB223: 96205532.18 | AC223: 88816085.65 | AD223: 86660695.8 | AE223: 85221096.57 | AF223: 82944624.39 | AG223: 64803208.45 | AH223: 55061627.44 | AI223: 45867408.44 | AJ223: 36052190.53 | AK223: 25763072.28 | AL223: 26276414.77 | AM223: 7.666627566e-08 | AN223: 7.666627566e-08 | AO223: 7.666627566e-08 | AP223: 7.666627566e-08 | AQ223: 7.666627566e-08 | AR223: 7.666627566e-08 | AS223: 7.666627566e-08 | AT223: 7.666627566e-08 | AU223: 7.666627566e-08 | AV223: 7.666627566e-08 | AW223: 7.666627566e-08 | AX223: 7.666627566e-08 | AY223: 7.666627566e-08 | AZ223: 0 | BA223: 0 | BB223: 0 | BC223: 0 | BD223: 0 | BE223: 0 | BF223: 0 | BG223: 0 | BH223: 0 | BI223: 0
D225: Default Cash Flow
E226: Opening Balance | K226: =J229 -> 0 | L226: =K229 -> 0 | M226: 0 | N226: 0 | O226: 0 | P226: 0 | Q226: 0 | R226: 0 | S226: 0 | T226: 0 | U226: 0 | V226: 0 | W226: 0 | X226: 0 | Y226: 0 | Z226: 0 | AA226: 0 | AB226: 0 | AC226: 0 | AD226: 0 | AE226: 0 | AF226: 0 | AG226: 0 | AH226: 0 | AI226: 0 | AJ226: 0 | AK226: 0 | AL226: 0 | AM226: 0 | AN226: 0 | AO226: 0 | AP226: 0 | AQ226: 0 | AR226: 0 | AS226: 0 | AT226: 0 | AU226: 0 | AV226: 0 | AW226: 0 | AX226: 0 | AY226: 0 | AZ226: 0 | BA226: 0 | BB226: 0 | BC226: 0 | BD226: 0 | BE226: 0 | BF226: 0 | BG226: 0 | BH226: 0 | BI226: 0
E227: Add: Defalult
E228: Less: Repayment of Default
E229: Closing Balance | K229: =K226+K227-K228 -> 0 | L229: =L226+L227-L228 -> 0 | M229: 0 | N229: 0 | O229: 0 | P229: 0 | Q229: 0 | R229: 0 | S229: 0 | T229: 0 | U229: 0 | V229: 0 | W229: 0 | X229: 0 | Y229: 0 | Z229: 0 | AA229: 0 | AB229: 0 | AC229: 0 | AD229: 0 | AE229: 0 | AF229: 0 | AG229: 0 | AH229: 0 | AI229: 0 | AJ229: 0 | AK229: 0 | AL229: 0 | AM229: 0 | AN229: 0 | AO229: 0 | AP229: 0 | AQ229: 0 | AR229: 0 | AS229: 0 | AT229: 0 | AU229: 0 | AV229: 0 | AW229: 0 | AX229: 0 | AY229: 0 | AZ229: 0 | BA229: 0 | BB229: 0 | BC229: 0 | BD229: 0 | BE229: 0 | BF229: 0 | BG229: 0 | BH229: 0 | BI229: 0
E230: Interest
D232: Downside Case Cash Flow | K232: =K213 -> 0 | L232: =L213 -> 0 | M232: 0 | N232: 0 | O232: 0 | P232: 0 | Q232: 521374486.5 | R232: 529861629.6 | S232: 479943593 | T232: 541070715.8 | U232: 536056409.1 | V232: 599974191.9 | W232: 605222589.3 | X232: 613222889.3 | Y232: 502092266.7 | Z232: 500560396.8 | AA232: 514823801.9 | AB232: 533265932.2 | AC232: 432242900.4 | AD232: 509563244.3 | AE232: 594819253.4 | AF232: 610180981.4 | AG232: 640145332.4 | AH232: 569765555.8 | AI232: 561890423.9 | AJ232: 545832758.3 | AK232: 603423575.5 | AL232: 626041683.9 | AM232: 658763488.7 | AN232: 681488635.5 | AO232: 713981572.9 | AP232: 726881527.2 | AQ232: 759133796.3 | AR232: 790556312.6 | AS232: 808125237 | AT232: 817646167.9 | AU232: 861650894.2 | AV232: 888926722.4 | AW232: 926487867.7 | AX232: 943918581.7 | AY232: 928517381.9 | AZ232: 0 | BA232: 0 | BB232: 0 | BC232: 0 | BD232: 0 | BE232: 0 | BF232: 0 | BG232: 0 | BH232: 0 | BI232: 0
D234: Less: Scheduled Debt Service | K234: =K219+K223 -> 0 | L234: =L219+L223 -> 0 | M234: 0 | N234: 0 | O234: 0 | P234: 0 | Q234: 145229662 | R234: 147593768.7 | S234: 133689023.1 | T234: 150716076.8 | U234: 149319334 | V234: 167123730.3 | W234: 168585679.5 | X234: 170814175.3 | Y234: 139858570.1 | Z234: 139431865.4 | AA234: 143404958.7 | AB234: 148542042.4 | AC234: 120401922.1 | AD234: 141939622.4 | AE234: 165687814.3 | AF234: 169966847.2 | AG234: 178313463.1 | AH234: 158709068.5 | AI234: 156515438.4 | AJ234: 152042551.1 | AK234: 168084561.4 | AL234: 174384870.2 | AM234: 7.666627566e-08 | AN234: 7.666627566e-08 | AO234: 7.666627566e-08 | AP234: 7.666627566e-08 | AQ234: 7.666627566e-08 | AR234: 7.666627566e-08 | AS234: 7.666627566e-08 | AT234: 7.666627566e-08 | AU234: 7.666627566e-08 | AV234: 7.666627566e-08 | AW234: 7.666627566e-08 | AX234: 7.666627566e-08 | AY234: 7.666627566e-08 | AZ234: 0 | BA234: 0 | BB234: 0 | BC234: 0 | BD234: 0 | BE234: 0 | BF234: 0 | BG234: 0 | BH234: 0 | BI234: 0
D235: Less: Interest on Defaulted Debt Service | K235: =K229 -> 0 | L235: =L229 -> 0 | M235: 0 | N235: 0 | O235: 0 | P235: 0 | Q235: 0 | R235: 0 | S235: 0 | T235: 0 | U235: 0 | V235: 0 | W235: 0 | X235: 0 | Y235: 0 | Z235: 0 | AA235: 0 | AB235: 0 | AC235: 0 | AD235: 0 | AE235: 0 | AF235: 0 | AG235: 0 | AH235: 0 | AI235: 0 | AJ235: 0 | AK235: 0 | AL235: 0 | AM235: 0 | AN235: 0 | AO235: 0 | AP235: 0 | AQ235: 0 | AR235: 0 | AS235: 0 | AT235: 0 | AU235: 0 | AV235: 0 | AW235: 0 | AX235: 0 | AY235: 0 | AZ235: 0 | BA235: 0 | BB235: 0 | BC235: 0 | BD235: 0 | BE235: 0 | BF235: 0 | BG235: 0 | BH235: 0 | BI235: 0
D236: Cash Flow After Debt Service | K236: =K232-K234-K235 -> 0 | L236: =L232-L234-L235 -> 0 | M236: 0 | N236: 0 | O236: 0 | P236: 0 | Q236: 376144824.5 | R236: 382267860.9 | S236: 346254569.9 | T236: 390354639 | U236: 386737075.1 | V236: 432850461.6 | W236: 436636909.8 | X236: 442408714 | Y236: 362233696.6 | Z236: 361128531.4 | AA236: 371418843.1 | AB236: 384723889.8 | AC236: 311840978.3 | AD236: 367623622 | AE236: 429131439.1 | AF236: 440214134.2 | AG236: 461831869.3 | AH236: 411056487.3 | AI236: 405374985.5 | AJ236: 393790207.2 | AK236: 435339014.1 | AL236: 451656813.7 | AM236: 658763488.7 | AN236: 681488635.5 | AO236: 713981572.9 | AP236: 726881527.2 | AQ236: 759133796.3 | AR236: 790556312.6 | AS236: 808125237 | AT236: 817646167.9 | AU236: 861650894.2 | AV236: 888926722.4 | AW236: 926487867.7 | AX236: 943918581.7 | AY236: 928517381.9 | AZ236: 0 | BA236: 0 | BB236: 0 | BC236: 0 | BD236: 0 | BE236: 0 | BF236: 0 | BG236: 0 | BH236: 0 | BI236: 0
D237: Add: Default if Cash Flow is Negative (Use Max, 0)
D238: Less: Repayment of Default if Positive (Use Min and Max)
D239: Net Cash Flow After Debt Service | K239: =K236+K237-K238 -> 0 | L239: =L236+L237-L238 -> 0 | M239: 0 | N239: 0 | O239: 0 | P239: 0 | Q239: 376144824.5 | R239: 382267860.9 | S239: 346254569.9 | T239: 390354639 | U239: 386737075.1 | V239: 432850461.6 | W239: 436636909.8 | X239: 442408714 | Y239: 362233696.6 | Z239: 361128531.4 | AA239: 371418843.1 | AB239: 384723889.8 | AC239: 311840978.3 | AD239: 367623622 | AE239: 429131439.1 | AF239: 440214134.2 | AG239: 461831869.3 | AH239: 411056487.3 | AI239: 405374985.5 | AJ239: 393790207.2 | AK239: 435339014.1 | AL239: 451656813.7 | AM239: 658763488.7 | AN239: 681488635.5 | AO239: 713981572.9 | AP239: 726881527.2 | AQ239: 759133796.3 | AR239: 790556312.6 | AS239: 808125237 | AT239: 817646167.9 | AU239: 861650894.2 | AV239: 888926722.4 | AW239: 926487867.7 | AX239: 943918581.7 | AY239: 928517381.9 | AZ239: 0 | BA239: 0 | BB239: 0 | BC239: 0 | BD239: 0 | BE239: 0 | BF239: 0 | BG239: 0 | BH239: 0 | BI239: 0
D240: Less: Cash Flow Sweep
D241: Net Cash Flow after Sweep | K241: =K239-K240 -> 0 | L241: =L239-L240 -> 0 | M241: 0 | N241: 0 | O241: 0 | P241: 0 | Q241: 376144824.5 | R241: 382267860.9 | S241: 346254569.9 | T241: 390354639 | U241: 386737075.1 | V241: 432850461.6 | W241: 436636909.8 | X241: 442408714 | Y241: 362233696.6 | Z241: 361128531.4 | AA241: 371418843.1 | AB241: 384723889.8 | AC241: 311840978.3 | AD241: 367623622 | AE241: 429131439.1 | AF241: 440214134.2 | AG241: 461831869.3 | AH241: 411056487.3 | AI241: 405374985.5 | AJ241: 393790207.2 | AK241: 435339014.1 | AL241: 451656813.7 | AM241: 658763488.7 | AN241: 681488635.5 | AO241: 713981572.9 | AP241: 726881527.2 | AQ241: 759133796.3 | AR241: 790556312.6 | AS241: 808125237 | AT241: 817646167.9 | AU241: 861650894.2 | AV241: 888926722.4 | AW241: 926487867.7 | AX241: 943918581.7 | AY241: 928517381.9 | AZ241: 0 | BA241: 0 | BB241: 0 | BC241: 0 | BD241: 0 | BE241: 0 | BF241: 0 | BG241: 0 | BH241: 0 | BI241: 0
D243: Equity Paid In Capital | K243: =K109 -> 0 | L243: =L109 -> 79035000 | M243: 1986000 | N243: 550148000 | O243: -1576000 | P243: -185241000 | Q243: 0 | R243: 0 | S243: 0 | T243: 0 | U243: 0 | V243: 0 | W243: 0 | X243: 0 | Y243: 0 | Z243: 0 | AA243: 0 | AB243: 0 | AC243: 0 | AD243: 0 | AE243: 0 | AF243: 0 | AG243: 0 | AH243: 0 | AI243: 0 | AJ243: 0 | AK243: 0 | AL243: 0 | AM243: 0 | AN243: 0 | AO243: 0 | AP243: 0 | AQ243: 0 | AR243: 0 | AS243: 0 | AT243: 0 | AU243: 0 | AV243: 0 | AW243: 0 | AX243: 0 | AY243: 0 | AZ243: 0 | BA243: 0 | BB243: 0 | BC243: 0 | BD243: 0 | BE243: 0 | BF243: 0 | BG243: 0 | BH243: 0 | BI243: 0
D244: Equity Cash Flow | K244: =K241-K243 -> 0 | L244: =L241-L243 -> -79035000 | M244: -1986000 | N244: -550148000 | O244: 1576000 | P244: 185241000 | Q244: 376144824.5 | R244: 382267860.9 | S244: 346254569.9 | T244: 390354639 | U244: 386737075.1 | V244: 432850461.6 | W244: 436636909.8 | X244: 442408714 | Y244: 362233696.6 | Z244: 361128531.4 | AA244: 371418843.1 | AB244: 384723889.8 | AC244: 311840978.3 | AD244: 367623622 | AE244: 429131439.1 | AF244: 440214134.2 | AG244: 461831869.3 | AH244: 411056487.3 | AI244: 405374985.5 | AJ244: 393790207.2 | AK244: 435339014.1 | AL244: 451656813.7 | AM244: 658763488.7 | AN244: 681488635.5 | AO244: 713981572.9 | AP244: 726881527.2 | AQ244: 759133796.3 | AR244: 790556312.6 | AS244: 808125237 | AT244: 817646167.9 | AU244: 861650894.2 | AV244: 888926722.4 | AW244: 926487867.7 | AX244: 943918581.7 | AY244: 928517381.9 | AZ244: 0 | BA244: 0 | BB244: 0 | BC244: 0 | BD244: 0 | BE244: 0 | BF244: 0 | BG244: 0 | BH244: 0 | BI244: 0
D246: Equity IRR | H246: =IRR(K244:BI244) -> 0.3523849247
B268: Cash Flow Statement Post-COD - Cash Waterfall
C270: Depreciation Adjusted for Financing Fees
D271: Depreciation without Added Fees | F271: USD | I271: =SUM(L271:XFD271) -> 735465000 | L271: =L74 -> 0 | M271: =M74 -> 0 | N271: =N74 -> 0 | O271: =O74 -> 0 | P271: =P74 -> 0 | Q271: =Q74 -> 21013285.71 | R271: =R74 -> 21013285.71 | S271: =S74 -> 21013285.71 | T271: =T74 -> 21013285.71 | U271: =U74 -> 21013285.71 | V271: =V74 -> 21013285.71 | W271: =W74 -> 21013285.71 | X271: =X74 -> 21013285.71 | Y271: =Y74 -> 21013285.71 | Z271: =Z74 -> 21013285.71 | AA271: =AA74 -> 21013285.71 | AB271: =AB74 -> 21013285.71 | AC271: =AC74 -> 21013285.71 | AD271: =AD74 -> 21013285.71 | AE271: =AE74 -> 21013285.71 | AF271: =AF74 -> 21013285.71 | AG271: =AG74 -> 21013285.71 | AH271: =AH74 -> 21013285.71 | AI271: =AI74 -> 21013285.71 | AJ271: =AJ74 -> 21013285.71 | AK271: =AK74 -> 21013285.71 | AL271: =AL74 -> 21013285.71 | AM271: =AM74 -> 21013285.71 | AN271: =AN74 -> 21013285.71 | AO271: =AO74 -> 21013285.71 | AP271: =AP74 -> 21013285.71 | AQ271: =AQ74 -> 21013285.71 | AR271: =AR74 -> 21013285.71 | AS271: =AS74 -> 21013285.71 | AT271: =AT74 -> 21013285.71 | AU271: =AU74 -> 21013285.71 | AV271: =AV74 -> 21013285.71 | AW271: =AW74 -> 21013285.71 | AX271: =AX74 -> 21013285.71 | AY271: =AY74 -> 21013285.71 | AZ271: =AZ74 -> 0 | BA271: =BA74 -> 0 | BB271: =BB74 -> 0 | BC271: =BC74 -> 0 | BD271: =BD74 -> 0 | BE271: =BE74 -> 0 | BF271: =BF74 -> 0 | BG271: =BG74 -> 0 | BH271: =BH74 -> 0 | BI271: =BI74 -> 0
D272: Financing Costs, Legal Fees | F272: USD | L272: =L99+L100 -> 0 | M272: =M99+M100 -> 76134000 | N272: =N99+N100 -> 86816000 | O272: =O99+O100 -> 94955000 | P272: =P99+P100 -> 111556000 | Q272: =Q99+Q100 -> 0 | R272: =R99+R100 -> 0 | S272: =S99+S100 -> 0 | T272: =T99+T100 -> 0 | U272: =U99+U100 -> 0 | V272: =V99+V100 -> 0 | W272: =W99+W100 -> 0 | X272: =X99+X100 -> 0 | Y272: =Y99+Y100 -> 0 | Z272: =Z99+Z100 -> 0 | AA272: =AA99+AA100 -> 0 | AB272: =AB99+AB100 -> 0 | AC272: =AC99+AC100 -> 0 | AD272: =AD99+AD100 -> 0 | AE272: =AE99+AE100 -> 0 | AF272: =AF99+AF100 -> 0 | AG272: =AG99+AG100 -> 0 | AH272: =AH99+AH100 -> 0 | AI272: =AI99+AI100 -> 0 | AJ272: =AJ99+AJ100 -> 0 | AK272: =AK99+AK100 -> 0 | AL272: =AL99+AL100 -> 0 | AM272: =AM99+AM100 -> 0 | AN272: =AN99+AN100 -> 0 | AO272: =AO99+AO100 -> 0 | AP272: =AP99+AP100 -> 0 | AQ272: =AQ99+AQ100 -> 0 | AR272: =AR99+AR100 -> 0 | AS272: =AS99+AS100 -> 0 | AT272: =AT99+AT100 -> 0 | AU272: =AU99+AU100 -> 0 | AV272: =AV99+AV100 -> 0 | AW272: =AW99+AW100 -> 0 | AX272: =AX99+AX100 -> 0 | AY272: =AY99+AY100 -> 0 | AZ272: =AZ99+AZ100 -> 0 | BA272: =BA99+BA100 -> 0 | BB272: =BB99+BB100 -> 0 | BC272: =BC99+BC100 -> 0 | BD272: =BD99+BD100 -> 0 | BE272: =BE99+BE100 -> 0 | BF272: =BF99+BF100 -> 0 | BG272: =BG99+BG100 -> 0 | BH272: =BH99+BH100 -> 0 | BI272: =BI99+BI100 -> 0
D273: Accumulated Financing Costs | F273: USD | L273: =K273+L272 -> 0 | M273: =L273+M272 -> 76134000 | N273: 162950000 | O273: 257905000 | P273: 369461000 | Q273: =P273+Q272 -> 369461000 | R273: =Q273+R272 -> 369461000 | S273: =R273+S272 -> 369461000 | T273: =S273+T272 -> 369461000 | U273: =T273+U272 -> 369461000 | V273: =U273+V272 -> 369461000 | W273: =V273+W272 -> 369461000 | X273: =W273+X272 -> 369461000 | Y273: =X273+Y272 -> 369461000 | Z273: =Y273+Z272 -> 369461000 | AA273: =Z273+AA272 -> 369461000 | AB273: =AA273+AB272 -> 369461000 | AC273: =AB273+AC272 -> 369461000 | AD273: =AC273+AD272 -> 369461000 | AE273: =AD273+AE272 -> 369461000 | AF273: =AE273+AF272 -> 369461000 | AG273: =AF273+AG272 -> 369461000 | AH273: =AG273+AH272 -> 369461000 | AI273: =AH273+AI272 -> 369461000 | AJ273: =AI273+AJ272 -> 369461000 | AK273: =AJ273+AK272 -> 369461000 | AL273: =AK273+AL272 -> 369461000 | AM273: =AL273+AM272 -> 369461000 | AN273: =AM273+AN272 -> 369461000 | AO273: =AN273+AO272 -> 369461000 | AP273: =AO273+AP272 -> 369461000 | AQ273: =AP273+AQ272 -> 369461000 | AR273: =AQ273+AR272 -> 369461000 | AS273: =AR273+AS272 -> 369461000 | AT273: =AS273+AT272 -> 369461000 | AU273: =AT273+AU272 -> 369461000 | AV273: =AU273+AV272 -> 369461000 | AW273: =AV273+AW272 -> 369461000 | AX273: =AW273+AX272 -> 369461000 | AY273: =AX273+AY272 -> 369461000 | AZ273: =AY273+AZ272 -> 369461000 | BA273: =AZ273+BA272 -> 369461000 | BB273: =BA273+BB272 -> 369461000 | BC273: =BB273+BC272 -> 369461000 | BD273: =BC273+BD272 -> 369461000 | BE273: =BD273+BE272 -> 369461000 | BF273: =BE273+BF272 -> 369461000 | BG273: =BF273+BG272 -> 369461000 | BH273: =BG273+BH272 -> 369461000 | BI273: =BH273+BI272 -> 369461000
D274: Depreciation on Financing Costs | F274: USD | I274: =SUM(L274:XFD274) -> 369461000 | L274: =L273*L69 -> 0 | M274: =M273*M69 -> 0 | N274: =N273*N69 -> 0 | O274: =O273*O69 -> 0 | P274: =P273*P69 -> 0 | Q274: =Q273*Q69 -> 10556028.57 | R274: =R273*R69 -> 10556028.57 | S274: =S273*S69 -> 10556028.57 | T274: =T273*T69 -> 10556028.57 | U274: =U273*U69 -> 10556028.57 | V274: =V273*V69 -> 10556028.57 | W274: =W273*W69 -> 10556028.57 | X274: =X273*X69 -> 10556028.57 | Y274: =Y273*Y69 -> 10556028.57 | Z274: =Z273*Z69 -> 10556028.57 | AA274: =AA273*AA69 -> 10556028.57 | AB274: =AB273*AB69 -> 10556028.57 | AC274: =AC273*AC69 -> 10556028.57 | AD274: =AD273*AD69 -> 10556028.57 | AE274: =AE273*AE69 -> 10556028.57 | AF274: =AF273*AF69 -> 10556028.57 | AG274: =AG273*AG69 -> 10556028.57 | AH274: =AH273*AH69 -> 10556028.57 | AI274: =AI273*AI69 -> 10556028.57 | AJ274: =AJ273*AJ69 -> 10556028.57 | AK274: =AK273*AK69 -> 10556028.57 | AL274: =AL273*AL69 -> 10556028.57 | AM274: =AM273*AM69 -> 10556028.57 | AN274: =AN273*AN69 -> 10556028.57 | AO274: =AO273*AO69 -> 10556028.57 | AP274: =AP273*AP69 -> 10556028.57 | AQ274: =AQ273*AQ69 -> 10556028.57 | AR274: =AR273*AR69 -> 10556028.57 | AS274: =AS273*AS69 -> 10556028.57 | AT274: =AT273*AT69 -> 10556028.57 | AU274: =AU273*AU69 -> 10556028.57 | AV274: =AV273*AV69 -> 10556028.57 | AW274: =AW273*AW69 -> 10556028.57 | AX274: =AX273*AX69 -> 10556028.57 | AY274: =AY273*AY69 -> 10556028.57 | AZ274: =AZ273*AZ69 -> 0 | BA274: =BA273*BA69 -> 0 | BB274: =BB273*BB69 -> 0 | BC274: =BC273*BC69 -> 0 | BD274: =BD273*BD69 -> 0 | BE274: =BE273*BE69 -> 0 | BF274: =BF273*BF69 -> 0 | BG274: =BG273*BG69 -> 0 | BH274: =BH273*BH69 -> 0 | BI274: =BI273*BI69 -> 0
D275: Total Depreciation | I275: =SUM(L275:XFD275) -> 1104926000 | L275: =L274+L271 -> 0 | M275: =M274+M271 -> 0 | N275: 0 | O275: 0 | P275: 0 | Q275: 31569314.29 | R275: 31569314.29 | S275: 31569314.29 | T275: 31569314.29 | U275: 31569314.29 | V275: 31569314.29 | W275: 31569314.29 | X275: 31569314.29 | Y275: 31569314.29 | Z275: 31569314.29 | AA275: 31569314.29 | AB275: 31569314.29 | AC275: 31569314.29 | AD275: 31569314.29 | AE275: 31569314.29 | AF275: 31569314.29 | AG275: 31569314.29 | AH275: 31569314.29 | AI275: 31569314.29 | AJ275: 31569314.29 | AK275: 31569314.29 | AL275: 31569314.29 | AM275: 31569314.29 | AN275: 31569314.29 | AO275: 31569314.29 | AP275: 31569314.29 | AQ275: 31569314.29 | AR275: 31569314.29 | AS275: 31569314.29 | AT275: 31569314.29 | AU275: 31569314.29 | AV275: 31569314.29 | AW275: 31569314.29 | AX275: 31569314.29 | AY275: 31569314.29 | AZ275: 0 | BA275: 0 | BB275: 0 | BC275: 0 | BD275: 0 | BE275: 0 | BF275: 0 | BG275: 0 | BH275: 0 | BI275: 0
C277: Taxes Adjusted for Interest and Total Depreciation
D278: EBITDA | F278: USD | I278: =SUM(L278:XFD278) -> 2.342565045e+10 | L278: =L76 -> 0 | M278: =M76 -> 0 | N278: =N76 -> 8860293.392 | O278: =O76 -> 249129765.4 | P278: =P76 -> 490207597.8 | Q278: =Q76 -> 521374486.5 | R278: =R76 -> 529861629.6 | S278: =S76 -> 479943593 | T278: =T76 -> 541070715.8 | U278: =U76 -> 536056409.1 | V278: =V76 -> 599974191.9 | W278: =W76 -> 605222589.3 | X278: =X76 -> 613222889.3 | Y278: =Y76 -> 502092266.7 | Z278: =Z76 -> 500560396.8 | AA278: =AA76 -> 514823801.9 | AB278: =AB76 -> 533265932.2 | AC278: =AC76 -> 432242900.4 | AD278: =AD76 -> 509563244.3 | AE278: =AE76 -> 594819253.4 | AF278: =AF76 -> 610180981.4 | AG278: =AG76 -> 640145332.4 | AH278: =AH76 -> 569765555.8 | AI278: =AI76 -> 561890423.9 | AJ278: =AJ76 -> 545832758.3 | AK278: =AK76 -> 603423575.5 | AL278: =AL76 -> 626041683.9 | AM278: =AM76 -> 658763488.7 | AN278: =AN76 -> 681488635.5 | AO278: =AO76 -> 713981572.9 | AP278: =AP76 -> 726881527.2 | AQ278: =AQ76 -> 759133796.3 | AR278: =AR76 -> 790556312.6 | AS278: =AS76 -> 808125237 | AT278: =AT76 -> 817646167.9 | AU278: =AU76 -> 861650894.2 | AV278: =AV76 -> 888926722.4 | AW278: =AW76 -> 926487867.7 | AX278: =AX76 -> 943918581.7 | AY278: =AY76 -> 928517381.9 | AZ278: =AZ76 -> 0 | BA278: =BA76 -> 0 | BB278: =BB76 -> 0 | BC278: =BC76 -> 0 | BD278: =BD76 -> 0 | BE278: =BE76 -> 0 | BF278: =BF76 -> 0 | BG278: =BG76 -> 0 | BH278: =BH76 -> 0 | BI278: =BI76 -> 0
... 38 more rows

Sheet Cost Structure
H3: =_xlfn.SEQUENCE(,31,1998) -> 1998 | I3: 1999 | J3: 2000 | K3: 2001 | L3: 2002 | M3: 2003 | N3: 2004 | O3: 2005 | P3: 2006 | Q3: 2007 | R3: 2008 | S3: 2009 | T3: 2010 | U3: 2011 | V3: 2012 | W3: 2013 | X3: 2014 | Y3: 2015 | Z3: 2016 | AA3: 2017 | AB3: 2018 | AC3: 2019 | AD3: 2020 | AE3: 2021 | AF3: 2022 | AG3: 2023 | AH3: 2024 | AI3: 2025 | AJ3: 2026 | AK3: 2027 | AL3: 2028
B5: Production | E5: BBL | H5: =InputS!K24:AU24 -> 6101320.901 | I5: 32529112.96 | J5: 59475443.79 | K5: 41064646.46 | L5: 41069458.13 | M5: 41098763.74 | N5: 41096316.14 | O5: 41118758.17 | P5: 41138520.41 | Q5: 41156565.03 | R5: 41173406.19 | S5: 41165364.12 | T5: 41182495.67 | U5: 41200225.48 | V5: 41196536.56 | W5: 41217757.51 | X5: 41244527.9 | Y5: 41271942.06 | Z5: 41299946.35 | AA5: 41328594.42 | AB5: 41357886.27 | AC5: 41387768.24 | AD5: 41945225.32 | AE5: 41976448.5 | AF5: 42008369.1 | AG5: 42040987.12 | AH5: 42074356.22 | AI5: 42108422.75 | AJ5: 42143240.34 | AK5: 42178862.66 | AL5: 42215182.4 | AM5: 42252360.52 | AN5: 42290289.7 | AO5: 42329077.25 | AP5: 42368723.18 | AQ5: 42409227.47 | AR5: 42450590.13
B7: O&M Expenses | E7: USD | H7: =TRANSPOSE(Exhibit10!H13:H49)*1000 -> 74040000 | I7: 268111000 | J7: 486627000 | K7: 184391000 | L7: 194443000 | M7: 231823000 | N7: 212016000 | O7: 230906000 | P7: 211575000 | Q7: 226119000 | R7: 240008000 | S7: 322101000 | T7: 341400000 | U7: 352421000 | V7: 361937000 | W7: 439321000 | X7: 410357000 | Y7: 377764000 | Z7: 386303000 | AA7: 387497000 | AB7: 443380000 | AC7: 463444000 | AD7: 498808000 | AE7: 482977000 | AF7: 487482000 | AG7: 489066000 | AH7: 494610000 | AI7: 495196000 | AJ7: 507476000 | AK7: 509408000 | AL7: 512442000 | AM7: 523980000 | AN7: 540751000 | AO7: 538685000 | AP7: 546816000 | AQ7: 549864000 | AR7: 565083000
I8: =I7/H7-1 -> 2.621164236 | J8: =J7/I7-1 -> 0.8150206444 | K8: -0.6210834993 | L8: 0.05451459128 | M8: 0.1922414281 | N8: -0.08544018497 | O8: 0.08909704928 | P8: -0.08371804977 | Q8: 0.068741581 | R8: 0.0614234098 | S8: 0.3420427652 | T8: 0.05991598908 | U8: 0.0322817809 | V8: 0.02700179615 | W8: 0.213805165 | X8: -0.06592901318 | Y8: -0.07942596325 | Z8: 0.02260405968 | AA8: 0.003090838021 | AB8: 0.1442153101 | AC8: 0.04525237945 | AD8: 0.07630695402 | AE8: -0.03173766259 | AF8: 0.009327566323 | AG8: 0.003249350745 | AH8: 0.01133589332 | AI8: 0.00118477184 | AJ8: 0.0247982617 | AK8: 0.003807076591 | AL8: 0.005955933162 | AM8: 0.02251571885 | AN8: 0.03200694683 | AO8: -0.003820612445 | AP8: 0.01509416449 | AQ8: 0.005574087079 | AR8: 0.02767775304
B9: Total Capital Expenditures | E9: USD | G9: =(Exhibit7!J12+Exhibit7!J14)*1000 -> 1916940000
B11: Discount Rate | E11: % | F11: 0.08 | G11: =NPV(F11,_xlfn.ANCHORARRAY(H7)) -> 3628642465
B12: Total Costs | G12: =G9+G11 -> 5545582465
B14: PV of Production | E14: BBL | F14: =F11-3% -> 0.05 | G14: =NPV(F14,_xlfn.ANCHORARRAY(H5)) -> 666120388.6
B16: Break-even Cost | E16: USD/BBL | G16: =G12/G14 -> 8.325195505

Sheet Oil Prices
G1: Crude oil, average | H1: Crude oil, Brent | I1: Crude oil, Dubai | J1: Crude oil, WTI
G2: ($/bbl) | H2: ($/bbl) | I2: ($/bbl) | J2: ($/bbl) | N2: 0.9
G3: CRUDE_PETRO | H3: CRUDE_BRENT | I3: CRUDE_DUBAI | J3: CRUDE_WTI | M3: Nominal | N3: Maya | O3: Base | P3: Applied
D4: 1960M01 | E4: 1960-01-01 | F4: =YEAR(E4) -> 1960 | G4: 1.630000114 | H4: 1.630000114 | I4: 1.630000114 | J4: …
D5: 1960M02 | E5: =EDATE(E4,1) -> 1960-02-01 | F5: =YEAR(E5) -> 1960 | G5: 1.630000114 | H5: 1.630000114 | I5: 1.630000114 | J5: … | L5: =_xlfn.SEQUENCE(50,,1985) -> 1985 | M5: =AVERAGEIF(F:F,L5,J:J) -> 27.7625 | N5: =M5*$N$2 -> 24.98625
D6: 1960M03 | E6: =EDATE(E5,1) -> 1960-03-01 | F6: 1960 | G6: 1.630000114 | H6: 1.630000114 | I6: 1.630000114 | J6: … | L6: 1986 | M6: =AVERAGEIF(F:F,L6,J:J) -> 15.08333333 | N6: 13.575
D7: 1960M04 | E7: 1960-04-01 | F7: 1960 | G7: 1.630000114 | H7: 1.630000114 | I7: 1.630000114 | J7: … | L7: 1987 | M7: 19.15833333 | N7: 17.2425
D8: 1960M05 | E8: 1960-05-01 | F8: 1960 | G8: 1.630000114 | H8: 1.630000114 | I8: 1.630000114 | J8: … | L8: 1988 | M8: 15.96666667 | N8: 14.37
D9: 1960M06 | E9: 1960-06-01 | F9: 1960 | G9: 1.630000114 | H9: 1.630000114 | I9: 1.630000114 | J9: … | L9: 1989 | M9: 19.59583333 | N9: 17.63625
D10: 1960M07 | E10: 1960-07-01 | F10: 1960 | G10: 1.630000114 | H10: 1.630000114 | I10: 1.630000114 | J10: … | L10: 1990 | M10: 24.49166667 | N10: 22.0425
D11: 1960M08 | E11: 1960-08-01 | F11: 1960 | G11: 1.630000114 | H11: 1.630000114 | I11: 1.630000114 | J11: … | L11: 1991 | M11: 21.48333333 | N11: 19.335
D12: 1960M09 | E12: 1960-09-01 | F12: 1960 | G12: 1.630000114 | H12: 1.630000114 | I12: 1.630000114 | J12: … | L12: 1992 | M12: 20.5625 | N12: 18.50625
D13: 1960M10 | E13: 1960-10-01 | F13: 1960 | G13: 1.630000114 | H13: 1.630000114 | I13: 1.630000114 | J13: … | L13: 1993 | M13: 18.5625 | N13: 16.70625
D14: 1960M11 | E14: 1960-11-01 | F14: 1960 | G14: 1.630000114 | H14: 1.630000114 | I14: 1.630000114 | J14: … | L14: 1994 | M14: 17.16333333 | N14: 15.447
D15: 1960M12 | E15: 1960-12-01 | F15: 1960 | G15: 1.630000114 | H15: 1.630000114 | I15: 1.630000114 | J15: … | L15: 1995 | M15: 18.36916667 | N15: 16.53225
D16: 1961M01 | E16: 1961-01-01 | F16: 1961 | G16: 1.57 | H16: 1.57 | I16: 1.57 | J16: … | L16: 1996 | M16: 22.07 | N16: 19.863 | O16: =TRANSPOSE(InputS!I9:AU9) -> 12.25 | P16: =TRANSPOSE(InputS!I15:AU15) -> 12.25
D17: 1961M02 | E17: 1961-02-01 | F17: 1961 | G17: 1.57 | H17: 1.57 | I17: 1.57 | J17: … | L17: 1997 | M17: 20.32583651 | N17: 18.29325286 | O17: 12.56 | P17: 12.56
D18: 1961M03 | E18: 1961-03-01 | F18: 1961 | G18: 1.57 | H18: 1.57 | I18: 1.57 | J18: … | L18: 1998 | M18: 14.3492 | N18: 12.91428 | O18: 12.87 | P18: 12.87
D19: 1961M04 | E19: 1961-04-01 | F19: 1961 | G19: 1.57 | H19: 1.57 | I19: 1.57 | J19: … | L19: 1999 | M19: 19.24083333 | N19: 17.31675 | O19: 13.19 | P19: 13.19
D20: 1961M05 | E20: 1961-05-01 | F20: 1961 | G20: 1.57 | H20: 1.57 | I20: 1.57 | J20: … | L20: 2000 | M20: 30.332125 | N20: 27.2989125 | O20: 13.52 | P20: 13.52
D21: 1961M06 | E21: 1961-06-01 | F21: 1961 | G21: 1.57 | H21: 1.57 | I21: 1.57 | J21: … | L21: 2001 | M21: 25.91908289 | N21: 23.3271746 | O21: 13.86 | P21: 13.86
D22: 1961M07 | E22: 1961-07-01 | F22: 1961 | G22: 1.57 | H22: 1.57 | I22: 1.57 | J22: … | L22: 2002 | M22: 26.0931675 | N22: 23.48385075 | O22: 14.21 | P22: 14.21
D23: 1961M08 | E23: 1961-08-01 | F23: 1961 | G23: 1.57 | H23: 1.57 | I23: 1.57 | J23: … | L23: 2003 | M23: 31.1071782 | N23: 27.99646038 | O23: 14.56 | P23: 14.56
D24: 1961M09 | E24: 1961-09-01 | F24: 1961 | G24: 1.57 | H24: 1.57 | I24: 1.57 | J24: … | L24: 2004 | M24: 41.44361734 | N24: 37.29925561 | O24: 14.93 | P24: 14.93
D25: 1961M10 | E25: 1961-10-01 | F25: 1961 | G25: 1.57 | H25: 1.57 | I25: 1.57 | J25: … | L25: 2005 | M25: 56.44478447 | N25: 50.80030602 | O25: 15.3 | P25: 15.3
D26: 1961M11 | E26: 1961-11-01 | F26: 1961 | G26: 1.57 | H26: 1.57 | I26: 1.57 | J26: … | L26: 2006 | M26: 66.0425842 | N26: 59.43832578 | O26: 15.68 | P26: 15.68
D27: 1961M12 | E27: 1961-12-01 | F27: 1961 | G27: 1.57 | H27: 1.57 | I27: 1.57 | J27: … | L27: 2007 | M27: 72.28445261 | N27: 65.05600734 | O27: 16.07 | P27: 16.07
D28: 1962M01 | E28: 1962-01-01 | F28: 1962 | G28: 1.52 | H28: 1.52 | I28: 1.52 | J28: … | L28: 2008 | M28: 99.55774363 | N28: 89.60196926 | O28: 16.47 | P28: 16.47
D29: 1962M02 | E29: 1962-02-01 | F29: 1962 | G29: 1.52 | H29: 1.52 | I29: 1.52 | J29: … | L29: 2009 | M29: 61.65364 | N29: 55.488276 | O29: 16.89 | P29: 16.89
D30: 1962M03 | E30: 1962-03-01 | F30: 1962 | G30: 1.52 | H30: 1.52 | I30: 1.52 | J30: … | L30: 2010 | M30: 79.42553055 | N30: 71.4829775 | O30: 17.31 | P30: 17.31
D31: 1962M04 | E31: 1962-04-01 | F31: 1962 | G31: 1.52 | H31: 1.52 | I31: 1.52 | J31: … | L31: 2011 | M31: 95.05432893 | N31: 85.54889603 | O31: 17.74 | P31: 17.74
D32: 1962M05 | E32: 1962-05-01 | F32: 1962 | G32: 1.52 | H32: 1.52 | I32: 1.52 | J32: … | L32: 2012 | M32: 94.15887843 | N32: 84.74299059 | O32: 18.19 | P32: 18.19
D33: 1962M06 | E33: 1962-06-01 | F33: 1962 | G33: 1.52 | H33: 1.52 | I33: 1.52 | J33: … | L33: 2013 | M33: 97.94276561 | N33: 88.14848905 | O33: 18.64 | P33: 18.64
D34: 1962M07 | E34: 1962-07-01 | F34: 1962 | G34: 1.52 | H34: 1.52 | I34: 1.52 | J34: … | L34: 2014 | M34: 93.1125 | N34: 83.80125 | O34: 18.64 | P34: 19.1992
D35: 1962M08 | E35: 1962-08-01 | F35: 1962 | G35: 1.52 | H35: 1.52 | I35: 1.52 | J35: … | L35: 2015 | M35: =AVERAGEIF(F:F,L35,J:J) -> 48.70916667 | N35: 43.83825 | O35: 18.64 | P35: 19.775176
D36: 1962M09 | E36: 1962-09-01 | F36: 1962 | G36: 1.52 | H36: 1.52 | I36: 1.52 | J36: … | L36: 2016 | M36: 43.1875 | N36: 38.86875 | O36: 18.64 | P36: 20.36843128
D37: 1962M10 | E37: 1962-10-01 | F37: 1962 | G37: 1.52 | H37: 1.52 | I37: 1.52 | J37: … | L37: 2017 | M37: 50.90666667 | N37: 45.816 | O37: 18.64 | P37: 20.97948422
D38: 1962M11 | E38: 1962-11-01 | F38: 1962 | G38: 1.52 | H38: 1.52 | I38: 1.52 | J38: … | L38: 2018 | M38: 64.81916667 | N38: 58.33725 | O38: 18.64 | P38: 21.60886874
D39: 1962M12 | E39: 1962-12-01 | F39: 1962 | G39: 1.52 | H39: 1.52 | I39: 1.52 | J39: … | L39: 2019 | M39: 57.01333333 | N39: 51.312 | O39: 18.64 | P39: 22.25713481
D40: 1963M01 | E40: 1963-01-01 | F40: 1963 | G40: 1.5 | H40: 1.5 | I40: 1.5 | J40: … | L40: 2020 | M40: 39.30833333 | N40: 35.3775 | O40: 18.64 | P40: 22.92484885
D41: 1963M02 | E41: 1963-02-01 | F41: 1963 | G41: 1.5 | H41: 1.5 | I41: 1.5 | J41: … | L41: 2021 | M41: =AVERAGEIF(F:F,L41,J:J) -> 67.96333333 | N41: 61.167 | O41: 18.64 | P41: 23.61259432
D42: 1963M03 | E42: 1963-03-01 | F42: 1963 | G42: 1.5 | H42: 1.5 | I42: 1.5 | J42: … | L42: 2022 | M42: 94.43083333 | N42: 84.98775 | O42: 18.64 | P42: 24.32097215
D43: 1963M04 | E43: 1963-04-01 | F43: 1963 | G43: 1.5 | H43: 1.5 | I43: 1.5 | J43: … | L43: 2023 | M43: 77.66916667 | N43: 69.90225 | O43: 18.64 | P43: 25.05060131
D44: 1963M05 | E44: 1963-05-01 | F44: 1963 | G44: 1.5 | H44: 1.5 | I44: 1.5 | J44: … | L44: 2024 | M44: 75.84416667 | N44: 68.25975 | O44: 18.64 | P44: 25.80211935
D45: 1963M06 | E45: 1963-06-01 | F45: 1963 | G45: 1.5 | H45: 1.5 | I45: 1.5 | J45: … | L45: 2025 | M45: 65.52454545 | N45: 58.97209091 | O45: 18.64 | P45: 26.57618293
D46: 1963M07 | E46: 1963-07-01 | F46: 1963 | G46: 1.5 | H46: 1.5 | I46: 1.5 | J46: … | L46: 2026 | O46: 18.64 | P46: 27.37346842
D47: 1963M08 | E47: 1963-08-01 | F47: 1963 | G47: 1.5 | H47: 1.5 | I47: 1.5 | J47: … | L47: 2027 | O47: 18.64 | P47: 28.19467247
D48: 1963M09 | E48: 1963-09-01 | F48: 1963 | G48: 1.5 | H48: 1.5 | I48: 1.5 | J48: … | L48: 2028 | O48: 18.64 | P48: 29.04051265
D49: 1963M10 | E49: 1963-10-01 | F49: 1963 | G49: 1.5 | H49: 1.5 | I49: 1.5 | J49: … | L49: 2029 | O49: 18.64 | P49: 29.91172802
D50: 1963M11 | E50: 1963-11-01 | F50: 1963 | G50: 1.5 | H50: 1.5 | I50: 1.5 | J50: … | L50: 2030 | O50: 18.64 | P50: 30.80907987
D51: 1963M12 | E51: 1963-12-01 | F51: 1963 | G51: 1.5 | H51: 1.5 | I51: 1.5 | J51: … | L51: 2031 | O51: 18.64 | P51: 31.73335226
D52: 1964M01 | E52: 1964-01-01 | F52: 1964 | G52: 1.45 | H52: 1.45 | I52: 1.45 | J52: … | L52: 2032 | O52: 18.64 | P52: 32.68535283
D53: 1964M02 | E53: 1964-02-01 | F53: 1964 | G53: 1.45 | H53: 1.45 | I53: 1.45 | J53: … | L53: 2033 | O53: 18.64 | P53: 33.66591341
D54: 1964M03 | E54: 1964-03-01 | F54: 1964 | G54: 1.45 | H54: 1.45 | I54: 1.45 | J54: … | L54: 2034 | O54: 18.64 | P54: 34.67589082
D55: 1964M04 | E55: 1964-04-01 | F55: 1964 | G55: 1.45 | H55: 1.45 | I55: 1.45 | J55: …
D56: 1964M05 | E56: 1964-05-01 | F56: 1964 | G56: 1.45 | H56: 1.45 | I56: 1.45 | J56: …
D57: 1964M06 | E57: 1964-06-01 | F57: 1964 | G57: 1.45 | H57: 1.45 | I57: 1.45 | J57: …
D58: 1964M07 | E58: 1964-07-01 | F58: 1964 | G58: 1.45 | H58: 1.45 | I58: 1.45 | J58: …
D59: 1964M08 | E59: 1964-08-01 | F59: 1964 | G59: 1.45 | H59: 1.45 | I59: 1.45 | J59: …
D60: 1964M09 | E60: 1964-09-01 | F60: 1964 | G60: 1.45 | H60: 1.45 | I60: 1.45 | J60: …
D61: 1964M10 | E61: 1964-10-01 | F61: 1964 | G61: 1.45 | H61: 1.45 | I61: 1.45 | J61: …
D62: 1964M11 | E62: 1964-11-01 | F62: 1964 | G62: 1.45 | H62: 1.45 | I62: 1.45 | J62: …
D63: 1964M12 | E63: 1964-12-01 | F63: 1964 | G63: 1.45 | H63: 1.45 | I63: 1.45 | J63: …
D64: 1965M01 | E64: 1965-01-01 | F64: 1965 | G64: 1.42 | H64: 1.42 | I64: 1.42 | J64: …
D65: 1965M02 | E65: 1965-02-01 | F65: 1965 | G65: 1.42 | H65: 1.42 | I65: 1.42 | J65: …
D66: 1965M03 | E66: 1965-03-01 | F66: 1965 | G66: 1.42 | H66: 1.42 | I66: 1.42 | J66: …
D67: 1965M04 | E67: 1965-04-01 | F67: 1965 | G67: 1.42 | H67: 1.42 | I67: 1.42 | J67: …
D68: 1965M05 | E68: 1965-05-01 | F68: 1965 | G68: 1.42 | H68: 1.42 | I68: 1.42 | J68: …
D69: 1965M06 | E69: 1965-06-01 | F69: =YEAR(E69) -> 1965 | G69: 1.42 | H69: 1.42 | I69: 1.42 | J69: …
D70: 1965M07 | E70: =EDATE(E69,1) -> 1965-07-01 | F70: 1965 | G70: 1.42 | H70: 1.42 | I70: 1.42 | J70: …
D71: 1965M08 | E71: 1965-08-01 | F71: 1965 | G71: 1.42 | H71: 1.42 | I71: 1.42 | J71: …
D72: 1965M09 | E72: 1965-09-01 | F72: 1965 | G72: 1.42 | H72: 1.42 | I72: 1.42 | J72: …
D73: 1965M10 | E73: 1965-10-01 | F73: 1965 | G73: 1.42 | H73: 1.42 | I73: 1.42 | J73: …
D74: 1965M11 | E74: 1965-11-01 | F74: 1965 | G74: 1.42 | H74: 1.42 | I74: 1.42 | J74: …
D75: 1965M12 | E75: 1965-12-01 | F75: 1965 | G75: 1.42 | H75: 1.42 | I75: 1.42 | J75: …
D76: 1966M01 | E76: 1966-01-01 | F76: 1966 | G76: 1.36 | H76: 1.36 | I76: 1.36 | J76: …
D77: 1966M02 | E77: 1966-02-01 | F77: 1966 | G77: 1.36 | H77: 1.36 | I77: 1.36 | J77: …
D78: 1966M03 | E78: 1966-03-01 | F78: 1966 | G78: 1.36 | H78: 1.36 | I78: 1.36 | J78: …
D79: 1966M04 | E79: 1966-04-01 | F79: 1966 | G79: 1.36 | H79: 1.36 | I79: 1.36 | J79: …
D80: 1966M05 | E80: 1966-05-01 | F80: 1966 | G80: 1.36 | H80: 1.36 | I80: 1.36 | J80: …
D81: 1966M06 | E81: 1966-06-01 | F81: 1966 | G81: 1.36 | H81: 1.36 | I81: 1.36 | J81: …
D82: 1966M07 | E82: 1966-07-01 | F82: 1966 | G82: 1.36 | H82: 1.36 | I82: 1.36 | J82: …
D83: 1966M08 | E83: 1966-08-01 | F83: 1966 | G83: 1.36 | H83: 1.36 | I83: 1.36 | J83: …
D84: 1966M09 | E84: 1966-09-01 | F84: 1966 | G84: 1.36 | H84: 1.36 | I84: 1.36 | J84: …
D85: 1966M10 | E85: 1966-10-01 | F85: 1966 | G85: 1.36 | H85: 1.36 | I85: 1.36 | J85: …
D86: 1966M11 | E86: 1966-11-01 | F86: 1966 | G86: 1.36 | H86: 1.36 | I86: 1.36 | J86: …
D87: 1966M12 | E87: 1966-12-01 | F87: 1966 | G87: 1.36 | H87: 1.36 | I87: 1.36 | J87: …
D88: 1967M01 | E88: 1967-01-01 | F88: 1967 | G88: 1.33 | H88: 1.33 | I88: 1.33 | J88: …
D89: 1967M02 | E89: 1967-02-01 | F89: 1967 | G89: 1.33 | H89: 1.33 | I89: 1.33 | J89: …
D90: 1967M03 | E90: 1967-03-01 | F90: 1967 | G90: 1.33 | H90: 1.33 | I90: 1.33 | J90: …
D91: 1967M04 | E91: 1967-04-01 | F91: 1967 | G91: 1.33 | H91: 1.33 | I91: 1.33 | J91: …
D92: 1967M05 | E92: 1967-05-01 | F92: 1967 | G92: 1.33 | H92: 1.33 | I92: 1.33 | J92: …
D93: 1967M06 | E93: 1967-06-01 | F93: 1967 | G93: 1.33 | H93: 1.33 | I93: 1.33 | J93: …
D94: 1967M07 | E94: 1967-07-01 | F94: 1967 | G94: 1.33 | H94: 1.33 | I94: 1.33 | J94: …
D95: 1967M08 | E95: 1967-08-01 | F95: 1967 | G95: 1.33 | H95: 1.33 | I95: 1.33 | J95: …
D96: 1967M09 | E96: 1967-09-01 | F96: 1967 | G96: 1.33 | H96: 1.33 | I96: 1.33 | J96: …
D97: 1967M10 | E97: 1967-10-01 | F97: 1967 | G97: 1.33 | H97: 1.33 | I97: 1.33 | J97: …
D98: 1967M11 | E98: 1967-11-01 | F98: 1967 | G98: 1.33 | H98: 1.33 | I98: 1.33 | J98: …
D99: 1967M12 | E99: 1967-12-01 | F99: 1967 | G99: 1.33 | H99: 1.33 | I99: 1.33 | J99: …
D100: 1968M01 | E100: 1968-01-01 | F100: 1968 | G100: 1.32 | H100: 1.32 | I100: 1.32 | J100: …
D101: 1968M02 | E101: 1968-02-01 | F101: 1968 | G101: 1.32 | H101: 1.32 | I101: 1.32 | J101: …
D102: 1968M03 | E102: 1968-03-01 | F102: 1968 | G102: 1.32 | H102: 1.32 | I102: 1.32 | J102: …
D103: 1968M04 | E103: 1968-04-01 | F103: 1968 | G103: 1.32 | H103: 1.32 | I103: 1.32 | J103: …
D104: 1968M05 | E104: 1968-05-01 | F104: 1968 | G104: 1.32 | H104: 1.32 | I104: 1.32 | J104: …
D105: 1968M06 | E105: 1968-06-01 | F105: 1968 | G105: 1.32 | H105: 1.32 | I105: 1.32 | J105: …
D106: 1968M07 | E106: 1968-07-01 | F106: 1968 | G106: 1.32 | H106: 1.32 | I106: 1.32 | J106: …
D107: 1968M08 | E107: 1968-08-01 | F107: 1968 | G107: 1.32 | H107: 1.32 | I107: 1.32 | J107: …
D108: 1968M09 | E108: 1968-09-01 | F108: 1968 | G108: 1.32 | H108: 1.32 | I108: 1.32 | J108: …
D109: 1968M10 | E109: 1968-10-01 | F109: 1968 | G109: 1.32 | H109: 1.32 | I109: 1.32 | J109: …
D110: 1968M11 | E110: 1968-11-01 | F110: 1968 | G110: 1.32 | H110: 1.32 | I110: 1.32 | J110: …
D111: 1968M12 | E111: 1968-12-01 | F111: 1968 | G111: 1.32 | H111: 1.32 | I111: 1.32 | J111: …
D112: 1969M01 | E112: 1969-01-01 | F112: 1969 | G112: 1.27 | H112: 1.27 | I112: 1.27 | J112: …
D113: 1969M02 | E113: 1969-02-01 | F113: 1969 | G113: 1.27 | H113: 1.27 | I113: 1.27 | J113: …
D114: 1969M03 | E114: 1969-03-01 | F114: 1969 | G114: 1.27 | H114: 1.27 | I114: 1.27 | J114: …
D115: 1969M04 | E115: 1969-04-01 | F115: 1969 | G115: 1.27 | H115: 1.27 | I115: 1.27 | J115: …
D116: 1969M05 | E116: 1969-05-01 | F116: 1969 | G116: 1.27 | H116: 1.27 | I116: 1.27 | J116: …
D117: 1969M06 | E117: 1969-06-01 | F117: 1969 | G117: 1.27 | H117: 1.27 | I117: 1.27 | J117: …
D118: 1969M07 | E118: 1969-07-01 | F118: 1969 | G118: 1.27 | H118: 1.27 | I118: 1.27 | J118: …
D119: 1969M08 | E119: 1969-08-01 | F119: 1969 | G119: 1.27 | H119: 1.27 | I119: 1.27 | J119: …
D120: 1969M09 | E120: 1969-09-01 | F120: 1969 | G120: 1.27 | H120: 1.27 | I120: 1.27 | J120: …
D121: 1969M10 | E121: 1969-10-01 | F121: 1969 | G121: 1.27 | H121: 1.27 | I121: 1.27 | J121: …
D122: 1969M11 | E122: 1969-11-01 | F122: 1969 | G122: 1.27 | H122: 1.27 | I122: 1.27 | J122: …
D123: 1969M12 | E123: 1969-12-01 | F123: 1969 | G123: 1.27 | H123: 1.27 | I123: 1.27 | J123: …
D124: 1970M01 | E124: 1970-01-01 | F124: 1970 | G124: 1.21 | H124: 1.21 | I124: 1.21 | J124: …
D125: 1970M02 | E125: 1970-02-01 | F125: 1970 | G125: 1.21 | H125: 1.21 | I125: 1.21 | J125: …
D126: 1970M03 | E126: 1970-03-01 | F126: 1970 | G126: 1.21 | H126: 1.21 | I126: 1.21 | J126: …
D127: 1970M04 | E127: 1970-04-01 | F127: 1970 | G127: 1.21 | H127: 1.21 | I127: 1.21 | J127: …
D128: 1970M05 | E128: 1970-05-01 | F128: 1970 | G128: 1.21 | H128: 1.21 | I128: 1.21 | J128: …
D129: 1970M06 | E129: 1970-06-01 | F129: 1970 | G129: 1.21 | H129: 1.21 | I129: 1.21 | J129: …
D130: 1970M07 | E130: 1970-07-01 | F130: 1970 | G130: 1.21 | H130: 1.21 | I130: 1.21 | J130: …
D131: 1970M08 | E131: 1970-08-01 | F131: 1970 | G131: 1.21 | H131: 1.21 | I131: 1.21 | J131: …
D132: 1970M09 | E132: 1970-09-01 | F132: 1970 | G132: 1.21 | H132: 1.21 | I132: 1.21 | J132: …
D133: 1970M10 | E133: 1970-10-01 | F133: =YEAR(E133) -> 1970 | G133: 1.21 | H133: 1.21 | I133: 1.21 | J133: …
D134: 1970M11 | E134: =EDATE(E133,1) -> 1970-11-01 | F134: 1970 | G134: 1.21 | H134: 1.21 | I134: 1.21 | J134: …
D135: 1970M12 | E135: 1970-12-01 | F135: 1970 | G135: 1.21 | H135: 1.21 | I135: 1.21 | J135: …
D136: 1971M01 | E136: 1971-01-01 | F136: 1971 | G136: 1.64 | H136: 1.64 | I136: 1.64 | J136: …
D137: 1971M02 | E137: 1971-02-01 | F137: 1971 | G137: 1.64 | H137: 1.64 | I137: 1.64 | J137: …
D138: 1971M03 | E138: 1971-03-01 | F138: 1971 | G138: 1.64 | H138: 1.64 | I138: 1.64 | J138: …
D139: 1971M04 | E139: 1971-04-01 | F139: 1971 | G139: 1.64 | H139: 1.64 | I139: 1.64 | J139: …
D140: 1971M05 | E140: 1971-05-01 | F140: 1971 | G140: 1.64 | H140: 1.64 | I140: 1.64 | J140: …
D141: 1971M06 | E141: 1971-06-01 | F141: 1971 | G141: 1.64 | H141: 1.64 | I141: 1.64 | J141: …
D142: 1971M07 | E142: 1971-07-01 | F142: 1971 | G142: 1.74 | H142: 1.74 | I142: 1.74 | J142: …
D143: 1971M08 | E143: 1971-08-01 | F143: 1971 | G143: 1.74 | H143: 1.74 | I143: 1.74 | J143: …
D144: 1971M09 | E144: 1971-09-01 | F144: 1971 | G144: 1.74 | H144: 1.74 | I144: 1.74 | J144: …
D145: 1971M10 | E145: 1971-10-01 | F145: 1971 | G145: 1.74 | H145: 1.74 | I145: 1.74 | J145: …
D146: 1971M11 | E146: 1971-11-01 | F146: 1971 | G146: 1.74 | H146: 1.74 | I146: 1.74 | J146: …
D147: 1971M12 | E147: 1971-12-01 | F147: 1971 | G147: 1.74 | H147: 1.74 | I147: 1.74 | J147: …
D148: 1972M01 | E148: 1972-01-01 | F148: 1972 | G148: 1.77 | H148: 1.77 | I148: 1.77 | J148: …
D149: 1972M02 | E149: 1972-02-01 | F149: 1972 | G149: 1.77 | H149: 1.77 | I149: 1.77 | J149: …
D150: 1972M03 | E150: 1972-03-01 | F150: 1972 | G150: 1.77 | H150: 1.77 | I150: 1.77 | J150: …
D151: 1972M04 | E151: 1972-04-01 | F151: 1972 | G151: 1.77 | H151: 1.77 | I151: 1.77 | J151: …
D152: 1972M05 | E152: 1972-05-01 | F152: 1972 | G152: 1.77 | H152: 1.77 | I152: 1.77 | J152: …
D153: 1972M06 | E153: 1972-06-01 | F153: 1972 | G153: 1.77 | H153: 1.77 | I153: 1.77 | J153: …
D154: 1972M07 | E154: 1972-07-01 | F154: 1972 | G154: 1.87 | H154: 1.87 | I154: 1.87 | J154: …
D155: 1972M08 | E155: 1972-08-01 | F155: 1972 | G155: 1.87 | H155: 1.87 | I155: 1.87 | J155: …
D156: 1972M09 | E156: 1972-09-01 | F156: 1972 | G156: 1.87 | H156: 1.87 | I156: 1.87 | J156: …
D157: 1972M10 | E157: 1972-10-01 | F157: 1972 | G157: 1.87 | H157: 1.87 | I157: 1.87 | J157: …
D158: 1972M11 | E158: 1972-11-01 | F158: 1972 | G158: 1.87 | H158: 1.87 | I158: 1.87 | J158: …
D159: 1972M12 | E159: 1972-12-01 | F159: 1972 | G159: 1.87 | H159: 1.87 | I159: 1.87 | J159: …
D160: 1973M01 | E160: 1973-01-01 | F160: 1973 | G160: 2.08 | H160: 2.08 | I160: 2.08 | J160: …
D161: 1973M02 | E161: 1973-02-01 | F161: 1973 | G161: 2.08 | H161: 2.08 | I161: 2.08 | J161: …
D162: 1973M03 | E162: 1973-03-01 | F162: 1973 | G162: 2.08 | H162: 2.08 | I162: 2.08 | J162: …
D163: 1973M04 | E163: 1973-04-01 | F163: 1973 | G163: 2.35 | H163: 2.35 | I163: 2.35 | J163: …
D164: 1973M05 | E164: 1973-05-01 | F164: 1973 | G164: 2.35 | H164: 2.35 | I164: 2.35 | J164: …
D165: 1973M06 | E165: 1973-06-01 | F165: 1973 | G165: 2.35 | H165: 2.35 | I165: 2.35 | J165: …
D166: 1973M07 | E166: 1973-07-01 | F166: 1973 | G166: 2.7 | H166: 2.7 | I166: 2.7 | J166: …
D167: 1973M08 | E167: 1973-08-01 | F167: 1973 | G167: 2.7 | H167: 2.7 | I167: 2.7 | J167: …
D168: 1973M09 | E168: 1973-09-01 | F168: 1973 | G168: 2.7 | H168: 2.7 | I168: 2.7 | J168: …
D169: 1973M10 | E169: 1973-10-01 | F169: 1973 | G169: 4.1 | H169: 4.1 | I169: 4.1 | J169: …
D170: 1973M11 | E170: 1973-11-01 | F170: 1973 | G170: 4.1 | H170: 4.1 | I170: 4.1 | J170: …
D171: 1973M12 | E171: 1973-12-01 | F171: 1973 | G171: 4.1 | H171: 4.1 | I171: 4.1 | J171: …
D172: 1974M01 | E172: 1974-01-01 | F172: 1974 | G172: 13 | H172: 13 | I172: 13 | J172: …
D173: 1974M02 | E173: 1974-02-01 | F173: 1974 | G173: 13 | H173: 13 | I173: 13 | J173: …
D174: 1974M03 | E174: 1974-03-01 | F174: 1974 | G174: 13 | H174: 13 | I174: 13 | J174: …
D175: 1974M04 | E175: 1974-04-01 | F175: 1974 | G175: 10.59999847 | H175: 10.59999847 | I175: 10.59999847 | J175: …
D176: 1974M05 | E176: 1974-05-01 | F176: 1974 | G176: 10.59999847 | H176: 10.59999847 | I176: 10.59999847 | J176: …
D177: 1974M06 | E177: 1974-06-01 | F177: 1974 | G177: 10.59999847 | H177: 10.59999847 | I177: 10.59999847 | J177: …
D178: 1974M07 | E178: 1974-07-01 | F178: 1974 | G178: 10 | H178: 10 | I178: 10 | J178: …
D179: 1974M08 | E179: 1974-08-01 | F179: 1974 | G179: 10 | H179: 10 | I179: 10 | J179: …
D180: 1974M09 | E180: 1974-09-01 | F180: 1974 | G180: 10 | H180: 10 | I180: 10 | J180: …
D181: 1974M10 | E181: 1974-10-01 | F181: 1974 | G181: 10.29999924 | H181: 10.29999924 | I181: 10.29999924 | J181: …
D182: 1974M11 | E182: 1974-11-01 | F182: 1974 | G182: 10.29999924 | H182: 10.29999924 | I182: 10.29999924 | J182: …
D183: 1974M12 | E183: 1974-12-01 | F183: 1974 | G183: 10.29999924 | H183: 10.29999924 | I183: 10.29999924 | J183: …
D184: 1975M01 | E184: 1975-01-01 | F184: 1975 | G184: 10.42000008 | H184: 10.42000008 | I184: 10.42000008 | J184: …
D185: 1975M02 | E185: 1975-02-01 | F185: 1975 | G185: 10.42000008 | H185: 10.42000008 | I185: 10.42000008 | J185: …
D186: 1975M03 | E186: 1975-03-01 | F186: 1975 | G186: 10.42000008 | H186: 10.42000008 | I186: 10.42000008 | J186: …
D187: 1975M04 | E187: 1975-04-01 | F187: 1975 | G187: 10.42000008 | H187: 10.42000008 | I187: 10.42000008 | J187: …
D188: 1975M05 | E188: 1975-05-01 | F188: 1975 | G188: 10.42000008 | H188: 10.42000008 | I188: 10.42000008 | J188: …
D189: 1975M06 | E189: 1975-06-01 | F189: 1975 | G189: 10.42000008 | H189: 10.42000008 | I189: 10.42000008 | J189: …
D190: 1975M07 | E190: 1975-07-01 | F190: 1975 | G190: 10.43000031 | H190: 10.43000031 | I190: 10.43000031 | J190: …
D191: 1975M08 | E191: 1975-08-01 | F191: 1975 | G191: 10.43000031 | H191: 10.43000031 | I191: 10.43000031 | J191: …
D192: 1975M09 | E192: 1975-09-01 | F192: 1975 | G192: 10.43000031 | H192: 10.43000031 | I192: 10.43000031 | J192: …
D193: 1975M10 | E193: 1975-10-01 | F193: 1975 | G193: 10.46000004 | H193: 10.46000004 | I193: 10.46000004 | J193: …
D194: 1975M11 | E194: 1975-11-01 | F194: 1975 | G194: 10.46000004 | H194: 10.46000004 | I194: 10.46000004 | J194: …
D195: 1975M12 | E195: 1975-12-01 | F195: 1975 | G195: 10.46000004 | H195: 10.46000004 | I195: 10.46000004 | J195: …
D196: 1976M01 | E196: 1976-01-01 | F196: 1976 | G196: 11.51000023 | H196: 11.51000023 | I196: 11.51000023 | J196: …
D197: 1976M02 | E197: 1976-02-01 | F197: =YEAR(E197) -> 1976 | G197: 11.51000023 | H197: 11.51000023 | I197: 11.51000023 | J197: …
D198: 1976M03 | E198: =EDATE(E197,1) -> 1976-03-01 | F198: 1976 | G198: 11.51000023 | H198: 11.51000023 | I198: 11.51000023 | J198: …
D199: 1976M04 | E199: 1976-04-01 | F199: 1976 | G199: 11.51000023 | H199: 11.51000023 | I199: 11.51000023 | J199: …
D200: 1976M05 | E200: 1976-05-01 | F200: 1976 | G200: 11.51000023 | H200: 11.51000023 | I200: 11.51000023 | J200: …
... 594 more rows

Sheet Exhibit1
D1: Exhibit 1 Venezuelan Macroeconomic Data: 1970-1996
E4: Real GDP Growth | F4: Per Capita GDP Growth | G4: Government Surplus/GDPa | H4: Total Debt Stock/GDP | I4: Oil Exports/ Total Exports | J4: Oil Exports/ GDP | K4: Unemployment Rate | L4: Inflation Rate | M4: Interest Ratesb | N4: Exchange Ratec
D6: 1970 | E6: 0.073 | F6: 0.037 | G6: -0.9 | H6: 0.069 | I6: 0.89 | J6: 0.172 | K6: 0.078 | L6: 0.025 | M6: ... | N6: 4.45
D7: 1971 | E7: 2.4 | F7: -1 | G7: 0.5 | H7: 12.7 | I7: 92.2 | J7: 19 | K7: ... | L7: 3.2 | M7: ... | N7: 4.35
D8: 1972 | E8: 2.5 | F8: -1 | G8: -0.2 | H8: 15.2 | I8: 91.4 | J8: 17.3 | K8: ... | L8: 2.8 | M8: ... | N8: 4.35
D9: 1973 | E9: 6.1 | F9: 2.5 | G9: 1.6 | H9: 14 | I9: 88.6 | J9: 21.6 | K9: ... | L9: 4.1 | M9: ... | N9: 4.285
D10: 1974 | E10: 5.2 | F10: 1.7 | G10: 2.4 | H10: 8.6 | I10: 95.2 | J10: 33.4 | K10: 7.6 | L10: 8.3 | M10: ... | N10: 4.285
D11: 1975 | E11: 5.1 | F11: 1.5 | G11: 0.6 | H11: 6.8 | I11: 94.6 | J11: 25.6 | K11: 8.3 | L11: 10.3 | M11: ... | N11: 4.285
D12: 1976 | E12: 8.3 | F12: 4.6 | G12: 0.5 | H12: 13.3 | I12: 94.2 | J12: 23.6 | K12: 6.8 | L12: 7.6 | M12: ... | N12: 4.293
D13: 1977 | E13: 6.2 | F13: 2.5 | G13: -4.4 | H13: 25.1 | I13: 95.4 | J13: 21.3 | K13: 5.5 | L13: 7.8 | M13: ... | N13: 4.293
D14: 1978 | E14: 2.2 | F14: -1.3 | G14: -3.6 | H14: 35.7 | I14: 95.1 | J14: 18.8 | K14: 5.1 | L14: 7.1 | M14: ... | N14: 4.293
D15: 1979 | E15: 1.3 | F15: -2 | G15: 2.1 | H15: 42.2 | I15: 95.2 | J15: 23.9 | K15: 5.8 | L15: 12.4 | M15: ... | N15: 4.293
D16: 1980 | E16: -2.5 | F16: -5.5 | G16: 0 | H16: 42 | I16: 94.9 | J16: 26.2 | K16: 6.6 | L16: 21.5 | M16: ... | N16: 4.293
D17: 1981 | E17: -0.2 | F17: -3 | G17: 2.2 | H17: 41 | I17: 94.6 | J17: 24.3 | K17: 6.8 | L17: 16.2 | M17: ... | N17: 4.293
D18: 1982 | E18: 0.8 | F18: -1.8 | G18: -2.1 | H18: 40.2 | I18: 94.7 | J18: 19.5 | K18: 7.8 | L18: 9.6 | M18: ... | N18: 4.293
D19: 1983 | E19: -5.2 | F19: -7.5 | G19: -0.6 | H19: 48.1 | I19: 91.3 | J19: 17.4 | K19: 11.2 | L19: 6.3 | M19: ... | N19: 4.3
D20: 1984 | E20: -0.5 | F20: -2.9 | G20: 2.8 | H20: 63.8 | I20: 87.7 | J20: 21 | K20: 14.3 | L20: 12.2 | M20: 0.1315 | N20: 7.5
D21: 1985 | E21: 1.1 | F21: -1.4 | G21: 2 | H21: 59 | I21: 82.6 | J21: 17.3 | K21: 14.3 | L21: 11.4 | M21: 12.55 | N21: 7.5
D22: 1986 | E22: 6.2 | F22: 3.5 | G22: -0.4 | H22: 56.4 | I22: 69.2 | J22: 10.9 | K22: 12.1 | L22: 11.5 | M22: 12.07 | N22: 14.5
D23: 1987 | E23: 4.5 | F23: 1.7 | G23: -1.7 | H23: 73.8 | I23: 81.8 | J23: 14.9 | K23: 9.9 | L23: 28.1 | M23: 13.49 | N23: 14.5
D24: 1988 | E24: 6.2 | F24: 3.4 | G24: -6.1 | H24: 57.5 | I24: 76.4 | J24: 13.5 | K24: 7.9 | L24: 29.3 | M24: 14.86 | N24: 14.5
D25: 1989 | E25: -8.5 | F25: -10.8 | G25: -1.1 | H25: 75.6 | I25: 74.9 | J25: 23.4 | K25: 9.7 | L25: 84.7 | M25: 17.32 | N25: 43.079
D26: 1990 | E26: 7.5 | F26: 4.9 | G26: -2.1 | H26: 68.3 | I26: 80 | J26: 29.2 | K26: 11 | L26: 40.6 | M26: 20.06 | N26: 50.38
D27: 1991 | E27: 10.1 | F27: 7.5 | G27: -1.4 | H27: 63.8 | I27: 81.1 | J27: 23.1 | K27: 10.1 | L27: 34.2 | M27: 27.14 | N27: 61.554
D28: 1992 | E28: 7.4 | F28: 4.9 | G28: -3.8 | H28: 62.4 | I28: 79 | J28: 18.7 | K28: 8.1 | L28: 31.4 | M28: 31.66 | N28: 79.45
D29: 1993 | E29: -0.6 | F29: -2.8 | G29: -2.5 | H29: 62.2 | I29: 74.7 | J29: 18 | K29: 6.8 | L29: 38.1 | M29: 41.03 | N29: 105.64
D30: 1994 | E30: -2.5 | F30: -4.6 | G30: -6.8 | H30: 62.6 | I30: 72.7 | J30: 20.2 | K30: 8.9 | L30: 60.8 | M30: 54.73 | N30: 170
D31: 1995 | E31: 3.7 | F31: 1.5 | G31: -4.6 | H31: 46 | I31: 74.4 | J31: 17.9 | K31: 10.9 | L31: 59.9 | M31: 53.38 | N31: 290
D32: 1996 | E32: -0.4 | F32: -2.5 | G32: 0.2 | H32: 49.9 | I32: 80.4 | J32: 26.7 | K32: 12.3 | L32: 99.9 | M32: 49.09 | N32: 476.5
D35: Sources: Inter-American Development Bank, and International Financial Statistics, International Monetary Fund.
D37: a Negative values signify Government Deficit/GDP.
D38: b The interest rates provided are yields to maturity on long-term Venezuelan government bonds.
D39: c The exchange rates provided are the official bolivar/U.S. dollar exchange rates determined by the Venezuelan government. Prior to 1989 and between 1994
D40: and early 1996, the government fixed the exchange rate. Between 1989 and 1994 and after early 1996, the government allowed the bolivar to float freely
D41: against the U.S. dollar.

Sheet Exhibit2
D1: Exhibit 2 DuPont and PDVSA Balance Sheets (U.S. dollars in millions): 1995-1996
E4: DuPont | I4: PDVSA
E5: 1996 | G5: 1995 | I5: 1996 | K5: 1995
D7: ASSETS
D9: Cash | E9: 1319 | G9: 1455 | I9: 2745 | K9: 464
D10: Accounts and notes receivable | E10: 5193 | G10: 4912 | I10: 3429 | K10: 3226
D11: Inventory | E11: 3706 | G11: 3737 | I11: 1740 | K11: 1551
D12: Prepaid expenses | E12: 297 | G12: 276 | I12: 1124 | K12: 729
D13: Deferred income taxes | E13: 588 | G13: 575 | I13: 508 | K13: 429
D14: Total current assets | E14: 11103 | G14: 10955 | I14: 9546 | K14: 6399
D16: Property, plant, and equipment | E16: 21213 | G16: 21341 | I16: 32957 | K16: 30774
D17: Investment in affiliates | E17: 2278 | G17: 1846 | I17: 1863 | K17: 1899
D18: Other assets | E18: 3393 | G18: 3170 | I18: 1036 | K18: 853
D19: Total assets | E19: 37987 | G19: 37312 | I19: 45402 | K19: 39925
D21: LIABILITIES AND EQUITY
D23: Accounts payable | E23: 2757 | G23: 2636 | I23: 2033 | K23: 1672
D24: Current portion of long-term debt | E24: 300 | G24: 551 | I24: 1137 | K24: 1074
D25: Short-term debt and lease obligations | E25: 3610 | G25: 5606 | I25: --- | K25: ---
D26: Income taxes | E26: 526 | G26: 470 | I26: 2616 | K26: 351
D27: Other accrued liabilities | E27: 3794 | G27: 3468 | I27: 1156 | K27: 952
D28: Total current liabilities | E28: 10987 | G28: 12731 | I28: 6942 | K28: 4049
D30: Long-term debt | E30: 4983 | G30: 5572 | I30: 4668 | K30: 4933
D31: Capital lease obligations | E31: 104 | G31: 106 | I31: 455 | K31: 531
D32: Deferred income taxes | E32: 2133 | G32: 1783 | I32: 19 | K32: 313
D33: Other liabilities | E33: 8451 | G33: 8454 | I33: 1166 | K33: 1168
D34: Total liabilities | E34: 26658 | G34: 28646 | I34: 13250 | K34: 10994
D36: Minority interests | E36: 620 | G36: 230 | I36: 354 | K36: 271
D37: Total stockholders' equity | E37: 10709 | G37: 8436 | I37: 31798 | K37: 28660
D38: Total liabilities and equity | E38: 37987 | G38: 37312 | I38: 45402 | K38: 39925
D41: Sources: Du Pont 1996 Annual Report and PDVSA 1996 Form 20-F.

Sheet Exhibit3
D1: Exhibit 3 DuPont and PDVSA Income Statements (U.S. dollars in millions): 1995-1996
E4: DuPont | I4: PDVSA
E5: 1996 | G5: 1995 | I5: 1996 | K5: 1995
D7: Sales | E7: 43810 | G7: 42163 | I7: 32786 | K7: 25050
D8: Other income | E8: 1340 | G8: 1059 | I8: 1069 | K8: 991
D9: Total income | E9: 45150 | G9: 43222 | I9: 33855 | K9: 26041
D11: Cost of goods sold | E11: 25144 | G11: 23363 | I11: 15720 | K11: 14061
D12: Selling, general, and administrative expenses | E12: 2856 | G12: 2995 | I12: 967 | K12: 1163
D13: Depreciation, depletion, and amortization | E13: 2621 | G13: 2722 | I13: 2749 | K13: 2400
D14: Exploration expenses | E14: 1436 | G14: 1398 | I14: 142 | K14: 118
D15: Interest and debt expense | E15: 713 | G15: 758 | I15: 343 | K15: 421
D16: Taxes other than on income | E16: 6399 | G16: 6596 | I16: 3203 | K16: 2513
D17: Other expense (income), net | E17: --- | G17: --- | I17: 79 | K17: -354
D18: Equity earnings of affiliates | E18: --- | G18: --- | I18: -89 | K18: -132
D19: Minority interests | E19: --- | G19: --- | I19: 19 | K19: 23
D20: Total costs and expenses | E20: 39169 | G20: 37832 | I20: 23133 | K20: 20213
D22: Earnings before income taxes | E22: 5981 | G22: 5390 | I22: 10722 | K22: 5828
D23: Provision for income taxes | E23: -2345 | G23: -2097 | I23: -6227 | K23: -2455
D24: Net income | E24: 3636 | G24: 3293 | I24: 4495 | K24: 3373
D26: Earnings per share of common stock | E26: 6.47 | G26: 5.61
D28: Average number of common shares (millions) | E28: 560.7 | G28: 585.1
D30: Year-end stock price | E30: 34.94 | G30: 47.06
D33: Sources: Du Pont 1996 Annual Report, and PDVSA 1996 Form 20-F.

Sheet Exhibit4
D1: Exhibit 4 Conoco and Maraven Financial Information (U.S. dollars in millions): 1995-1996
E4: Conoco | I4: Maraven
E5: 1996 | G5: 1995 | I5: 1996 | K5: 1995
D7: Sales | E7: 20579 | G7: 17958 | I7: 5503 | K7: 4073
D8: Operating profit | E8: 1818 | G8: 1257 | I8: 3574 | K8: 1924
D9: Provision for income taxes | E9: -933 | G9: -660 | I9: na | K9: na
D10: Equity in earnings of affiliates | E10: -25 | G10: 22 | I10: --- | K10: ---
D11: After-tax operating income | E11: 860 | G11: 619 | I11: 1070 | K11: -16
D13: Identifiable assets | E13: 13018 | G13: 12634 | I13: 10814 | K13: 10093
D14: Depreciation, depletion, and amortization | E14: 1128 | G14: 1111 | I14: 940 | K14: 770
D15: Capital expenditures | E15: 1616 | G15: 1714 | I15: 612 | K15: 1871
D18: Sources: DuPont 1996 Annual Report, and PDVSA.

Sheet Exhibit8
D1: Exhibit 8 Oil and Gas Industry Comparables: 1996 (unless otherwise indicated)
F4: S&P Rating | H4: Country | J4: Country Rating | K4: Debt to Value (%) | L4: Pretax Interest Coverage (X) | M4: EBITDA/ Interest (X) | N4: Operating Income as a % of Revenue | O4: Revenues ($ millions)
D6: OIL & GAS PROJECTS
D7: Athabasca Oil Sands | F7: BBB | H7: Canada | J7: AA+ | K7: 0.268 | L7: 8.15X | M7: 11.09X | N7: 0.323 | O7: 251.5
D8: Canadian Oil Sands | F8: BBB+ | H8: Canada | J8: AA+ | K8: 22.9 | L8: 8.62 | M8: 13.49 | N8: 30.7 | O8: 118.3
D9: YPF Sociedad Anomima | F9: BBB | H9: Argentina | J9: BBB- | K9: 34.8 | L9: 4.77 | M9: 8.2 | N9: 44 | O9: 5937
D10: Ras Laffan (2001) | F10: BBB+ | H10: Qatar | J10: BBB | K10: 62.7 | L10: 4.51 | M10: na | N10: 51.1 | O10: 851.6
D11: Petrozuata (2001) | F11: ??? | H11: Venezuela | J11: B | K11: 60 | L11: 4.7 | M11: 3.65 | N11: 79.4 | O11: 569.2
D13: INDEPENDENT OIL COMPANIES
D14: Apache | F14: BBB | H14: U.S. | J14: AAA | K14: 45.8X | L14: 2.68X | M14: 5.85X | N14: 0.601 | O14: 976
D15: Burlington Resources | F15: A- | H15: U.S. | J15: AAA | K15: 37.9 | L15: 3.7 | M15: 6.56 | N15: 62.6 | O15: 1293
D16: Husky Oil | F16: BBB | H16: Canada | J16: AA+ | K16: 41.9 | L16: 2.66 | M16: 5.02 | N16: 39.7 | O16: 1272.9
D17: Noble Affiliates | F17: BBB | H17: U.S. | J17: AAA | K17: 54.1 | L17: 4.49 | M17: 10.72 | N17: 46 | O17: 878.3
D18: Norcen Energy Resources | F18: BBB | H18: Canada | J18: AA+ | K18: 49.6 | L18: 1.49 | M18: 4.99 | N18: 42.2 | O18: 1257.3
D19: Talisman Energy | F19: BBB+ | H19: Canada | J19: AA+ | K19: 30 | L19: 4.54 | M19: 10.24 | N19: 59 | O19: 1182.9
D21: INTEGRATED OIL COMPANIES
D22: Amoco | F22: AAA | H22: U.S. | J22: AAA | K22: 26.6X | L22: 13.08X | M22: 21.22X | N22: 0.189 | O22: 32150
D23: Chevron | F23: AA | H23: U.S. | J23: AAA | K23: 32 | L23: 9.85 | M23: 14.2 | N23: 16.9 | O23: 37580
D24: Exxon | F24: AAA | H24: U.S. | J24: AAA | K24: 21 | L24: 10.25 | M24: 15.06 | N24: 13.8 | O24: 116728
D25: Mobil | F25: AA | H25: U.S. | J25: AAA | K25: 32.7 | L25: 11.73 | M25: 16.69 | N25: 11.9 | O25: 71129
D26: Texaco | F26: A+ | H26: U.S. | J26: AAA | K26: 39.3 | L26: 5.68 | M26: 8.83 | N26: 10.1 | O26: 44561
D27: Shell Canada | F27: AA | H27: Canada | J27: AA+ | K27: 20.6 | L27: 6.57 | M27: 10.47 | N27: 19.7 | O27: 5140
D28: PDVSA | F28: B | H28: Venezuela | J28: B | K28: 15.4 | L28: 32.26 | M28: 40.27 | N28: 48.7 | O28: 33855
D31: Sources: S&P's Global Sector Review, Bloomberg, and casewriter estimates.

Sheet Exhibit9
D1: Exhibit 9 Credit Ratings for Selected Sovereign Foreign Currency Long-Term Debt
F4: S&P | J4: Moody's | N4: Institutional Investor
D5: Sovereign | F5: Dec. 1994 | H5: Dec. 1996 | J5: Dec. 1994 | L5: Dec. 1996 | N5: Sept. 1994 | P5: Sept. 1996
D7: North America
D8: Canada | F8: AA+ | H8: AA+ | J8: Aa1 | L8: Aa2 | N8: 81.3 | P8: 79.4
D9: Mexico | F9: BB | H9: BB | J9: Baa1 | L9: Ba2 | N9: 46.1 | P9: 41.6
D10: United States | F10: AAA | H10: AAA | J10: Aaa | L10: Aaa | N10: 90.8 | P10: 90.7
D12: Central America
D13: Costa Rica | F13: n/r | H13: n/r | J13: n/r | L13: n/r | N13: 30.3 | P13: 33.9
D14: Panama | F14: n/r | H14: n/r | J14: n/r | L14: n/r | N14: 24.4 | P14: 28.5
D16: South America
D17: Argentina | F17: BB- | H17: BB- | J17: B2 | L17: B1 | N17: 37.3 | P17: 38.9
D18: Bolivia | F18: n/r | H18: n/r | J18: n/r | L18: n/r | N18: 21.4 | P18: 25.4
D19: Brazil | F19: B+ | H19: B+ | J19: B1 | L19: B1 | N19: 30.3 | P19: 38.3
D20: Chile | F20: BBB+ | H20: A- | J20: Baa2 | L20: Baa1 | N20: 54.9 | P20: 61.2
D21: Colombia | F21: n/r | H21: BBB- | J21: n/r | L21: Baa3 | N21: 44.4 | P21: 46.7
D22: Ecuador | F22: n/r | H22: n/r | J22: n/r | L22: n/r | N22: 24.5 | P22: 26.4
D23: Peru | F23: n/r | H23: n/r | J23: n/r | L23: B3 | N23: 21 | P23: 30
D24: Venezuela | F24: B+ | H24: B | J24: Ba2 | L24: Ba2 | N24: 36 | P24: 32
D27: Sources: Bloomberg and "Country Credit Ratings," Institutional Investor, March 1995 and September 1996.

Sheet Exhibit10a
D1: Exhibit 10a Petrozuata Equity Cash Flow Projections (U.S. dollars in thousands)
K4: Cash | M4: Cash Used
E5: Forecast | K5: Available | M5: for Debt
E6: Price of | J6: Implied | K6: for Debt | M6: Service
E7: Maya | F7: Implied | G7: Total | H7: Derived | I7: O&M Taxes | J7: Cost | K7: Service | L7: Total Debt | M7: Reserve | N7: Equity Cash Flows | R7: Debt Cash Flow | S7: Debt IRR | T7: DSCR | U7: LLCR | Y7: Permium above Rf | Z7: Equity Investment | AA7: Premium vs Rf | AB7: Levelized Premium | AC7: Project CF | AD7: Project Irr | AE7: NPv of Equity
D8: Year | E8: Crude | F8: Production | G8: Revenue | H8: Price | I8: And Other | J8: per BBL | K8: (CADS) | L8: Service | M8: Account | N8: Dividends | O8: Investment | P8: Total Debt | Q8: =IRR(Q12:Q50) -> 0.2600021014 | W8: Net Equity Cash | X8: Equity IRR | Y8: 0.054 | AE8: 0.2097
W9: =SUM(W12:W50) -> 14937052.77
S11: =IRR(R12:R50) -> 0.06264062692 | X11: =IRR(W12:W50) -> 0.2600021014 | AD11: =IRR(AC12:AC50) -> 0.1509404223 | AE11: =NPV(AE8,W12:W50) -> 134911.5533
D12: 1996 | E12: =TRANSPOSE(InputS!I15:AU15) -> 12.25 | G12: 0 | K12: 0 | O12: -79035 | P12: 0 | Q12: =O12+N12 -> -79035 | R12: =-(P12-P11) -> 0 | U12: Debt | V12: =-SUM(R13:R16) -> 1450000 | W12: =O12+N12 -> -79035 | AC12: =W12+R12 -> -79035
D13: 1997 | E13: 12.56 | G13: 0 | K13: 47213 | O13: -1986 | P13: 1000000 | Q13: =O13+N13 -> -1986 | R13: =-(P13-P12) -> -1000000 | U13: PV of CFADS | V13: =NPV(S11,K15:K39) -> 4825665.461 | W13: =O13+N13 -> -1986 | AC13: =W13+R13 -> -1001986
D14: 1998 | E14: 12.87 | F14: 6101.320901 | G14: =E14*F14 -> 78524 | H14: =G14/F14 -> 12.87 | I14: 74040 | J14: =I14/F14 -> 12.13507717 | K14: =G14-I14 -> 4484 | O14: -550148 | P14: 1024299 | Q14: -550148 | R14: -24299 | V14: =V13/V12 -> 3.328045146 | W14: -550148 | X14: 1 | AC14: -574447
D15: 1999 | E15: 13.19 | F15: 32529.11296 | G15: =E15*F15 -> 429059 | H15: =G15/F15 -> 13.19 | I15: 268111 | J15: =I15/F15 -> 8.242186016 | K15: =G15-I15 -> 160948 | N15: 1576 | P15: 1267280 | Q15: 1576 | R15: -242981 | U15: Break Even | V15: =(V14-1)/V14 -> 0.6995233068 | W15: 1576 | X15: =X14*(1+$X$11) -> 1.260002101 | Y15: =NPV(Y8,N15:N50) -> 5039463.491 | Z15: =-SUM(O12:O14) -> 631169 | AA15: =Y15/Z15 -> 7.984333026 | AB15: =-PMT(Y8,35,AA15) -> 0.5124857962 | AC15: -241405
D16: 2000 | E16: 13.52 | F16: 59475.44379 | G16: 804108 | H16: 13.52 | I16: 486627 | J16: 8.181981823 | K16: 317481 | M16: -80865 | N16: 185047 | P16: 1450000 | Q16: 185047 | R16: -182720 | W16: 185047 | X16: =X15*(1+$X$11) -> 1.587605296 | AC16: 2327
D17: 2001 | E17: 13.86 | F17: 41064.64646 | G17: 569156 | H17: 13.86 | I17: 184391 | J17: 4.490261475 | K17: 384765 | L17: 160922 | M17: 1614 | N17: =K17-L17+M17 -> 225457 | P17: 1411111 | Q17: 225457 | R17: =L17 -> 160922 | T17: =K17/L17 -> 2.391003095 | W17: 225457 | X17: 2.000386009 | AC17: 386379
D18: 2002 | E18: 14.21 | F18: 41069.45813 | G18: 583597 | H18: 14.21 | I18: 194443 | J18: 4.73449149 | K18: 389154 | L18: 157694 | M18: 1614 | N18: =K18-L18+M18 -> 233074 | P18: 1372222 | Q18: 233074 | R18: =L18 -> 157694 | T18: =K18/L18 -> 2.46777937 | W18: 233074 | X18: 2.520490574 | AC18: 390768
D19: 2003 | E19: 14.56 | F19: 41098.76374 | G19: 598398 | H19: 14.56 | I19: 231823 | J19: 5.640631954 | K19: 366575 | L19: 154466 | M19: -11509 | N19: 200600 | P19: 1333333 | Q19: 200600 | R19: 154466 | T19: 2.373175974 | W19: 200600 | X19: 3.17582342 | AC19: 355066
D20: 2004 | E20: 14.93 | F20: 41096.31614 | G20: 613568 | H20: 14.93 | I20: 212016 | J20: 5.159002556 | K20: 401552 | L20: 176949 | M20: -5700 | N20: 218903 | P20: 1268856 | Q20: 218903 | R20: 176949 | T20: 2.269309236 | W20: 218903 | X20: 4.001544183 | AC20: 395852
D21: 2005 | E21: 15.3 | F21: 41118.75817 | G21: 629117 | H21: 15.3 | I21: 230906 | J21: 5.61558788 | K21: 398211 | L21: 188009 | M21: -6345 | N21: 203857 | P21: 1187614 | Q21: 203857 | R21: 188009 | T21: 2.118042221 | W21: 203857 | X21: 5.04195408 | AC21: 391866
D22: 2006 | E22: 15.68 | F22: 41138.52041 | G22: 645052 | H22: 15.68 | I22: 211575 | J22: 5.142990023 | K22: 433477 | L22: 200307 | M22: -550 | N22: 232620 | P22: 1086961 | Q22: 232620 | R22: 200307 | T22: 2.164063163 | W22: 232620 | X22: 6.352872736 | AC22: 432927
D23: 2007 | E23: 16.07 | F23: 41156.56503 | G23: 661386 | H23: 16.07 | I23: 226119 | J23: 5.494117399 | K23: 435267 | L23: 201204 | M23: -4671 | N23: 229392 | P23: 977484 | Q23: 229392 | R23: 201204 | T23: 2.163311863 | W23: 229392 | X23: 8.004632997 | AC23: 430596
D24: 2008 | E24: 16.47 | F24: 41173.40619 | G24: 678126 | H24: 16.47 | I24: 240008 | J24: 5.829199529 | K24: 438118 | L24: 210153 | M24: 10623 | N24: 238588 | P24: 849556 | Q24: 238588 | R24: 210153 | T24: 2.084757296 | W24: 238588 | X24: 10.0858544 | AC24: 448741
D25: 2009 | E25: 16.89 | F25: 41165.36412 | G25: 695283 | H25: 16.89 | I25: 322101 | J25: 7.824563365 | K25: 373182 | L25: 166148 | M25: 19595 | N25: 226629 | P25: 755137 | Q25: 226629 | R25: 166148 | T25: 2.246081807 | W25: 226629 | X25: 12.70819774 | AC25: 392777
D26: 2010 | E26: 17.31 | F26: 41182.49567 | G26: 712869 | H26: 17.31 | I26: 341400 | J26: 8.289929847 | K26: 371469 | L26: 150455 | M26: -4135 | N26: 216879 | P26: 669137 | Q26: 216879 | R26: 150455 | T26: 2.468970789 | W26: 216879 | X26: 16.01235585 | AC26: 367334
D27: 2011 | E27: 17.74 | F27: 41200.22548 | G27: 730892 | H27: 17.74 | I27: 352421 | J27: 8.553860953 | K27: 378471 | L27: 158377 | M27: -3438 | N27: 216656 | P27: 567137 | Q27: 216656 | R27: 158377 | T27: 2.389684108 | W27: 216656 | X27: 20.17560202 | AC27: 375033
D28: 2012 | E28: 18.19 | F28: 41196.53656 | G28: 749365 | H28: 18.19 | I28: 361937 | J28: 8.785617196 | K28: 387428 | L28: 164964 | M28: 40417 | N28: 262881 | P28: 449137 | Q28: 262881 | R28: 164964 | T28: 2.348560898 | W28: 262881 | X28: 25.42130094 | AC28: 427845
D29: 2013 | E29: 18.64 | F29: 41217.75751 | G29: 768299 | H29: 18.64 | I29: 439321 | J29: 10.65853716 | K29: 328978 | L29: 85668 | M29: -933 | N29: 242377 | P29: 401689 | Q29: 242377 | R29: 85668 | T29: 3.840150348 | W29: 242377 | X29: 32.03089261 | AC29: 328045
D30: 2014 | E30: 19.1992 | F30: 41244.5279 | G30: 791861.94 | H30: 19.1992 | I30: 410357 | J30: 9.949368339 | K30: 381504.94 | L30: 87403 | M30: -19051 | N30: 275050.94 | P30: 348241 | Q30: 275050.94 | R30: 87403 | T30: 4.364895255 | W30: 275050.94 | X30: 40.358992 | AC30: 362453.94
D31: 2015 | E31: 19.775176 | F31: 41271.94206 | G31: 816159.9181 | H31: 19.775176 | I31: 377764 | J31: 9.153046383 | K31: 438395.9181 | L31: 124573 | M31: -6498 | N31: 307324.9181 | P31: 252034 | Q31: 307324.9181 | R31: 124573 | T31: 3.519188894 | W31: 307324.9181 | X31: 50.85241473 | AC31: 431897.9181
D32: 2016 | E32: 20.36843128 | F32: 41299.94635 | G32: 841215.1191 | H32: 20.36843128 | I32: 386303 | J32: 9.353595685 | K32: 454912.1191 | L32: 137103 | M32: 4468 | N32: 322277.1191 | P32: 134448 | Q32: 322277.1191 | R32: 137103 | T32: 3.318031838 | W32: 322277.1191 | X32: 64.07414942 | AC32: 459380.1191
D33: 2017 | E33: 20.97948422 | F33: 41328.59442 | G33: 867052.5944 | H33: 20.97948422 | I33: 387497 | J33: 9.376002388 | K33: 479555.5944 | L33: 68691 | M33: 62038 | N33: 472902.5944 | P33: 75000 | Q33: 472902.5944 | R33: 68691 | T33: 6.981345364 | W33: 472902.5944 | X33: 80.73356292 | AC33: 541593.5944
D34: 2018 | E34: 21.60886874 | F34: 41357.88627 | G34: 893697.1359 | H34: 21.60886874 | I34: 443380 | J34: 10.72056723 | K34: 450317.1359 | L34: 6653 | M34: 0 | N34: 443664.1359 | P34: 75000 | Q34: 443664.1359 | R34: 6653 | T34: 67.68632735 | W34: 443664.1359 | X34: 101.7244589 | AC34: 450317.1359
D35: 2019 | E35: 22.25713481 | F35: 41387.76824 | G35: 921173.1371 | H35: 22.25713481 | I35: 463444 | J35: 11.19760789 | K35: 457729.1371 | L35: 6653 | M35: 0 | N35: 451076.1371 | P35: 75000 | Q35: 451076.1371 | R35: 6653 | T35: 68.80041141 | W35: 451076.1371 | X35: 128.173032 | AC35: 457729.1371
D36: 2020 | E36: 22.92484885 | F36: 41945.22532 | G36: 961587.9505 | H36: 22.92484885 | I36: 498808 | J36: 11.89188987 | K36: 462779.9505 | L36: 6653 | M36: 0 | N36: 456126.9505 | P36: 75000 | Q36: 456126.9505 | R36: 6653 | T36: 69.55958974 | W36: 456126.9505 | X36: 161.4982897 | AC36: 462779.9505
D37: 2021 | E37: 23.61259432 | F37: 41976.4485 | G37: 991172.8493 | H37: 23.61259432 | I37: 482977 | J37: 11.50590432 | K37: 508195.8493 | L37: 6653 | M37: 0 | N37: 501542.8493 | P37: 75000 | Q37: 501542.8493 | R37: 6653 | T37: 76.38596862 | W37: 501542.8493 | X37: 203.4881844 | AC37: 508195.8493
D38: 2022 | E38: 24.32097215 | F38: 42008.3691 | G38: 1021684.375 | H38: 24.32097215 | I38: 487482 | J38: 11.60440194 | K38: 534202.3748 | L38: 81653 | M38: 3327 | N38: 455876.3748 | P38: 0 | Q38: 455876.3748 | R38: 81653 | T38: 6.542348411 | W38: 455876.3748 | X38: 256.3955399 | AC38: 537529.3748
D39: 2023 | E39: 25.05060131 | F39: 42040.98712 | G39: 1053152.007 | H39: 25.05060131 | I39: 489066 | J39: 11.63307604 | K39: 564086.0072 | L39: 0 | M39: 0 | N39: 564086.0072 | Q39: 564086.0072 | R39: 0 | W39: 564086.0072 | X39: 323.0589191 | AC39: 564086.0072
D40: 2024 | E40: 25.80211935 | F40: 42074.35622 | G40: 1085607.561 | H40: 25.80211935 | I40: 494610 | J40: 11.75561659 | K40: 590997.5609 | N40: 590997.5609 | Q40: 590997.5609 | R40: 0 | W40: 590997.5609 | X40: 407.0549169 | AC40: 590997.5609
D41: 2025 | E41: 26.57618293 | F41: 42108.42275 | G41: 1119081.146 | H41: 26.57618293 | I41: 495196 | J41: 11.76002253 | K41: 623885.1458 | N41: 623885.1458 | Q41: 623885.1458 | R41: 0 | W41: 623885.1458 | X41: 512.8900507 | AC41: 623885.1458
D42: 2026 | E42: 27.37346842 | F42: 42143.24034 | G42: 1153606.659 | H42: 27.37346842 | I42: 507476 | J42: 12.0416939 | K42: 646130.6586 | N42: 646130.6586 | Q42: 646130.6586 | R42: 0 | W42: 646130.6586 | X42: 646.2425417 | AC42: 646130.6586
D43: 2027 | E43: 28.19467247 | F43: 42178.86266 | G43: 1189219.218 | H43: 28.19467247 | I43: 509408 | J43: 12.07732897 | K43: 679811.2179 | N43: 679811.2179 | Q43: 679811.2179 | R43: 0 | W43: 679811.2179 | X43: 814.2669606 | AC43: 679811.2179
D44: 2028 | E44: 29.04051265 | F44: 42215.1824 | G44: 1225950.538 | H44: 29.04051265 | I44: 512442 | J44: 12.13880814 | K44: 713508.5384 | N44: 713508.5384 | Q44: 713508.5384 | R44: 0 | W44: 713508.5384 | X44: 1025.978081 | AC44: 713508.5384
D45: 2029 | E45: 29.91172802 | F45: 42252.36052 | G45: 1263841.116 | H45: 29.91172802 | I45: 523980 | J45: 12.40120063 | K45: 739861.1161 | N45: 739861.1161 | Q45: 739861.1161 | R45: 0 | W45: 739861.1161 | X45: 1292.734539 | AC45: 739861.1161
D46: 2030 | E46: 30.80907987 | F46: 42290.2897 | G46: 1302924.913 | H46: 30.80907987 | I46: 540751 | J46: 12.78664686 | K46: 762173.9129 | N46: 762173.9129 | Q46: 762173.9129 | R46: 0 | W46: 762173.9129 | X46: 1628.848235 | AC46: 762173.9129
D47: 2031 | E47: 31.73335226 | F47: 42329.07725 | G47: 1343243.519 | H47: 31.73335226 | I47: 538685 | J47: 12.72612197 | K47: 804558.5194 | N47: 804558.5194 | Q47: 804558.5194 | R47: 0 | W47: 804558.5194 | X47: 2052.352199 | AC47: 804558.5194
D48: 2032 | E48: 32.68535283 | F48: 42368.72318 | G48: 1384836.666 | H48: 32.68535283 | I48: 546816 | J48: 12.90612412 | K48: 838020.6659 | N48: 838020.6659 | Q48: 838020.6659 | R48: 0 | W48: 838020.6659 | X48: 2585.968084 | AC48: 838020.6659
D49: 2033 | E49: 33.66591341 | F49: 42409.22747 | G49: 1427745.38 | H49: 33.66591341 | I49: 549864 | J49: 12.96566886 | K49: 877881.3799 | N49: 877881.3799 | Q49: 877881.3799 | R49: 0 | W49: 877881.3799 | X49: 3258.32522 | AC49: 877881.3799
D50: 2034 | E50: 34.67589082 | F50: 42450.59013 | G50: 1472012.028 | H50: 34.67589082 | I50: 565083 | J50: 13.3115464 | K50: 906929.0284 | N50: 906929.0284 | Q50: 906929.0284 | R50: 0 | W50: 906929.0284 | X50: 4105.496624 | AC50: 906929.0284
D53: Sources: Petrozuata Planning Documents, Federal Reserve Bulletin, S&P Bond Guide, and casewriter estimates.

Sheet Exhibit10b
D1: Exhibit 10b Capital Markets Data (as of January 1997)
D4: Government or International Debt | E4: Yields | G4: Corporate Bond Ratings (U.S. industrials) | H4: Yields | I4: Spread
D6: Federal Funds Rate | E6: 0.0519 | G6: AAA | H6: 0.0713
D7: 3-month Treasury Bill | E7: 5.03 | G7: AA | H7: 7.21 | I7: =H7-bond_rate -> 0.4
D8: 3-month LIBOR | E8: 5.78 | G8: A | H8: 7.39 | I8: =H8-bond_rate -> 0.58
D9: 10-year Treasury Bond | E9: 6.56 | G9: BBB | H9: 7.7 | I9: =H9-bond_rate -> 0.89
D10: 30-year Treasury Bond | E10: 6.81 | G10: BB | H10: 8.69 | I10: =H10-bond_rate -> 1.88
G11: B | H11: 10.17 | I11: =H11-bond_rate -> 3.36 | J11: =I11-I9 -> 2.47
D14: Sources: Petrozuata Planning Documents, Federal Reserve Bulletin, S&P Bond Guide,
D15: and casewriter estimates.
G18: Debt | H18: =Exhibit7!J23 -> 1450000
G20: Amount | H20: =H18*J11/100 -> 35815
G23: 1 | H23: =H20 -> 35815
G24: =G23+1 -> 2 | H24: =H23 -> 35815
G25: 3 | H25: 35815
G26: 4 | H26: 35815
G27: 5 | H27: 35815
G28: 6 | H28: 35815
G29: 7 | H29: 35815
G30: 8 | H30: 35815
G31: 9 | H31: 35815
G32: 10 | H32: 35815
G34: =bond_rate/100 -> 0.0681 | H34: =NPV(G34,H23:H32) -> 253773.8124
